Workbook

Sheet Calculations (hidden)
F1: Offset | H1: Current UTC Time | I1: Current awarness start | J1: Next Awareness Start | K1: Row of Current Awareness | M1: Proper year | N1: Mind Awareness | BL1: Emotional Awarenss | DF1: Physical Awareness | FB1: Journal Entry
AJ2: MACRO | AT2: Micro | CH2: MACRO | CR2: Micro | ED2: MACRO | EN2: Micro
A3: Full Name | B3: First Name | C3: Last Name | D3: DOB | E3: Time of Birth | H3: UTC Time | I3: UTC Time | N3: Current Mind Awareness | P3: Current Shap | S3: Wave (M) | T3: Wave (m) | U3: Awarness Phase (M) | V3: Start Phase | W3: end Phase | X3: % thru phase | Y3: Phase (m) | Z3: Start Of Previous Mind Awareness | AA3: Start of current Mind Awareness | AB3: Start of Next Mind Awareness | AC3: Length of Current Mind Awareness | AD3: Time Into Current Mind Awareness | AE3: Percent thru Mind Awareness | AF3: LR | AG3: RL | AH3: Next Mind Awarenss | AJ3: Direction of Wave | AL3: Direction | AM3: Rotation | AN3: Orbit | AO3: Polarity | AP3: Zone | AQ3: Time | AT3: Direction of micro Wave | AV3: Direction | AW3: Rotation | AX3: Orbit | AY3: Polarity | AZ3: Zone | BA3: Time | BD3: Micro Awarness | BG3: Start of Previous Micro | BH3: Start of Current micro | BI3: Start of Next Micro | BJ3: Lenght of current Micro | BK3: % thru | BL3: Current Emotional Awarness | BN3: Start/Mid/End Shapes | BQ3: Next Emo Awarenss | BS3: Wave (M) | BT3: Wave (m) | BU3: Awarness Phase (M) | BV3: Start Phase | BW3: end Phase | BX3: % thru phase | BY3: Phase (m) | BZ3: Start of Previous Emo Awareness | CA3: Start of current Emo Awareness | CB3: Start of Next Emo Awareness | CC3: Length of Current Emo Awareness | CD3: Time Into Current Emo Awareness | CE3: Percent thru Emo Awareness | CF3: LR | CG3: RL | CH3: Direction of Wave | CJ3: Direction | CK3: Rotation | CL3: Orbit | CM3: Polarity | CN3: Zone | CO3: Time | CR3: Direction of micro wave | CT3: Direction | CU3: Rotation | CV3: Orbit | CW3: Polarity | CX3: Zone | CY3: Time | DB3: Micro Awarness | DF3: Current Physical Awareness | DH3: Start/Mid/End Shapes | DK3: Next Physical Awareness | DM3: Wave (M) | DN3: Wave (m) | DO3: Awarness Phase (M) | DP3: Start Phase | DQ3: end Phase | DR3: % thru awarness | DS3: Phase (m) | DT3: Start of Previous Physical Awareness | DU3: Start of Current Physical Awareness | DV3: Start of Next Physical Awareness | DW3: Lenth of Current Physical Awareness | DX3: Time Into Current Physical Awareness | DY3: Percent Thru Physical Awareness | DZ3: LR | EA3: RL | EB3: Phase | EC3: Pos/Neg | ED3: Direction Of Wave | EF3: Direction | EG3: Rotation | EH3: Orbit | EI3: Polarity | EJ3: Zone | EK3: Time | EN3: Direction of Micro Wave | EP3: Direction | EQ3: Rotation | ER3: Orbit | ES3: Polarity | ET3: Zone | EU3: Time | EX3: Micro Awarness | FB3: Journal Entry
A4: =IF(C11=1,Home!AB3,Advanced!Z4) -> Hoverson, Kathy | B4: =Advanced!AF3 -> 0 | C4: =Advanced!AJ3 -> 0 | D4: =IF(C11=1,VLOOKUP(Home!AB3,Family!$B$14:$H$82,4,FALSE),IF(C11=2,VLOOKUP(Advanced!Z4,Family!$B$14:$H$82,4,FALSE),IF(C11=3,D7,"error"))) -> 1951-07-24 | E4: =IF(C11=1,VLOOKUP(Home!AB3,Family!$B$14:$H$87,5,FALSE),IF(C11=2,VLOOKUP(Advanced!Z4,Family!$B$14:$H$87,5,FALSE),IF(C11=3,E7,"ERROR"))) -> 04:55:00 | F4: =IF(C11=1,VLOOKUP(Home!AB3,Family!$B$14:$H$87,7,FALSE),IF(C11=2,VLOOKUP(Advanced!Z4,Family!$B$14:$H$87,7,FALSE),IF(C11=3,F7,"ERROR"))) -> (GMT-05:00) Central Time (US and Canada) *DST* | G4: =VLOOKUP(F4,'Time Zones'!$C1:$D82,2,0) -> -5 | H4: =D4+E4-VLOOKUP(F4,'Time Zones'!$C1:$D82,2,0)/24 -> 1951-07-24T09:55:00 | I4: =MAX(IF('AW1899-2149'!A2:IQ730<H4,'AW1899-2149'!A2:IQ730)) -> 1951-07-24T02:55:46.813 | J4: =MIN(IF('AW1899-2149'!A2:IQ729>H4,'AW1899-2149'!A2:IQ729)) -> 1951-07-24T15:16:36.923 | K4: =ADDRESS(MIN(IF(NOT(ISERROR(FIND(I4,'AW1899-2149'!$A$1:$IQ$729,1))),ROW('AW1899-2149'!$A$1:$IQ$729)," ")),1) -> $A$428 | L4: =MIN(IF(NOT(ISERROR(FIND(I4,'AW1899-2149'!$A$1:$IQ$729,1))),ROW('AW1899-2149'!$A$1:$IQ$729)," "))-1 -> 427 | M4: =IF(AND(L4<25,MONTH(H4)=12),YEAR(H4)+1,YEAR(H4)) -> 1951 | N4: =VLOOKUP(M4,Years.Mind!A1:B250,2,0) -> 7-3 | O4: =VLOOKUP(N4,'EMO and PHY YR'!D1:E730,2,0) -> N | Q4: =IF(AE4<0.25,VLOOKUP(O4,$A$38:$D$54,2,0),IF(AE4>=0.75,VLOOKUP(O4,$A$38:$D$54,4,0),VLOOKUP(O4,$A$38:$D$54,3,0))) -> D | S4: =VLOOKUP(N4,'EMO and PHY YR'!D2:L57,9,FALSE) -> 7 | T4: =IF(AE4<12.5%,8,IF(AND(AE4>=12.5%,AE4<25%),1,IF(AND(AE4>=25%,AE4<37.5%),2,IF(AND(AE4>=37.5%,AE4<50%),3,IF(AND(AE4>=50%,AE4<62.5%),4,IF(AND(AE4>=62.5%,AE4<75%),5,IF(AND(AE4>=75%,AE4<87.5%),6,IF(AE4>=87.5%,7,"oops")))))))) -> 4 | U4: =IF(AE4>X4,W4,V4) -> 3 | V4: =VLOOKUP(N4,'Macro Phase'!B3:L65,10,FALSE) -> 2 | W4: =VLOOKUP(N4,'Macro Phase'!B3:L65,11,FALSE) -> 3 | X4: =VLOOKUP(N4,'Macro Phase'!B3:L65,8,FALSE) -> 0.4 | Y4: =VLOOKUP(AE4,A66:C105,3,TRUE) -> 4 | Z4: =HLOOKUP(M4-1,'AW1899-2149'!A1:IQ731,2,FALSE)+VLOOKUP(F4,'Time Zones'!$C1:$D81,2,0)/24 -> 1949-12-21T23:22:00 | AA4: =HLOOKUP(M4,'AW1899-2149'!A:IQ,2,FALSE)+VLOOKUP(F4,'Time Zones'!$C:$D,2,0)/24 -> 1950-12-22T05:13:00 | AB4: =HLOOKUP(M4+1,'AW1899-2149'!A:IQ,2,FALSE)+VLOOKUP(F4,'Time Zones'!$C:$D,2,0)/24 -> 1951-12-22T11:00:00 | AC4: =AB4-AA4 -> 365.2409722 | AD4: =H4-AA4+VLOOKUP(F4,'Time Zones'!$C:$D,2,0)/24 -> 213.9875 | AE4: =O38 -> 0.58594 | AF4: =IF(AJ4="LR",AE4,"") -> 0.58594 | AG4: =IF(AJ4="RL",AE4,"") ->  | AH4: =VLOOKUP(M4+1,Years.Mind!A:B,2,0) -> 5-4 | AI4: =VLOOKUP(AH4,'EMO and PHY YR'!D:E,2,0) -> WSW | AJ4: =VLOOKUP(N4,'EMO and PHY YR'!D2:K57,8,FALSE) -> LR | AK4: =IF(AJ4="LR","♂","♀") -> ♂ | AL4: =VLOOKUP(N4,'EMO and PHY YR'!D2:Q57,10,FALSE) -> ↘ | AM4: =VLOOKUP(N4,'EMO and PHY YR'!D2:Q57,13,FALSE) -> ↶ | AN4: =VLOOKUP(N4,'EMO and PHY YR'!D2:Q57,14,FALSE) -> ⇆ | AO4: =VLOOKUP(N4,'EMO and PHY YR'!D2:K57,7,FALSE) -> ++ | AP4: =VLOOKUP(N4,'EMO and PHY YR'!D2:Q57,11,FALSE) -> 7 | AQ4: =VLOOKUP(AS4*360,$M$108:$N$171,2,TRUE) -> DC | AR4: =IF(AND(AS4>0.125,AS4<0.375),2,IF(AND(AS4>0.375,AS4<0.625),3,IF(AND(AS4>0.625,AS4<0.875),4,1))) -> 2 | AS4: =IF(AJ4="LR",VLOOKUP(N4,'Macro Phase'!B3:N58,12,FALSE)+((30*AE4)/24/60),IF(VLOOKUP(N4,'Macro Phase'!B3:N58,13,FALSE)-((30*AE4)/24/60)<0,VLOOKUP(N4,'Macro Phase'!B3:N58,13,FALSE)-((30*AE4)/24/60)+1,VLOOKUP(N4,'Macro Phase'!B3:N58,13,FALSE)-((30*AE4)/24/60))) -> 04:17:34.692 | AT4: =VLOOKUP(BE4,'EMO and PHY YR'!D2:K57,8,FALSE) -> RL | AU4: =IF(AT4="LR","♂","♀") -> ♀ | AV4: =VLOOKUP(BE4,'EMO and PHY YR'!D2:Q57,10,FALSE) -> ↙ | AW4: =VLOOKUP(BE4,'EMO and PHY YR'!D2:Q57,13,FALSE) -> ↶ | AX4: =VLOOKUP(BE4,'EMO and PHY YR'!D2:Q57,14,FALSE) -> ⇇ | AY4: =VLOOKUP(BE4,'EMO and PHY YR'!D2:Q57,7,FALSE) -> -- | AZ4: =VLOOKUP(BE4,'EMO and PHY YR'!D2:Q57,11,FALSE) -> 6 | BA4: =VLOOKUP(BC4*360,$M$108:$N$171,2,TRUE) -> C | BB4: =IF(AND(BC4>0.125,BC4<0.375),2,IF(AND(BC4>0.375,BC4<0.625),3,IF(AND(BC4>0.625,BC4<0.875),4,1))) -> 4 | BC4: =IF(AT4="LR",VLOOKUP(AE4,'Macro Phase'!C3:M58,11,TRUE)+(30*(((AE4-VLOOKUP(AE4,'Macro Phase'!C3:M58,1,TRUE))/(100/48))*100)/1440),IF(VLOOKUP(AE4,'Macro Phase'!C3:N58,12,TRUE)-(30*(((AE4-VLOOKUP(AE4,'Macro Phase'!C3:N58,1,TRUE))/(100/48))*100)/1440)<0,VLOOKUP(AE4,'Macro Phase'!C3:N58,12,TRUE)-(30*(((AE4-VLOOKUP(AE4,'Macro Phase'!C3:N58,1,TRUE))/(100/48))*100)/1440)+1,VLOOKUP(AE4,'Macro Phase'!C3:N58,12,TRUE)-(30*(((AE4-VLOOKUP(AE4,'Macro Phase'!C3:N58,1,TRUE))/(100/48))*100)/1440))) -> 15:56:14.784 | BD4: =IF(BE8<0,VLOOKUP((360+BE8),$M$108:$N$171,2,TRUE),VLOOKUP(BE8,$M$108:$N$171,2,TRUE)) -> ID | BE4: =IF(AJ4="LR",(VLOOKUP(AE4,N51:P98,3,TRUE)),(VLOOKUP(AE4,N51:S98,6,TRUE))) -> 4-4 | BF4: =VLOOKUP(BE4,'EMO and PHY YR'!D2:E57,2,FALSE) -> N | BG4: =VLOOKUP(BF4,A38:D54,2,0) -> ID | BH4: =VLOOKUP(BF4,A38:D54,3,0) -> D | BI4: =VLOOKUP(BF4,A38:D54,4,0) -> DC | BJ4: =L105 -> 7.802789352 | BK4: =((D4+E4)-J105)/L105 -> 0.1252223134 | BL4: =VLOOKUP(L4,'EMO and PHY YR'!A2:E729,2) -> 3-5 | BM4: =VLOOKUP($L$4,'EMO and PHY YR'!A2:E729,3) -> SE | BO4: =IF(CE4<0.25,VLOOKUP(BM4,$A$38:$D$54,2,0),IF(CE4>=0.75,VLOOKUP(BM4,$A$38:$D$54,4,0),VLOOKUP(BM4,$A$38:$D$54,3,0))) -> IO | BQ4: =VLOOKUP((L4-VLOOKUP($L$4,'EMO and PHY YR'!A2:F730,6))+13,'EMO and PHY YR'!A2:E730,2) -> 3-6 | BR4: =VLOOKUP((L4-VLOOKUP($L$4,'EMO and PHY YR'!A2:F730,6))+13,'EMO and PHY YR'!A2:E730,3) -> ESE | BS4: =VLOOKUP(BL4,'EMO and PHY YR'!D2:L57,9,FALSE) -> 3 | BT4: =IF(CE4<12.5%,8,IF(AND(CE4>=12.5%,CE4<25%),1,IF(AND(CE4>=25%,CE4<37.5%),2,IF(AND(CE4>=37.5%,CE4<50%),3,IF(AND(CE4>=50%,CE4<62.5%),4,IF(AND(CE4>=62.5%,CE4<75%),5,IF(AND(CE4>=75%,CE4<87.5%),6,IF(CE4>=87.5%,7,"uffda")))))))) -> 6 | BU4: =IF(CE4>BX4,BW4,BV4) -> 5 | BV4: =VLOOKUP(BL4,'Macro Phase'!B3:L65,10,FALSE) -> 4 | BW4: =VLOOKUP(BL4,'Macro Phase'!B3:L65,11,FALSE) -> 5 | BX4: =VLOOKUP(BL4,'Macro Phase'!B3:L65,8,FALSE) -> 0.8 | BY4: =VLOOKUP(CE4,A66:C105,3,TRUE) -> 3 | BZ4: =IF(((L4-VLOOKUP($L$4,'EMO and PHY YR'!A2:P730,6))-12)<0,HLOOKUP(M4-1,'AW1899-2149'!A:IQ,(L4-VLOOKUP($L$4,'EMO and PHY YR'!A2:P730,6))-12+728,FALSE)+VLOOKUP(F4,'Time Zones'!$C:$D,2,0)/24,HLOOKUP(M4,'AW1899-2149'!A:IQ,(L4-VLOOKUP($L$4,'EMO and PHY YR'!A2:P730,6))-12,FALSE)+VLOOKUP(F4,'Time Zones'!$C:$D,2,0)/24) -> 1951-07-12T01:56:34.286 | CA4: =HLOOKUP(M4,'AW1899-2149'!A:IQ,(L4-VLOOKUP($L$4,'EMO and PHY YR'!A2:F730,6))+1,FALSE)+VLOOKUP(F4,'Time Zones'!$C:$D,2,0)/24 -> 1951-07-18T18:27:25.714 | CB4: =HLOOKUP(M4,'AW1899-2149'!A:IQ,(L4-VLOOKUP($L$4,'EMO and PHY YR'!A2:F730,6))+14,FALSE)+VLOOKUP(F4,'Time Zones'!$C:$D,2,0)/24 -> 1951-07-25T10:58:17.143 | CC4: =CB4-CA4 -> 6.688095238 | CD4: =H4-CA4+VLOOKUP(F4,'Time Zones'!$C:$D,2,0)/24 -> 5.435813492 | CE4: =CD4/CC4 -> 0.8127595823 | CF4: =IF(CH4="LR",CE4,"") -> 0.8127595823 | CG4: =IF(CH4="RL",CE4,"") ->  | CH4: =VLOOKUP(BL4,'EMO and PHY YR'!D2:K57,8,FALSE) -> LR | CI4: =IF(CH4="LR","♂","♀") -> ♂ | CJ4: =VLOOKUP(BL4,'EMO and PHY YR'!D2:Q57,10,FALSE) -> ↘ | CK4: =VLOOKUP(BL4,'EMO and PHY YR'!D2:Q57,13,FALSE) -> ↶ | CL4: =VLOOKUP(BL4,'EMO and PHY YR'!D2:Q57,14,FALSE) -> ⇆ | CM4: =VLOOKUP(BL4,'EMO and PHY YR'!D2:K57,7,FALSE) -> ++ | CN4: =VLOOKUP(BL4,'EMO and PHY YR'!D2:Q57,11,FALSE) -> 3 | CO4: =VLOOKUP(CQ4*360,$M$108:$N$171,2,TRUE) -> D | CP4: =IF(AND(CQ4>0.125,CQ4<0.375),2,IF(AND(CQ4>0.375,CQ4<0.625),3,IF(AND(CQ4>0.625,CQ4<0.875),4,1))) -> 4 | CQ4: =IF(CH4="LR",VLOOKUP(BL4,'Macro Phase'!B3:N58,12,FALSE)+((30*CE4)/24/60),IF(VLOOKUP(BL4,'Macro Phase'!B3:N58,13,FALSE)-((30*CE4)/24/60)<0,VLOOKUP(BL4,'Macro Phase'!B3:N58,13,FALSE)-((30*CE4)/24/60)+1,VLOOKUP(BL4,'Macro Phase'!B3:N58,13,FALSE)-((30*CE4)/24/60))) -> 17:24:22.967 | CR4: =VLOOKUP(DC4,'EMO and PHY YR'!D2:K57,8,FALSE) -> LR | CS4: =IF(CR4="LR","♂","♀") -> ♂ | CT4: =VLOOKUP(DC4,'EMO and PHY YR'!D2:Q57,10,FALSE) -> ↗ | CU4: =VLOOKUP(DC4,'EMO and PHY YR'!D2:Q57,13,FALSE) -> ↶ | CV4: =VLOOKUP(DC4,'EMO and PHY YR'!D2:Q57,14,FALSE) -> ⇆ | CW4: =VLOOKUP(DC4,'EMO and PHY YR'!D2:Q57,7,FALSE) -> -+ | CX4: =VLOOKUP(DC4,'EMO and PHY YR'!D2:Q57,11,FALSE) -> 7 | CY4: =VLOOKUP(DA4*360,$M$108:$N$171,2,TRUE) -> IO | CZ4: =IF(AND(DA4>0.125,DA4<0.375),2,IF(AND(DA4>0.375,DA4<0.625),3,IF(AND(DA4>0.625,DA4<0.875),4,1))) -> 1 | DA4: =IF(CR4="LR",VLOOKUP(CE4,'Macro Phase'!C3:M58,11,TRUE)+(30*(((CE4-VLOOKUP(CE4,'Macro Phase'!C3:M58,1,TRUE))/(100/48))*100)/1440),IF(VLOOKUP(CE4,'Macro Phase'!C3:N58,12,TRUE)-(30*(((CE4-VLOOKUP(CE4,'Macro Phase'!C3:N58,1,TRUE))/(100/48))*100)/1440)<0,VLOOKUP(CE4,'Macro Phase'!C3:N58,12,TRUE)-(30*(((CE4-VLOOKUP(CE4,'Macro Phase'!C3:N58,1,TRUE))/(100/48))*100)/1440)+1,VLOOKUP(CE4,'Macro Phase'!C3:N58,12,TRUE)-(30*(((CE4-VLOOKUP(CE4,'Macro Phase'!C3:N58,1,TRUE))/(100/48))*100)/1440))) -> 01:30:22.428 | DB4: =IF(DC8<0,VLOOKUP((360+DC8),$M$108:$N$171,2,TRUE),VLOOKUP(DC8,$M$108:$N$171,2,TRUE)) -> IO | DC4: =IF(CH4="LR",(VLOOKUP(CE4,N51:P98,3,TRUE)),(VLOOKUP(CE4,N51:S98,6,TRUE))) -> 6-5 | DD4: =VLOOKUP(DC4,'EMO and PHY YR'!D2:E57,2,FALSE) -> ESE | DF4: =VLOOKUP(L4,'EMO and PHY YR'!A2:E730,4) -> 7-7 | DG4: =VLOOKUP(L4,'EMO and PHY YR'!A2:E730,5) -> W | DI4: =IF(DY4<0.25,VLOOKUP(DG4,$A$38:$D$54,2,0),IF(DY4>=0.75,VLOOKUP(DG4,$A$38:$D$54,4,0),VLOOKUP(DG4,$A$38:$D$54,3,0))) -> D | DK4: =VLOOKUP(L4+1,'EMO and PHY YR'!A2:E729,4) -> 1-6 | DL4: =VLOOKUP(L4+1,'EMO and PHY YR'!A2:E729,5) -> NNE | DM4: =VLOOKUP(DF4,'EMO and PHY YR'!D2:L57,9,FALSE) -> 8 | DN4: =IF(DY4<12.5%,8,IF(AND(DY4>=12.5%,DY4<25%),1,IF(AND(DY4>=25%,DY4<37.5%),2,IF(AND(DY4>=37.5%,DY4<50%),3,IF(AND(DY4>=50%,DY4<62.5%),4,IF(AND(DY4>=62.5%,DY4<75%),5,IF(AND(DY4>=75%,DY4<87.5%),6,IF(DY4>=87.5%,7,"uffda")))))))) -> 4 | DO4: =IF(DY4>DR4,DQ4,DP4) -> 1 | DP4: =VLOOKUP(DF4,'Macro Phase'!B3:L65,10,FALSE) -> 1 | DQ4: =VLOOKUP(DF4,'Macro Phase'!B3:L65,11,FALSE) -> 1 | DR4: =VLOOKUP(DF4,'Macro Phase'!B3:L65,8,FALSE) -> 1 | DS4: =VLOOKUP(DY4,A66:C105,3,TRUE) -> 3 | DT4: =IF(L4<2,HLOOKUP(M4-1,'AW1899-2149'!A:IQ,L4+728,0),HLOOKUP(M4,'AW1899-2149'!A:IQ,L4,0)+VLOOKUP(F4,'Time Zones'!$C:$D,2,0)/24) -> 1951-07-23T09:34:56.703 | DU4: =HLOOKUP(M4,'AW1899-2149'!A:IQ,L4+1,0)+VLOOKUP(F4,'Time Zones'!$C:$D,2,0)/24 -> 1951-07-23T21:55:46.813 | DV4: =HLOOKUP(M4,'AW1899-2149'!A:IQ,L4+2,0)+VLOOKUP(F4,'Time Zones'!$C:$D,2,0)/24 -> 1951-07-24T10:16:36.923 | DW4: =DV4-DU4 -> 12:20:50.110 | DX4: =H4+VLOOKUP(F4,'Time Zones'!$C:$D,2,0)/24-DU4 -> 0.2911248474 | DY4: =DX4/DW4 -> 0.5658745699 | DZ4: =IF(ED4="LR",DY4,"") -> 0.5658745699 | EA4: =IF(ED4="RL",DY4,"") ->  | EB4: =VLOOKUP(L4,'EMO and PHY YR'!A2:P730,7) -> 3 | EC4: =VLOOKUP(L4,'EMO and PHY YR'!A2:P730,8) -> N | ED4: =VLOOKUP(DF4,'EMO and PHY YR'!D2:K57,8,FALSE) -> LR | EE4: =IF(ED4="LR","♂","♀") -> ♂ | EF4: =VLOOKUP(DF4,'EMO and PHY YR'!D2:Q57,10,FALSE) -> ↘ | EG4: =VLOOKUP(DF4,'EMO and PHY YR'!D2:Q57,13,FALSE) -> ↶ | EH4: =VLOOKUP(DF4,'EMO and PHY YR'!D2:Q57,14,FALSE) -> ⇉ | EI4: =VLOOKUP(DF4,'EMO and PHY YR'!D2:K57,7,FALSE) -> -+ | EJ4: =VLOOKUP(DF4,'EMO and PHY YR'!D2:Q57,11,FALSE) -> 1 | EK4: =VLOOKUP(EM4*360,$M$108:$N$171,2,TRUE) -> ID | EL4: =IF(AND(EM4>0.125,EM4<0.375),2,IF(AND(EM4>0.375,EM4<0.625),3,IF(AND(EM4>0.625,EM4<0.875),4,1))) -> 2 | EM4: =IF(ED4="LR",VLOOKUP(DF4,'Macro Phase'!B3:N58,12,FALSE)+((30*DY4)/24/60),IF(VLOOKUP(DF4,'Macro Phase'!B3:N58,13,FALSE)-((30*DY4)/24/60)<0,VLOOKUP(DF4,'Macro Phase'!B3:N58,13,FALSE)-((30*DY4)/24/60)+1,VLOOKUP(DF4,'Macro Phase'!B3:N58,13,FALSE)-((30*DY4)/24/60))) -> 06:16:58.574 | EN4: =VLOOKUP(EY4,'EMO and PHY YR'!D2:K57,8,FALSE) -> LR | EO4: =IF(EN4="LR","♂","♀") -> ♂ | EP4: =VLOOKUP(EY4,'EMO and PHY YR'!D2:Q57,10,FALSE) -> ↘ | EQ4: =VLOOKUP(EY4,'EMO and PHY YR'!D2:Q57,13,FALSE) -> ↷ | ER4: =VLOOKUP(EY4,'EMO and PHY YR'!D2:Q57,14,FALSE) -> ⇉ | ES4: =VLOOKUP(EY4,'EMO and PHY YR'!D2:Q57,7,FALSE) -> -+ | ET4: =VLOOKUP(EY4,'EMO and PHY YR'!D2:Q57,11,FALSE) -> 5 | EU4: =VLOOKUP(EW4*360,$M$108:$N$171,2,TRUE) -> IO | EV4: =IF(AND(EW4>0.125,EW4<0.375),2,IF(AND(EW4>0.375,EW4<0.625),3,IF(AND(EW4>0.625,EW4<0.875),4,1))) -> 4 | EW4: =IF(EN4="LR",VLOOKUP(DY4,'Macro Phase'!C3:M58,11,TRUE)+(30*(((DY4-VLOOKUP(DY4,'Macro Phase'!C3:M58,1,TRUE))/(100/48))*100)/1440)-(2/60/60/24),IF(VLOOKUP(DY4,'Macro Phase'!C3:N58,12,TRUE)-(30*(((DY4-VLOOKUP(DY4,'Macro Phase'!C3:N58,1,TRUE))/(100/48))*100)/1440)<0,VLOOKUP(DY4,'Macro Phase'!C3:N58,12,TRUE)-(30*(((DY4-VLOOKUP(DY4,'Macro Phase'!C3:N58,1,TRUE))/(100/48))*100)/1440)+1+(2/60/60/24),VLOOKUP(DY4,'Macro Phase'!C3:N58,12,TRUE)-(30*(((DY4-VLOOKUP(DY4,'Macro Phase'!C3:N58,1,TRUE))/(100/48))*100)/1440)+(2/60/60/24))) -> 19:34:49.563 | EX4: =IF(EY8<0,VLOOKUP((360+EY8),$M$108:$N$171,2,TRUE),VLOOKUP(EY8,$M$108:$N$171,2,TRUE)) -> IO | EY4: =IF(ED4="LR",(VLOOKUP(DY4,N51:P98,3,TRUE)),(VLOOKUP(DY4,N51:S98,6,TRUE))) -> 4-5 | EZ4: =VLOOKUP(EY4,'EMO and PHY YR'!D2:E57,2,FALSE) -> NNE | FA4: =((D4+E4)-J80)/L80 -> -2638115.976
A5: =IF(C11=1,Home!AB3,Advanced!Z4) -> Hoverson, Kathy | D5: =IF(C11=1,Home!G3,IF(C11=2,Advanced!E4,IF(C11=3,E11,"Error"))) -> 2025-03-17 | E5: =IF(C11=1,Home!G4,IF(C11=2,Advanced!E5,IF(C11=3,E12,"Error"))) -> 10:35:11.910 | F5: =IF(C11=1,Home!G5,IF(C11=2,Advanced!E6,IF(C11=3,E12,"Error"))) -> (GMT-04:00) Eastern Time (US and Canada) *DST* | G5: =VLOOKUP(F5,'Time Zones'!$C1:$D82,2,0) -> -4 | H5: =D5+E5-VLOOKUP(F5,'Time Zones'!$C1:$D82,2,0)/24 -> 2025-03-17T14:35:11.910 | I5: =MAX(IF('AW1899-2149'!A2:IQ730<H5,'AW1899-2149'!A2:IQ730)) -> 2025-03-17T10:36:34.286 | J5: =MIN(IF('AW1899-2149'!A2:IQ729>H5,'AW1899-2149'!A2:IQ729)) -> 2025-03-17T22:20:38.571 | K5: =ADDRESS(MIN(IF(NOT(ISERROR(FIND(I5,'AW1899-2149'!$A$1:$IQ$729,1))),ROW('AW1899-2149'!$A$1:$IQ$729)," ")),1) -> $A$178 | L5: =MIN(IF(NOT(ISERROR(FIND(I5,'AW1899-2149'!$A$1:$IQ$729,1))),ROW('AW1899-2149'!$A$1:$IQ$729)," "))-1 -> 177 | M5: =IF(AND(L5<25,MONTH(H5)=12),YEAR(H5)+1,YEAR(H5)) -> 2025 | N5: =VLOOKUP(M5,Years.Mind!A1:B250,2,0) -> 2-5 | O5: =VLOOKUP(N5,'EMO and PHY YR'!D1:E730,2,0) -> WNW | Q5: =IF(AE5<0.25,VLOOKUP(O5,$A$38:$D$54,2,0),IF(AE5>=0.75,VLOOKUP(O5,$A$38:$D$54,4,0),VLOOKUP(O5,$A$38:$D$54,3,0))) -> IO | S5: =VLOOKUP(N5,'EMO and PHY YR'!D2:L57,9,FALSE) -> 2 | T5: =IF(AE5<12.5%,8,IF(AND(AE5>=12.5%,AE5<25%),1,IF(AND(AE5>=25%,AE5<37.5%),2,IF(AND(AE5>=37.5%,AE5<50%),3,IF(AND(AE5>=50%,AE5<62.5%),4,IF(AND(AE5>=62.5%,AE5<75%),5,IF(AND(AE5>=75%,AE5<87.5%),6,IF(AE5>=87.5%,7,"oops")))))))) -> 1 | U5: =IF(AE5>X5,W5,V5) -> 3 | V5: =VLOOKUP(N5,'Macro Phase'!B3:L65,10,FALSE) -> 3 | W5: =VLOOKUP(N5,'Macro Phase'!B3:L65,11,FALSE) -> 4 | X5: =VLOOKUP(N5,'Macro Phase'!B3:L65,8,FALSE) -> 0.6 | Y5: =VLOOKUP(AE5,A66:C105,3,TRUE) -> 5 | Z5: =HLOOKUP(M5-1,'AW1899-2149'!A1:IQ731,2,FALSE)+VLOOKUP(F5,'Time Zones'!$C1:$D81,2,0)/24 -> 2023-12-21T23:27:00 | AA5: =HLOOKUP(M5,'AW1899-2149'!A:IQ,2,FALSE)+VLOOKUP(F5,'Time Zones'!$C:$D,2,0)/24 -> 2024-12-21T05:20:00 | AB5: =HLOOKUP(M5+1,'AW1899-2149'!A:IQ,2,FALSE)+VLOOKUP(F5,'Time Zones'!$C:$D,2,0)/24 -> 2025-12-21T11:03:00 | AC5: =AB5-AA5 -> 365.2381944 | AD5: =H5-AA5+VLOOKUP(F5,'Time Zones'!$C:$D,2,0)/24 -> 86.21888785 | AE5: =O25 -> 0.2422237974 | AF5: =IF(AJ5="LR",AE5,"") -> 0.2422237974 | AG5: =IF(AJ5="RL",AE5,"") ->  | AH5: =VLOOKUP(M5+1,Years.Mind!A:B,2,0) -> 4-6 | AI5: =VLOOKUP(AH5,'EMO and PHY YR'!D:E,2,0) -> NE | AJ5: =VLOOKUP(N5,'EMO and PHY YR'!D2:K57,8,FALSE) -> LR | AK5: =IF(AJ5="LR","♂","♀") -> ♂ | AL5: =VLOOKUP(N5,'EMO and PHY YR'!D2:Q57,10,FALSE) -> ↗ | AM5: =VLOOKUP(N5,'EMO and PHY YR'!D2:Q57,13,FALSE) -> ↶ | AN5: =VLOOKUP(N5,'EMO and PHY YR'!D2:Q57,14,FALSE) -> ⇆ | AO5: =VLOOKUP(N5,'EMO and PHY YR'!D2:K57,7,FALSE) -> -+ | AP5: =VLOOKUP(N5,'EMO and PHY YR'!D2:Q57,11,FALSE) -> 3 | AQ5: =VLOOKUP(AS5*360,$M$108:$N$171,2,TRUE) -> IO | AR5: =IF(AND(AS5>0.125,AS5<0.375),2,IF(AND(AS5>0.375,AS5<0.625),3,IF(AND(AS5>0.625,AS5<0.875),4,1))) -> 3 | AS5: =IF(AJ5="LR",VLOOKUP(N5,'Macro Phase'!B3:N58,12,FALSE)+((30*AE5)/24/60),IF(VLOOKUP(N5,'Macro Phase'!B3:N58,13,FALSE)-((30*AE5)/24/60)<0,VLOOKUP(N5,'Macro Phase'!B3:N58,13,FALSE)-((30*AE5)/24/60)+1,VLOOKUP(N5,'Macro Phase'!B3:N58,13,FALSE)-((30*AE5)/24/60))) -> 13:37:16.003 | AT5: =VLOOKUP(BE5,'EMO and PHY YR'!D2:K57,8,FALSE) -> RL | AU5: =IF(AT5="LR","♂","♀") -> ♀ | AV5: =VLOOKUP(BE5,'EMO and PHY YR'!D2:Q57,10,FALSE) -> ↖ | AW5: =VLOOKUP(BE5,'EMO and PHY YR'!D2:Q57,13,FALSE) -> ↶ | AX5: =VLOOKUP(BE5,'EMO and PHY YR'!D2:Q57,14,FALSE) -> ⇇ | AY5: =VLOOKUP(BE5,'EMO and PHY YR'!D2:Q57,7,FALSE) -> +- | AZ5: =VLOOKUP(BE5,'EMO and PHY YR'!D2:Q57,11,FALSE) -> 2 | BA5: =VLOOKUP(BC5*360,$M$108:$N$171,2,TRUE) -> ID | BB5: =IF(AND(BC5>0.125,BC5<0.375),2,IF(AND(BC5>0.375,BC5<0.625),3,IF(AND(BC5>0.625,BC5<0.875),4,1))) -> 1 | BC5: =IF(AT5="LR",VLOOKUP(AE5,'Macro Phase'!C3:M58,11,TRUE)+(30*(((AE5-VLOOKUP(AE5,'Macro Phase'!C3:M58,1,TRUE))/(100/48))*100)/1440),IF(VLOOKUP(AE5,'Macro Phase'!C3:N58,12,TRUE)-(30*(((AE5-VLOOKUP(AE5,'Macro Phase'!C3:N58,1,TRUE))/(100/48))*100)/1440)<0,VLOOKUP(AE5,'Macro Phase'!C3:N58,12,TRUE)-(30*(((AE5-VLOOKUP(AE5,'Macro Phase'!C3:N58,1,TRUE))/(100/48))*100)/1440)+1,VLOOKUP(AE5,'Macro Phase'!C3:N58,12,TRUE)-(30*(((AE5-VLOOKUP(AE5,'Macro Phase'!C3:N58,1,TRUE))/(100/48))*100)/1440))) -> 00:11:11.864 | BD5: =IF(BE9<0,VLOOKUP((360+BE9),$M$108:$N$171,2,TRUE),VLOOKUP(BE9,$M$108:$N$171,2,TRUE)) -> I | BE5: =IF(AJ5="LR",(VLOOKUP(AE5,N51:P98,3,TRUE)),(VLOOKUP(AE5,N51:S98,6,TRUE))) -> 1-6 | BF5: =VLOOKUP(BE5,'EMO and PHY YR'!D2:E57,2,FALSE) -> NNE | BG5: =VLOOKUP(BF5,A38:D55,2,0) -> IO | BH5: =VLOOKUP(BF5,A38:D54,3,0) -> I | BI5: =VLOOKUP(BF5,A38:D54,4,0) -> ID | BJ5: =L88 -> 7.415578704 | BK5: =((D5+E5)-J88)/L88 -> 0.6267412979 | BL5: =VLOOKUP(L5,'EMO and PHY YR'!A2:E729,2) -> 8-2 | BM5: =VLOOKUP(L5,'EMO and PHY YR'!A2:E729,3) -> SE | BO5: =IF(CE5<0.25,VLOOKUP(BM5,$A$38:$D$54,2,0),IF(CE5>=0.75,VLOOKUP(BM5,$A$38:$D$54,4,0),VLOOKUP(BM5,$A$38:$D$54,3,0))) -> O | BQ5: =VLOOKUP((L5-VLOOKUP($L$5,'EMO and PHY YR'!A2:F730,6))+13,'EMO and PHY YR'!A2:E730,2) -> 1-1 | BR5: =VLOOKUP((L5-VLOOKUP($L$5,'EMO and PHY YR'!A2:F730,6))+13,'EMO and PHY YR'!A2:E730,3) -> SE | BS5: =VLOOKUP(BL5,'EMO and PHY YR'!D2:L57,9,FALSE) -> 1 | BT5: =IF(CE5<12.5%,8,IF(AND(CE5>=12.5%,CE5<25%),1,IF(AND(CE5>=25%,CE5<37.5%),2,IF(AND(CE5>=37.5%,CE5<50%),3,IF(AND(CE5>=50%,CE5<62.5%),4,IF(AND(CE5>=62.5%,CE5<75%),5,IF(AND(CE5>=75%,CE5<87.5%),6,IF(CE5>=87.5%,7,"uffda")))))))) -> 4 | BU5: =IF(CE5>BX5,BW5,BV5) -> 1 | BV5: =VLOOKUP(BL5,'Macro Phase'!B3:L65,10,FALSE) -> 1 | BW5: =VLOOKUP(BL5,'Macro Phase'!B3:L65,11,FALSE) -> 1 | BX5: =VLOOKUP(BL5,'Macro Phase'!B3:L65,8,FALSE) -> 1 | BY5: =VLOOKUP(CE5,A66:C105,3,TRUE) -> 3 | BZ5: =IF(((L5-VLOOKUP($L$5,'EMO and PHY YR'!A2:P730,6))-12)<0,HLOOKUP(M5-1,'AW1899-2149'!A:IQ,(L5-VLOOKUP($L$5,'EMO and PHY YR'!A2:P730,6))-12+728,FALSE)+VLOOKUP(F5,'Time Zones'!$C:$D,2,0)/24,HLOOKUP(M5,'AW1899-2149'!A:IQ,(L5-VLOOKUP($L$5,'EMO and PHY YR'!A2:P730,6))-12,FALSE)+VLOOKUP(F5,'Time Zones'!$C:$D,2,0)/24) -> 2025-03-07T11:55:08.571 | CA5: =HLOOKUP(M5,'AW1899-2149'!A:IQ,(L5-VLOOKUP($L$5,'EMO and PHY YR'!A2:F730,6))+1,FALSE)+VLOOKUP(F5,'Time Zones'!$C:$D,2,0)/24 -> 2025-03-13T20:28:04.286 | CB5: =HLOOKUP(M5,'AW1899-2149'!A:IQ,(L5-VLOOKUP($L$5,'EMO and PHY YR'!A2:F730,6))+14,FALSE)+VLOOKUP(F5,'Time Zones'!$C:$D,2,0)/24 -> 2025-03-20T05:01:00 | CC5: =CB5-CA5 -> 6.356200397 | CD5: =H5-CA5+VLOOKUP(F5,'Time Zones'!$C:$D,2,0)/24 -> 3.588282689 | CE5: =CD5/CC5 -> 0.5645326555 | CF5: =IF(CH5="LR",CE5,"") ->  | CG5: =IF(CH5="RL",CE5,"") -> 0.5645326555 | CH5: =VLOOKUP(BL5,'EMO and PHY YR'!D2:K57,8,FALSE) -> RL | CI5: =IF(CH5="LR","♂","♀") -> ♀ | CJ5: =VLOOKUP(BL5,'EMO and PHY YR'!D2:Q57,10,FALSE) -> ↖ | CK5: =VLOOKUP(BL5,'EMO and PHY YR'!D2:Q57,13,FALSE) -> ↶ | CL5: =VLOOKUP(BL5,'EMO and PHY YR'!D2:Q57,14,FALSE) -> ⇇ | CM5: =VLOOKUP(BL5,'EMO and PHY YR'!D2:K57,7,FALSE) -> +- | CN5: =VLOOKUP(BL5,'EMO and PHY YR'!D2:Q57,11,FALSE) -> 2 | CO5: =VLOOKUP(CQ5*360,$M$108:$N$171,2,TRUE) -> OC | CP5: =IF(AND(CQ5>0.125,CQ5<0.375),2,IF(AND(CQ5>0.375,CQ5<0.625),3,IF(AND(CQ5>0.625,CQ5<0.875),4,1))) -> 1 | CQ5: =IF(CH5="LR",VLOOKUP(BL5,'Macro Phase'!B3:N58,12,FALSE)+((30*CE5)/24/60),IF(VLOOKUP(BL5,'Macro Phase'!B3:N58,13,FALSE)-((30*CE5)/24/60)<0,VLOOKUP(BL5,'Macro Phase'!B3:N58,13,FALSE)-((30*CE5)/24/60)+1,VLOOKUP(BL5,'Macro Phase'!B3:N58,13,FALSE)-((30*CE5)/24/60))) -> 02:43:03.841 | CR5: =VLOOKUP(DC5,'EMO and PHY YR'!D2:K57,8,FALSE) -> LR | CS5: =IF(CR5="LR","♂","♀") -> ♂ | CT5: =VLOOKUP(DC5,'EMO and PHY YR'!D2:Q57,10,FALSE) -> ↘ | CU5: =VLOOKUP(DC5,'EMO and PHY YR'!D2:Q57,13,FALSE) -> ↷ | CV5: =VLOOKUP(DC5,'EMO and PHY YR'!D2:Q57,14,FALSE) -> ⇉ | CW5: =VLOOKUP(DC5,'EMO and PHY YR'!D2:Q57,7,FALSE) -> -+ | CX5: =VLOOKUP(DC5,'EMO and PHY YR'!D2:Q57,11,FALSE) -> 5 | CY5: =VLOOKUP(DA5*360,$M$108:$N$171,2,TRUE) -> IO | CZ5: =IF(AND(DA5>0.125,DA5<0.375),2,IF(AND(DA5>0.375,DA5<0.625),3,IF(AND(DA5>0.625,DA5<0.875),4,1))) -> 4 | DA5: =IF(CR5="LR",VLOOKUP(CE5,'Macro Phase'!C3:M58,11,TRUE)+(30*(((CE5-VLOOKUP(CE5,'Macro Phase'!C3:M58,1,TRUE))/(100/48))*100)/1440),IF(VLOOKUP(CE5,'Macro Phase'!C3:N58,12,TRUE)-(30*(((CE5-VLOOKUP(CE5,'Macro Phase'!C3:N58,1,TRUE))/(100/48))*100)/1440)<0,VLOOKUP(CE5,'Macro Phase'!C3:N58,12,TRUE)-(30*(((CE5-VLOOKUP(CE5,'Macro Phase'!C3:N58,1,TRUE))/(100/48))*100)/1440)+1,VLOOKUP(CE5,'Macro Phase'!C3:N58,12,TRUE)-(30*(((CE5-VLOOKUP(CE5,'Macro Phase'!C3:N58,1,TRUE))/(100/48))*100)/1440))) -> 19:32:55.621 | DB5: =IF(DC9<0,VLOOKUP((360+DC9),$M$108:$N$171,2,TRUE),VLOOKUP(DC9,$M$108:$N$171,2,TRUE)) -> IO | DC5: =IF(CH5="LR",(VLOOKUP(CE5,N51:P98,3,TRUE)),(VLOOKUP(CE5,N51:S98,6,TRUE))) -> 4-5 | DD5: =VLOOKUP(DC5,'EMO and PHY YR'!D2:E57,2,FALSE) -> NNE | DE5: =((D5+E5)-J84)/L84 -> 0.09752753013 | DF5: =VLOOKUP(L5,'EMO and PHY YR'!A2:E730,4) -> 7-5 | DG5: =VLOOKUP(L5,'EMO and PHY YR'!A2:E730,5) -> NW | DI5: =IF(DY5<0.25,VLOOKUP(DG5,$A$38:$D$54,2,0),IF(DY5>=0.75,VLOOKUP(DG5,$A$38:$D$54,4,0),VLOOKUP(DG5,$A$38:$D$54,3,0))) -> O | DK5: =VLOOKUP(L5+1,'EMO and PHY YR'!A3:E730,4) -> 1-4 | DL5: =VLOOKUP(L5+1,'EMO and PHY YR'!A3:E730,5) -> ENE | DM5: =VLOOKUP(DF5,'EMO and PHY YR'!D2:L57,9,FALSE) -> 7 | DN5: =IF(DY5<12.5%,8,IF(AND(DY5>=12.5%,DY5<25%),1,IF(AND(DY5>=25%,DY5<37.5%),2,IF(AND(DY5>=37.5%,DY5<50%),3,IF(AND(DY5>=50%,DY5<62.5%),4,IF(AND(DY5>=62.5%,DY5<75%),5,IF(AND(DY5>=75%,DY5<87.5%),6,IF(DY5>=87.5%,7,"uffda")))))))) -> 2 | DO5: =IF(DY5>DR5,DQ5,DP5) -> 4 | DP5: =VLOOKUP(DF5,'Macro Phase'!B3:L65,10,FALSE) -> 4 | DQ5: =VLOOKUP(DF5,'Macro Phase'!B3:L65,11,FALSE) -> 5 | DR5: =VLOOKUP(DF5,'Macro Phase'!B3:L65,8,FALSE) -> 0.8 | DS5: =VLOOKUP(DY5,A66:C105,3,TRUE) -> 4 | DT5: =IF(L5<2,HLOOKUP(M5-1,'AW1899-2149'!A:IQ,L5+728,0),HLOOKUP(M5,'AW1899-2149'!A:IQ,L5,0)+VLOOKUP(F5,'Time Zones'!$C:$D,2,0)/24) -> 2025-03-16T18:52:30 | DU5: =HLOOKUP(M5,'AW1899-2149'!A:IQ,L5+1,0)+VLOOKUP(F5,'Time Zones'!$C:$D,2,0)/24 -> 2025-03-17T06:36:34.286 | DV5: =HLOOKUP(M5,'AW1899-2149'!A:IQ,L5+2,0)+VLOOKUP(F5,'Time Zones'!$C:$D,2,0)/24 -> 2025-03-17T18:20:38.571 | DW5: =DV5-DU5 -> 11:44:04.286 | DX5: =H5+VLOOKUP(F5,'Time Zones'!$C:$D,2,0)/24-DU5 -> 0.1657132445 | DY5: =DX5/DW5 -> 0.3389245216 | DZ5: =IF(ED5="LR",DY5,"") -> 0.3389245216 | EA5: =IF(ED5="RL",DY5,"") ->  | EB5: =VLOOKUP(L5,'EMO and PHY YR'!A2:P730,7) -> 8 | EC5: =VLOOKUP(L5,'EMO and PHY YR'!A2:P730,8) -> N | ED5: =VLOOKUP(DF5,'EMO and PHY YR'!D2:K57,8,FALSE) -> LR | EE5: =IF(ED5="LR","♂","♀") -> ♂ | EF5: =VLOOKUP(DF5,'EMO and PHY YR'!D2:Q57,10,FALSE) -> ↘ | EG5: =VLOOKUP(DF5,'EMO and PHY YR'!D2:Q57,13,FALSE) -> ↶ | EH5: =VLOOKUP(DF5,'EMO and PHY YR'!D2:Q57,14,FALSE) -> ⇆ | EI5: =VLOOKUP(DF5,'EMO and PHY YR'!D2:K57,7,FALSE) -> ++ | EJ5: =VLOOKUP(DF5,'EMO and PHY YR'!D2:Q57,11,FALSE) -> 7 | EK5: =VLOOKUP(EM5*360,$M$108:$N$171,2,TRUE) -> D | EL5: =IF(AND(EM5>0.125,EM5<0.375),2,IF(AND(EM5>0.375,EM5<0.625),3,IF(AND(EM5>0.625,EM5<0.875),4,1))) -> 2 | EM5: =IF(ED5="LR",VLOOKUP(DF5,'Macro Phase'!B3:N58,12,FALSE)+((30*DY5)/24/60),IF(VLOOKUP(DF5,'Macro Phase'!B3:N58,13,FALSE)-((30*DY5)/24/60)<0,VLOOKUP(DF5,'Macro Phase'!B3:N58,13,FALSE)-((30*DY5)/24/60)+1,VLOOKUP(DF5,'Macro Phase'!B3:N58,13,FALSE)-((30*DY5)/24/60))) -> 05:10:10.064 | EN5: =VLOOKUP(EY5,'EMO and PHY YR'!D2:K57,8,FALSE) -> RL | EO5: =IF(EN5="LR","♂","♀") -> ♀ | EP5: =VLOOKUP(EY5,'EMO and PHY YR'!D2:Q57,10,FALSE) -> ↖ | EQ5: =VLOOKUP(EY5,'EMO and PHY YR'!D2:Q57,13,FALSE) -> ↷ | ER5: =VLOOKUP(EY5,'EMO and PHY YR'!D2:Q57,14,FALSE) -> ⇄ | ES5: =VLOOKUP(EY5,'EMO and PHY YR'!D2:Q57,7,FALSE) -> -- | ET5: =VLOOKUP(EY5,'EMO and PHY YR'!D2:Q57,11,FALSE) -> 4 | EU5: =VLOOKUP(EW5*360,$M$108:$N$171,2,TRUE) -> C | EV5: =IF(AND(EW5>0.125,EW5<0.375),2,IF(AND(EW5>0.375,EW5<0.625),3,IF(AND(EW5>0.625,EW5<0.875),4,1))) -> 1 | EW5: =IF(EN5="LR",VLOOKUP(DY5,'Macro Phase'!C3:M58,11,TRUE)+(30*(((DY5-VLOOKUP(DY5,'Macro Phase'!C3:M58,1,TRUE))/(100/48))*100)/1440)-(2/60/60/24),IF(VLOOKUP(DY5,'Macro Phase'!C3:N58,12,TRUE)-(30*(((DY5-VLOOKUP(DY5,'Macro Phase'!C3:N58,1,TRUE))/(100/48))*100)/1440)<0,VLOOKUP(DY5,'Macro Phase'!C3:N58,12,TRUE)-(30*(((DY5-VLOOKUP(DY5,'Macro Phase'!C3:N58,1,TRUE))/(100/48))*100)/1440)+1+(2/60/60/24),VLOOKUP(DY5,'Macro Phase'!C3:N58,12,TRUE)-(30*(((DY5-VLOOKUP(DY5,'Macro Phase'!C3:N58,1,TRUE))/(100/48))*100)/1440)+(2/60/60/24))) -> 21:51:58.921 | EX5: =IF(EY9<0,VLOOKUP((360+EY9),$M$108:$N$171,2,TRUE),VLOOKUP(EY9,$M$108:$N$171,2,TRUE)) -> D | EY5: =IF(ED5="LR",(VLOOKUP(DY5,N51:P98,3,TRUE)),(VLOOKUP(DY5,N51:S98,6,TRUE))) -> 2-4 | EZ5: =VLOOKUP(EY5,'EMO and PHY YR'!D2:E57,2,FALSE) -> W | FA5: =((D5+E5)-J80)/L80 -> 0.2677752555 | FB5: =IF(C11=1,Home!$L$3,Advanced!Q4) -> 0
AA6: end of next: | AB6: =HLOOKUP(M5+2,'AW1899-2149'!A:IQ,2,FALSE)+VLOOKUP(F5,'Time Zones'!$C:$D,2,0)/24 -> 2026-12-21T16:50:00 | CA6: end of Next: | CB6: =HLOOKUP(M5,'AW1899-2149'!A:IQ,(L5-VLOOKUP($L$5,'EMO and PHY YR'!A2:F730,6))+27,FALSE)+VLOOKUP(F5,'Time Zones'!$C:$D,2,0)/24 -> 2025-03-26T19:59:38.571 | DU6: End of Next: | DV6: =HLOOKUP(M5,'AW1899-2149'!A:IQ,L5+3,0)+VLOOKUP(F5,'Time Zones'!$C:$D,2,0)/24 -> 2025-03-18T06:04:42.857
D7: =Home!AB3 -> Hoverson, Kathy | E7: =Home!AB4 -> 18833.20486 | F7: =Home!AB5 -> (GMT-05:00) Central Time (US and Canada) *DST*
D8: UTC Time: | E8: =NOW()+5/24 -> 2025-03-17T15:35:11.910 | N8: =IF((VLOOKUP(O4,F17:G32,2,0)=0),360+(VLOOKUP(O4,F17:G32,2,0)-22.5*AE4),VLOOKUP(O4,F17:G32,2,0)-22.5*AE4) -> 346.81635 | O8: =IF(AND(N8<=135,N8>45),2,IF(AND(N8<=315,N8>225),4,IF(AND(N8<=225,N8>135),3,1))) -> 1 | Q8: =VLOOKUP(Q4,B56:F63,5,FALSE) -> 3 | AL8: =IF(OR(AL4="↖",AL4="↘"),1,2) -> 1 | AN8: =IF(OR(AN4="⇄",AN4="⇆"),1,2) -> 1 | AO8: =IF(OR(AO4="-+",AO4="+-"),1,2) -> 2 | AQ8: =VLOOKUP(AQ4,B56:F63,5,FALSE) -> 4 | AS8: =IF(AS4>AS5,"+","-") -> - | AV8: =IF(OR(AV4="↖",AV4="↘"),1,2) -> 2 | AX8: =IF(OR(AX4="⇄",AX4="⇆"),1,2) -> 2 | AY8: =IF(OR(AY4="-+",AY4="+-"),1,2) -> 2 | BA8: =VLOOKUP(BA4,B56:F63,5,FALSE) -> 5 | BC8: =IF(BC4>BC5,"+","-") -> + | BD8: =VLOOKUP(BD4,B56:F63,5,FALSE) -> 2 | BE8: =IF(VLOOKUP(BF4,F17:G32,2,0)-((AE4-FLOOR(AE4,100/48/100))/(100/48/100))*22.5<0,360-VLOOKUP(BF4,F17:G32,2,0)-((AE4-FLOOR(AE4,100/48/100))/(100/48/100))*22.5,VLOOKUP(BF4,F17:G32,2,0)-((AE4-FLOOR(AE4,100/48/100))/(100/48/100))*22.5) -> 357.1848 | BF8: =IF(AND(BE8<=135,BE8>45),2,IF(AND(BE8<=315,BE8>225),4,IF(AND(BE8<=225,BE8>135),3,1))) -> 1 | BL8: =IF((VLOOKUP(BM4,F17:G32,2,0)=0),360+(VLOOKUP(BM4,F17:G32,2,0)-22.5*CE4),VLOOKUP(BM4,F17:G32,2,0)-22.5*CE4) -> 116.7129094 | BM8: =IF(AND(BL8<=135,BL8>45),2,IF(AND(BL8<=315,BL8>225),4,IF(AND(BL8<=225,BL8>135),3,1))) -> 2 | BO8: =VLOOKUP(BO4,B56:F63,5,FALSE) -> 8 | CJ8: =IF(OR(CJ4="↖",CJ4="↘"),1,2) -> 1 | CL8: =IF(OR(CL4="⇄",CL4="⇆"),1,2) -> 1 | CM8: =IF(OR(CM4="-+",CM4="+-"),1,2) -> 2 | CO8: =VLOOKUP(CO4,B56:F63,5,FALSE) -> 3 | CQ8: =IF(CQ4>CQ5,"+","-") -> + | CT8: =IF(OR(CT4="↖",CT4="↘"),1,2) -> 2 | CV8: =IF(OR(CV4="⇄",CV4="⇆"),1,2) -> 1 | CW8: =IF(OR(CW4="-+",CW4="+-"),1,2) -> 1 | CY8: =VLOOKUP(CY4,B56:F63,5,FALSE) -> 8 | DA8: =IF(DA4>DA5,"+","-") -> - | DB8: =VLOOKUP(DB4,B56:F63,5,FALSE) -> 8 | DC8: =IF(VLOOKUP(DD4,F17:G32,2,0)-((CE4-FLOOR(CE4,100/48/100))/(100/48/100))*22.5<0,360-VLOOKUP(DD4,F17:G32,2,0)-((CE4-FLOOR(CE4,100/48/100))/(100/48/100))*22.5,VLOOKUP(DD4,F17:G32,2,0)-((CE4-FLOOR(CE4,100/48/100))/(100/48/100))*22.5) -> 112.2196511 | DD8: =IF(AND(DC8<=135,DC8>45),2,IF(AND(DC8<=315,DC8>225),4,IF(AND(DC8<=225,DC8>135),3,1))) -> 2 | DF8: =IF((VLOOKUP(DG4,F17:G32,2,0)=0),360+(VLOOKUP(DG4,F17:G32,2,0)-22.5*DY4),VLOOKUP(DG4,F17:G32,2,0)-22.5*DY4) -> 257.2678222 | DG8: =IF(AND(DF8<=135,DF8>45),2,IF(AND(DF8<=315,DF8>225),4,IF(AND(DF8<=225,DF8>135),3,1))) -> 4 | DI8: =VLOOKUP(DI4,B56:F63,5,FALSE) -> 3 | EF8: =IF(OR(EF4="↖",EF4="↘"),1,2) -> 1 | EH8: =IF(OR(EH4="⇄",EH4="⇆"),1,2) -> 2 | EI8: =IF(OR(EI4="-+",EI4="+-"),1,2) -> 1 | EK8: =VLOOKUP(EK4,B56:F63,5,FALSE) -> 2 | EM8: =IF(EM4>EM5,"+","-") -> + | EP8: =IF(OR(EP4="↖",EP4="↘"),1,2) -> 1 | ER8: =IF(OR(ER4="⇄",ER4="⇆"),1,2) -> 2 | ES8: =IF(OR(ES4="-+",ES4="+-"),1,2) -> 1 | EU8: =VLOOKUP(EU4,B56:F63,5,FALSE) -> 8 | EW8: =IF(EW4>EW5,"+","-") -> - | EX8: =VLOOKUP(EX4,B56:F63,5,FALSE) -> 8 | EY8: =IF(VLOOKUP(EZ4,F17:G32,2,0)-((DY4-FLOOR(DY4,100/48/100))/(100/48/100))*22.5<0,360-VLOOKUP(EZ4,F17:G32,2,0)-((DY4-FLOOR(DY4,100/48/100))/(100/48/100))*22.5,VLOOKUP(EZ4,F17:G32,2,0)-((DY4-FLOOR(DY4,100/48/100))/(100/48/100))*22.5) -> 18.85546455 | EZ8: =IF(AND(EY8<=135,EY8>45),2,IF(AND(EY8<=315,EY8>225),4,IF(AND(EY8<=225,EY8>135),3,1))) -> 1
D9: Entered Time | E9: =D5+E5 -> 2025-03-17T10:35:11.910 | G9: #FF6000 | N9: =IF((VLOOKUP(O5,F17:G32,2,0)=0),360+(VLOOKUP(O5,F17:G32,2,0)-22.5*AE5),VLOOKUP(O5,F17:G32,2,0)-22.5*AE5) -> 287.0499646 | O9: =IF(AND(N9<=135,N9>45),2,IF(AND(N9<=315,N9>225),4,IF(AND(N9<=225,N9>135),3,1))) -> 4 | Q9: =VLOOKUP(Q5,B56:F63,5,FALSE) -> 8 | AL9: =IF(OR(AL5="↖",AL5="↘"),1,2) -> 2 | AN9: =IF(OR(AN5="⇄",AN5="⇆"),1,2) -> 1 | AO9: =IF(OR(AO5="-+",AO5="+-"),1,2) -> 1 | AQ9: =VLOOKUP(AQ5,B56:F63,5,FALSE) -> 8 | AS9: =IF(AS4>AS5,AS4-AS5,AS5-AS4) -> 0.3886725791 | AV9: =IF(OR(AV5="↖",AV5="↘"),1,2) -> 1 | AX9: =IF(OR(AX5="⇄",AX5="⇆"),1,2) -> 2 | AY9: =IF(OR(AY5="-+",AY5="+-"),1,2) -> 1 | BA9: =VLOOKUP(BA5,B56:F63,5,FALSE) -> 2 | BC9: =IF(BC4>BC5,BC4-BC5,BC5-BC4) -> 0.6562837974 | BD9: =VLOOKUP(BD5,B56:F63,5,FALSE) -> 1 | BE9: =VLOOKUP(BF5,F17:G32,2,0)-((AE5-FLOOR(AE5,100/48/100))/(100/48/100))*22.5 -> 8.398298788 | BF9: =IF(AND(BE9<=135,BE9>45),2,IF(AND(BE9<=315,BE9>225),4,IF(AND(BE9<=225,BE9>135),3,1))) -> 1 | BL9: =IF((VLOOKUP(BM5,F17:G32,2,0)=0),360+(VLOOKUP(BM5,F17:G32,2,0)-22.5*CE5),VLOOKUP(BM5,F17:G32,2,0)-22.5*CE5) -> 122.2980153 | BM9: =IF(AND(BL9<=135,BL9>45),2,IF(AND(BL9<=315,BL9>225),4,IF(AND(BL9<=225,BL9>135),3,1))) -> 2 | BO9: =VLOOKUP(BO5,B56:F63,5,FALSE) -> 7 | CJ9: =IF(OR(CJ5="↖",CJ5="↘"),1,2) -> 1 | CL9: =IF(OR(CL5="⇄",CL5="⇆"),1,2) -> 2 | CM9: =IF(OR(CM5="-+",CM5="+-"),1,2) -> 1 | CO9: =VLOOKUP(CO5,B56:F63,5,FALSE) -> 6 | CQ9: =IF(CQ4>CQ5,CQ4-CQ5,CQ5-CQ4) -> 0.6120269216 | CT9: =IF(OR(CT5="↖",CT5="↘"),1,2) -> 1 | CV9: =IF(OR(CV5="⇄",CV5="⇆"),1,2) -> 2 | CW9: =IF(OR(CW5="-+",CW5="+-"),1,2) -> 1 | CY9: =VLOOKUP(CY5,B56:F63,5,FALSE) -> 8 | DA9: =IF(DA4>DA5,DA4-DA5,DA5-DA4) -> 0.7517730732 | DB9: =VLOOKUP(DB5,B56:F63,5,FALSE) -> 8 | DC9: =VLOOKUP(DD5,F17:G32,2,0)-((CE5-FLOOR(CE5,100/48/100))/(100/48/100))*22.5 -> 20.3047321 | DD9: =IF(AND(DC9<=135,DC9>45),2,IF(AND(DC9<=315,DC9>225),4,IF(AND(DC9<=225,DC9>135),3,1))) -> 1 | DF9: =IF((VLOOKUP(DG5,F17:G32,2,0)=0),360+(VLOOKUP(DG5,F17:G32,2,0)-22.5*DY5),VLOOKUP(DG5,F17:G32,2,0)-22.5*DY5) -> 307.3741983 | DG9: =IF(AND(DF9<=135,DF9>45),2,IF(AND(DF9<=315,DF9>225),4,IF(AND(DF9<=225,DF9>135),3,1))) -> 4 | DI9: =VLOOKUP(DI5,B56:F63,5,FALSE) -> 7 | EF9: =IF(OR(EF5="↖",EF5="↘"),1,2) -> 1 | EH9: =IF(OR(EH5="⇄",EH5="⇆"),1,2) -> 1 | EI9: =IF(OR(EI5="-+",EI5="+-"),1,2) -> 2 | EK9: =VLOOKUP(EK5,B56:F63,5,FALSE) -> 3 | EM9: =IF(EM4>EM5,EM4-EM5,EM5-EM4) -> 0.04639479267 | EP9: =IF(OR(EP5="↖",EP5="↘"),1,2) -> 1 | ER9: =IF(OR(ER5="⇄",ER5="⇆"),1,2) -> 1 | ES9: =IF(OR(ES5="-+",ES5="+-"),1,2) -> 2 | EU9: =VLOOKUP(EU5,B56:F63,5,FALSE) -> 5 | EW9: =IF(EW4>EW5,EW4-EW5,EW5-EW4) -> 0.0952472048 | EX9: =VLOOKUP(EX5,B56:F63,5,FALSE) -> 3 | EY9: =VLOOKUP(EZ5,F17:G32,2,0)-((DY5-FLOOR(DY5,100/48/100))/(100/48/100))*22.5 -> 263.9615166 | EZ9: =IF(AND(EY9<=135,EY9>45),2,IF(AND(EY9<=315,EY9>225),4,IF(AND(EY9<=225,EY9>135),3,1))) -> 4
A10: Which Page has control? | E10: =IF(V74=TRUE,E8,"") ->  | N10: =IF(ABS(N8-N9)>180,180-(ABS(N8-N9)-180),ABS(N8-N9)) -> 59.76638544 | AL10: =AL8*AL9 -> 2 | AN10: =AN8*AN9 -> 1 | AO10: 2 | AS10: =IF(AS9>1,AS9-1,IF(AS9>0.5,0.5-(AS9-0.5),AS9)) -> 0.3886725791 | AV10: =AV8*AV9 -> 2 | AX10: =AX8*AX9 -> 4 | AY10: 2 | BC10: =IF(BC9>1,BC9-1,IF(BC9>0.5,0.5-(BC9-0.5),BC9)) -> 0.3437162026 | BE10: =IF(ABS(BE8-BE9)>180,180-(ABS(BE8-BE9)-180),ABS(BE8-BE9)) -> 11.21349879 | BG10: Macro | BH10: =S5&" / "&U5 -> 2 / 3 | BL10: =IF(ABS(BL8-BL9)>180,180-(ABS(BL8-BL9)-180),ABS(BL8-BL9)) -> 5.585105854 | CF10: MACRO | CG10: =BS5&" / "&BU5 -> 1 / 1 | CJ10: =CJ8*CJ9 -> 1 | CL10: =CL8*CL9 -> 2 | CM10: 2 | CQ10: =IF(CQ9>1,CQ9-1,IF(CQ9>0.5,0.5-(CQ9-0.5),CQ9)) -> 0.3879730784 | CT10: =CT8*CT9 -> 2 | CV10: =CV8*CV9 -> 2 | CW10: 1 | DA10: =IF(DA9>1,DA9-1,IF(DA9>0.5,0.5-(DA9-0.5),DA9)) -> 0.2482269268 | DC10: =IF(ABS(DC8-DC9)>180,180-(ABS(DC8-DC9)-180),ABS(DC8-DC9)) -> 91.91491902 | DF10: =IF(ABS(DF8-DF9)>180,180-(ABS(DF8-DF9)-180),ABS(DF8-DF9)) -> 50.10637608 | EA10: Macro | EB10: =DM5&" / "&DO5 -> 7 / 4 | EF10: =EF8*EF9 -> 1 | EH10: =EH8*EH9 -> 2 | EI10: 2 | EM10: =IF(EM9>1,EM9-1,IF(EM9>0.5,0.5-(EM9-0.5),EM9)) -> 0.04639479267 | EP10: =EP8*EP9 -> 1 | ER10: =ER8*ER9 -> 2 | ES10: 2 | EW10: =IF(EW9>1,EW9-1,IF(EW9>0.5,0.5-(EW9-0.5),EW9)) -> 0.0952472048 | EY10: =IF(ABS(EY8-EY9)>180,180-(ABS(EY8-EY9)-180),ABS(EY8-EY9)) -> 114.8939479
A11: =IF(C11=1,"Simple","Advance") -> Simple | C11: 1 | D11: 1=Simple | E11: =TODAY() -> 2025-03-17 | G11: #FFDF00 | N11: =TRUNC(N10,2) -> 59.76 | O11: =IF(O8=O9,"G",IF(ISODD(O8+O9),"Y","R")) -> Y | Q11: =VLOOKUP(Q8,V40:AD47,Q9+1,FALSE) -> Y | R11: =IF(AJ4="RL",IF(AE5<=0.25,IF(P4=P5,"G","Y"),""),IF(AE5>0.75,IF(R4=R5,"G","Y"),"")) ->  | S11: =VLOOKUP(S4,Q18:Y25,S5+1) -> Y | T11: =VLOOKUP(T4,Q18:Y25,T5+1) -> Y | U11: =IF(ISEVEN(S4+S5),VLOOKUP(U5,$P$39:$U$43,U4+1),VLOOKUP(U5,$P$45:$U$49,U4+1)) -> G | Y11: =IF(ISEVEN(T4+T5),VLOOKUP(Y5,$P$39:$U$43,Y4+1),VLOOKUP(Y5,$P$45:$U$49,Y4+1)) -> Y | AL11: =IF(AL4=AL5,"G",IF(AL10=2,"Y","R")) -> Y | AM11: =IF(AM4=AM5,"G","R") -> G | AN11: =IF(AN4=AN5,"G",IF(AN10=2,"Y","R")) -> G | AO11: Y | AP11: =VLOOKUP(AP5,$Q$28:$Y$36,AP4+1) -> R | AQ11: =VLOOKUP(AQ8,V40:AD47,AQ9+1,FALSE) -> R | AR11: =IF(AR4=AR5,"G",IF(ISODD(AR5+AR4),"Y","R")) -> Y | AS11: =TEXT(AS10,"h:MM") -> 9:19 | AV11: =IF(AV4=AV5,"G",IF(AV10=2,"Y","R")) -> Y | AW11: =IF(AW4=AW5,"G","R") -> G | AX11: =IF(AX4=AX5,"G",IF(AX10=2,"Y","R")) -> G | AY11: Y | AZ11: =VLOOKUP(AZ5,$Q$28:$Y$36,AZ4+1) -> R | BA11: =VLOOKUP(BA8,V40:AD47,BA9+1,FALSE) -> Y | BB11: =IF(BB5=BB4,"G",IF(ISODD(BB5+BB4),"Y","R")) -> Y | BC11: =TEXT(BC10,"h:MM") -> 8:14 | BD11: =VLOOKUP(BD8,V40:AD47,BD9+1,FALSE) -> Y | BE11: =TRUNC(BE10,2) -> 11.21 | BF11: =IF(BF8=BF9,"G",IF(ISODD(BF8+BF9),"Y","R")) -> G | BG11: Micro | BH11: =T5&" / "&Y5 -> 1 / 5 | BL11: =TRUNC(BL10,2) -> 5.58 | BM11: =IF(BM8=BM9,"G",IF(ISODD(BM8+BM9),"Y","R")) -> G | BO11: =VLOOKUP(BO8,V40:AD47,BO9+1,FALSE) -> Y | BS11: =VLOOKUP(BS4,Q18:Y25,BS5+1) -> Y | BT11: =VLOOKUP(BT4,Q18:Y25,BT5+1) -> Y | BU11: =IF(ISEVEN(BS4+BS5),VLOOKUP(BU5,$P$39:$U$43,BU4+1),VLOOKUP(BU5,$P$45:$U$49,BU4+1)) -> R | BY11: =IF(ISEVEN(BT4+BT5),VLOOKUP(BY5,$P$39:$U$43,BY4+1),VLOOKUP(BY5,$P$45:$U$49,BY4+1)) -> G | CF11: Micro | CG11: =BT5&" / "&BY5 -> 4 / 3 | CJ11: =IF(CJ4=CJ5,"G",IF(CJ10=2,"Y","R")) -> R | CK11: =IF(CK4=CK5,"G","R") -> G | CL11: =IF(CL4=CL5,"G",IF(CL10=2,"Y","R")) -> Y | CM11: Y | CN11: =VLOOKUP(CN5,$Q$28:$Y$36,CN4+1) -> Y | CO11: =VLOOKUP(CO8,V40:AD47,CO9+1,FALSE) -> Y | CP11: =IF(CP5=CP4,"G",IF(ISODD(CP5+CP4),"Y","R")) -> Y | CQ11: =TEXT(CQ10,"h:MM") -> 9:18 | CT11: =IF(CT4=CT5,"G",IF(CT10=2,"Y","R")) -> Y | CU11: =IF(CU4=CU5,"G","R") -> R | CV11: =IF(CV4=CV5,"G",IF(CV10=2,"Y","R")) -> Y | CW11: G | CX11: =VLOOKUP(CX5,$Q$28:$Y$36,CX4+1) -> Y | CY11: =VLOOKUP(CY8,V40:AD47,CY9+1,FALSE) -> G | CZ11: =IF(CZ5=CZ4,"G",IF(ISODD(CZ5+CZ4),"Y","R")) -> Y | DA11: =TEXT(DA10,"h:MM") -> 5:57 | DB11: =VLOOKUP(DB8,V40:AD47,DB9+1,FALSE) -> G | DC11: =TRUNC(DC10,2) -> 91.91 | DD11: =IF(DD8=DD9,"G",IF(ISODD(DD8+DD9),"Y","R")) -> Y | DF11: =TRUNC(DF10,2) -> 50.1 | DG11: =IF(DG8=DG9,"G",IF(ISODD(DG8+DG9),"Y","R")) -> G | DH11: =IF(ED4="RL",IF(DY5>0.75,IF(DJ4=DJ5,"G","Y"),""),IF(DY5<=0.25,IF(DH4=DH5,"G","Y"),"")) ->  | DI11: =VLOOKUP(DI8,V40:AD47,DI9+1,FALSE) -> R | DM11: =VLOOKUP(DM4,Q18:Y25,DM5+1) -> G | DN11: =VLOOKUP(DN4,Q18:Y25,DN5+1) -> Y | DO11: =IF(ISEVEN(DM4+DM5),VLOOKUP(DO5,$P$39:$U$43,DO4+1),VLOOKUP(DO5,$P$45:$U$49,DO4+1)) -> Y | DS11: =IF(ISEVEN(DN4+DN5),VLOOKUP(DS5,$P$39:$U$43,DS4+1),VLOOKUP(DS5,$P$45:$U$49,DS4+1)) -> Y | EA11: Micro | EB11: =DN5&" / "&DS5 -> 2 / 4 | EF11: =IF(EF4=EF5,"G",IF(EF10=2,"Y","R")) -> G | EG11: =IF(EG4=EG5,"G","R") -> G | EH11: =IF(EH4=EH5,"G",IF(EH10=2,"Y","R")) -> Y | EI11: Y | EJ11: =VLOOKUP(EJ5,Q28:Y36,EJ4+1) -> Y | EK11: =VLOOKUP(EK8,V40:AD47,EK9+1,FALSE) -> Y | EL11: =IF(EL5=EL4,"G",IF(ISODD(EL5+EL4),"Y","R")) -> G | EM11: =TEXT(EM10,"h:MM") -> 1:06 | EP11: =IF(EP4=EP5,"G",IF(EP10=2,"Y","R")) -> R | EQ11: =IF(EQ4=EQ5,"G","R") -> G | ER11: =IF(ER4=ER5,"G",IF(ER10=2,"Y","R")) -> Y | ES11: Y | ET11: =VLOOKUP(ET5,$Q$28:$Y$36,ET4+1) -> Y | EU11: =VLOOKUP(EU8,V40:AD47,EU9+1,FALSE) -> Y | EV11: =IF(EV5=EV4,"G",IF(ISODD(EV5+EV4),"Y","R")) -> Y | EW11: =TEXT(EW10,"h:MM") -> 2:17 | EX11: =VLOOKUP(EX8,V40:AD47,EX9+1,FALSE) -> Y | EY11: =TRUNC(EY10,2) -> 114.89 | EZ11: =IF(EZ8=EZ9,"G",IF(ISODD(EZ8+EZ9),"Y","R")) -> Y
C12: TRUE | D12: 2=Advanced | E12: =NOW()-TODAY() -> 10:35:11.910
D13: 3=Live Version | E13: =IF(B26=FALSE,NA(),IF(VLOOKUP(BF5,F17:G32,2,0)-((AE5-FLOOR(AE5,100/48/100))/(100/48/100))*22.5<0,360+VLOOKUP(BF5,F17:G32,2,0)-((AE5-FLOOR(AE5,100/48/100))/(100/48/100))*22.5,VLOOKUP(BF5,F17:G32,2,0)-((AE5-FLOOR(AE5,100/48/100))/(100/48/100))*22.5)) -> 8.398298788 | G13: #7FD828 | N13: =IF(VLOOKUP(BF4,F17:G32,2,0)-((AE4-FLOOR(AE4,100/48/100))/(100/48/100))*22.5<0,360-VLOOKUP(BF4,F17:G32,2,0)-((AE4-FLOOR(AE4,100/48/100))/(100/48/100))*22.5,VLOOKUP(BF4,F17:G32,2,0)-((AE4-FLOOR(AE4,100/48/100))/(100/48/100))*22.5) -> 357.1848
CW14: g | CX14: h | CY14: i | CZ14: j | DA14: k | DB14: l | DC14: m
AH15: For Time Zone Offset on Live Page | CW15: Time | CX15: Current UTC Time | CY15: Start of Awarness | CZ15: Start of Next Awarness
A16: Start and stop Auto Clock | C16: Dial for Ploting Space (Coordinate Compass Page) | H16: Dial for Ploting Time(coordinate Compass page) | K16: Mind Current | Q16: Used to determin WAVE Match and Color | AA16: Space | AC16: Time | AE16: Names for Drop Down | AF16: Birth Day of Currently Selected user | AH16: 0 | AK16: =IF(AK5="♂",1,2) -> 1 | AS16: SPACE Birth Bar | AV16: TIME Birth Bar | CT16: Mental Micro Pattern | CW16: =DU4+DW4*AE4 -> 1951-07-24T05:09:51.911 | CX16: =CW16-G4/24 -> 1951-07-24T10:09:51.911 | CY16: =MAX(IF('AW1899-2149'!A2:IQ730<CX16,'AW1899-2149'!A2:IQ730)) -> 1951-07-24T02:55:46.813 | CZ16: =MIN(IF('AW1899-2149'!A2:IQ729>CX16,'AW1899-2149'!A2:IQ729)) -> 1951-07-24T15:16:36.923 | DA16: =ADDRESS(MIN(IF(NOT(ISERROR(FIND(CY16,'AW1899-2149'!$A$1:$IQ$729,1))),ROW('AW1899-2149'!$A$1:$IQ$729)," ")),1) -> $A$428 | DB16: =MIN(IF(NOT(ISERROR(FIND(CY16,'AW1899-2149'!$A$1:$IQ$729,1))),ROW('AW1899-2149'!$A$1:$IQ$729)," "))-1 -> 427 | DC16: =IF(AND(DB16<25,MONTH(CX16)=12),YEAR(CX16)+1,YEAR(CX16)) -> 1951 | DF16: =VLOOKUP(DB16,'EMO and PHY YR'!A2:E730,4) -> 7-7 | DG16: =VLOOKUP(DB16,'EMO and PHY YR'!A2:E730,5) -> W | DI16: =IF(DY16<0.25,VLOOKUP(DG16,$A$38:$D$54,2,0),IF(DY16>=0.75,VLOOKUP(DG16,$A$38:$D$54,4,0),VLOOKUP(DG16,$A$38:$D$54,3,0))) -> D | DM16: =VLOOKUP(DF16,'EMO and PHY YR'!D2:L57,9,FALSE) -> 8 | DN16: =IF(DY16<12.5%,8,IF(AND(DY16>=12.5%,DY16<25%),1,IF(AND(DY16>=25%,DY16<37.5%),2,IF(AND(DY16>=37.5%,DY16<50%),3,IF(AND(DY16>=50%,DY16<62.5%),4,IF(AND(DY16>=62.5%,DY16<75%),5,IF(AND(DY16>=75%,DY16<87.5%),6,IF(DY16>=87.5%,7,"uffda")))))))) -> 4 | DO16: =IF(DY16>DR16,DQ16,DP16) -> 1 | DP16: =VLOOKUP(DF16,'Macro Phase'!B3:L65,10,FALSE) -> 1 | DQ16: =VLOOKUP(DF16,'Macro Phase'!B3:L65,11,FALSE) -> 1 | DR16: =VLOOKUP(DF16,'Macro Phase'!B3:L65,8,FALSE) -> 1 | DS16: =VLOOKUP(DY16,A66:C105,3,TRUE) -> 4 | DT16: =IF(DB16<2,HLOOKUP(DC16-1,'AW1899-2149'!A:IQ,DB16+728,0),HLOOKUP(DC16,'AW1899-2149'!A:IQ,DB16,0)+VLOOKUP(F4,'Time Zones'!$C:$D,2,0)/24) -> 1951-07-23T09:34:56.703 | DU16: =HLOOKUP(DC16,'AW1899-2149'!A:IQ,DB16+1,0)+VLOOKUP(F4,'Time Zones'!$C:$D,2,0)/24 -> 1951-07-23T21:55:46.813 | DV16: =HLOOKUP(DC16,'AW1899-2149'!A:IQ,DB16+2,0)+VLOOKUP(F4,'Time Zones'!$C:$D,2,0)/24 -> 1951-07-24T10:16:36.923 | DW16: =DV16-DU16 -> 12:20:50.110 | DX16: =CX16+VLOOKUP(F4,'Time Zones'!$C:$D,2,0)/24-DU16 -> 0.3014478864 | DY16: =DX16/DW16 -> 0.58594 | ED16: =VLOOKUP(DF16,'EMO and PHY YR'!D2:K57,8,FALSE) -> LR | EF16: =VLOOKUP(DF16,'EMO and PHY YR'!D2:Q57,10,FALSE) -> ↘ | EG16: =VLOOKUP(DF16,'EMO and PHY YR'!D2:Q57,13,FALSE) -> ↶ | EH16: =VLOOKUP(DF16,'EMO and PHY YR'!D2:Q57,14,FALSE) -> ⇉ | EI16: =VLOOKUP(DF16,'EMO and PHY YR'!D2:K57,7,FALSE) -> -+ | EJ16: =VLOOKUP(DF16,'EMO and PHY YR'!D2:Q57,11,FALSE) -> 1 | EK16: =VLOOKUP(EM16*360,$M$108:$N$171,2,TRUE) -> ID | EL16: =IF(AND(EM16>0.125,EM16<0.375),2,IF(AND(EM16>0.375,EM16<0.625),3,IF(AND(EM16>0.625,EM16<0.875),4,1))) -> 2 | EM16: =IF(ED16="LR",VLOOKUP(DF16,'Macro Phase'!B3:N58,12,FALSE)+((30*DY16)/24/60),IF(VLOOKUP(DF16,'Macro Phase'!B3:N58,13,FALSE)-((30*DY16)/24/60)<0,VLOOKUP(DF16,'Macro Phase'!B3:N58,13,FALSE)-((30*DY16)/24/60)+1,VLOOKUP(DF16,'Macro Phase'!B3:N58,13,FALSE)-((30*DY16)/24/60))) -> 06:17:34.692 | EN16: =VLOOKUP(EY16,'EMO and PHY YR'!D2:K57,8,FALSE) -> RL | EP16: =VLOOKUP(EY16,'EMO and PHY YR'!D2:Q57,10,FALSE) -> ↙ | EQ16: =VLOOKUP(EY16,'EMO and PHY YR'!D2:Q57,13,FALSE) -> ↶ | ER16: =VLOOKUP(EY16,'EMO and PHY YR'!D2:Q57,14,FALSE) -> ⇇ | ES16: =VLOOKUP(EY16,'EMO and PHY YR'!D2:Q57,7,FALSE) -> -- | ET16: =VLOOKUP(EY16,'EMO and PHY YR'!D2:Q57,11,FALSE) -> 6 | EU16: =VLOOKUP(EW16*360,$M$108:$N$171,2,TRUE) -> C | EV16: =IF(AND(EW16>0.125,EW16<0.375),2,IF(AND(EW16>0.375,EW16<0.625),3,IF(AND(EW16>0.625,EW16<0.875),4,1))) -> 4 | EW16: =IF(EN16="LR",VLOOKUP(DY16,'Macro Phase'!C3:M58,11,TRUE)+(30*(((DY16-VLOOKUP(DY16,'Macro Phase'!C3:M58,1,TRUE))/(100/48))*100)/1440)-(2/60/60/24),IF(VLOOKUP(DY16,'Macro Phase'!C3:N58,12,TRUE)-(30*(((DY16-VLOOKUP(DY16,'Macro Phase'!C3:N58,1,TRUE))/(100/48))*100)/1440)<0,VLOOKUP(DY16,'Macro Phase'!C3:N58,12,TRUE)-(30*(((DY16-VLOOKUP(DY16,'Macro Phase'!C3:N58,1,TRUE))/(100/48))*100)/1440)+1+(2/60/60/24),VLOOKUP(DY16,'Macro Phase'!C3:N58,12,TRUE)-(30*(((DY16-VLOOKUP(DY16,'Macro Phase'!C3:N58,1,TRUE))/(100/48))*100)/1440)+(2/60/60/24))) -> 15:56:16.784 | EX16: =IF(EY17<0,VLOOKUP((360+EY17),$M$108:$N$171,2,TRUE),VLOOKUP(EY17,$M$108:$N$171,2,TRUE)) -> ID | EY16: =IF(ED16="LR",(VLOOKUP(DY16,N51:P98,3,TRUE)),(VLOOKUP(DY16,N51:S98,6,TRUE))) -> 4-4 | EZ16: =VLOOKUP(EY16,'EMO and PHY YR'!D2:E57,2,FALSE) -> N
C17: Mental | E17: (USER) | F17: N | G17: 360 | H17: Mind | I17: Current (Left) | J17: User (Right) | M17: date | N17: Legth of Season | O17: % thru season | R17: 1 | S17: 2 | T17: 3 | U17: 4 | V17: 5 | W17: 6 | X17: 7 | Y17: 8 | Z17: Mental | AC17: =IF(OR(J18>330,J18<30),"",J18-30) ->  | AE17: =_xlfn._xlws.SORT(_xlfn.UNIQUE(FullNames)) -> 0, 0 | AF17: =IF(C11=1,VLOOKUP(Home!AB3,Family!$B$14:$H$82,6,FALSE),VLOOKUP(Advanced!Z4,Family!$B$14:$H$82,6,FALSE)) -> 1951-07-24T04:55:00 | AH17: -1 | AS17: MACRO | DF17: =IF((VLOOKUP(DG16,F17:G32,2,0)=0),360+(VLOOKUP(DG16,F17:G32,2,0)-22.5*DY4),VLOOKUP(DG16,F17:G32,2,0)-22.5*DY4) -> 257.2678222 | DG17: =IF(AND(DF17<=135,DF17>45),2,IF(AND(DF17<=315,DF17>225),4,IF(AND(DF17<=225,DF17>135),3,1))) -> 4 | DI17: =VLOOKUP(DI16,B56:F63,5,FALSE) -> 3 | EK17: =VLOOKUP(EK16,B56:F63,5,FALSE) -> 2 | EP17: =IF(OR(EP16="↖",EP16="↘"),1,2) -> 2 | ER17: =IF(OR(ER16="⇄",ER16="⇆"),1,2) -> 2 | ES17: =IF(OR(ES16="-+",ES16="+-"),1,2) -> 2 | EU17: =VLOOKUP(EU16,B56:F63,5,FALSE) -> 5 | EX17: =VLOOKUP(EX16,B56:F63,5,FALSE) -> 2 | EY17: =IF(VLOOKUP(EZ16,F17:G32,2,0)-((DY16-FLOOR(DY16,100/48/100))/(100/48/100))*22.5<0,360-VLOOKUP(EZ16,F17:G32,2,0)-((DY16-FLOOR(DY16,100/48/100))/(100/48/100))*22.5,VLOOKUP(EZ16,F17:G32,2,0)-((DY16-FLOOR(DY16,100/48/100))/(100/48/100))*22.5) -> 357.1848 | EZ17: =IF(AND(EY17<=135,EY17>45),2,IF(AND(EY17<=315,EY17>225),4,IF(AND(EY17<=225,EY17>135),3,1))) -> 1
C18: M Position | D18: =IF(B26=FALSE,NA(),IF((VLOOKUP(O5,F17:G32,2,0)=0),356+(VLOOKUP(O5,F17:G32,2,0)-22.5*AE5),VLOOKUP(O5,F17:G32,2,0)-22.5*AE5)) -> 287.0499646 | E18: =IF(B25=FALSE,NA(),IF((VLOOKUP(O4,F17:G32,2,0)=0),360+(VLOOKUP(O4,F17:G32,2,0)-22.5*AE4),VLOOKUP(O4,F17:G32,2,0)-22.5*AE4)) ->  | F18: NNE | G18: 22.5 | H18: M Position | I18: =AS5 -> 13:37:16.003 | J18: =IF(B25=FALSE,NA(),AS4) ->  | K18: =M5-1 -> 2024 | L18: Fall | M18: =HLOOKUP(M5-1,'AW1899-2149'!A:IQ,548,FALSE)+VLOOKUP(F5,'Time Zones'!$C:$D,2,0)/24 -> 2024-09-22T08:43:00 | N18: =M19-M18 -> 89.85902778 | Q18: 1 | R18: G | S18: G | T18: Y | U18: Y | V18: R | W18: R | X18: Y | Y18: Y | Z18: MACRO | AA18: =IF(OR(E18>330,E18<30),"",E18-30) ->  | AB18: =IF(E18>330,ABS(E18+30-360),IF(E18<30,E18+30,"")) ->  | AC18: =IF(OR(J18>1-1/12,J18<1/12),"",J18-1/12) ->  | AD18: =IF(J18>1-1/12,ABS(J18+1/12-1),IF(J18<1/12,J18+1/12,"")) ->  | AE18: Akins, Erik | AF18: Time Zone | AH18: -2 | AS18: =IF(OR(E18>330,E18<30),"",E18-30) ->  | AT18: =IF(E18>330,ABS(E18+30-360),IF(E18<30,E18,"")) ->  | AV18: =IF(OR(J18*360>330,J18*360<30),"",J18*360-30) ->  | AW18: =IF(J18*360>330,ABS(J18*360+30-360),IF(J18*360<30,J18*360,"")) ->  | BC18: Mental Macro | BD18: =IF(AJ5="LR","è","ç") -> è | DF18: =IF(ABS(DF17-DF9)>180,180-(ABS(DF17-DF9)-180),ABS(DF17-DF9)) -> 50.10637608 | EY18: =IF(ABS(EY17-EY9)>180,180-(ABS(EY17-EY9)-180),ABS(EY17-EY9)) -> 93.22328337
C19: M Hand Width | D19: =IF(B26=TRUE,3,NA()) -> 3 | E19: =IF(B25=FALSE,NA(),4) ->  | F19: NE | G19: 45 | I19: =IF(B26=FALSE,NA(),AS5) -> 0.5675463291 | J19: =IF(B25=FALSE,NA(),AS4) ->  | K19: =M5 -> 2025 | L19: winter | M19: =HLOOKUP(M5,'AW1899-2149'!A:IQ,2,FALSE)+VLOOKUP(F5,'Time Zones'!$C:$D,2,0)/24 -> 2024-12-21T05:20:00 | N19: =M20-M19 -> 88.98680556 | O19: =IF(($D$5+$E$5)>M20,1,IF($D$5+$E$5<=M19,0,(($D$5+$E$5)-M19)/N19)) -> 0.9688951897 | Q19: 2 | R19: G | S19: G | T19: Y | U19: Y | V19: R | W19: R | X19: Y | Y19: Y | AA19: =IF(OR(E18>330,E18<30),"",60) ->  | AB19: =IF(E18>330,E18-30,IF(E18<30,AB18+300,"")) ->  | AC19: =IF(OR(J18>1-1/12,J18<1/12),"",1/6) ->  | AD19: =IF(J18>11/12,J18-1/12,IF(J18<1/12,AD18+5/6,"")) ->  | AE19: Akins, Janet | AF19: =IF(C11=1,VLOOKUP(Home!AB3,Family!$B$14:$H$82,7,FALSE),VLOOKUP(Advanced!Z4,Family!$B$14:$H$82,7,FALSE)) -> (GMT-05:00) Central Time (US and Canada) *DST* | AH19: -3 | AS19: =IF(OR(E18>330,E18<30),"",30) ->  | AT19: =IF(E18>330,300,IF(E18<30,1,"")) ->  | AV19: =IF(OR(J18*360>330,J18*360<30),"",30) ->  | AW19: =IF(J18*360>330,300,IF(J18*360<30,1,"")) ->  | BC19: Mental Micro | BD19: =IF(AT5="LR","è","ç") -> ç | DF19: =TRUNC(DF18,2) -> 50.1 | DG19: =IF(DG17=DG9,"G",IF(ISODD(DG17+DG9),"Y","R")) -> G | DI19: =VLOOKUP(DI17,V40:AD47,DI9+1,FALSE) -> R | EK19: =VLOOKUP(EK17,V40:AD47,EK9+1,FALSE) -> Y | EX19: =VLOOKUP(EX17,V40:AD47,EX9+1,FALSE) -> Y | EY19: =TRUNC(EY18,2) -> 93.22 | EZ19: =IF(EZ17=EZ9,"G",IF(ISODD(EZ17+EZ9),"Y","R")) -> Y
C20: M Blank Area | D20: =360-D18-D19 -> 69.95003544 | E20: =360-E18-E19 ->  | F20: ENE | G20: 67.5 | H20: M Hand Width | I20: =IF(B26=TRUE,0.005,NA()) -> 0.005 | J20: =IF(B25=FALSE,NA(),0.012) ->  | K20: =M5 -> 2025 | L20: spring | M20: =HLOOKUP(M5,'AW1899-2149'!A:IQ,184,FALSE)+VLOOKUP(F5,'Time Zones'!$C:$D,2,0)/24 -> 2025-03-20T05:01:00 | N20: =M21-M20 -> 92.73680556 | O20: =IF(($D$5+$E$5)>M21,1,IF($D$5+$E$5<=M20,0,(($D$5+$E$5)-M20)/N20)) -> 0 | Q20: 3 | R20: Y | S20: Y | T20: G | U20: G | V20: Y | W20: Y | X20: R | Y20: R | AA20: =IF(OR(E18>330,E18<30),"",360-AA18-AA19) ->  | AB20: =IF(E18>330,360-AB19,IF(E18<30,360-AB19,"")) ->  | AC20: =IF(OR(J18>1-1/12,J18<1/12),"",1-AC18-AC19) ->  | AD20: =IF(J18>11/12,1-AD19,IF(J18<1/12,1-AD19,"")) ->  | AE20: Baier, Barb | AH20: -4 | AS20: =IF(OR(E18>330,E18<30),"",1) ->  | AT20: =IF(E18>330,29,IF(E18<30,30,"")) ->  | AV20: =IF(OR(J18*360>330,J18*360<30),"",1) ->  | AW20: =IF(J18*360>330,29,IF(J18*360<30,30,"")) ->  | BC20: Emo Macro | BD20: =IF(CH5="LR","è","ç") -> ç
C21: m Position | D21: =IF(B26=FALSE,NA(),IF(VLOOKUP(BF5,F17:G32,2,0)-((AE5-FLOOR(AE5,100/48/100))/(100/48/100))*22.5<0,360+VLOOKUP(BF5,F17:G32,2,0)-((AE5-FLOOR(AE5,100/48/100))/(100/48/100))*22.5,VLOOKUP(BF5,F17:G32,2,0)-((AE5-FLOOR(AE5,100/48/100))/(100/48/100))*22.5)) -> 8.398298788 | E21: =IF(B25=FALSE,NA(),IF(VLOOKUP(BF4,F17:G32,2,0)-((AE4-FLOOR(AE4,100/48/100))/(100/48/100))*22.5<0,360+VLOOKUP(BF4,F17:G32,2,0)-((AE4-FLOOR(AE4,100/48/100))/(100/48/100))*22.5,VLOOKUP(BF4,F17:G32,2,0)-((AE4-FLOOR(AE4,100/48/100))/(100/48/100))*22.5)) ->  | F21: E | G21: 90 | H21: M Blank Area | I21: =IF(B26=FALSE,NA(),1-I20-I19) -> 0.4274536709 | J21: =1-J20-J19 ->  | K21: =M5 -> 2025 | L21: summer | M21: =HLOOKUP(M5,'AW1899-2149'!A:IQ,366,FALSE)+VLOOKUP(F5,'Time Zones'!$C:$D,2,0)/24 -> 2025-06-20T22:42:00 | N21: 93.65069444 | O21: =IF(($D$5+$E$5)>M22,1,IF($D$5+$E$5<=M21,0,(($D$5+$E$5)-M21)/N21)) -> 0 | Q21: 4 | R21: Y | S21: Y | T21: G | U21: G | V21: Y | W21: Y | X21: R | Y21: R | Z21: micro | AA21: =IF(OR(E21>330,E21<30),"",E21-30) ->  | AB21: =IF(E21>330,ABS(E21+30-360),IF(E21<30,E21+30,"")) ->  | AC21: =IF(OR(J22>1-1/12,J22<1/12),"",J22-1/12) ->  | AD21: =IF(J22>1-1/12,ABS(J22+1/12-1),IF(J22<1/12,J22+1/12,"")) ->  | AE21: Baier, Beth | AH21: -5 | AS21: =IF(OR(E18>330,E18<30),"",29) ->  | AT21: =IF(E18>330,1,IF(E18<30,300,"")) ->  | AV21: =IF(OR(J18*360>330,J18*360<30),"",29) ->  | AW21: =IF(J18*360>330,1,IF(J18*360<30,300,"")) ->  | BC21: Emo Micro | BD21: =IF(CR5="LR","è","ç") -> è | CW21: =DU4+DW4*CE4 -> 1951-07-24T07:57:54.066 | CX21: =CW21-G4/24 -> 1951-07-24T12:57:54.066 | CY21: =MAX(IF('AW1899-2149'!A2:IQ730<CX21,'AW1899-2149'!A2:IQ730)) -> 18833.12207 | CZ21: =MIN(IF('AW1899-2149'!A2:IQ729>CX21,'AW1899-2149'!A2:IQ729)) -> 18833.63654 | DA21: =ADDRESS(MIN(IF(NOT(ISERROR(FIND(CY21,'AW1899-2149'!$A$1:$IQ$729,1))),ROW('AW1899-2149'!$A$1:$IQ$729)," ")),1) -> $A$428 | DB21: =MIN(IF(NOT(ISERROR(FIND(CY21,'AW1899-2149'!$A$1:$IQ$729,1))),ROW('AW1899-2149'!$A$1:$IQ$729)," "))-1 -> 427 | DC21: =IF(AND(DB21<25,MONTH(CX21)=12),YEAR(CX21)+1,YEAR(CX21)) -> 1951 | DF21: =VLOOKUP(DB21,'EMO and PHY YR'!A2:E730,4) -> 7-7 | DN21: =IF(DY21<12.5%,8,IF(AND(DY21>=12.5%,DY21<25%),1,IF(AND(DY21>=25%,DY21<37.5%),2,IF(AND(DY21>=37.5%,DY21<50%),3,IF(AND(DY21>=50%,DY21<62.5%),4,IF(AND(DY21>=62.5%,DY21<75%),5,IF(AND(DY21>=75%,DY21<87.5%),6,IF(DY21>=87.5%,7,"uffda")))))))) -> 6 | DS21: =VLOOKUP(DY21,A66:C105,3,TRUE) -> 3 | DT21: =IF(DB21<2,HLOOKUP(DC21-1,'AW1899-2149'!A:IQ,DB21+728,0),HLOOKUP(DC21,'AW1899-2149'!A:IQ,DB21,0)+VLOOKUP(F4,'Time Zones'!$C:$D,2,0)/24) -> 1951-07-23T09:34:56.703 | DU21: =HLOOKUP(DC21,'AW1899-2149'!A:IQ,DB21+1,0)+VLOOKUP(F4,'Time Zones'!$C:$D,2,0)/24 -> 1951-07-23T21:55:46.813 | DV21: =HLOOKUP(DC21,'AW1899-2149'!A:IQ,DB21+2,0)+VLOOKUP(F4,'Time Zones'!$C:$D,2,0)/24 -> 1951-07-24T10:16:36.923 | DW21: =DV21-DU21 -> 0.5144688645 | DX21: =CX21+VLOOKUP(F4,'Time Zones'!$C:$D,2,0)/24-DU21 -> 0.4181394994 | DY21: =DX21/DW21 -> 0.8127595823 | ED21: =VLOOKUP(DF21,'EMO and PHY YR'!D2:K57,8,FALSE) -> LR | EN21: =VLOOKUP(EY21,'EMO and PHY YR'!D2:K57,8,FALSE) -> LR | EP21: =VLOOKUP(EY21,'EMO and PHY YR'!D2:Q57,10,FALSE) -> ↗ | EQ21: =VLOOKUP(EY21,'EMO and PHY YR'!D2:Q57,13,FALSE) -> ↶ | ER21: =VLOOKUP(EY21,'EMO and PHY YR'!D2:Q57,14,FALSE) -> ⇆ | ES21: =VLOOKUP(EY21,'EMO and PHY YR'!D2:Q57,7,FALSE) -> -+ | ET21: =VLOOKUP(EY21,'EMO and PHY YR'!D2:Q57,11,FALSE) -> 7 | EU21: =VLOOKUP(EW21*360,$M$108:$N$171,2,TRUE) -> IO | EV21: =IF(AND(EW21>0.125,EW21<0.375),2,IF(AND(EW21>0.375,EW21<0.625),3,IF(AND(EW21>0.625,EW21<0.875),4,1))) -> 1 | EW21: =IF(EN21="LR",VLOOKUP(DY21,'Macro Phase'!C3:M58,11,TRUE)+(30*(((DY21-VLOOKUP(DY21,'Macro Phase'!C3:M58,1,TRUE))/(100/48))*100)/1440)-(2/60/60/24),IF(VLOOKUP(DY21,'Macro Phase'!C3:N58,12,TRUE)-(30*(((DY21-VLOOKUP(DY21,'Macro Phase'!C3:N58,1,TRUE))/(100/48))*100)/1440)<0,VLOOKUP(DY21,'Macro Phase'!C3:N58,12,TRUE)-(30*(((DY21-VLOOKUP(DY21,'Macro Phase'!C3:N58,1,TRUE))/(100/48))*100)/1440)+1+(2/60/60/24),VLOOKUP(DY21,'Macro Phase'!C3:N58,12,TRUE)-(30*(((DY21-VLOOKUP(DY21,'Macro Phase'!C3:N58,1,TRUE))/(100/48))*100)/1440)+(2/60/60/24))) -> 01:30:20.428 | EX21: =IF(EY22<0,VLOOKUP((360+EY22),$M$108:$N$171,2,TRUE),VLOOKUP(EY22,$M$108:$N$171,2,TRUE)) -> IO | EY21: =IF(ED21="LR",(VLOOKUP(DY21,N51:P98,3,TRUE)),(VLOOKUP(DY21,N51:S98,6,TRUE))) -> 6-5 | EZ21: =VLOOKUP(EY21,'EMO and PHY YR'!D2:E57,2,FALSE) -> ESE
B22: 15:16:48 | C22: m HandWidth | D22: =IF(B26=TRUE,2.5,NA()) -> 2.5 | E22: 3 | F22: ESE | G22: 112.5 | H22: m Position | I22: =BC5 -> 00:11:11.864 | J22: =IF(B25=FALSE,NA(),BC4) ->  | K22: =M5 -> 2025 | L22: fall | M22: =HLOOKUP(M5,'AW1899-2149'!A:IQ,548,FALSE)+VLOOKUP(F5,'Time Zones'!$C:$D,2,0)/24 -> 2025-09-22T14:19:00 | N22: 89.86388889 | O22: =IF(($D$5+$E$5)>M23,1,IF($D$5+$E$5<=M22,0,(($D$5+$E$5)-M22)/N22)) -> 0 | Q22: 5 | R22: R | S22: R | T22: Y | U22: Y | V22: G | W22: G | X22: Y | Y22: Y | AA22: =IF(OR(E21>330,E21<30),"",60) ->  | AB22: =IF(E21>330,E21-30,IF(E21<30,AB21+300,"")) ->  | AC22: =IF(OR(J22>1-1/12,J22<1/12),"",1/6) ->  | AD22: =IF(J22>11/12,J22-1/12,IF(J22<1/12,AD21+5/6,"")) ->  | AE22: Bryant, Kobe | AH22: -6 | AS22: =IF(OR(E18>330,E18<30),"",360-AS21-AS20-AS19-AS18) ->  | AT22: =IF(E18>330,29-AT18,IF(E18<30,29-AT18,"")) ->  | AV22: =IF(OR(J18*360>330,J18*360<30),"",360-AV21-AV20-AV19-AV18) ->  | AW22: =IF(J18*360>330,29-AW18,IF(J18*360<30,29-AW18,"")) ->  | BC22: Phy Macro | BD22: =IF(ED5="LR","è","ç") -> è | EP22: =IF(OR(EP21="↖",EP21="↘"),1,2) -> 2 | ER22: =IF(OR(ER21="⇄",ER21="⇆"),1,2) -> 1 | ES22: =IF(OR(ES21="-+",ES21="+-"),1,2) -> 1 | EU22: =VLOOKUP(EU21,B56:F63,5,FALSE) -> 8 | EX22: =VLOOKUP(EX21,B56:F63,5,FALSE) -> 8 | EY22: =IF(VLOOKUP(EZ21,F17:G32,2,0)-((DY21-FLOOR(DY21,100/48/100))/(100/48/100))*22.5<0,360-VLOOKUP(EZ21,F17:G32,2,0)-((DY21-FLOOR(DY21,100/48/100))/(100/48/100))*22.5,VLOOKUP(EZ21,F17:G32,2,0)-((DY21-FLOOR(DY21,100/48/100))/(100/48/100))*22.5) -> 112.2196511 | EZ22: =IF(AND(EY22<=135,EY22>45),2,IF(AND(EY22<=315,EY22>225),4,IF(AND(EY22<=225,EY22>135),3,1))) -> 2
A23: For Coordinate Compass | C23: m Blank Area | D23: =360-D21-D22 -> 349.1017012 | E23: =360-E21-E22 ->  | F23: SE | G23: 135 | I23: =IF(B26=FALSE,NA(),BC5) -> 0.007776202582 | J23: =IF(B25=FALSE,NA(),BC4) ->  | K23: =M5+1 -> 2026 | L23: winter | M23: =HLOOKUP(M5+1,'AW1899-2149'!A:IQ,2,FALSE)+VLOOKUP(F5,'Time Zones'!$C:$D,2,0)/24 -> 2025-12-21T11:03:00 | N23: 88.9875 | Q23: 6 | R23: R | S23: R | T23: Y | U23: Y | V23: G | W23: G | X23: Y | Y23: Y | AA23: =IF(OR(E21>330,E21<30),"",360-AA21-AA22) ->  | AB23: =IF(E21>330,360-AB22,IF(E21<30,360-AB22,"")) ->  | AC23: =IF(OR(J22>1-1/12,J22<1/12),"",1-AC21-AC22) ->  | AD23: =IF(J22>11/12,1-AD22,IF(J22<1/12,1-AD22,"")) ->  | AE23: Clayton, Stephanie | AH23: -7 | AS23: micro | BC23: Phy Micro | BD23: =IF(EN5="LR","è","ç") -> ç
A24: to turn on and off | C24: Emotional | F24: SSE | G24: 157.5 | H24: m HandWidth | I24: =IF(B26=TRUE,0.012,NA()) -> 0.012 | J24: =IF(B25=FALSE,NA(),0.012) ->  | K24: =M5+1 -> 2026 | L24: Spring | M24: =HLOOKUP(M5+1,'AW1899-2149'!A:IQ,184,FALSE)+VLOOKUP(F5,'Time Zones'!$C:$D,2,0)/24 -> 2026-03-20T10:45:00 | Q24: 7 | R24: Y | S24: Y | T24: R | U24: R | V24: Y | W24: Y | X24: G | Y24: G | Z24: Emotional | AE24: Djokovic, Novak | AH24: -8 | AS24: =IF(OR(E21>330,E21<30),"",E21-30) ->  | AT24: =IF(E21>330,ABS(E21+30-360),IF(E21<30,E21,"")) ->  | AV24: =IF(OR(J22*360>330,J22*360<30),"",J22*360-30) ->  | AW24: =IF(J22*360>330,ABS(J22*360+30-360),IF(J22*360<30,J22*360,"")) -> 
A25: Toggle User | B25: FALSE | C25: M Position | D25: =IF(B26=FALSE,NA(),IF((VLOOKUP(BM5,F17:G32,2,0)=0),356+(VLOOKUP(BM5,F17:G32,2,0)-22.5*CE5),VLOOKUP(BM5,F17:G32,2,0)-22.5*CE5)) -> 122.2980153 | E25: =IF(B25=FALSE,NA(),IF((VLOOKUP(BM4,F17:G32,2,0)=0),360+(VLOOKUP(BM4,F17:G32,2,0)-22.5*CE4),VLOOKUP(BM4,F17:G32,2,0)-22.5*CE4)) ->  | F25: S | G25: 180 | H25: m Blank Area | I25: =1-I24-I23 -> 0.9802237974 | J25: =1-J24-J23 ->  | K25: percent thru the year based on Season Completion: | O25: =SUM(O19:O22)/4 -> 0.2422237974 | Q25: 8 | R25: Y | S25: Y | T25: R | U25: R | V25: Y | W25: Y | X25: G | Y25: G | Z25: MACRO | AA25: =IF(OR(E25>330,E25<30),"",E25-30) ->  | AB25: =IF(E25>330,ABS(E25+30-360),IF(E25<30,E25+30,"")) ->  | AC25: =IF(OR(J27>1-1/12,J27<1/12),"",J27-1/12) ->  | AD25: =IF(J27>1-1/12,ABS(J27+1/12-1),IF(J27<1/12,J27+1/12,"")) ->  | AE25: Evans, Justin | AH25: -9 | AS25: =IF(OR(E21>330,E21<30),"",30) ->  | AT25: =IF(E21>330,300,IF(E21<30,1,"")) ->  | AV25: =IF(OR(J22*360>330,J22*360<30),"",30) ->  | AW25: =IF(J22*360>330,300,IF(J22*360<30,1,"")) -> 
A26: Toggle Time | B26: TRUE | C26: M Hand Width | D26: =IF(B26=TRUE,3,NA()) -> 3 | E26: =IF(B25=FALSE,NA(),3) ->  | F26: SSW | G26: 202.5 | H26: Emotion | L26: Previous Phy Aware | M26: Next Phy Aware | N26: Previous Emo | O26: Next Emo | P26: Used to determin ZONE match and color | AA26: =IF(OR(E25>330,E25<30),"",60) ->  | AB26: =IF(E25>330,E25-30,IF(E25<30,AB25+300,"")) ->  | AC26: =IF(OR(J27>1-1/12,J27<1/12),"",1/6) ->  | AD26: =IF(J27>11/12,J27-1/12,IF(J27<1/12,AD25+5/6,"")) ->  | AE26: Fin, Dr | AH26: -10 | AS26: =IF(OR(E21>330,E21<30),"",1) ->  | AT26: =IF(E21>330,29,IF(E21<30,30,"")) ->  | AV26: =IF(OR(J22*360>330,J22*360<30),"",1) ->  | AW26: =IF(J22*360>330,29,IF(J22*360<30,30,"")) -> 
C27: M Blank Area | D27: =360-SUM(D25:D26) -> 234.7019847 | E27: =360-E25-E26 ->  | F27: SW | G27: 225 | H27: M Position | I27: =CQ5 -> 02:43:03.841 | J27: =IF(B25=FALSE,NA(),CQ4) ->  | K27: Date | L27: =INT(DT5) -> 2025-03-16 | M27: =INT(DV5) -> 2025-03-17 | N27: =INT(CA5-1/1440) -> 2025-03-13 | O27: =INT(CB5) -> 2025-03-20 | R27: Slave | AA27: =IF(OR(E25>330,E25<30),"",360-AA25-AA26) ->  | AB27: =IF(E25>330,360-AB26,IF(E25<30,360-AB26,"")) ->  | AC27: =IF(OR(J27>1-1/12,J27<1/12),"",1-AC25-AC26) ->  | AD27: =IF(J27>11/12,1-AD26,IF(J27<1/12,1-AD26,"")) ->  | AE27: Finu, Dr | AH27: -11 | AS27: =IF(OR(E21>330,E21<30),"",29) ->  | AT27: =IF(E21>330,1,IF(E21<30,300,"")) ->  | AV27: =IF(OR(J22*360>330,J22*360<30),"",29) ->  | AW27: =IF(J22*360>330,1,IF(J22*360<30,300,"")) -> 
C28: m Position | D28: =IF(B26=FALSE,NA(),IF(VLOOKUP(DD5,F17:G32,2,0)-((CE5-FLOOR(CE5,100/48/100))/(100/48/100))*22.5<0,360+VLOOKUP(DD5,F17:G32,2,0)-((CE5-FLOOR(CE5,100/48/100))/(100/48/100))*22.5,VLOOKUP(DD5,F17:G32,2,0)-((CE5-FLOOR(CE5,100/48/100))/(100/48/100))*22.5)) -> 20.3047321 | E28: =IF(B25=FALSE,NA(),VLOOKUP(DD4,F17:G32,2,0)-((CE4-FLOOR(CE4,100/48/100))/(100/48/100))*22.5) ->  | F28: WSW | G28: 247.5 | I28: =IF(B26=FALSE,NA(),CQ5) -> 0.113238903 | J28: =IF(B25=FALSE,NA(),CQ4) ->  | K28: Time | L28: =DT5-INT(DT5) -> 18:52:30 | M28: =DV5-INT(DV5)+1/86400 -> 18:20:39.571 | N28: =CA5-INT(CA5)-1/1440 -> 20:27:04.286 | O28: =CB5-INT(CB5) -> 05:01:00 | P28: Master | R28: 1 | S28: 2 | T28: 3 | U28: 4 | V28: 5 | W28: 6 | X28: 7 | Y28: 8 | Z28: micro | AA28: =IF(OR(E28>330,E28<30),"",E28-30) ->  | AB28: =IF(E28>330,ABS(E28+30-360),IF(E28<30,E28+30,"")) ->  | AC28: =IF(OR(J31>1-1/12,J31<1/12),"",J31-1/12) ->  | AD28: =IF(J31>1-1/12,ABS(J31+1/12-1),IF(J31<1/12,J31+1/12,"")) ->  | AE28: Finucan, Dr | AH28: -12 | AS28: =IF(OR(E21>330,E21<30),"",360-AS27-AS26-AS25-AS24) ->  | AT28: =IF(E21>330,29-AT24,IF(E21<30,29-AT24,"")) ->  | AV28: =IF(OR(J22*360>330,J22*360<30),"",360-AV27-AV26-AV25-AV24) ->  | AW28: =IF(J22*360>330,29-AW24,IF(J22*360<30,29-AW24,"")) -> 
C29: m HandWidth | D29: =IF(B26=TRUE,2.5,NA()) -> 2.5 | E29: 2.25 | F29: W | G29: 270 | H29: M Hand Width | I29: =IF(B26=TRUE,0.005,NA()) -> 0.005 | J29: =IF(B25=FALSE,NA(),0.008) ->  | Q29: 1 | R29: G | S29: G | T29: Y | U29: Y | V29: R | W29: R | X29: Y | Y29: Y | AA29: =IF(OR(E28>330,E28<30),"",60) ->  | AB29: =IF(E28>330,E28-30,IF(E28<30,AB28+300,"")) ->  | AC29: =IF(OR(J31>1-1/12,J31<1/12),"",1/6) ->  | AD29: =IF(J31>11/12,J31-1/12,IF(J31<1/12,AD28+5/6,"")) ->  | AE29: Finucan, Marg | AH29: 1 | AS29: MACRO
C30: m Blank Area | D30: =360-D28-D29 -> 337.1952679 | E30: =360-E28-E29 ->  | F30: WNW | G30: 292.5 | H30: M Blank Area | I30: =1-I29-I28 -> 0.881761097 | J30: =1-J29-J28 ->  | M30: date | N30: Legth of Season | O30: % thru season | Q30: 2 | R30: G | S30: G | T30: Y | U30: Y | V30: R | W30: R | X30: Y | Y30: Y | AA30: =IF(OR(E28>330,E28<30),"",360-AA28-AA29) ->  | AB30: =IF(E28>330,360-AB29,IF(E28<30,360-AB29,"")) ->  | AC30: =IF(OR(J31>1-1/12,J31<1/12),"",1-AC28-AC29) ->  | AD30: =IF(J31>11/12,1-AD29,IF(J31<1/12,1-AD29,"")) ->  | AE30: Finucan, Margaret | AH30: 2 | AS30: =IF(OR(E25>330,E25<30),"",E25-30) ->  | AT30: =IF(E25>330,ABS(E25+30-360),IF(E25<30,E25,"")) ->  | AV30: =IF(OR(J27*360>330,J27*360<30),"",J27*360-30) ->  | AW30: =IF(J27*360>330,ABS(J27*360+30-360),IF(J27*360<30,J27*360,"")) -> 
C31: Physical | F31: NW | G31: 315 | H31: m Position | I31: =DA5 -> 19:32:55.621 | J31: =IF(B25=FALSE,NA(),DA4) ->  | K31: =M4-1 -> 1950 | L31: Fall | M31: =HLOOKUP(M4-1,'AW1899-2149'!A:IQ,548,FALSE)+VLOOKUP(F4,'Time Zones'!$C:$D,2,0)/24 -> 1950-09-23T09:43:00 | N31: =M32-M31 -> 89.8125 | Q31: 3 | R31: Y | S31: Y | T31: G | U31: G | V31: Y | W31: Y | X31: R | Y31: R | Z31: Physical | AE31: Finucan, Paul | AH31: 3 | AS31: =IF(OR(E25>330,E25<30),"",30) ->  | AT31: =IF(E25>330,300,IF(E25<30,1,"")) ->  | AV31: =IF(OR(J27*360>330,J27*360<30),"",30) ->  | AW31: =IF(J27*360>330,300,IF(J27*360<30,1,"")) -> 
C32: M Position | D32: =IF(B26=FALSE,NA(),VLOOKUP(DG5,F17:G32,2,0)-22.5*DY5) -> 307.3741983 | E32: =IF(B25=FALSE,NA(),VLOOKUP(DG4,F17:G32,2,0)-22.5*DY4) ->  | F32: NNW | G32: 337.5 | I32: =IF(B26=FALSE,NA(),DA5) -> 0.8145326555 | J32: =IF(B25=FALSE,NA(),DA4) ->  | K32: =M4 -> 1951 | L32: winter | M32: =HLOOKUP(M4,'AW1899-2149'!A:IQ,2,FALSE)+VLOOKUP(F4,'Time Zones'!$C:$D,2,0)/24 -> 1950-12-22T05:13:00 | N32: =M33-M32 -> 89.00833333 | O32: =IF(($D$4+$E$4)>M33,1,IF($D$4+$E$4<=M32,0,(($D$4+$E$4)-M32)/N32)) -> 1 | Q32: 4 | R32: Y | S32: Y | T32: G | U32: G | V32: Y | W32: Y | X32: R | Y32: R | Z32: MACRO | AA32: =IF(OR(E32>330,E32<30),"",E32-30) ->  | AB32: =IF(E32>330,ABS(E32+30-360),IF(E32<30,E32+30,"")) ->  | AC32: =IF(OR(J36>1-1/12,J36<1/12),"",J36-1/12) ->  | AD32: =IF(J36>1-1/12,ABS(J36+1/12-1),IF(J36<1/12,J36+1/12,"")) ->  | AE32: Geldhof, Cynthia | AH32: 4 | AS32: =IF(OR(E25>330,E25<30),"",1) ->  | AT32: =IF(E25>330,29,IF(E25<30,30,"")) ->  | AV32: =IF(OR(J27*360>330,J27*360<30),"",1) ->  | AW32: =IF(J27*360>330,29,IF(J27*360<30,30,"")) -> 
C33: M Hand Width | D33: =IF(B26=TRUE,3,NA()) -> 3 | E33: =IF(B25=FALSE,NA(),2) ->  | F33: Red, Yellow, Green | G33: #C6E0B4 | H33: m HandWidth | I33: =IF(B26=TRUE,0.012,NA()) -> 0.012 | J33: =IF(B25=FALSE,NA(),0.008) ->  | K33: =M4 -> 1951 | L33: spring | M33: =HLOOKUP(M4,'AW1899-2149'!A:IQ,184,FALSE)+VLOOKUP(F4,'Time Zones'!$C:$D,2,0)/24 -> 1951-03-21T05:25:00 | N33: 92.79097222 | O33: =IF(($D$4+$E$4)>M34,1,IF($D$4+$E$4<=M33,0,(($D$4+$E$4)-M33)/N33)) -> 1 | Q33: 5 | R33: R | S33: R | T33: Y | U33: Y | V33: G | W33: G | X33: Y | Y33: Y | AA33: =IF(OR(E32>330,E32<30),"",60) ->  | AB33: =IF(E32>330,E32-30,IF(E32<30,AB32+300,"")) ->  | AC33: =IF(OR(J36>1-1/12,J36<1/12),"",1/6) ->  | AD33: =IF(J36>11/12,J36-1/12,IF(J36<1/12,AD32+5/6,"")) ->  | AE33: Guy, Chris | AH33: 5 | AS33: =IF(OR(E25>330,E25<30),"",29) ->  | AT33: =IF(E25>330,1,IF(E25<30,300,"")) ->  | AV33: =IF(OR(J27*360>330,J27*360<30),"",29) ->  | AW33: =IF(J27*360>330,1,IF(J27*360<30,300,"")) -> 
C34: M Blank Area | D34: =360-SUM(D32:D33) -> 49.62580174 | E34: =360-E32-E33 ->  | G34: #FFE699 | H34: m Blank Area | I34: =1-I33-I32 -> 0.1734673445 | J34: =1-J33-J32 ->  | K34: =M4 -> 1951 | L34: summer | M34: =HLOOKUP(M4,'AW1899-2149'!A:IQ,366,FALSE)+VLOOKUP(F4,'Time Zones'!$C:$D,2,0)/24 -> 1951-06-22T00:24:00 | N34: 93.63333333 | O34: =IF(($D$4+$E$4)>M35,1,IF($D$4+$E$4<=M34,0,(($D$4+$E$4)-M34)/N34)) -> 0.3437685416 | Q34: 6 | R34: R | S34: R | T34: Y | U34: Y | V34: G | W34: G | X34: Y | Y34: Y | AA34: =IF(OR(E32>330,E32<30),"",360-AA32-AA33) ->  | AB34: =IF(E32>330,360-AB33,IF(E32<30,360-AB33,"")) ->  | AC34: =IF(OR(J36>1-1/12,J36<1/12),"",1-AC32-AC33) ->  | AD34: =IF(J36>11/12,1-AD33,IF(J36<1/12,1-AD33,"")) ->  | AE34: Hoverson, Allen | AH34: 6 | AS34: =IF(OR(E25>330,E25<30),"",360-AS33-AS32-AS31-AS30) ->  | AT34: =IF(E25>330,29-AT30,IF(E25<30,29-AT30,"")) ->  | AV34: =IF(OR(J27*360>330,J27*360<30),"",360-AV33-AV32-AV31-AV30) ->  | AW34: =IF(J27*360>330,29-AW30,IF(J27*360<30,29-AW30,"")) -> 
C35: m Position | D35: =IF(B26=FALSE,NA(),VLOOKUP(EZ5,F17:G32,2,0)-((DY5-FLOOR(DY5,100/48/100))/(100/48/100))*22.5) -> 263.9615166 | E35: =IF(B25=FALSE,NA(),VLOOKUP(EZ4,F17:G32,2,0)-((DY4-FLOOR(DY4,100/48/100))/(100/48/100))*22.5) ->  | G35: #F78D8D | H35: Physical | K35: =M4 -> 1951 | L35: fall | M35: =HLOOKUP(M4,'AW1899-2149'!A:IQ,548,FALSE)+VLOOKUP(F4,'Time Zones'!$C:$D,2,0)/24 -> 1951-09-23T15:36:00 | N35: 89.80833333 | O35: =IF(($D$4+$E$4)>M36,1,IF($D$4+$E$4<=M35,0,(($D$4+$E$4)-M35)/N35)) -> 0 | Q35: 7 | R35: Y | S35: Y | T35: R | U35: R | V35: Y | W35: Y | X35: G | Y35: G | Z35: micro | AA35: =IF(OR(E35>330,E35<30),"",E35-30) ->  | AB35: =IF(E35>330,ABS(E35+30-360),IF(E35<30,E35+30,"")) ->  | AC35: =IF(OR(J40>1-1/12,J40<1/12),"",J40-1/12) ->  | AD35: =IF(J40>1-1/12,ABS(J40+1/12-1),IF(J40<1/12,J40+1/12,"")) ->  | AE35: Hoverson, Andy | AH35: 7 | AS35: micro | BC35: =IF(DA4*360>330,ABS(DA4*360+30-360),IF(DA4*360<30,DA4*360,"")) -> 22.59344963
C36: m HandWidth | D36: =IF(B26=TRUE,4,NA()) -> 4 | E36: 1.5 | F36: Quadrants | G36: #79FF79 | H36: M Position | I36: =EM5 -> 05:10:10.064 | J36: =IF(B25=FALSE,NA(),EM4) ->  | K36: =M4+1 -> 1952 | L36: winter | M36: =HLOOKUP(M4+1,'AW1899-2149'!A:IQ,2,FALSE)+VLOOKUP(F4,'Time Zones'!$C:$D,2,0)/24 -> 1951-12-22T11:00:00 | N36: 89.00902778 | Q36: 8 | R36: Y | S36: Y | T36: R | U36: R | V36: Y | W36: Y | X36: G | Y36: G | AA36: =IF(OR(E35>330,E35<30),"",60) ->  | AB36: =IF(E35>330,E35-30,IF(E35<30,AB35+300,"")) ->  | AC36: =IF(OR(J40>1-1/12,J40<1/12),"",1/6) ->  | AD36: =IF(J40>11/12,J40-1/12,IF(J40<1/12,AD35+5/6,"")) ->  | AE36: Hoverson, Anne | AH36: 8 | AS36: =IF(OR(E28>330,E28<30),"",E28-30) ->  | AT36: =IF(E28>330,ABS(E28+30-360),IF(E28<30,E28,"")) ->  | AV36: =IF(OR(J31*360>330,J31*360<30),"",J31*360-30) ->  | AW36: =IF(J31*360>330,ABS(J31*360+30-360),IF(J31*360<30,J31*360,"")) ->  | BC36: =DA4 -> 01:30:22.428
C37: m Blank Area | D37: =360-D35-D36 -> 92.03848337 | E37: =360-E35-E36 ->  | G37: #FFC043 | I37: =IF(B26=FALSE,NA(),EM5) -> 0.2153942609 | J37: =IF(B25=FALSE,NA(),EM4) ->  | K37: =M4+1 -> 1952 | L37: Spring | M37: =HLOOKUP(M4+1,'AW1899-2149'!A:IQ,184,FALSE)+VLOOKUP(F4,'Time Zones'!$C:$D,2,0)/24 -> 1952-03-20T11:13:00 | P37: PHASES | Q37: Waves are both even or odd | AA37: =IF(OR(E35>330,E35<30),"",360-AA35-AA36) ->  | AB37: =IF(E35>330,360-AB36,IF(E35<30,360-AB36,"")) ->  | AC37: =IF(OR(J40>1-1/12,J40<1/12),"",1-AC35-AC36) ->  | AD37: =IF(J40>11/12,1-AD36,IF(J40<1/12,1-AD36,"")) ->  | AE37: Hoverson, Charlie | AH37: 9 | AS37: =IF(OR(E28>330,E28<30),"",30) ->  | AT37: =IF(E28>330,300,IF(E28<30,1,"")) ->  | AV37: =IF(OR(J31*360>330,J31*360<30),"",30) ->  | AW37: =IF(J31*360>330,300,IF(J31*360<30,1,"")) -> 
A38: Direction | B38: Start | C38: Middle | D38: Finish | G38: #FF6D4B | H38: M Hand Width | I38: =IF(B26=TRUE,0.005,NA()) -> 0.005 | J38: =IF(B25=FALSE,NA(),0.006) ->  | K38: percent thru the year based on Season Completion: | O38: =ROUND(SUM(O32:O35)/4,5) -> 0.58594 | Q38: 1 | R38: 2 | S38: 3 | T38: 4 | U38: 5 | V38: Used to determin Micro Shape Compatibility | AE38: Hoverson, Curtis | AH38: 10 | AS38: =IF(OR(E28>330,E28<30),"",1) ->  | AT38: =IF(E28>330,29,IF(E28<30,30,"")) ->  | AV38: =IF(OR(J31*360>330,J31*360<30),"",1) ->  | AW38: =IF(J31*360>330,29,IF(J31*360<30,30,"")) -> 
A39: N | B39: ID | C39: D | D39: DC | E39: #79FF79 | G39: #FFFF81 | H39: M Blank Area | I39: =1-I38-I37 -> 0.7796057391 | J39: =IF(B25=FALSE,NA(),1-J38-J37) ->  | P39: 1 | Q39: G | R39: Y | S39: Y | T39: Y | U39: R | W39: 1 | X39: 2 | Y39: 3 | Z39: 4 | AA39: 5 | AB39: 6 | AC39: 7 | AD39: 8 | AE39: Hoverson, Dean | AH39: 11 | AS39: =IF(OR(E28>330,E28<30),"",29) ->  | AT39: =IF(E28>330,1,IF(E28<30,300,"")) ->  | AV39: =IF(OR(J31*360>330,J31*360<30),"",29) ->  | AW39: =IF(J31*360>330,1,IF(J31*360<30,300,"")) -> 
A40: NNW | B40: DC | C40: C | D40: OC | E40: #FFC043 | F40: 06:59:19 | H40: m Position | I40: =EW5 -> 21:51:58.921 | J40: =IF(B25=FALSE,NA(),EW4) ->  | K40: Dial for Coordinate Cross | P40: 2 | Q40: Y | R40: G | S40: Y | T40: R | U40: Y | V40: 1 | W40: G | X40: Y | Y40: Y | Z40: Y | AA40: R | AB40: Y | AC40: Y | AD40: Y | AE40: Hoverson, Gwen | AH40: 12 | AS40: =IF(OR(E28>330,E28<30),"",360-AS39-AS38-AS37-AS36) ->  | AT40: =IF(E28>330,29-AT36,IF(E28<30,29-AT36,"")) ->  | AV40: =IF(OR(J31*360>330,J31*360<30),"",360-AV39-AV38-AV37-AV36) ->  | AW40: =IF(J31*360>330,29-AW36,IF(J31*360<30,29-AW36,"")) -> 
A41: NW | B41: OC | C41: O | D41: IO | E41: #FF6D4B | F41: =TODAY() -> 2025-03-17 | I41: =IF(B26=FALSE,NA(),EW5) -> 0.9110986265 | J41: =IF(B25=FALSE,NA(),EW4) ->  | L41: Mind | M41: Emotion | N41: Physical | P41: 3 | Q41: Y | R41: Y | S41: G | T41: Y | U41: Y | V41: 2 | W41: Y | X41: G | Y41: Y | Z41: Y | AA41: Y | AB41: R | AC41: Y | AD41: Y | AE41: Hoverson, Hayden | AS41: MACRO
A42: WNW | B42: IO | C42: I | D42: ID | E42: #FFFF81 | F42: =F41+F40 -> 2025-03-17T06:59:19 | H42: m HandWidth | I42: =IF(B26=TRUE,0.012,NA()) -> 0.012 | J42: =IF(B25=FALSE,NA(),0.006) ->  | P42: 4 | Q42: Y | R42: R | S42: Y | T42: G | U42: Y | V42: 3 | W42: Y | X42: Y | Y42: G | Z42: Y | AA42: Y | AB42: Y | AC42: R | AD42: Y | AE42: Hoverson, Holten | AS42: =IF(OR(E32>330,E32<30),"",E32-30) ->  | AT42: =IF(E32>330,ABS(E32+30-360),IF(E32<30,E32,"")) ->  | AV42: =IF(OR(J36*360>330,J36*360<30),"",J36*360-30) ->  | AW42: =IF(J36*360>330,ABS(J36*360+30-360),IF(J36*360<30,J36*360,"")) -> 
A43: W | B43: ID | C43: D | D43: DC | H43: m Blank Area | I43: =1-I42-I41 -> 0.07690137349 | J43: =1-J42-J41 ->  | K43: Position | L43: =IF(IF(AJ5="LR",AE5+0.125,(1-AE5)-0.125)>1,IF(AJ5="LR",AE5+0.125,(1-AE5)-0.125)-1,IF(AJ5="LR",AE5+0.125,(1-AE5)-0.125)) -> 0.3672237974 | M43: =IF(IF(CH5="LR",CE5+0.125,(1-CE5)-0.125)>1,IF(CH5="LR",CE5+0.125,(1-CE5)-0.125)-1,IF(CH5="LR",CE5+0.125,(1-CE5)-0.125)) -> 0.3104673445 | N43: =IF(IF(ED5="LR",DY5+0.125,(1-DY5)-0.125)>1,IF(ED5="LR",DY5+0.125,(1-DY5)-0.125)-1,IF(ED5="LR",DY5+0.125,(1-DY5)-0.125)) -> 0.4639245216 | P43: 5 | Q43: R | R43: Y | S43: Y | T43: Y | U43: G | V43: 4 | W43: Y | X43: Y | Y43: Y | Z43: G | AA43: Y | AB43: Y | AC43: Y | AD43: R | AE43: Hoverson, Julie | AS43: =IF(OR(E32>330,E32<30),"",30) ->  | AT43: =IF(E32>330,300,IF(E32<30,1,"")) ->  | AV43: =IF(OR(J36*360>330,J36*360<30),"",30) ->  | AW43: =IF(J36*360>330,300,IF(J36*360<30,1,"")) -> 
A44: WSW | B44: DC | C44: C | D44: OC | G44: Phase Color | K44: Hand Width | L44: 0.009 | M44: 0.007 | N44: 0.005 | Q44: One wave is even and the other is odd | V44: 5 | W44: R | X44: Y | Y44: Y | Z44: Y | AA44: G | AB44: Y | AC44: Y | AD44: Y | AE44: Hoverson, Kara | AS44: =IF(OR(E32>330,E32<30),"",1) ->  | AT44: =IF(E32>330,29,IF(E32<30,30,"")) ->  | AV44: =IF(OR(J36*360>330,J36*360<30),"",1) ->  | AW44: =IF(J36*360>330,29,IF(J36*360<30,30,"")) -> 
A45: SW | B45: OC | C45: O | D45: IO | E45: 1 | F45: #FF0000 | H45: Red Zone | I45: Yellow Zone | J45: Green Zone | K45: Blank Area | L45: =1-L43-L44 -> 0.6237762026 | M45: =1-M43-M44 -> 0.6825326555 | N45: =1-N43-N44 -> 0.5310754784 | P45: 1 | Q45: R | R45: Y | S45: Y | T45: Y | U45: G | V45: 6 | W45: Y | X45: R | Y45: Y | Z45: Y | AA45: Y | AB45: G | AC45: Y | AD45: Y | AE45: Hoverson, Kathy | AS45: =IF(OR(E32>330,E32<30),"",29) ->  | AT45: =IF(E32>330,1,IF(E32<30,300,"")) ->  | AV45: =IF(OR(J36*360>330,J36*360<30),"",29) ->  | AW45: =IF(J36*360>330,1,IF(J36*360<30,300,"")) -> 
A46: SSW | B46: IO | C46: I | D46: ID | E46: 2 | F46: #FFC000 | G46: Mind | H46: =IF(OR(AE5<2.5%,AND(10%<AE5,AE5<15%),AND(22.5%<AE5,AE5<27.5%),AND(35%<AE5,AE5<40%),AND(47.5%<AE5,AE5<52.5%),AND(60%<AE5,AE5<65%),AND(72.5%<AE5,AE5<77.5%),AND(85%<AE5,AE5<90%),AE5>97.5%),1,"Nope ") -> 1 | I46: =IF(OR(AND(2.5%<=AE5,AE5<5%),AND(7.5%<AE5,AE5<=10%),AND(15%<=AE5,AE5<17.5%),AND(20%<AE5,AE5<=22.5%),AND(27.5%<=AE5,AE5<30%),AND(32.5%<AE5,AE5<=35%),AND(40%<=AE5,AE5<45.5%),AND(45%<AE5,AE5<=47.5%),AND(52.5%<=AE5,AE5<55%),AND(57.5%<AE5,AE5<=60%),AND(65%<=AE5,AE5<67.5%),AND(70%<AE5,AE5<=72.5%),AND(77.5%<=AE5,AE5<80%),AND(82.5%<AE5,AE5<=85%),AND(90%<=AE5,AE5<92.5%),AND(95%<AE5,AE5<=97.5%)),1,"Nope") -> Nope | J46: =IF(OR(AND(AE5>=5%,AE5<=7.5%),AND(AE5>=17.5%,AE5<=20%),AND(AE5>=30%,AE5<=32.5%),AND(AE5>=42.5%,AE5<=45%),AND(AE5>=55%,AE5<=57.5%),AND(AE5>=67.5%,AE5<=70%),AND(AE5>=80%,AE5<=82.5%),AND(AE5>=92.5%,AE5<=95%)),1,"Nope") -> Nope | P46: 2 | Q46: Y | R46: R | S46: Y | T46: G | U46: Y | V46: 7 | W46: Y | X46: Y | Y46: R | Z46: Y | AA46: Y | AB46: Y | AC46: G | AD46: Y | AE46: Hoverson, Kyle | AS46: =IF(OR(E32>330,E32<30),"",360-AS45-AS44-AS43-AS42) ->  | AT46: =IF(E32>330,29-AT42,IF(E32<30,29-AT42,"")) ->  | AV46: =IF(OR(J36*360>330,J36*360<30),"",360-AV45-AV44-AV43-AV42) ->  | AW46: =IF(J36*360>330,29-AW42,IF(J36*360<30,29-AW42,"")) -> 
A47: S | B47: ID | C47: D | D47: DC | E47: 3 | F47: #FFFF00 | G47: Emo | H47: =IF(OR(CE5<2.5%,AND(10%<CE5,CE5<15%),AND(22.5%<CE5,CE5<27.5%),AND(35%<CE5,CE5<40%),AND(47.5%<CE5,CE5<52.5%),AND(60%<CE5,CE5<65%),AND(72.5%<CE5,CE5<77.5%),AND(85%<CE5,CE5<90%),CE5>97.5%),1,"Nope ") -> Nope | I47: =IF(OR(AND(2.5%<=CE5,CE5<5%),AND(7.5%<CE5,CE5<=10%),AND(15%<=CE5,CE5<17.5%),AND(20%<CE5,CE5<=22.5%),AND(27.5%<=CE5,CE5<30%),AND(32.5%<CE5,CE5<=35%),AND(40%<=CE5,CE5<45.5%),AND(45%<CE5,CE5<=47.5%),AND(52.5%<=CE5,CE5<55%),AND(57.5%<CE5,CE5<=60%),AND(65%<=CE5,CE5<67.5%),AND(70%<CE5,CE5<=72.5%),AND(77.5%<=CE5,CE5<80%),AND(82.5%<CE5,CE5<=85%),AND(90%<=CE5,CE5<92.5%),AND(95%<CE5,CE5<=97.5%)),1,"Nope") -> Nope | J47: =IF(OR(AND(CE5>=5%,CE5<=7.5%),AND(CE5>=17.5%,CE5<=20%),AND(CE5>=30%,CE5<=32.5%),AND(CE5>=42.5%,CE5<=45%),AND(CE5>=55%,CE5<=57.5%),AND(CE5>=67.5%,CE5<=70%),AND(CE5>=80%,CE5<=82.5%),AND(CE5>=92.5%,CE5<=95%)),1,"Nope") -> 1 | P47: 3 | Q47: Y | R47: Y | S47: G | T47: Y | U47: Y | V47: 8 | W47: Y | X47: Y | Y47: Y | Z47: R | AA47: Y | AB47: Y | AC47: Y | AD47: G | AE47: Hoverson, Loree | AS47: micro
A48: SSE | B48: DC | C48: C | D48: OC | E48: 4 | F48: #00FF00 | G48: Phy | H48: =IF(OR(DY5<2.5%,AND(10%<DY5,DY5<15%),AND(22.5%<DY5,DY5<27.5%),AND(35%<DY5,DY5<40%),AND(47.5%<DY5,DY5<52.5%),AND(60%<DY5,DY5<65%),AND(72.5%<DY5,DY5<77.5%),AND(85%<DY5,DY5<90%),DY5>97.5%),1,"Nope ") -> Nope | I48: =IF(OR(AND(2.5%<=DY5,DY5<5%),AND(7.5%<DY5,DY5<=10%),AND(15%<=DY5,DY5<17.5%),AND(20%<DY5,DY5<=22.5%),AND(27.5%<=DY5,DY5<30%),AND(32.5%<DY5,DY5<=35%),AND(40%<=DY5,DY5<45.5%),AND(45%<DY5,DY5<=47.5%),AND(52.5%<=DY5,DY5<55%),AND(57.5%<DY5,DY5<=60%),AND(65%<=DY5,DY5<67.5%),AND(70%<DY5,DY5<=72.5%),AND(77.5%<=DY5,DY5<80%),AND(82.5%<DY5,DY5<=85%),AND(90%<=DY5,DY5<92.5%),AND(95%<DY5,DY5<=97.5%)),1,"Nope") -> 1 | J48: =IF(OR(AND(DY5>=5%,DY5<=7.5%),AND(DY5>=17.5%,DY5<=20%),AND(DY5>=30%,DY5<=32.5%),AND(DY5>=42.5%,DY5<=45%),AND(DY5>=55%,DY5<=57.5%),AND(DY5>=67.5%,DY5<=70%),AND(DY5>=80%,DY5<=82.5%),AND(DY5>=92.5%,DY5<=95%)),1,"Nope") -> Nope | P48: 4 | Q48: Y | R48: G | S48: Y | T48: R | U48: Y | AE48: Hoverson, Randy | AS48: =IF(OR(E35>330,E35<30),"",E35-30) ->  | AT48: =IF(E35>330,ABS(E35+30-360),IF(E35<30,E35,"")) ->  | AV48: =IF(OR(J40*360>330,J40*360<30),"",J40*360-30) ->  | AW48: =IF(J40*360>330,ABS(J40*360+30-360),IF(J40*360<30,J40*360,"")) -> 
A49: SE | B49: OC | C49: O | D49: IO | E49: 5 | F49: #00B0F0 | G49: ⇄⇉⇇⇆↺↻↶↷⇖⇙⇒⇐⇓⇑⇊⇈⇗⇘⇜⇝⇨⇦⇚⇛⇧⇩⇱⇲▼●▲◍◀▶▷◁◄►◅▻◂▸◃▹♂♀ | P49: 5 | Q49: G | R49: Y | S49: Y | T49: Y | U49: R | AE49: Hoverson, Ryan | AS49: =IF(OR(E35>330,E35<30),"",30) ->  | AT49: =IF(E35>330,300,IF(E35<30,1,"")) ->  | AV49: =IF(OR(J40*360>330,J40*360<30),"",30) ->  | AW49: =IF(J40*360>330,300,IF(J40*360<30,1,"")) -> 
A50: ESE | B50: IO | C50: I | D50: ID | E50: 6 | F50: #0070C0 | H50: Phase buttons | M50: Micro Awareness | U50: Check Boxes on Dashboard | AE50: Hoverson, Tara | AS50: =IF(OR(E35>330,E35<30),"",1) ->  | AT50: =IF(E35>330,29,IF(E35<30,30,"")) ->  | AV50: =IF(OR(J40*360>330,J40*360<30),"",1) ->  | AW50: =IF(J40*360>330,29,IF(J40*360<30,30,"")) -> 
A51: E | B51: ID | C51: D | D51: DC | E51: 7 | F51: #E52FF9 | I51: Previous Emo Phase Start | J51: Current EMO Phase Start | K51: Next EMO Phase Start | L51: Length of EMO Phase (hrs) | M51: 0 | N51: 0 | O51: 06:00:00 | P51: 7-7 | R51: 06:00:00 | S51: 8-8 | U51: Macro Data: | W51: TRUE | X51: To show Average Average Line on Shareable/Simple Page | Z51: FALSE | AE51: Hoverson, Trey | AS51: =IF(OR(E35>330,E35<30),"",29) ->  | AT51: =IF(E35>330,1,IF(E35<30,300,"")) ->  | AV51: =IF(OR(J40*360>330,J40*360<30),"",29) ->  | AW51: =IF(J40*360>330,1,IF(J40*360<30,300,"")) -> 
A52: ENE | B52: DC | C52: C | D52: OC | E52: 8 | F52: #E52FF9 | H52: Date and Time | I52: =(CA5+CC5*((VLOOKUP(CE5,A66:D105,4,TRUE)-2)*0.025))+1/86400 -> 2025-03-17T04:33:22.536 | J52: =(CA5+CC5*((VLOOKUP(CE5,A66:D105,4,TRUE)-1)*0.025))+1/86400 -> 2025-03-17T08:22:11.929 | K52: =(CA5+CC5*((VLOOKUP(CE5,A66:D105,4,TRUE))*0.025))+1/86400 -> 2025-03-17T12:11:01.321 | L52: =(CC5/40)*24 -> 3.813720238 | M52: 1 | N52: =M52/48 -> 0.02083333333 | O52: 06:30:00 | P52: 8-7 | R52: 05:30:00 | S52: 8-7 | T52: Next | U52: Micro Data: | W52: TRUE | X52: To Show PHY/EMO Separation | Z52: TRUE | AE52: Hoverson, Wendy | AS52: =IF(OR(E35>330,E35<30),"",360-AS51-AS50-AS49-AS48) ->  | AT52: =IF(E35>330,29-AT48,IF(E35<30,29-AT48,"")) ->  | AV52: =IF(OR(J40*360>330,J40*360<30),"",360-AV51-AV50-AV49-AV48) ->  | AW52: =IF(J40*360>330,29-AW48,IF(J40*360<30,29-AW48,"")) -> 
A53: NE | B53: OC | C53: O | D53: IO | H53: date | I53: =INT(I52) -> 2025-03-17 | J53: =INT(J52) -> 2025-03-17 | K53: =INT(K52) -> 2025-03-17 | M53: 2 | N53: =M53/48 -> 0.04166666667 | O53: 07:00:00 | P53: 8-6 | Q53: Next | R53: 05:00:00 | S53: 8-6 | U53: Average Data | W53: TRUE | X53: to show EMO jumps / steps | Z53: TRUE | AE53: Ivy, C.J.
A54: NNE | B54: IO | C54: I | D54: ID | F54: #F78D8D | H54: Time | I54: =I52-I53 -> 04:33:22.536 | J54: =J52-J53 -> 08:22:11.929 | K54: =K52-K53 -> 12:11:01.321 | M54: 3 | N54: =M54/48 -> 0.0625 | O54: 07:30:00 | P54: 8-5 | R54: 04:30:00 | S54: 8-5 | T54: Next | U54: Mental | V54: FALSE | W54: =IF(V54=TRUE,"M","") ->  | X54: to show average line | Z54: TRUE | AE54: Ivy, Marc
A55: Find Shape | I55: Previous Phy Phase Start | J55: Current Phy Phase Start | K55: Next Phy Phase Start | L55: Lenth of Phy Phase (min) | M55: 4 | N55: 0.08333333333 | O55: 08:00:00 | P55: 8-4 | Q55: Next | R55: 04:00:00 | S55: 8-4 | U55: Emotional | V55: FALSE | W55: =IF(V55=TRUE,"E","") ->  | X55: to show Average Trend Line | Z55: TRUE | AE55: Jackmack, Robin
A56: Icosahedron | B56: I | D56: World | E56: Mother | F56: 1 | H56: Date and Time | I56: =(DU5+DW5*((VLOOKUP(DY5,A66:D105,4,TRUE)-2)*0.025))+1/86400 -> 2025-03-17T10:07:48.571 | J56: =(DU5+DW5*((VLOOKUP(DY5,A66:D105,4,TRUE)-1)*0.025))+1/86400 -> 2025-03-17T10:25:24.679 | K56: =(DU5+DW5*((VLOOKUP(DY5,A66:D105,4,TRUE))*0.025))+1/86400 -> 2025-03-17T10:43:00.786 | L56: =(DW5/40)*24*60 -> 17.60178571 | M56: 5 | N56: 0.1041666667 | O56: 08:30:00 | P56: 8-3 | R56: 03:30:00 | S56: 8-3 | T56: Next | U56: Pysical | V56: TRUE | W56: =IF(V56=TRUE,"P","") -> P | X56: to show emo step times on linear graph or phy peaks | Z56: FALSE | AE56: Lee, Jac
A57: Dodecahedron | B57: D | D57: Nation | E57: Father | F57: 3 | G57: =INDEX($C$56:$C$63,MATCH($G$58,$B$56:$B$63,0)) -> 0 | H57: Date | I57: =INT(I56) -> 2025-03-17 | J57: =INT(J56) -> 2025-03-17 | K57: =INT(K56) -> 2025-03-17 | M57: 6 | N57: 0.125 | O57: 09:00:00 | P57: 1-1 | R57: 03:00:00 | S57: 8-2 | U57: Strength of event | W57: 3 | X57: Toggle Labesl on Dials | Z57: TRUE | AE57: Mccollaum, Marc
A58: Octahedron | B58: O | D58: Family | E58: Daughter | F58: 7 | G58: D | H58: Time | I58: =I56-I57 -> 10:07:48.571 | J58: =J56-J57 -> 10:25:24.679 | K58: =K56-K57 -> 10:43:00.786 | M58: 7 | N58: 0.1458333333 | O58: 09:30:00 | P58: 1-2 | Q58: Next | R58: 02:30:00 | S58: 1-2 | U58: For Basic Awarness Page | Z58: =IF(Z57=TRUE,"Mother","") -> Mother | AE58: Mccollaum, Monica
A59: cube | B59: C | D59: Individual | E59: Son | F59: 5 | I59: Previous Mind Phase | J59: Current Mind Phase | K59: Next Mind Phase | L59: Length of Mind Phase (Days) | M59: 8 | N59: 0.1666666667 | O59: 10:00:00 | P59: 1-3 | R59: 02:00:00 | S59: 1-3 | T59: Next | U59: 1=Space,2=Time,3=Combo | V59: 3 | Z59: =IF(Z57=TRUE,"Father","") -> Father | AE59: McFadden, Daniel
A60: Icosahedron & Dodecahedron | B60: ID | F60: 2 | H60: Date and Time | I60: =VLOOKUP(AE5-0.025,A117:D158,4,TRUE)+1/86400 -> 2025-03-02T09:52:49 | J60: =VLOOKUP(AE5,A117:D158,4,TRUE)+1/86400 -> 2025-03-11T07:26:55 | K60: =VLOOKUP(AE5+0.025,A117:D159,4,TRUE)+1/86400 -> 2025-03-20T05:01:01 | L60: =K60-J60 -> 8.898680556 | M60: 9 | N60: 0.1875 | O60: 10:30:00 | P60: 1-4 | Q60: Next | R60: 01:30:00 | S60: 1-4 | U60: Macro Data: | V60: TRUE | Z60: =IF(Z57=TRUE,"Daughter","") -> Daughter | AE60: McFadden, Kevin
A61: Octahedron & Icosahedron | B61: IO | F61: 8 | H61: Date | I61: =INT(I60) -> 2025-03-02 | J61: =INT(J60) -> 2025-03-11 | K61: =INT(K60) -> 2025-03-20 | M61: 10 | N61: 0.2083333333 | O61: 11:00:00 | P61: 1-5 | R61: 01:00:00 | S61: 1-5 | T61: Next | U61: Micro Data: | V61: TRUE | Z61: =IF(Z57=TRUE,"Son","") -> Son | AE61: Musk, Elon
A62: Dodecahedron & Cube | B62: DC | F62: 4 | H62: Time | I62: =I60-I61 -> 09:52:49 | J62: =J60-J61 -> 07:26:55 | K62: 05:01:01 | M62: 11 | N62: 0.2291666667 | O62: 11:30:00 | P62: 1-6 | Q62: Next | R62: 00:30:00 | S62: 1-6 | U62: Average Data | V62: TRUE | Z62: =IF(Z57=TRUE,"World","") -> World | AE62: Naul, Bryan
A63: Cube & Octahedron | B63: OC | F63: 6 | M63: 12 | N63: =M63/48 -> 0.25 | O63: 12:00:00 | P63: 1-7 | R63: 00:00:00 | S63: 2-8 | U63: Used for "Boosted" check mark on dashboard | Z63: =IF(Z57=TRUE,"Nation","") -> Nation | AE63: Network, Murphy
A64: Phase Number | M64: 13 | N64: =M64/48 -> 0.2708333333 | O64: 12:30:00 | P64: 2-7 | R64: 23:30:00 | S64: 2-7 | T64: Next | U64: Physical | V64: FALSE | W64: =IF(V64=TRUE,"CNS","TIME") -> TIME | Z64: =IF(Z57=TRUE,"Family","") -> Family | AE64: Paul, Dr
A65: % into wave | B65: Color | C65: Phase | D65: Phase Mulitiply | E65: Now Functions | H65: Wave Buttons | M65: 14 | N65: 0.2916666667 | O65: 13:00:00 | P65: 2-6 | Q65: Next | R65: 23:00:00 | S65: 2-6 | U65: Emotional | V65: FALSE | W65: =IF(V65=TRUE,"CNS","TIME") -> TIME | Z65: =IF(Z57=TRUE,"Individual","") -> Individual | AE65: Saxberg, John
A66: 0 | B66: red | C66: 1 | D66: 1 | F66: =NOW() -> 2025-03-17T10:35:11.910 | I66: Previous Emo Wave | J66: Current Emo Wave | K66: Next Emo Wave | L66: Length of Emo Wave (hrs) | M66: 15 | N66: 0.3125 | O66: 13:30:00 | P66: 2-5 | R66: 22:30:00 | S66: 2-5 | T66: Next | U66: Mental | V66: FALSE | W66: =IF(V66=TRUE,"CNS","TIME") -> TIME | Z66: =IF(Z57=TRUE,"W+","") -> W+ | AE66: Saxberg, Karol
A67: 0.025 | B67: yellow | C67: 2 | D67: 2 | E67: Date | F67: =DATEVALUE(TEXT(F66,"MM-DD-YYYY")) -> 45733 | H67: Date and Time | I67: =(J67-CC5*0.125)+1/86400 -> 2025-03-16T05:40:27.179 | J67: =(CA5+CC5*FLOOR(CE5,0.125))+1/86400 -> 2025-03-17T00:44:33.143 | K67: =(CA5+CC5*CEILING(CE5,0.125))+1/86400 -> 2025-03-17T19:48:40.107 | L67: =(CC5*0.125)*24 -> 19.06860119 | M67: 16 | N67: 0.3333333333 | O67: 14:00:00 | P67: 2-4 | Q67: Next | R67: 22:00:00 | S67: 2-4 | U67: used to swtich large graphs y-axis | V67: =IF(V59=1,"180 -",IF(V59=2,"12:00 -","100%")) -> 100% | Z67: =IF(Z57=TRUE,"W-","") -> W- | AE67: SC, Andrea
A68: 0.05 | B68: green | C68: 3 | D68: 3 | E68: Time | F68: =TIMEVALUE(TEXT(F66,"HH:MM")) -> 0.4409722222 | H68: Date | I68: =INT(I67) -> 2025-03-16 | J68: =INT(J67) -> 2025-03-17 | K68: 2025-03-17 | M68: 17 | N68: 0.3541666667 | O68: 14:30:00 | P68: 2-3 | R68: 21:30:00 | S68: 2-3 | T68: Next | V68: =IF(V59=1,"135 -",IF(V59=2,"9:00 -","75%")) -> 75% | Z68: =IF(Z57=TRUE,"S+","") -> S+ | AE68: Schultz, Amy
A69: 0.075 | B69: yellow | C69: 4 | D69: 4 | H69: Time | I69: =I67-I68 -> 05:40:27.179 | J69: =J67-J68 -> 00:44:33.143 | K69: 19:48:40.107 | M69: 18 | N69: 0.375 | O69: 15:00:00 | P69: 3-1 | R69: 21:00:00 | S69: 2-2 | V69: =IF(V59=1,"90 -",IF(V59=2,"6:00 -","50%")) -> 50% | Z69: =IF(Z57=TRUE,"S-","") -> S- | AE69: Schultz, Caleb
A70: 0.1 | B70: red | C70: 5 | D70: 5 | E70: Mind Waves | I70: Previous Phy Wave | J70: Current PHY Wave | K70: Next Phy Wave | L70: Length of Phy Wave (min) | M70: 19 | N70: 0.3958333333 | O70: 15:30:00 | P70: 3-2 | Q70: Next | R70: 20:30:00 | S70: 3-2 | V70: =IF(V59=1,"45 -",IF(V59=2,"3:00 -","25%")) -> 25% | Z70: #B0D498 | AB70: #FFDE75 | AD70: #FFC38F | AE70: Schultz, Isaac | AF70: #FFA7A9
A71: 0.125 | B71: red | C71: 1 | D71: 6 | E71: fall | F71: -0.25 | G71: =M18 -> 2024-09-22T08:43:00 | H71: Date and Time | I71: =J71-DW5*0.125 -> 2025-03-17T08:04:35.821 | J71: =(DU5+DW5*FLOOR(DY5,0.125))+1/86400 -> 2025-03-17T09:32:36.357 | K71: =(DU5+DW5*CEILING(DY5,0.125))+1/86400 -> 2025-03-17T11:00:36.893 | L71: =DW5*0.125*24*60 -> 88.00892857 | M71: 20 | N71: 0.4166666667 | O71: 16:00:00 | P71: 3-3 | R71: 20:00:00 | S71: 3-3 | T71: Next | V71: =IF(V59=1,"Offset in Degrees",IF(V59=2,"Offset in Hours","In Percentage")) -> In Percentage | AE71: Schultz, Scott
A72: 0.15 | B72: yellow | C72: 2 | D72: 7 | E72: =N18 -> 89.85902778 | F72: -0.125 | G72: =G71+E72*0.5 -> 2024-11-06T07:01:30 | H72: Date | I72: =INT(I71) -> 2025-03-17 | J72: =INT(J71) -> 2025-03-17 | K72: 2025-03-17 | M72: 21 | N72: 0.4375 | O72: 16:30:00 | P72: 3-4 | Q72: Next | R72: 19:30:00 | S72: 3-4 | U72: Basic Thought Grade | V72: 2 | W72: ="" ->  | AE72: Selig, Jeff
A73: 0.175 | B73: green | C73: 3 | D73: 8 | E73: Winter | F73: 0 | G73: =M19 -> 2024-12-21T05:20:00 | H73: Time | I73: =I71-I72 -> 08:04:35.821 | J73: =J71-J72 -> 09:32:36.357 | K73: 11:00:36.893 | M73: 22 | N73: 0.4583333333 | O73: 17:00:00 | P73: 3-5 | R73: 19:00:00 | S73: 3-5 | T73: Next | U73: Adv Thought Grade | V73: 4 | W73: =V73 -> 4 | AE73: Selig, Jeremy
A74: 0.2 | B74: yellow | C74: 4 | D74: 9 | E74: =N19 -> 88.98680556 | F74: 0.125 | G74: =G73+E74*0.5 -> 2025-02-03T17:10:30 | I74: Previous Mind Wave | J74: Current Mind Wave | K74: Next Mind Wave | L74: length of Mind Wave (days) | M74: 23 | N74: 0.4791666667 | O74: 17:30:00 | P74: 3-6 | Q74: Next | R74: 18:30:00 | S74: 3-6 | AE74: Selig, Linda
A75: 0.225 | B75: red | C75: 5 | D75: 10 | E75: Spring | F75: 0.25 | G75: =M20 -> 2025-03-20T05:01:00 | H75: Date and Time | I75: =VLOOKUP(FLOOR(AE5,0.125)-0.125,F72:G82,2)+1/86400 -> 2024-12-21T05:20:01 | J75: =VLOOKUP(FLOOR(AE5,0.125),F72:G82,2)+1/86400 -> 2025-02-03T17:10:31 | K75: =VLOOKUP(CEILING(AE5+1/86400,0.125),F72:G82,2)+1/86400 -> 2025-03-20T05:01:01 | L75: =K75-J75 -> 44.49340278 | M75: 24 | N75: 0.5 | O75: 18:00:00 | P75: 3-7 | R75: 18:00:00 | S75: 4-8 | U75: For Speedo Graphs on Basic Page | AE75: Selig, Madilyn
A76: 0.25 | B76: red | C76: 1 | D76: 11 | E76: =N20 -> 92.73680556 | F76: 0.375 | G76: =G75+E76*0.5 -> 2025-05-05T13:51:30 | H76: Date | I76: =INT(I75) -> 2024-12-21 | J76: =INT(J75) -> 2025-02-03 | K76: 2025-03-20 | M76: 25 | N76: 0.5208333333 | O76: 18:30:00 | P76: 4-7 | R76: 17:30:00 | S76: 4-7 | T76: Next | U76: Red | V76: 25 | AE76: Selig, Max
A77: 0.275 | B77: yellow | C77: 2 | D77: 12 | E77: Summer | F77: 0.5 | G77: =M21 -> 2025-06-20T22:42:00 | H77: Time | I77: =I75-I76 -> 05:20:01 | J77: =J75-J76 -> 17:10:31 | K77: 05:01:01 | M77: 26 | N77: 0.5416666667 | O77: 19:00:00 | P77: 4-6 | Q77: Next | R77: 17:00:00 | S77: 4-6 | U77: Yello | V77: 50 | AE77: Semach, Dawn
A78: 0.3 | B78: green | C78: 3 | D78: 13 | E78: =N21 -> 93.65069444 | F78: 0.625 | G78: =G77+E78*0.5 -> 2025-08-06T18:30:30 | H78: MICRO Awarness Buttons | M78: 27 | N78: 0.5625 | O78: 19:30:00 | P78: 4-5 | R78: 16:30:00 | S78: 4-5 | T78: Next | U78: Green | V78: 25 | AE78: Semach, Marc
A79: 0.325 | B79: yellow | C79: 4 | D79: 14 | E79: Fall | F79: 0.75 | G79: =M22 -> 2025-09-22T14:19:00 | I79: Previous Phy MICRO | J79: Current Phy MICRO | K79: Next Phy MICRO | L79: Length Of Phy Micro | M79: 28 | N79: 0.5833333333 | O79: 20:00:00 | P79: 4-4 | Q79: Next | R79: 16:00:00 | S79: 4-4 | U79: Ommitted | V79: 100 | AE79: Semach, Marc (sister)
A80: 0.35 | B80: red | C80: 5 | D80: 15 | E80: =N22 -> 89.86388889 | F80: 0.875 | G80: =G79+E80*0.5 -> 2025-11-06T12:41:00 | H80: Date and Time | I80: =CEILING(J80-DW5*100/48/100,"0:00:01") -> 2025-03-17T10:16:36 | J80: =CEILING((DU5+DW5*FLOOR(DY5,100/48/100)),"0:00:01") -> 2025-03-17T10:31:16 | K80: =CEILING(J80+DW5*100/48/100,"0:00:01") -> 2025-03-17T10:45:57 | L80: =K80-J80 -> 0.01019675926 | M80: 29 | N80: 0.6041666667 | O80: 20:30:00 | P80: 4-3 | R80: 15:30:00 | S80: 4-3 | T80: Next | V80: 200 | AE80: St, Tatiana
A81: 0.375 | B81: red | C81: 1 | D81: 16 | E81: Winter | F81: 1 | G81: =M23 -> 2025-12-21T11:03:00 | H81: Date | I81: =INT(I80) -> 2025-03-17 | J81: =INT(J80) -> 2025-03-17 | K81: 2025-03-17 | M81: 30 | N81: 0.625 | O81: 21:00:00 | P81: 5-1 | R81: 15:00:00 | S81: 4-2 | V81: MENTAL | X81: EMOTIONAL | Z81: PHYSICAL | AE81: Trump, Donald
A82: 0.4 | B82: yellow | C82: 2 | D82: 17 | E82: =N23 -> 88.9875 | F82: 1.125 | G82: =G81+E82*0.5 -> 2026-02-03T22:54:00 | H82: Time | I82: =I80-I81 -> 10:16:36 | J82: =J80-J81 -> 10:31:16 | K82: 10:45:57 | M82: 31 | N82: 0.6458333333 | O82: 21:30:00 | P82: 5-2 | Q82: Next | R82: 14:30:00 | S82: 5-2 | U82: Actual | V82: =50+(V100+V102)*(50/13) -> 50 | W82: =50+(W100+W102)*(50/13) -> 38.46153846 | X82: =50+(X100+X102)*(50/13) -> 50 | Y82: =50+(Y100+Y102)*(50/13) -> 38.46153846 | Z82: 30.76923077 | AA82: 46.15384615 | AE82: Uribe, Andrea
A83: 0.425 | B83: green | C83: 3 | D83: 18 | I83: Previous Emo MICRO | J83: Current Emo MICRO | K83: Next Emo MICRO | M83: 32 | N83: 0.6666666667 | O83: 22:00:00 | P83: 5-3 | R83: 14:00:00 | S83: 5-3 | T83: Next | U83: Needle | V83: 1 | W83: 0.5 | X83: 1 | Y83: 0.5 | Z83: 1 | AA83: 0.5 | AE83: Whitfield, Ann
A84: 0.45 | B84: yellow | C84: 4 | D84: 19 | E84: N | F84: 360 | G84: =F84-11.25 -> 348.75 | H84: Date and Time | I84: =CEILING(J84-CC5*100/48/100,"0:00:01") -> 2025-03-17T07:05:55 | J84: =CEILING((CA5+CC5*FLOOR(CE5,100/48/100)),"0:00:01") -> 2025-03-17T10:16:36 | K84: =CEILING(J84+CC5*100/48/100,"0:00:01") -> 2025-03-17T13:27:18 | L84: =K84-J84 -> 0.1324305556 | M84: 33 | N84: 0.6875 | O84: 22:30:00 | P84: 5-4 | Q84: Next | R84: 13:30:00 | S84: 5-4 | U84: Balance | V84: =V85-V83-V82 -> 149 | W84: =W85-W83-W82 -> 161.0384615 | X84: =X85-X82-X83 -> 149 | Y84: =Y85-Y83-Y82 -> 161.0384615 | Z84: =Z85-Z83-Z82 -> 168.2307692 | AA84: =AA85-AA83-AA82 -> 153.3461538 | AE84: Williams, Jeannie
A85: 0.475 | B85: red | C85: 5 | D85: 20 | E85: NNE | F85: 22.5 | G85: 11.25 | H85: Date | I85: =INT(I84) -> 2025-03-17 | J85: =INT(J84) -> 2025-03-17 | K85: 2025-03-17 | M85: 34 | N85: 0.7083333333 | O85: 23:00:00 | P85: 5-5 | R85: 13:00:00 | S85: 5-5 | T85: Next | U85: total | V85: 200 | W85: 200 | X85: 200 | Y85: 200 | Z85: 200 | AA85: 200 | AE85: Williams, Kurt
A86: 0.5 | B86: red | C86: 1 | D86: 21 | E86: NE | F86: 45 | G86: 33.75 | H86: Time | I86: =I84-I85 -> 07:05:55 | J86: =J84-J85 -> 10:16:36 | K86: 13:27:18 | M86: 35 | N86: 0.7291666667 | O86: 23:30:00 | P86: 5-6 | Q86: Next | R86: 12:30:00 | S86: 5-6 | U86: FEELOMETER | V86: MACRO | W86: Micro | X86: MACRO | Y86: Micro | Z86: MACRO | AA86: MICRO
A87: 0.525 | B87: yellow | C87: 2 | D87: 22 | E87: ENE | F87: 67.5 | G87: 56.25 | I87: Previous Mind MICRO | J87: Current Mind MICRO | K87: Next Mind MICRO | M87: 36 | N87: 0.75 | O87: 1 | P87: 5-7 | R87: 12:00:00 | S87: 6-8 | U87: Degree Offset | V87: =IF(N11<45,"G",IF(N11>135,"R","Y")) -> Y | W87: =IF(BE11<45,"G",IF(BE11>135,"R","Y")) -> G | X87: =IF(BL11<45,"G",IF(BL11>135,"R","Y")) -> G | Y87: =IF(DC11<45,"G",IF(DC11>135,"R","Y")) -> Y | Z87: =IF(DF11<45,"G",IF(DF11>135,"R","Y")) -> Y | AA87: =IF(EY11<45,"G",IF(EY11>135,"R","Y")) -> Y
A88: 0.55 | B88: green | C88: 3 | D88: 23 | E88: E | F88: 90 | G88: 78.75 | H88: Date and Time | I88: =VLOOKUP(AE5-100/48/100,E108:H169,4)+1/86400 -> 2025-03-05T09:04:11 | J88: =CEILING(VLOOKUP(AE5,E108:H169,4),"0:00:01") -> 2025-03-12T19:02:35 | K88: =VLOOKUP(AE5+100/48/100,E108:H169,4)+1/86400 -> 2025-03-20T05:01:01 | L88: =K88-J88 -> 7.415578704 | M88: 37 | N88: 0.7708333333 | O88: 1.020833333 | P88: 6-7 | R88: 11:30:00 | S88: 6-7 | T88: Next | U88: Time Offset | V88: =IF(AS10<0.125,"G",IF(AS10>0.375,"R","Y")) -> R | W88: =IF(BC10<0.125,"G",IF(BC10>0.375,"R","Y")) -> Y | X88: =IF(CQ10<0.125,"G",IF(CQ10>0.375,"R","Y")) -> R | Y88: =IF(DA10<0.125,"G",IF(DA10>0.375,"R","Y")) -> Y | Z88: =IF(EM10<0.125,"G",IF(EM10>0.375,"R","Y")) -> G | AA88: =IF(EW10<0.125,"G",IF(EW10>0.375,"R","Y")) -> G
A89: 0.575 | B89: yellow | C89: 4 | D89: 24 | E89: ESE | F89: 112.5 | G89: 101.25 | H89: Date | I89: =INT(I88) -> 2025-03-05 | J89: =INT(J88) -> 2025-03-12 | K89: 2025-03-20 | M89: 38 | N89: 0.7916666667 | O89: 1.041666667 | P89: 6-6 | Q89: Next | R89: 11:00:00 | S89: 6-6 | U89: Space Quadrant | V89: =O11 -> Y | W89: =BF11 -> G | X89: =BM11 -> G | Y89: =DD11 -> Y | Z89: =DG11 -> G | AA89: =EZ11 -> Y
A90: 0.6 | B90: red | C90: 5 | D90: 25 | E90: SE | F90: 135 | G90: 123.75 | H90: Time | I90: =I88-I89 -> 09:04:11 | J90: =J88-J89 -> 19:02:35 | K90: 05:01:01 | M90: 39 | N90: 0.8125 | O90: 1.0625 | P90: 6-5 | R90: 10:30:00 | S90: 6-5 | T90: Next | U90: Space Shape | V90: =Q11 -> Y | W90: =BD11 -> Y | X90: =BO11 -> Y | Y90: =DB11 -> G | Z90: =DI11 -> R | AA90: =EX11 -> Y
A91: 0.625 | B91: red | C91: 1 | D91: 26 | E91: SSE | F91: 157.5 | G91: 146.25 | M91: 40 | N91: 0.8333333333 | O91: 1.083333333 | P91: 6-4 | Q91: Next | R91: 10:00:00 | S91: 6-4 | U91: Time Shape | V91: =AQ11 -> R | W91: =BA11 -> Y | X91: =CO11 -> Y | Y91: =CY11 -> G | Z91: =EK11 -> Y | AA91: =EU11 -> Y
A92: 0.65 | B92: yellow | C92: 2 | D92: 27 | E92: S | F92: 180 | G92: 168.75 | M92: 41 | N92: 0.8541666667 | O92: 1.104166667 | P92: 6-3 | R92: 09:30:00 | S92: 6-3 | T92: Next | U92: Wave | V92: =S11 -> Y | W92: =T11 -> Y | X92: =BS11 -> Y | Y92: =BT11 -> Y | Z92: =DM11 -> G | AA92: =DN11 -> Y
A93: 0.675 | B93: green | C93: 3 | D93: 28 | E93: SSW | F93: 202.5 | G93: 191.25 | M93: 42 | N93: 0.875 | O93: 1.125 | P93: 7-1 | R93: 09:00:00 | S93: 6-2 | U93: Phase | V93: =U11 -> G | W93: =Y11 -> Y | X93: =BU11 -> R | Y93: =BY11 -> G | Z93: =DO11 -> Y | AA93: =DS11 -> Y
A94: 0.7 | B94: yellow | C94: 4 | D94: 29 | E94: SW | F94: 225 | G94: 213.75 | M94: 43 | N94: 0.8958333333 | O94: 1.145833333 | P94: 7-2 | Q94: Next | R94: 08:30:00 | S94: 7-2 | U94: Direction | V94: =AL11 -> Y | W94: =AV11 -> Y | X94: =CJ11 -> R | Y94: =CT11 -> Y | Z94: =EF11 -> G | AA94: =EP11 -> R
A95: 0.725 | B95: red | C95: 5 | D95: 30 | E95: WSW | F95: 247.5 | G95: 236.25 | M95: 44 | N95: 0.9166666667 | O95: 1.166666667 | P95: 7-3 | R95: 08:00:00 | S95: 7-3 | T95: Next | U95: Orbit | V95: =AN11 -> G | W95: =AX11 -> G | X95: =CL11 -> Y | Y95: =CV11 -> Y | Z95: =EH11 -> Y | AA95: =ER11 -> Y
A96: 0.75 | B96: red | C96: 1 | D96: 31 | E96: W | F96: 270 | G96: 258.75 | M96: 45 | N96: 0.9375 | O96: 1.1875 | P96: 7-4 | Q96: Next | R96: 07:30:00 | S96: 7-4 | U96: Rotaion | V96: =AM11 -> G | W96: =AW11 -> G | X96: =CK11 -> G | Y96: =CU11 -> R | Z96: =EG11 -> G | AA96: =EQ11 -> G
A97: 0.775 | B97: yellow | C97: 2 | D97: 32 | E97: WNW | F97: 292.5 | G97: 281.25 | M97: 46 | N97: 0.9583333333 | O97: 1.208333333 | P97: 7-5 | R97: 07:00:00 | S97: 7-5 | T97: Next | U97: Polartiy | V97: =AO11 -> Y | W97: =AY11 -> Y | X97: =CM11 -> Y | Y97: =CW11 -> G | Z97: =EI11 -> Y | AA97: =ES11 -> Y
A98: 0.8 | B98: green | C98: 3 | D98: 33 | E98: NW | F98: 315 | G98: 303.75 | M98: 47 | N98: 0.9791666667 | O98: 1.229166667 | P98: 7-6 | Q98: Next | R98: 06:30:00 | S98: 7-6 | U98: zone | V98: =AP11 -> R | W98: =AZ11 -> R | X98: =CN11 -> Y | Y98: =CX11 -> Y | Z98: =EJ11 -> Y | AA98: =ET11 -> Y
A99: 0.825 | B99: yellow | C99: 4 | D99: 34 | E99: NNW | F99: 337.5 | G99: 326.25 | U99: Time Quadrant | V99: =AR11 -> Y | W99: =BB11 -> Y | X99: =CP11 -> Y | Y99: =CZ11 -> Y | Z99: =EL11 -> G | AA99: =EV11 -> Y
A100: 0.85 | B100: red | C100: 5 | D100: 35 | U100: Total R | V100: =COUNTIF(V87:V99,"R") -> 3 | W100: =COUNTIF(W87:W99,"R") -> 1 | X100: =COUNTIF(X87:X99,"R") -> 3 | Y100: 1 | Z100: 1 | AA100: 1
A101: 0.875 | B101: red | C101: 1 | D101: 36 | U101: Total Y | V101: =COUNTIF(V87:V99,"Y") -> 7 | W101: =COUNTIF(W87:W99,"Y") -> 8 | X101: 7 | Y101: 8 | Z101: 6 | AA101: 10
A102: 0.9 | B102: yellow | C102: 2 | D102: 37 | U102: Total G | V102: =0-COUNTIF(V87:V99,"G") -> -3 | W102: =0-COUNTIF(W87:W99,"G") -> -4 | X102: -3 | Y102: -4 | Z102: -6 | AA102: -2
A103: 0.925 | B103: green | C103: 3 | D103: 38 | I103: Micro Awarness for User
A104: 0.95 | B104: yellow | C104: 4 | D104: 39 | I104: Previous Mind MICRO | J104: Current Mind MICRO | K104: Next Mind MICRO
A105: 0.975 | B105: red | C105: 5 | D105: 40 | I105: =VLOOKUP(AE4+0.0001-100/48/100,I108:L169,4)+1/86400 -> 1951-07-15T10:12:01 | J105: =CEILING(VLOOKUP(AE4+0.0001,I108:L169,4),"0:00:01") -> 1951-07-23T05:28:00 | K105: =VLOOKUP(AE4+100/48/100+0.0001,I108:L169,4)+1/86400 -> 1951-07-31T00:44:01 | L105: =K105-J105 -> 7.802789352
A106: Mind Phases | E106: Mind Micro Awarnesses | M106: Shapes Based on Degree | P106: Quadrant
C107: Length of Season | F107: Current/entered Time (leftside) | J107: User (Right) Side | P107: 1 | R107: 2 | T107: 3 | V107: 4
B108: fall | C108: =N18 -> 89.85902778 | D108: =M18 -> 2024-09-22T08:43:00 | E108: -0.25 | F108: Fall | G108: =N18 -> 89.85902778 | H108: =M18 -> 2024-09-22T08:43:00 | I108: -0.25 | J108: Fall | K108: =N31 -> 89.8125 | L108: =M31 -> 1950-09-23T09:43:00 | M108: 0 | N108: ID | P108: Front | Q108: Back | R108: Front | S108: Back | T108: Front | U108: Back | V108: Front | W108: Back
D109: =D108+$C$108/10 -> 2024-10-01T08:22:42 | E109: -0.2291666667 | H109: =H108+$G$108/12 -> 2024-09-29T20:26:05 | I109: -0.2291666667 | L109: =L108+$K$108/12 -> 1950-09-30T21:20:30 | M109: 5.625 | N109: I | O109: M Space | P109: =IF(AND(O9=1,AK5="♂"),1,0) -> 0 | Q109: =IF(AND(O9=1,AK5="♀"),1,0) -> 0 | R109: =IF(AND(O9=2,AK5="♂"),1,0) -> 0 | S109: =IF(AND(O9=2,AK5="♀"),1,0) -> 0 | T109: =IF(AND(O9=3,AK5="♂"),1,0) -> 0 | U109: =IF(AND(O9=3,AK5="♀"),1,0) -> 0 | V109: =IF(AND(O9=4,AK5="♂"),1,0) -> 1 | W109: =IF(AND(O9=4,AK5="♀"),1,0) -> 0 | X109: =SUM(P109:W109) -> 1
D110: 2024-10-10T08:02:24 | E110: -0.2083333333 | H110: 2024-10-07T08:09:10 | I110: -0.2083333333 | L110: =L109+$K$108/12 -> 1950-10-08T08:58:00 | M110: 11.25 | N110: I | O110: m Space | P110: =IF(AND(BF9=1,AU5="♂"),1,0) -> 0 | Q110: =IF(AND(BF9=1,AU5="♀"),1,0) -> 1 | R110: =IF(AND(BF9=2,AU5="♂"),1,0) -> 0 | S110: =IF(AND(BF9=2,AU5="♀"),1,0) -> 0 | T110: =IF(AND(BF9=3,AU5="♂"),1,0) -> 0 | U110: =IF(AND(BF9=3,AU5="♀"),1,0) -> 0 | V110: =IF(AND(BF9=4,AU5="♂"),1,0) -> 0 | W110: =IF(AND(BF9=4,AU5="♀"),1,0) -> 0 | X110: 1
D111: 2024-10-19T07:42:06 | E111: -0.1875 | H111: 2024-10-14T19:52:15 | I111: -0.1875 | L111: 1950-10-15T20:35:30 | M111: 16.875 | N111: IO | O111: M Time | P111: =IF(AND(AR5=1,AK5="♂"),1,0) -> 0 | Q111: =IF(AND(AR5=1,AK5="♀"),1,0) -> 0 | R111: =IF(AND(AR5=2,AK5="♂"),1,0) -> 0 | S111: =IF(AND(AR5=2,AK5="♀"),1,0) -> 0 | T111: =IF(AND(AR5=3,AK5="♂"),1,0) -> 1 | U111: =IF(AND(AR5=3,AK5="♀"),1,0) -> 0 | V111: =IF(AND(AR5=4,AK5="♂"),1,0) -> 0 | W111: =IF(AND(AR5=4,AK5="♀"),1,0) -> 0 | X111: 1
D112: 2024-10-28T07:21:48 | E112: -0.1666666667 | H112: 2024-10-22T07:35:20 | I112: -0.1666666667 | L112: 1950-10-23T08:13:00 | M112: 22.5 | N112: IO | O112: m Time | P112: =IF(AND(BB5=1,AU5="♂"),1,0) -> 0 | Q112: =IF(AND(BB5=1,AU5="♀"),1,0) -> 1 | R112: =IF(AND(BB5=2,AU5="♂"),1,0) -> 0 | S112: =IF(AND(BB5=2,AU5="♀"),1,0) -> 0 | T112: =IF(AND(BB5=3,AU5="♂"),1,0) -> 0 | U112: =IF(AND(BB5=3,AU5="♀"),1,0) -> 0 | V112: =IF(AND(BB5=4,AU5="♂"),1,0) -> 0 | W112: =IF(AND(BB5=4,AU5="♀"),1,0) -> 0 | X112: 1
D113: 2024-11-06T07:01:30 | E113: -0.1458333333 | H113: 2024-10-29T19:18:25 | I113: -0.1458333333 | L113: 1950-10-30T19:50:30 | M113: 28.125 | N113: O | O113: E Space | P113: =IF(AND(BM9=1,CI5="♂"),1,0) -> 0 | Q113: =IF(AND(BM9=1,CI5="♀"),1,0) -> 0 | R113: =IF(AND(BM9=2,CI5="♂"),1,0) -> 0 | S113: =IF(AND(BM9=2,CI5="♀"),1,0) -> 1 | T113: =IF(AND(BM9=3,CI5="♂"),1,0) -> 0 | U113: =IF(AND(BM9=3,CI5="♀"),1,0) -> 0 | V113: =IF(AND(BM9=4,CI5="♂"),1,0) -> 0 | W113: =IF(AND(BM9=4,CI5="♀"),1,0) -> 0 | X113: 1
D114: 2024-11-15T06:41:12 | E114: -0.125 | H114: 2024-11-06T07:01:30 | I114: -0.125 | L114: 1950-11-07T07:28:00 | M114: 33.75 | N114: O | O114: eSpace | P114: =IF(AND(DD9=1,CS5="♂"),1,0) -> 1 | Q114: =IF(AND(DD9=1,CS5="♀"),1,0) -> 0 | R114: =IF(AND(DD9=2,CS5="♂"),1,0) -> 0 | S114: =IF(AND(DD9=2,CS5="♀"),1,0) -> 0 | T114: =IF(AND(DD9=3,CS5="♂"),1,0) -> 0 | U114: =IF(AND(DD9=3,CS5="♀"),1,0) -> 0 | V114: =IF(AND(DD9=4,CS5="♂"),1,0) -> 0 | W114: =IF(AND(DD9=4,CS5="♀"),1,0) -> 0 | X114: 1
D115: 2024-11-24T06:20:54 | E115: -0.1041666667 | H115: 2024-11-13T18:44:35 | I115: -0.1041666667 | L115: 1950-11-14T19:05:30 | M115: 39.375 | N115: OC | O115: E Time | P115: =IF(AND(CP5=1,CI5="♂"),1,0) -> 0 | Q115: =IF(AND(CP5=1,CI5="♀"),1,0) -> 1 | R115: =IF(AND(CP5=2,CI5="♂"),1,0) -> 0 | S115: =IF(AND(CP5=2,CI5="♀"),1,0) -> 0 | T115: =IF(AND(CP5=3,CI5="♂"),1,0) -> 0 | U115: =IF(AND(CP5=3,CI5="♀"),1,0) -> 0 | V115: =IF(AND(CP5=4,CI5="♂"),1,0) -> 0 | W115: =IF(AND(CP5=4,CI5="♀"),1,0) -> 0 | X115: 1
D116: 2024-12-03T06:00:36 | E116: -0.08333333333 | H116: 2024-11-21T06:27:40 | I116: -0.08333333333 | L116: 1950-11-22T06:43:00 | M116: 45 | N116: OC | O116: eTime | P116: =IF(AND(CZ5=1,CS5="♂"),1,0) -> 0 | Q116: =IF(AND(CZ5=1,CS5="♀"),1,0) -> 0 | R116: =IF(AND(CZ5=2,CS5="♂"),1,0) -> 0 | S116: =IF(AND(CZ5=2,CS5="♀"),1,0) -> 0 | T116: =IF(AND(CZ5=3,CS5="♂"),1,0) -> 0 | U116: =IF(AND(CZ5=3,CS5="♀"),1,0) -> 0 | V116: =IF(AND(CZ5=4,CS5="♂"),1,0) -> 1 | W116: =IF(AND(CZ5=4,CS5="♀"),1,0) -> 0 | X116: 1
A117: -0.025 | D117: 2024-12-12T05:40:18 | E117: -0.0625 | H117: 2024-11-28T18:10:45 | I117: -0.0625 | L117: 1950-11-29T18:20:30 | M117: 50.625 | N117: C | O117: P Space | P117: =IF(AND(DG9=1,EE5="♂"),1,0) -> 0 | Q117: =IF(AND(DG9=1,EE5="♀"),1,0) -> 0 | R117: =IF(AND(DG9=2,EE5="♂"),1,0) -> 0 | S117: =IF(AND(DG9=2,EE5="♀"),1,0) -> 0 | T117: =IF(AND(DG9=3,EE5="♂"),1,0) -> 0 | U117: =IF(AND(DG9=3,EE5="♀"),1,0) -> 0 | V117: =IF(AND(DG9=4,EE5="♂"),1,0) -> 1 | W117: =IF(AND(DG9=4,EE5="♀"),1,0) -> 0 | X117: 1
A118: 0 | B118: Winter | C118: =N19 -> 88.98680556 | D118: =M19 -> 2024-12-21T05:20:00 | E118: -0.04166666667 | H118: 2024-12-06T05:53:50 | I118: -0.04166666667 | L118: 1950-12-07T05:58:00 | M118: 56.25 | N118: C | O118: p Space | P118: =IF(AND(EZ9=1,EO5="♂"),1,0) -> 0 | Q118: =IF(AND(EZ9=1,EO5="♀"),1,0) -> 0 | R118: =IF(AND(EZ9=2,EO5="♂"),1,0) -> 0 | S118: =IF(AND(EZ9=2,EO5="♀"),1,0) -> 0 | T118: =IF(AND(EZ9=3,EO5="♂"),1,0) -> 0 | U118: =IF(AND(EZ9=3,EO5="♀"),1,0) -> 0 | V118: =IF(AND(EZ9=4,EO5="♂"),1,0) -> 0 | W118: =IF(AND(EZ9=4,EO5="♀"),1,0) -> 1 | X118: 1
A119: 0.025 | D119: =D118+$C$118/10 -> 2024-12-30T02:54:06 | E119: -0.02083333333 | H119: 2024-12-13T17:36:55 | I119: -0.02083333333 | L119: 1950-12-14T17:35:30 | M119: 61.875 | N119: DC | O119: P Time | P119: =IF(AND(EL5=1,EE5="♂"),1,0) -> 0 | Q119: =IF(AND(EL5=1,EE5="♀"),1,0) -> 0 | R119: =IF(AND(EL5=2,EE5="♂"),1,0) -> 1 | S119: =IF(AND(EL5=2,EE5="♀"),1,0) -> 0 | T119: =IF(AND(EL5=3,EE5="♂"),1,0) -> 0 | U119: =IF(AND(EL5=3,EE5="♀"),1,0) -> 0 | V119: =IF(AND(EL5=4,EE5="♂"),1,0) -> 0 | W119: =IF(AND(EL5=4,EE5="♀"),1,0) -> 0 | X119: 1
A120: 0.05 | D120: 2025-01-08T00:28:12 | E120: 0 | F120: Winter | G120: =N19 -> 88.98680556 | H120: =M19 -> 2024-12-21T05:20:00 | I120: 0 | J120: Winter | K120: =N32 -> 89.00833333 | L120: =M32 -> 1950-12-22T05:13:00 | M120: 67.5 | N120: DC | O120: p Time | P120: =IF(AND(EV5=1,EO5="♂"),1,0) -> 0 | Q120: =IF(AND(EV5=1,EO5="♀"),1,0) -> 1 | R120: =IF(AND(EV5=2,EO5="♂"),1,0) -> 0 | S120: =IF(AND(EV5=2,EO5="♀"),1,0) -> 0 | T120: =IF(AND(EV5=3,EO5="♂"),1,0) -> 0 | U120: =IF(AND(EV5=3,EO5="♀"),1,0) -> 0 | V120: =IF(AND(EV5=4,EO5="♂"),1,0) -> 0 | W120: =IF(AND(EV5=4,EO5="♀"),1,0) -> 0 | X120: 1
A121: 0.075 | D121: 2025-01-16T22:02:18 | E121: 0.02083333333 | H121: =H120+$G$120/12 -> 2024-12-28T15:18:25 | I121: 0.02083333333 | L121: =L120+$K$120/12 -> 1950-12-29T15:14:00 | M121: 73.125 | N121: D | P121: =SUM(P109:P120) -> 1 | Q121: =SUM(Q109:Q120) -> 4 | R121: 1 | S121: 1 | T121: 1 | U121: 0 | V121: 3 | W121: 1 | X121: =SUM(P121:W121) -> 12
A122: 0.1 | D122: 2025-01-25T19:36:24 | E122: 0.04166666667 | H122: 2025-01-05T01:16:50 | I122: 0.04166666667 | L122: =L121+$K$120/12 -> 1951-01-06T01:15:00 | M122: 78.75 | N122: D | P122: =P121+Q121 -> 5 | R122: =R121+S121 -> 2 | T122: =T121+U121 -> 1 | V122: =V121+W121 -> 4 | X122: =SUM(P122:W122) -> 12
A123: 0.125 | D123: 2025-02-03T17:10:30 | E123: 0.0625 | H123: 2025-01-12T11:15:15 | I123: 0.0625 | L123: 1951-01-13T11:16:00 | M123: 84.375 | N123: ID
A124: 0.15 | D124: 2025-02-12T14:44:36 | E124: 0.08333333333 | H124: 2025-01-19T21:13:40 | I124: 0.08333333333 | L124: 1951-01-20T21:17:00 | M124: 90 | N124: ID | O124: Micro Polarity Shifts | T124: SPACE MACRO POLARITY SHIFTS
A125: 0.175 | D125: 2025-02-21T12:18:42 | E125: 0.1041666667 | H125: 2025-01-27T07:12:05 | I125: 0.1041666667 | L125: 1951-01-28T07:18:00 | M125: 95.625 | N125: I | O125: Polarity Shift | P125: Space | U125: Angle | V125: Rounded | W125: ABS | X125: Polartiy?
A126: 0.2 | D126: 2025-03-02T09:52:48 | E126: 0.125 | H126: 2025-02-03T17:10:30 | I126: 0.125 | L126: 1951-02-04T17:19:00 | M126: 101.25 | N126: I | O126: Mental Macro | P126: =AE5 -> 0.2422237974 | Q126: =IF(OR(AND(AE5>0,AE5<0.0125),AND(AE5>0.2375,AE5<0.2625),AND(AE5>0.4875,AE5<0.5125),AND(AE5>0.7375,AE5<0.7625),AND(AE5>0.9875,AE5<1)),1,0) -> 1 | T126: Mental MACRO | U126: =N9 -> 287.0499646 | V126: =MROUND(U126,22.5) -> 292.5 | W126: =ABS(U126-V126) -> 5.450035442 | X126: =IF(OR(W126<2.8125,W126>22.5-2.8125),1,0) -> 0
A127: 0.225 | D127: 2025-03-11T07:26:54 | E127: 0.1458333333 | H127: 2025-02-11T03:08:55 | I127: 0.1458333333 | L127: 1951-02-12T03:20:00 | M127: 106.875 | N127: IO | O127: Mental Micro | P127: =BK5 -> 0.6267412979 | Q127: =IF(OR(AND(BK5>0,BK5<0.0125),AND(BK5>0.2375,BK5<0.2625),AND(BK5>0.4875,BK5<0.5125),AND(BK5>0.7375,BK5<0.7625),AND(BK5>0.9875,BK5<1)),1,0) -> 0 | T127: Mental micro | U127: =BE9 -> 8.398298788 | V127: =MROUND(U127,22.5) -> 0 | W127: =ABS(U127-V127) -> 8.398298788 | X127: =IF(OR(W127<2.8125,W127>22.5-2.8125),1,0) -> 0
A128: 0.25 | B128: Spring | C128: =N20 -> 92.73680556 | D128: =M20 -> 2025-03-20T05:01:00 | E128: 0.1666666667 | H128: 2025-02-18T13:07:20 | I128: 0.1666666667 | L128: 1951-02-19T13:21:00 | M128: 112.5 | N128: IO | O128: Emo MACRO | P128: =CE5 -> 0.5645326555 | Q128: =IF(OR(AND(CE5>0,CE5<0.0125),AND(CE5>0.2375,CE5<0.2625),AND(CE5>0.4875,CE5<0.5125),AND(CE5>0.7375,CE5<0.7625),AND(CE5>0.9875,CE5<1)),1,0) -> 0 | T128: EMO MACRO | U128: =BL9 -> 122.2980153 | V128: 112.5 | W128: 9.798015252 | X128: 0
A129: 0.275 | D129: =D128+$C$128/10 -> 2025-03-29T11:35:06 | E129: 0.1875 | H129: 2025-02-25T23:05:45 | I129: 0.1875 | L129: 1951-02-26T23:22:00 | M129: 118.125 | N129: O | O129: Emo micro | P129: =DE5 -> 0.09752753013 | Q129: =IF(OR(AND(DE5>0,DE5<0.0125),AND(DE5>0.2375,DE5<0.2625),AND(DE5>0.4875,DE5<0.5125),AND(DE5>0.7375,DE5<0.7625),AND(DE5>0.9875,DE5<1)),1,0) -> 0 | T129: EMO micro | U129: =DC9 -> 20.3047321 | V129: 22.5 | W129: 2.195267902 | X129: 1
A130: 0.3 | D130: 2025-04-07T18:09:12 | E130: 0.2083333333 | H130: 2025-03-05T09:04:10 | I130: 0.2083333333 | L130: 1951-03-06T09:23:00 | M130: 123.75 | N130: O | O130: Physical MACRO | P130: =DY5 -> 0.3389245216 | Q130: =IF(OR(AND(DY5>0,DY5<0.0125),AND(DY5>0.2375,DY5<0.2625),AND(DY5>0.4875,DY5<0.5125),AND(DY5>0.7375,DY5<0.7625),AND(DY5>0.9875,DY5<1)),1,0) -> 0 | T130: PHY MACRO | U130: =DF9 -> 307.3741983 | V130: 315 | W130: 7.625801737 | X130: 0
A131: 0.325 | D131: 2025-04-17T00:43:18 | E131: 0.2291666667 | H131: 2025-03-12T19:02:35 | I131: 0.2291666667 | L131: 1951-03-13T19:24:00 | M131: 129.375 | N131: OC | O131: Phy micro | P131: =FA5 -> 0.2677752555 | Q131: =IF(OR(AND(FA5>0,FA5<0.0125),AND(FA5>0.2375,FA5<0.2625),AND(FA5>0.4875,FA5<0.5125),AND(FA5>0.7375,FA5<0.7625),AND(FA5>0.9875,FA5<1)),1,0) -> 0 | T131: PHY micro | U131: =EY9 -> 263.9615166 | V131: 270 | W131: 6.03848337 | X131: 0
A132: 0.35 | D132: 2025-04-26T07:17:24 | E132: 0.25 | F132: Spring | G132: =N20 -> 92.73680556 | H132: =M20 -> 2025-03-20T05:01:00 | I132: 0.25 | J132: Spring | K132: =N33 -> 92.79097222 | L132: =M33 -> 1951-03-21T05:25:00 | M132: 135 | N132: OC
A133: 0.375 | D133: 2025-05-05T13:51:30 | E133: 0.2708333333 | H133: =H132+$G$132/12 -> 2025-03-27T22:29:25 | I133: 0.2708333333 | L133: =L132+$K$132/12 -> 1951-03-28T22:59:55 | M133: 140.625 | N133: C | O133: Time Macro Pol | Q133: =1/64*0.0125 -> 0.0001953125 | R133: =1/64-Q133 -> 0.0154296875 | T133: TIME MACRO POLARITY SHIFTS
A134: 0.4 | D134: 2025-05-14T20:25:36 | E134: 0.2916666667 | H134: 2025-04-04T15:57:50 | I134: 0.2916666667 | L134: =L133+$K$132/12 -> 1951-04-05T16:34:50 | M134: 146.25 | N134: C | O134: Mental | P134: =AS5 -> 0.5675463291 | Q134: =MROUND(AS5,1/64) -> 0.5625 | R134: =ABS(P134-Q134) -> 0.005046329113 | S134: =IF(OR(R134>R133,R134<Q133),1,0) -> 0
A135: 0.425 | D135: 2025-05-24T02:59:42 | E135: 0.3125 | H135: 2025-04-12T09:26:15 | I135: 0.3125 | L135: 1951-04-13T10:09:45 | M135: 151.875 | N135: DC | O135: EMO | P135: =CQ5 -> 0.113238903 | Q135: =MROUND(CQ5,1/64) -> 0.109375 | R135: =ABS(P135-Q135) -> 0.003863903011 | S135: =IF(OR(R135>R133,R135<Q133),1,0) -> 0 | T135: Mental MACRO | U135: =AS5 -> 0.5675463291 | V135: =MROUND(U135,0.0625) -> 0.5625 | W135: =ABS(U135-V135) -> 0.005046329113 | X135: =IF(OR(W135<0.0078125,W135>0.0625-0.0078125),1,0) -> 1
A136: 0.45 | D136: 2025-06-02T09:33:48 | E136: 0.3333333333 | H136: 2025-04-20T02:54:40 | I136: 0.3333333333 | L136: 1951-04-21T03:44:40 | M136: 157.5 | N136: DC | O136: PHY | P136: =EM5 -> 0.2153942609 | Q136: =MROUND(EM5,1/64) -> 0.21875 | R136: 0.003355739133 | S136: =IF(OR(R136>R133,R136<Q133),1,0) -> 0 | T136: Mental micro | U136: =BC5 -> 00:11:11.864 | V136: =MROUND(U136,0.0625) -> 0 | W136: =ABS(U136-V136) -> 0.007776202582 | X136: =IF(OR(W136<0.0078125,W136>0.0625-0.0078125),1,0) -> 1
A137: 0.475 | D137: 2025-06-11T16:07:54 | E137: 0.3541666667 | H137: 2025-04-27T20:23:05 | I137: 0.3541666667 | L137: 1951-04-28T21:19:35 | M137: 163.125 | N137: D | T137: EMO MACRO | U137: =CQ5 -> 02:43:03.841 | V137: 0.125 | W137: 0.01176109699 | X137: 0
A138: 0.5 | B138: Summer | C138: =N21 -> 93.65069444 | D138: =M21 -> 2025-06-20T22:42:00 | E138: 0.375 | H138: 2025-05-05T13:51:30 | I138: 0.375 | L138: 1951-05-06T14:54:30 | M138: 168.75 | N138: D | Q138: =P139*0.0125 -> 0.0001953125 | T138: EMO micro | U138: =DA5 -> 19:32:55.621 | V138: 0.8125 | W138: 0.002032655465 | X138: 1
A139: 0.525 | D139: =D138+$C$138/10 -> 2025-06-30T07:27:42 | E139: 0.3958333333 | H139: 2025-05-13T07:19:55 | I139: 0.3958333333 | L139: 1951-05-14T08:29:25 | M139: 174.375 | N139: ID | P139: =1/64 -> 0.015625 | Q139: =P139+$Q$138 -> 0.0158203125 | R139: =P139-$Q$138 -> 0.0154296875 | T139: PHY MACRO | U139: =EM5 -> 05:10:10.064 | V139: 0.1875 | W139: 0.02789426087 | X139: 0
A140: 0.55 | D140: 2025-07-09T16:13:24 | E140: 0.4166666667 | H140: 2025-05-21T00:48:20 | I140: 0.4166666667 | L140: 1951-05-22T02:04:20 | M140: 180 | N140: ID | O140: 2 | P140: =O140/64 -> 0.03125 | Q140: =P140+$Q$138 -> 0.0314453125 | R140: =P140-$Q$138 -> 0.0310546875 | T140: PHY micro | U140: =EW5 -> 21:51:58.921 | V140: 0.9375 | W140: 0.02640137349 | X140: 0
A141: 0.575 | D141: 2025-07-19T00:59:06 | E141: 0.4375 | H141: 2025-05-28T18:16:45 | I141: 0.4375 | L141: 1951-05-29T19:39:15 | M141: 185.625 | N141: I | O141: 3 | P141: =O141/64 -> 0.046875 | Q141: 0.0470703125 | R141: 0.0466796875
A142: 0.6 | D142: 2025-07-28T09:44:48 | E142: 0.4583333333 | H142: 2025-06-05T11:45:10 | I142: 0.4583333333 | L142: 1951-06-06T13:14:10 | M142: 191.25 | N142: I | O142: 4 | P142: 0.0625 | Q142: 0.0626953125 | R142: 0.0623046875 | U142: =0 -> 00:00:00 | W142: =1/32*0.125 -> 0.00390625 | X142: =U142+$W$142 -> 00:05:37.500 | Y142: =U142-$W$142+1 -> 23:54:22.500
A143: 0.625 | D143: 2025-08-06T18:30:30 | E143: 0.4791666667 | H143: 2025-06-13T05:13:35 | I143: 0.4791666667 | L143: 1951-06-14T06:49:05 | M143: 196.875 | N143: IO | O143: 5 | P143: 0.078125 | Q143: 0.0783203125 | R143: 0.0779296875 | U143: =U142+1/16 -> 01:30:00 | X143: =U143+$W$142 -> 01:35:37.500 | Y143: =U143-$W$142 -> 01:24:22.500
A144: 0.65 | D144: 2025-08-16T03:16:12 | E144: 0.5 | F144: Summer | G144: =N21 -> 93.65069444 | H144: =M21 -> 2025-06-20T22:42:00 | I144: 0.5 | J144: Summer | K144: =N34 -> 93.63333333 | L144: =M34 -> 1951-06-22T00:24:00 | M144: 202.5 | N144: IO | O144: 6 | P144: 0.09375 | Q144: 0.0939453125 | R144: 0.0935546875 | U144: 03:00:00 | X144: 03:05:37.500 | Y144: =U144-$W$142 -> 02:54:22.500
A145: 0.675 | D145: 2025-08-25T12:01:54 | E145: 0.5208333333 | H145: =H144+$G$144/12 -> 2025-06-28T18:00:05 | I145: 0.5208333333 | L145: =L144+$K$144/12 -> 1951-06-29T19:40:00 | M145: 208.125 | N145: O | O145: 7 | P145: 0.109375 | Q145: 0.1095703125 | R145: 0.1091796875 | U145: 04:30:00 | X145: 04:35:37.500 | Y145: 04:24:22.500
A146: 0.7 | D146: 2025-09-03T20:47:36 | E146: 0.5416666667 | H146: 2025-07-06T13:18:10 | I146: 0.5416666667 | L146: =L145+$K$144/12 -> 1951-07-07T14:56:00 | M146: 213.75 | N146: O | O146: 8 | P146: 0.125 | Q146: 0.1251953125 | R146: 0.1248046875 | U146: 06:00:00 | X146: 06:05:37.500 | Y146: 05:54:22.500
A147: 0.725 | D147: 2025-09-13T05:33:18 | E147: 0.5625 | H147: 2025-07-14T08:36:15 | I147: 0.5625 | L147: 1951-07-15T10:12:00 | M147: 219.375 | N147: OC | O147: 9 | P147: 0.140625 | Q147: 0.1408203125 | R147: 0.1404296875 | U147: 07:30:00 | X147: 07:35:37.500 | Y147: 07:24:22.500
A148: 0.75 | B148: Fall | C148: =N22 -> 89.86388889 | D148: =M22 -> 2025-09-22T14:19:00 | E148: 0.5833333333 | H148: 2025-07-22T03:54:20 | I148: 0.5833333333 | L148: 1951-07-23T05:28:00 | M148: 225 | N148: OC | O148: 10 | P148: 0.15625 | Q148: 0.1564453125 | R148: 0.1560546875 | U148: 09:00:00 | X148: 09:05:37.500 | Y148: 08:54:22.500
A149: 0.775 | D149: =D148+$C$148/10 -> 2025-10-01T13:59:24 | E149: 0.6041666667 | H149: 2025-07-29T23:12:25 | I149: 0.6041666667 | L149: 1951-07-31T00:44:00 | M149: 230.625 | N149: C | O149: 11 | P149: 0.171875 | Q149: 0.1720703125 | R149: 0.1716796875 | U149: 10:30:00 | X149: 10:35:37.500 | Y149: 10:24:22.500
A150: 0.8 | D150: 2025-10-10T13:39:48 | E150: 0.625 | H150: 2025-08-06T18:30:30 | I150: 0.625 | L150: 1951-08-07T20:00:00 | M150: 236.25 | N150: C | O150: 12 | P150: 0.1875 | Q150: 0.1876953125 | R150: 0.1873046875 | U150: 12:00:00 | X150: 12:05:37.500 | Y150: 11:54:22.500
A151: 0.825 | D151: 2025-10-19T13:20:12 | E151: 0.6458333333 | H151: 2025-08-14T13:48:35 | I151: 0.6458333333 | L151: 1951-08-15T15:16:00 | M151: 241.875 | N151: DC | O151: 13 | P151: 0.203125 | Q151: 0.2033203125 | R151: 0.2029296875 | U151: 13:30:00 | X151: 13:35:37.500 | Y151: 13:24:22.500
A152: 0.85 | D152: 2025-10-28T13:00:36 | E152: 0.6666666667 | H152: 2025-08-22T09:06:40 | I152: 0.6666666667 | L152: 1951-08-23T10:32:00 | M152: 247.5 | N152: DC | O152: 14 | P152: 0.21875 | Q152: 0.2189453125 | R152: 0.2185546875 | U152: 15:00:00 | X152: 15:05:37.500 | Y152: 14:54:22.500
A153: 0.875 | D153: 2025-11-06T12:41:00 | E153: 0.6875 | H153: 2025-08-30T04:24:45 | I153: 0.6875 | L153: 1951-08-31T05:48:00 | M153: 253.125 | N153: D | O153: 15 | P153: 0.234375 | Q153: 0.2345703125 | R153: 0.2341796875 | U153: 16:30:00 | X153: 16:35:37.500 | Y153: 16:24:22.500
A154: 0.9 | D154: 2025-11-15T12:21:24 | E154: 0.7083333333 | H154: 2025-09-06T23:42:50 | I154: 0.7083333333 | L154: 1951-09-08T01:04:00 | M154: 258.75 | N154: D | O154: 16 | P154: 0.25 | Q154: 0.2501953125 | R154: 0.2498046875 | U154: 18:00:00 | X154: 18:05:37.500 | Y154: 17:54:22.500
A155: 0.925 | D155: 2025-11-24T12:01:48 | E155: 0.7291666667 | H155: 2025-09-14T19:00:55 | I155: 0.7291666667 | L155: 1951-09-15T20:20:00 | M155: 264.375 | N155: ID | O155: 17 | P155: 0.265625 | Q155: 0.2658203125 | R155: 0.2654296875 | U155: 19:30:00 | X155: 19:35:37.500 | Y155: 19:24:22.500
A156: 0.95 | D156: 2025-12-03T11:42:12 | E156: 0.75 | F156: Fall | G156: =N22 -> 89.86388889 | H156: =M22 -> 2025-09-22T14:19:00 | I156: 0.75 | J156: Fall | K156: =N35 -> 89.80833333 | L156: =M35 -> 1951-09-23T15:36:00 | M156: 270 | N156: ID | O156: 18 | P156: 0.28125 | Q156: 0.2814453125 | R156: 0.2810546875 | U156: 21:00:00 | X156: 21:05:37.500 | Y156: 20:54:22.500
A157: 0.975 | D157: 2025-12-12T11:22:36 | E157: 0.7708333333 | H157: =H156+$G$156/12 -> 2025-09-30T02:02:40 | I157: 0.7708333333 | L157: =L156+$K$156/12 -> 1951-10-01T03:13:00 | M157: 275.625 | N157: I | O157: 19 | P157: 0.296875 | Q157: 0.2970703125 | R157: 0.2966796875 | U157: 22:30:00 | X157: 22:35:37.500 | Y157: 22:24:22.500
A158: 1 | B158: Winter | C158: =N23 -> 88.9875 | D158: =M23 -> 2025-12-21T11:03:00 | E158: 0.7916666667 | H158: 2025-10-07T13:46:20 | I158: 0.7916666667 | L158: =L157+$K$156/12 -> 1951-10-08T14:50:00 | M158: 281.25 | N158: I | O158: 20 | P158: 0.3125 | Q158: 0.3126953125 | R158: 0.3123046875
A159: 1.025 | D159: =D158+C158/10 -> 2025-12-30T08:37:12 | E159: 0.8125 | H159: 2025-10-15T01:30:00 | I159: 0.8125 | L159: 1951-10-16T02:27:00 | M159: 286.875 | N159: IO | O159: 21 | P159: 0.328125 | Q159: 0.3283203125 | R159: 0.3279296875
E160: 0.8333333333 | H160: 2025-10-22T13:13:40 | I160: 0.8333333333 | L160: 1951-10-23T14:04:00 | M160: 292.5 | N160: IO | O160: 22 | P160: 0.34375 | Q160: 0.3439453125 | R160: 0.3435546875
E161: 0.8541666667 | H161: 2025-10-30T00:57:20 | I161: 0.8541666667 | L161: 1951-10-31T01:41:00 | M161: 298.125 | N161: O | O161: 23 | P161: 0.359375 | Q161: 0.3595703125 | R161: 0.3591796875
E162: 0.875 | H162: 2025-11-06T12:41:00 | I162: 0.875 | L162: 1951-11-07T13:18:00 | M162: 303.75 | N162: O | O162: 24 | P162: 0.375 | Q162: 0.3751953125 | R162: 0.3748046875 | T162: 241.875 | U162: DC
E163: 0.8958333333 | H163: 2025-11-14T00:24:40 | I163: 0.8958333333 | L163: 1951-11-15T00:55:00 | M163: 309.375 | N163: OC | O163: 25 | P163: 0.390625 | Q163: 0.3908203125 | R163: 0.3904296875
E164: 0.9166666667 | H164: 2025-11-21T12:08:20 | I164: 0.9166666667 | L164: 1951-11-22T12:32:00 | M164: 315 | N164: OC | O164: 26 | P164: 0.40625 | Q164: 0.4064453125 | R164: 0.4060546875 | T164: 247.5 | U164: DC
E165: 0.9375 | H165: 2025-11-28T23:52:00 | I165: 0.9375 | L165: 1951-11-30T00:09:00 | M165: 320.625 | N165: C | O165: 27 | P165: 0.421875 | Q165: 0.4220703125 | R165: 0.4216796875
E166: 0.9583333333 | H166: 2025-12-06T11:35:40 | I166: 0.9583333333 | L166: 1951-12-07T11:46:00 | M166: 326.25 | N166: C | O166: 28 | P166: 0.4375 | Q166: 0.4376953125 | R166: 0.4373046875 | T166: 253.125 | U166: D
E167: 0.9791666667 | H167: 2025-12-13T23:19:20 | I167: 0.9791666667 | L167: 1951-12-14T23:23:00 | M167: 331.875 | N167: DC | O167: 29 | P167: 0.453125 | Q167: 0.4533203125 | R167: 0.4529296875
E168: 1 | F168: Winter | G168: =N23 -> 88.9875 | H168: =M23 -> 2025-12-21T11:03:00 | I168: 1 | J168: Winter | K168: =N36 -> 89.00902778 | L168: =M36 -> 1951-12-22T11:00:00 | M168: 337.5 | N168: DC | O168: 30 | P168: 0.46875 | Q168: 0.4689453125 | R168: 0.4685546875 | T168: 258.75 | U168: D
E169: 1.020833333 | H169: =H168+G168/12 -> 2025-12-28T21:01:30 | I169: 1.020833333 | L169: =L168+K168/12 -> 1951-12-29T21:01:05 | M169: 343.125 | N169: D | O169: 31 | P169: 0.484375 | Q169: 0.4845703125 | R169: 0.4841796875
M170: 348.75 | N170: D | O170: 32 | P170: 0.5 | Q170: 0.5001953125 | R170: 0.4998046875 | T170: 264.375 | U170: ID
M171: 354.375 | N171: ID | O171: 33 | P171: 0.515625 | Q171: 0.5158203125 | R171: 0.5154296875
O172: 34 | P172: 0.53125 | Q172: 0.5314453125 | R172: 0.5310546875 | T172: 270 | U172: ID
O173: 35 | P173: 0.546875 | Q173: 0.5470703125 | R173: 0.5466796875
O174: 36 | P174: 0.5625 | Q174: 0.5626953125 | R174: 0.5623046875 | T174: 275.625 | U174: I
O175: 37 | P175: 0.578125 | Q175: 0.5783203125 | R175: 0.5779296875
O176: 38 | P176: 0.59375 | Q176: 0.5939453125 | R176: 0.5935546875 | T176: 281.25 | U176: I
O177: 39 | P177: 0.609375 | Q177: 0.6095703125 | R177: 0.6091796875
O178: 40 | P178: 0.625 | Q178: 0.6251953125 | R178: 0.6248046875 | T178: 286.875 | U178: OI
O179: 41 | P179: 0.640625 | Q179: 0.6408203125 | R179: 0.6404296875
O180: 42 | P180: 0.65625 | Q180: 0.6564453125 | R180: 0.6560546875 | T180: 292.5 | U180: OI
O181: 43 | P181: 0.671875 | Q181: 0.6720703125 | R181: 0.6716796875
O182: 44 | P182: 0.6875 | Q182: 0.6876953125 | R182: 0.6873046875 | T182: 298.125 | U182: O
O183: 45 | P183: 0.703125 | Q183: 0.7033203125 | R183: 0.7029296875
O184: 46 | P184: 0.71875 | Q184: 0.7189453125 | R184: 0.7185546875
O185: 47 | P185: 0.734375 | Q185: 0.7345703125 | R185: 0.7341796875
O186: 48 | P186: 0.75 | Q186: 0.7501953125 | R186: 0.7498046875
O187: 49 | P187: 0.765625 | Q187: 0.7658203125 | R187: 0.7654296875
O188: 50 | P188: 0.78125 | Q188: 0.7814453125 | R188: 0.7810546875
O189: 51 | P189: 0.796875 | Q189: 0.7970703125 | R189: 0.7966796875
O190: 52 | P190: 0.8125 | Q190: 0.8126953125 | R190: 0.8123046875
O191: 53 | P191: 0.828125 | Q191: 0.8283203125 | R191: 0.8279296875
O192: 54 | P192: 0.84375 | Q192: 0.8439453125 | R192: 0.8435546875
O193: 55 | P193: 0.859375 | Q193: 0.8595703125 | R193: 0.8591796875
O194: 56 | P194: 0.875 | Q194: 0.8751953125 | R194: 0.8748046875
O195: 57 | P195: 0.890625 | Q195: 0.8908203125 | R195: 0.8904296875
O196: 58 | P196: 0.90625 | Q196: 0.9064453125 | R196: 0.9060546875
O197: 59 | P197: 0.921875 | Q197: 0.9220703125 | R197: 0.9216796875
O198: 60 | P198: 0.9375 | Q198: 0.9376953125 | R198: 0.9373046875
O199: 61 | P199: 0.953125 | Q199: 0.9533203125 | R199: 0.9529296875
O200: 62 | P200: 0.96875 | Q200: 0.9689453125 | R200: 0.9685546875
... 2 more rows

Sheet Home
G3: =TODAY() -> 2025-03-17 | AB3: Hoverson, Kathy
G4: =NOW()-TODAY() -> 10:35:11.910 | AB4: =Calculations!AF17 -> 1951-07-24T04:55:00
G5: (GMT-04:00) Eastern Time (US and Canada) *DST* | AB5: =Calculations!AF19 -> (GMT-05:00) Central Time (US and Canada) *DST*
AC7: 0
B14: <iframe width="700" height="900" frameborder="0" scrolling="no" src="https://onedrive.live.com/embed?resid=D62AE68801EA336E%211385&authkey=%21AAnzfxMR084QC8M&em=2&wdAllowInteractivity=False&Item='Simple%20Awarness'!Print_Area&wdInConfigurator=True&wdInConfigurator=True"></iframe>
K15: =TODAY() -> 2025-03-17
K16: =NOW()-TODAY() -> 10:35:11.910
I17: next Phy MACRO | K17: =Calculations!DV5 -> 2025-03-17T18:20:38.571
K18: =INT(K17) -> 2025-03-17
K19: =K17-K18+(1/24/60/60) -> 18:20:39.571
N20: Previous Phy MACRO | P20: =Calculations!DT5 -> 2025-03-16T18:52:30
K21: =INT(P20) -> 2025-03-16
K22: =P20-K21+1/24/60/60 -> 18:52:31
P23: Next and Previous Phy MICRO
K24: =Calculations!K81 -> 2025-03-17
K25: =Calculations!K82 -> 10:45:57
K26: =Calculations!I81 -> 2025-03-17 | W26: =IF(Calculations!AK5="♀",0,Calculations!AE5) -> 0.2422237974
K27: =Calculations!I82 -> 10:16:36 | V27: M | W27: =Calculations!Q5 -> IO | X27: =IF(Calculations!AK5="♀",Calculations!N5,Calculations!AK5) -> ♂ | Y27: =IF(Calculations!AK5="♀",Calculations!AK5,Calculations!N5) -> 2-5 | Z27: =Calculations!AQ5 -> IO | AA27: M
M28: Next $ Previous EMO MICRO
K29: =Calculations!K85 -> 2025-03-17 | W29: =IF(Calculations!AK5="♀",Calculations!AE5,0) -> 0
K30: =Calculations!K86 -> 13:27:18
K31: =Calculations!I85 -> 2025-03-17
K32: =Calculations!I86 -> 07:05:55 | W32: =IF(Calculations!AU5="♀",0,Calculations!BK5) -> 0
P33: Next and Previous Mental micro | V33: m | W33: =Calculations!BD5 -> I | X33: =IF(Calculations!AU5="♀",Calculations!BE5,Calculations!AU5) -> 1-6 | Y33: =IF(Calculations!AU5="♀",Calculations!AU5,Calculations!BE5) -> ♀ | Z33: =Calculations!BA5 -> ID | AA33: m
K34: =Calculations!K89 -> 2025-03-20
K35: =Calculations!K90 -> 05:01:01 | W35: =IF(Calculations!AU5="♀",Calculations!BK5,0) -> 0.6267412979
K36: =Calculations!I89 -> 2025-03-05
K37: =Calculations!I90 -> 09:04:11
N38: Next EMO Macro | P38: =Calculations!CB5 -> 45736.20903 | W38: =IF(Calculations!CI5="♀",0,Calculations!CE5) -> 0
K39: =INT(P38) -> 45736 | V39: E | W39: =Calculations!BO5 -> O | X39: =IF(Calculations!CI5="♀",Calculations!BL5,Calculations!CI5) -> 8-2 | Y39: =IF(Calculations!CI5="♀",Calculations!CI5,Calculations!BL5) -> ♀ | Z39: =Calculations!CO5 -> OC | AA39: E
K40: =P38-K39+1/24/60/60 -> 0.2090393519
N41: Previous Emo Macro | P41: =Calculations!BZ5 -> 45723.49663 | W41: =IF(Calculations!CI5="♀",Calculations!CE5,0) -> 0.5645326555
K42: =INT(P41) -> 45723
K43: =P41-K42+1/24/60/60 -> 0.4966385578
K44: Next & Pre Mental MACRO | W44: =IF(Calculations!CS5="♀",0,Calculations!DE5) -> 0.09752753013
K45: =Calculations!AB5 -> 46012.46042 | V45: e | W45: =Calculations!DB5 -> IO | X45: =IF(Calculations!CS5="♀",Calculations!DC5,Calculations!CS5) -> ♂ | Y45: =IF(Calculations!CS5="♀",Calculations!CS5,Calculations!DC5) -> 4-5 | Z45: =Calculations!CY5 -> IO | AA45: e
K46: =INT(K45) -> 46012
K47: =K45-K46+1/86400 -> 0.4604282407 | W47: =IF(Calculations!CS5="♀",Calculations!DE5,0) -> 0
K48: =Calculations!Z5 -> 45281.97708
K49: =INT(K48) -> 45281
K50: =K48-K49+1/86400 -> 0.9770949074 | W50: =IF(Calculations!EE5="♀",0,Calculations!DY5) -> 0.3389245216
V51: P | W51: =Calculations!DI5 -> O | X51: =IF(Calculations!EE5="♀",Calculations!DF5,Calculations!EE5) -> ♂ | Y51: =IF(Calculations!EE5="♀",Calculations!EE5,Calculations!DF5) -> 7-5 | Z51: =Calculations!EK5 -> D | AA51: P
W53: =IF(Calculations!EE5="♀",Calculations!DY5,0) -> 0
W56: =IF(Calculations!EO5="♀",0,Calculations!FA5) -> 0
V57: p | W57: =Calculations!EX5 -> D | X57: =IF(Calculations!EO5="♀",Calculations!EY5,Calculations!EO5) -> 2-4 | Y57: =IF(Calculations!EO5="♀",Calculations!EO5,Calculations!EY5) -> ♀ | Z57: =Calculations!EU5 -> C | AA57: p
W59: =IF(Calculations!EO5="♀",Calculations!FA5,0) -> 0.2677752555

Sheet Sheet1
U1: Space | Y1: Time | AD1: SPACE | AE1: TIME
T2: Mm | U2: ='Awarness Alignments'!BP404 -> 0 | V2: =INT(U2) -> 0 | W2: =MROUND((U2-V2)*60,5) -> 0 | Y2: ='Awarness Alignments'!JX404 -> 0 | Z2: =INT(Y2) -> 0 | AA2: =MROUND((Y2-Z2)*60,5) -> 0 | AD2: =IF(U2<0.5,"",IF(U2<1,W2&"min",V2&"hrs "&W2&"min")) ->  | AE2: =IF(Y2<0.5,"",IF(Y2<1,AA2&"min",Z2&"hrs "&AA2&"min")) -> 
T3: ME | U3: ='Awarness Alignments'!BD404 -> 0 | V3: 0 | W3: 0 | Y3: ='Awarness Alignments'!JL404 -> 0 | Z3: 0 | AA3: 0
T4: MP | U4: ='Awarness Alignments'!AI404 -> 2.872513641 | V4: =INT(U4) -> 2 | W4: =MROUND((U4-V4)*60,5) -> 50 | Y4: ='Awarness Alignments'!IQ404 -> 0 | Z4: =INT(Y4) -> 0 | AA4: =MROUND((Y4-Z4)*60,5) -> 0 | AD4: 2hrs 50min
K5: Largest Total Daily Polarity: | L5: =LARGE('Awarness Alignments'!TT17:TT400,1) -> 7 | T5: Me | U5: ='Awarness Alignments'!BJ404 -> 1.589050099 | V5: =INT(U5) -> 1 | W5: 35 | Y5: ='Awarness Alignments'!JR404 -> 0.6722904265 | Z5: 0 | AA5: =MROUND((Y5-Z5)*60,5) -> 40 | AD5: 1hrs 35min | AE5: 40min
K6: Largest Total Weekly Polarity: | L6: =LARGE('Awarness Alignments'!TT17:TT2512,1) -> 10 | T6: Mp | V6: 0 | W6: 0 | Z6: 0 | AA6: 0
T7: mE | U7: ='Awarness Alignments'!BG404 -> 0 | V7: 0 | W7: 0 | Y7: ='Awarness Alignments'!JO404 -> 0 | Z7: 0 | AA7: 0
T8: mP | U8: ='Awarness Alignments'!AL404 -> 0 | V8: 0 | W8: 0 | Y8: ='Awarness Alignments'!IT404 -> 0 | Z8: 0 | AA8: 0
T9: me | U9: ='Awarness Alignments'!BM404 -> 1.589050099 | V9: 1 | W9: 35 | Y9: ='Awarness Alignments'!JU404 -> 0 | Z9: 0 | AA9: 0 | AD9: 1hrs 35min
T10: mp | V10: 0 | W10: 0 | Z10: 0 | AA10: 0
T11: EP | U11: ='Awarness Alignments'!AC404 -> 0 | V11: 0 | W11: 0 | Y11: ='Awarness Alignments'!IK404 -> 0 | Z11: 0 | AA11: 0
T12: Ee | U12: ='Awarness Alignments'!BA404 -> 0 | V12: 0 | W12: 0 | Y12: ='Awarness Alignments'!JI404 -> 0 | Z12: 0 | AA12: 0
T13: Ep | V13: 0 | W13: 0 | Z13: 0 | AA13: 0
T14: Pe | U14: ='Awarness Alignments'!AF404 -> 0 | V14: 0 | W14: 0 | Y14: ='Awarness Alignments'!IN404 -> 0 | Z14: 0 | AA14: 0
T15: Pp | V15: 0 | W15: 0 | Z15: 0 | AA15: 0
T16: ep | V16: 0 | W16: 0 | Z16: 0 | AA16: 0

Sheet Advanced
E4: 2024-03-13 | Z4: Selig, Jeremy | AI4: Select to Compare
E5: 17:38:28.090 | Z5: =Calculations!AF17 -> 1951-07-24T04:55:00 | AI5: Geldhof, Cynthia
E6: (GMT-04:00) Eastern Time (US and Canada) *DST* | Z6: =Calculations!AF19 -> (GMT-05:00) Central Time (US and Canada) *DST*
D12: MACRO | F12: =Calculations!Q5 -> IO | H12: =Calculations!AQ5 -> IO | J12: =Calculations!AS5 -> 13:37:16.003 | K12: =Calculations!S5 -> 2 | L12: =Calculations!U5 -> 3 | M12: =Calculations!AL5 -> ↗ | N12: =Calculations!AN5 -> ⇆ | O12: =Calculations!AM5 -> ↶ | P12: =Calculations!AO5 -> -+ | Q12: =Calculations!AP5 -> 3 | S12: =Calculations!N11 -> 59.76 | U12: =Calculations!AS11 -> 9:19 | X12: MACRO | Z12: =Calculations!Q4 -> D | AB12: =Calculations!AQ4 -> DC | AD12: =Calculations!AS4 -> 04:17:34.692 | AE12: =Calculations!S4 -> 7 | AF12: =Calculations!U4 -> 3 | AG12: =Calculations!AL4 -> ↘ | AH12: =Calculations!AN4 -> ⇆ | AI12: =Calculations!AM4 -> ↶ | AJ12: =Calculations!AO4 -> ++ | AK12: =Calculations!AP4 -> 7
D13: =Calculations!N5 -> 2-5 | E13: =Calculations!O5 -> WNW | X13: =Calculations!N4 -> 7-3 | Y13: =Calculations!O4 -> N
D14: =Calculations!AE5 -> 0.2422237974 | F14: =Calculations!AF5 -> 0.2422237974 | J14: Time | K14: =IF(Calculations!AJ5="LR","ªªª","©©©") -> ªªª | M14: Direction | N14: Orbit | O14: Rotation | P14: Polarity | Q14: Zone | R14: Mental | X14: =Calculations!AE4 -> 0.58594 | Z14: =Calculations!AF4 -> 0.58594 | AD14: Time | AE14: =IF(Calculations!AJ4="LR","ªªª","©©©") -> ªªª | AG14: Direction | AH14: Orbit | AI14: Rotation | AJ14: Polarity | AK14: Zone
F15: =Calculations!AG5 ->  | K15: =IF(Calculations!AT5="LR","ªªª","©©©") -> ©©© | Z15: =Calculations!AG4 ->  | AE15: =IF(Calculations!AT4="LR","ªªª","©©©") -> ©©©
D16: micro | F16: =Calculations!BD5 -> I | H16: =Calculations!BA5 -> ID | J16: =Calculations!BC5 -> 00:11:11.864 | K16: =Calculations!T5 -> 1 | L16: =Calculations!Y5 -> 5 | M16: =Calculations!AV5 -> ↖ | N16: =Calculations!AX5 -> ⇇ | O16: =Calculations!AW5 -> ↶ | P16: =Calculations!AY5 -> +- | Q16: =Calculations!AZ5 -> 2 | S16: =Calculations!BE11 -> 11.21 | U16: =Calculations!BC11 -> 8:14 | X16: micro | Z16: =Calculations!BD4 -> ID | AB16: =Calculations!BA4 -> C | AD16: =Calculations!BC4 -> 15:56:14.784 | AE16: =Calculations!T4 -> 4 | AF16: =Calculations!Y4 -> 4 | AG16: =Calculations!AV4 -> ↙ | AH16: =Calculations!AX4 -> ⇇ | AI16: =Calculations!AW4 -> ↶ | AJ16: =Calculations!AY4 -> -- | AK16: =Calculations!AZ4 -> 6
D17: =Calculations!BE5 -> 1-6 | E17: =Calculations!BF5 -> NNE | X17: =Calculations!BE4 -> 4-4 | Y17: =Calculations!BF4 -> N
D20: MACRO | F20: =Calculations!BO5 -> O | H20: =Calculations!CO5 -> OC | J20: =Calculations!CQ5 -> 02:43:03.841 | K20: =Calculations!BS5 -> 1 | L20: =Calculations!BU5 -> 1 | M20: =Calculations!CJ5 -> ↖ | N20: =Calculations!CL5 -> ⇇ | O20: =Calculations!CK5 -> ↶ | P20: =Calculations!CM5 -> +- | Q20: =Calculations!CN5 -> 2 | S20: =Calculations!BL11 -> 5.58 | U20: =Calculations!CQ11 -> 9:18 | X20: MACRO | Z20: =Calculations!BO4 -> IO | AB20: =Calculations!CO4 -> D | AD20: =Calculations!CQ4 -> 17:24:22.967 | AE20: =Calculations!BS4 -> 3 | AF20: =Calculations!BU4 -> 5 | AG20: =Calculations!CJ4 -> ↘ | AH20: =Calculations!CL4 -> ⇆ | AI20: =Calculations!CK4 -> ↶ | AJ20: =Calculations!CM4 -> ++ | AK20: =Calculations!CN4 -> 3
D21: =Calculations!BL5 -> 8-2 | E21: =Calculations!BM5 -> SE | X21: =Calculations!BL4 -> 3-5 | Y21: =Calculations!BM4 -> SE
D22: =Calculations!CE5 -> 0.5645326555 | F22: =Calculations!CF5 ->  | J22: Time | K22: =IF(Calculations!CH5="LR","ªªª","©©©") -> ©©© | M22: Direction | N22: Orbit | O22: Rotation | P22: Polarity | Q22: Zone | R22: Emotional | X22: =Calculations!CE4 -> 0.8127595823 | Z22: =Calculations!CF4 -> 0.8127595823 | AD22: Time | AE22: =IF(Calculations!CH4="LR","ªªª","©©©") -> ªªª | AG22: Direction | AH22: Orbit | AI22: Rotation | AJ22: Polarity | AK22: Zone
F23: =Calculations!CG5 -> 0.5645326555 | K23: =IF(Calculations!CR5="LR","ªªª","©©©") -> ªªª | Z23: =Calculations!CG4 ->  | AE23: =IF(Calculations!CR4="LR","ªªª","©©©") -> ªªª
D24: micro | F24: =Calculations!DB5 -> IO | H24: =Calculations!CY5 -> IO | J24: =Calculations!DA5 -> 19:32:55.621 | K24: =Calculations!BT5 -> 4 | L24: =Calculations!BY5 -> 3 | M24: =Calculations!CT5 -> ↘ | N24: =Calculations!CV5 -> ⇉ | O24: =Calculations!CU5 -> ↷ | P24: =Calculations!CW5 -> -+ | Q24: =Calculations!CX5 -> 5 | S24: =Calculations!DC11 -> 91.91 | U24: =Calculations!DA11 -> 5:57 | X24: micro | Z24: =Calculations!DB4 -> IO | AB24: =Calculations!CY4 -> IO | AD24: =Calculations!DA4 -> 01:30:22.428 | AE24: =Calculations!BT4 -> 6 | AF24: =Calculations!BY4 -> 3 | AG24: =Calculations!CT4 -> ↗ | AH24: =Calculations!CV4 -> ⇆ | AI24: =Calculations!CU4 -> ↶ | AJ24: =Calculations!CW4 -> -+ | AK24: =Calculations!CX4 -> 7
D25: =Calculations!DC5 -> 4-5 | E25: =Calculations!DD5 -> NNE | X25: =Calculations!DC4 -> 6-5 | Y25: =Calculations!DD4 -> ESE
D28: MACRO | F28: =Calculations!DI5 -> O | H28: =Calculations!EK5 -> D | J28: =Calculations!EM5 -> 05:10:10.064 | K28: =Calculations!DM5 -> 7 | L28: =Calculations!DO5 -> 4 | M28: =Calculations!EF5 -> ↘ | N28: =Calculations!EH5 -> ⇆ | O28: =Calculations!EG5 -> ↶ | P28: =Calculations!EI5 -> ++ | Q28: =Calculations!EJ5 -> 7 | S28: =Calculations!DF11 -> 50.1 | U28: =Calculations!EM11 -> 1:06 | X28: MACRO | Z28: =Calculations!DI4 -> D | AB28: =Calculations!EK4 -> ID | AD28: =Calculations!EM4 -> 06:16:58.574 | AE28: =Calculations!DM4 -> 8 | AF28: =Calculations!DO4 -> 1 | AG28: =Calculations!EF4 -> ↘ | AH28: =Calculations!EH4 -> ⇉ | AI28: =Calculations!EG4 -> ↶ | AJ28: =Calculations!EI4 -> -+ | AK28: =Calculations!EJ4 -> 1
D29: =Calculations!DF5 -> 7-5 | E29: =Calculations!DG5 -> NW | X29: =Calculations!DF4 -> 7-7 | Y29: =Calculations!DG4 -> W
D30: =Calculations!DY5 -> 0.3389245216 | F30: =Calculations!DZ5 -> 0.3389245216 | J30: Time | K30: =IF(Calculations!ED5="LR","ªªª","©©©") -> ªªª | M30: Direction | N30: Orbit | O30: Rotation | P30: Polarity | Q30: Zone | R30: Physical | X30: =Calculations!DY4 -> 0.5658745699 | Z30: =Calculations!DZ4 -> 0.5658745699 | AD30: Time | AE30: =IF(Calculations!ED4="LR","ªªª","©©©") -> ªªª | AG30: Direction | AH30: Orbit | AI30: Rotation | AJ30: Polarity | AK30: Zone
F31: =Calculations!EA5 ->  | K31: =IF(Calculations!EN5="LR","ªªª","©©©") -> ©©© | Z31: =Calculations!EA4 ->  | AE31: =IF(Calculations!EN4="LR","ªªª","©©©") -> ªªª
D32: micro | F32: =Calculations!EX5 -> D | H32: =Calculations!EU5 -> C | J32: =Calculations!EW5 -> 21:51:58.921 | K32: =Calculations!DN5 -> 2 | L32: =Calculations!DS5 -> 4 | M32: =Calculations!EP5 -> ↖ | N32: =Calculations!ER5 -> ⇄ | O32: =Calculations!EQ5 -> ↷ | P32: =Calculations!ES5 -> -- | Q32: =Calculations!ET5 -> 4 | S32: =Calculations!EY11 -> 114.89 | U32: =Calculations!EW11 -> 2:17 | X32: micro | Z32: =Calculations!EX4 -> IO | AB32: =Calculations!EU4 -> IO | AD32: =Calculations!EW4 -> 19:34:49.563 | AE32: =Calculations!DN4 -> 4 | AF32: =Calculations!DS4 -> 3 | AG32: =Calculations!EP4 -> ↘ | AH32: =Calculations!ER4 -> ⇉ | AI32: =Calculations!EQ4 -> ↷ | AJ32: =Calculations!ES4 -> -+ | AK32: =Calculations!ET4 -> 5
D33: =Calculations!EY5 -> 2-4 | E33: =Calculations!EZ5 -> W | X33: =Calculations!EY4 -> 4-5 | Y33: =Calculations!EZ4 -> NNE
E46: Current Time
E47: =TODAY() -> 2025-03-17
E48: =NOW()-TODAY() -> 10:35:11.910
E49: Next and Previous Phyusical Times
E50: =Calculations!DV5 -> 2025-03-17T18:20:38.571
E51: =INT(E50) -> 2025-03-17
E52: =E50-E51+(1/24/60/60) -> 18:20:39.571
E53: =Calculations!DT5 -> 2025-03-16T18:52:30
E54: =INT(E53) -> 2025-03-16
E55: =E53-E54+1/24/60/60 -> 18:52:31
E56: Next and Previous Emotional Times
E57: =Calculations!CB5 -> 2025-03-20T05:01:00
E58: =INT(E57) -> 2025-03-20
E59: =E57-E58+1/24/60/60 -> 05:01:01
E60: =Calculations!BZ5 -> 2025-03-07T11:55:08.571
E61: =INT(E60) -> 2025-03-07
E62: =E60-E61+1/24/60/60 -> 11:55:09.571
E63: Next and Previous Mind Times
E64: =Calculations!AB5 -> 2025-12-21T11:03:00
E65: =INT(E64) -> 2025-12-21
E66: =E64-E65+1/24/60/60 -> 11:03:01
E67: =Calculations!Z5 -> 2023-12-21T23:27:00
E68: =INT(E67) -> 2023-12-21
E69: =E67-E68+1/24/60/60 -> 23:27:01
E70: Next and Previous Phy Phase
E71: =Calculations!K57 -> 2025-03-17
E72: =Calculations!K58 -> 10:43:00.786
E73: =Calculations!I57 -> 2025-03-17
E74: =Calculations!I58 -> 10:07:48.571
E75: Next and Previous Emotional Phase
E76: =Calculations!K53 -> 2025-03-17
E77: =Calculations!K54 -> 12:11:01.321
E78: =Calculations!I53 -> 2025-03-17
E79: =Calculations!I54 -> 04:33:22.536
E80: Next and Previous Mind Phase
E81: =Calculations!K61 -> 2025-03-20
E82: =Calculations!K62 -> 05:01:01
E83: =Calculations!I61 -> 2025-03-02
E84: =Calculations!I62 -> 09:52:49
E85: Next and Previous Phy Wave
E86: =Calculations!K72 -> 2025-03-17
E87: =Calculations!K73 -> 11:00:36.893
E88: =Calculations!I72 -> 2025-03-17
E89: =Calculations!I73 -> 08:04:35.821
E90: Next and Previous Emo Wave
E91: =Calculations!K68 -> 2025-03-17
E92: =Calculations!K69 -> 19:48:40.107
E93: =Calculations!I68 -> 2025-03-16
E94: =Calculations!I69 -> 05:40:27.179
E95: Next and Previous Mind Wave
E96: =Calculations!K76 -> 2025-03-20
E97: =Calculations!K77 -> 05:01:01
E98: =Calculations!I76 -> 2024-12-21
E99: =Calculations!I77 -> 05:20:01
E100: Next and Previous Phy MICRO
E101: =Calculations!K81 -> 2025-03-17
E102: =Calculations!K82 -> 10:45:57
E103: =Calculations!I81 -> 2025-03-17
E104: =Calculations!I82 -> 10:16:36
E105: Next and Previous EMO MICRO
E106: =Calculations!K85 -> 2025-03-17
E107: =Calculations!K86 -> 13:27:18
E108: =Calculations!I85 -> 2025-03-17
E109: =Calculations!I86 -> 07:05:55
E110: Next and Previous MIND MICRO
E111: =Calculations!K89 -> 2025-03-20
E112: =Calculations!K90 -> 05:01:01
E113: =Calculations!I89 -> 2025-03-05
E114: =Calculations!I90 -> 09:04:11
E115: Used to Reset Drop Down fields (secondary/slave/right side)
E116: =VLOOKUP($Z$4,Family!$B$14:$H$87,4,FALSE) -> 27387
E117: =VLOOKUP($Z$4,Family!$B$14:$H$87,5,FALSE) -> 0.8020833333
E118: =VLOOKUP($Z$4,Family!$B$14:$H$87,6,FALSE) -> 27387.80208
E119: Used to Reset Drop Down fields (primary/master/left side)
E120: =VLOOKUP($AI$5,Family!$B$14:$H$87,4,FALSE) -> 17365
E121: =VLOOKUP($AI$5,Family!$B$14:$H$87,5,FALSE) -> 0.1041666667
E122: =VLOOKUP($AI$5,Family!$B$14:$H$87,7,FALSE) -> (GMT-04:00) Eastern Time (US and Canada) *DST*

Sheet Dashboard
D43: Mental Space | K43: Mental Time

Sheet Events
C1: =VLOOKUP(G1,A6:G20,6,FALSE) -> 2024-03-11 | F1: =VLOOKUP(G1,A6:G20,3,FALSE) -> Hoverson, Trey | G1: 1 | J1: Offset | K1: =VLOOKUP(G1,A6:H20,8,FALSE) -> 44 | BK1: Emotional Awarenss
C2: =VLOOKUP(G1,A6:G20,7,FALSE) -> 09:07:51.460 | I2: Guide
C3: =VLOOKUP(G1,A6:J20,10,FALSE) -> (GMT-04:00) Eastern Time (US and Canada) *DST*
A4: # | C4: Full Name | D4: First Name | E4: Last Name | F4: Date | G4: Time | H4: Thoughts | I4: Scale | K4: Space | P4: Quadrant | W4: Time | AJ4: Space | AU4: Quadrant | AV4: % Thru | BC4: Time | BH4: Micro Awarness | BK4: Space | BP4: Quadrant | BV4: Time Into Current Emo Awareness | BW4: % Thru | BX4: Direction of Wave | BY4: Direction | BZ4: Rotation | CA4: Orbit | CB4: Polarity | CC4: Zone | CE4: Time | CJ4: Space | CY4: Quadrant | CZ4: % Thru | DA4: Zone | DC4: Time | DH4: Micro Awarness | DK4: Space | DP4: Quadrant | DV4: Time Into Current Physical Awareness | DW4: % Thru | DX4: Phase | DY4: Pos/Neg | DZ4: Direction Of Wave | EA4: Direction | EB4: Rotation | EC4: Orbit | ED4: Polarity | EE4: Zone | EG4: Time | EL4: Sapce | FB4: Quadrant | FD4: Time | FI4: Micro Awarness
N5: Solid | O5: Alignment | Q5: Polarity Flip in Progress | T5: Wave | U5: Phase | V5: Polarity Flip in Progress | W5: Solid | Y5: time quadrant | Z5: Time into Current Awarness | AA5: % thru current awarness | AB5: direction | AC5: direction | AD5: rotation | AE5: orbit | AF5: Polarity | AG5: zone | AL5: degree offset between user and current time | AT5: Alignement? | AW5: Polarity Flip in Progress | AZ5: Wave | BA5: Phase | BB5: Polarity Flip in Progress | BQ5: Polarity Flip in Progress | BT5: Wave (M) | BU5: Phase (M) | BV5: Time Into Current Emo Awareness | BW5: % Thru awarness | CD5: Polarity Flip in Progress | CI5: Offset between user macro time and live macro time. | CT5: Polarity Flip in Progress | CW5: Wave(m) | CX5: Phase(m) | DB5: Polarity Flip in Progress | DQ5: Polarity Flip in Progress | DT5: Wave (M) | DU5: Phase (M) | EF5: Polarity Flip in Progress | EW5: Polarity Flip in Progress | EZ5: Wave (m) | FA5: Phse (m) | FC5: Polarity Flip in Progress
A6: =_xlfn.SEQUENCE(COUNTA(C6:C20))-1 -> 0 | C6: =Calculations!A5 -> Hoverson, Kathy | F6: =Calculations!D5 -> 2025-03-17 | G6: =Calculations!E5 -> 10:35:11.910 | H6: =Calculations!FB5 -> 0 | I6: =IF(Calculations!C11=1,Calculations!W72,Calculations!W73) ->  | J6: =Calculations!F5 -> (GMT-04:00) Eastern Time (US and Canada) *DST* | K6: =Calculations!N5 -> 2-5 | L6: =Calculations!O5 -> WNW | M6: =Calculations!$N$11 -> 59.76 | N6: =Calculations!Q5 -> IO | O6: ='Awarness Alignments'!$AF$7 -> 0 | P6: =Calculations!O9 -> 4 | Q6: =Calculations!$X$126 -> 0 | R6: =Calculations!AK5 -> ♂ | T6: =Calculations!S5 -> 2 | U6: =Calculations!U5 -> 3 | V6: =Calculations!$X$135 -> 1 | W6: =Calculations!AQ5 -> IO | X6: ='Awarness Alignments'!$IN$7 -> 0 | Y6: =Calculations!AR5 -> 3 | Z6: =Calculations!AD5 -> 86.21888785 | AA6: =Calculations!AE5 -> 0.2422237974 | AB6: =Calculations!AJ5 -> LR | AC6: =Calculations!AL5 -> ↗ | AD6: =Calculations!AM5 -> ↶ | AE6: =Calculations!AN5 -> ⇆ | AF6: =Calculations!AO5 -> -+ | AG6: =Calculations!AP5 -> 3 | AH6: =Calculations!AS5 -> 13:37:16.003 | AI6: =Calculations!AS10 -> 09:19:41.311 | AJ6: =Calculations!BE5 -> 1-6 | AK6: =Calculations!BF5 -> NNE | AL6: =Calculations!BE11 -> 11.21 | AM6: =Calculations!AT5 -> RL | AN6: =Calculations!AV5 -> ↖ | AO6: =Calculations!AW5 -> ↶ | AP6: =Calculations!AX5 -> ⇇ | AQ6: =Calculations!AY5 -> +- | AR6: =Calculations!AZ5 -> 2 | AS6: =Calculations!BD5 -> I | AT6: ='Awarness Alignments'!$AF$8 -> 0 | AU6: =Calculations!BF9 -> 1 | AV6: =Calculations!BK5 -> 0.6267412979 | AW6: =Calculations!$X$127 -> 0 | AX6: =Calculations!AU5 -> ♀ | AZ6: =Calculations!T5 -> 1 | BA6: =Calculations!Y5 -> 5 | BB6: =Calculations!$X$136 -> 1 | BC6: =Calculations!BA5 -> ID | BD6: ='Awarness Alignments'!$IN$8 -> 0 | BE6: =Calculations!BB5 -> 1 | BF6: =Calculations!BC5 -> 00:11:11.864 | BG6: =Calculations!BC10 -> 08:14:57.080 | BH6: =Calculations!BD5 -> I | BK6: =Calculations!BL5 -> 8-2 | BL6: =Calculations!BM5 -> SE | BM6: =Calculations!BL11 -> 5.58 | BN6: =Calculations!BO5 -> O | BO6: ='Awarness Alignments'!$AF$9 -> 0 | BP6: =Calculations!BM9 -> 2 | BQ6: =Calculations!$X$128 -> 0 | BR6: =Calculations!CI5 -> ♀ | BT6: =Calculations!BS5 -> 1 | BU6: =Calculations!BU5 -> 1 | BV6: =Calculations!CD5 -> 3.588282689 | BW6: =Calculations!CE5 -> 0.5645326555 | BX6: =Calculations!CH5 -> RL | BY6: =Calculations!CJ5 -> ↖ | BZ6: =Calculations!CK5 -> ↶ | CA6: =Calculations!CL5 -> ⇇ | CB6: =Calculations!CM5 -> +- | CC6: =Calculations!CN5 -> 2 | CD6: =Calculations!$X$137 -> 0 | CE6: =Calculations!CO5 -> OC | CF6: ='Awarness Alignments'!$IN$9 -> 0 | CG6: =Calculations!CP5 -> 1 | CH6: =Calculations!CQ5 -> 02:43:03.841 | CI6: =Calculations!CQ10 -> 09:18:40.874 | CJ6: =Calculations!DC5 -> 4-5 | CK6: =Calculations!DD5 -> NNE | CL6: =Calculations!DC11 -> 91.91 | CM6: =Calculations!CR5 -> LR | CN6: =Calculations!CT5 -> ↘ | CO6: =Calculations!CU5 -> ↷ | CP6: =Calculations!CV5 -> ⇉ | CQ6: =Calculations!CW5 -> -+ | CR6: =Calculations!DB5 -> IO | CS6: ='Awarness Alignments'!$AF$10 -> 0 | CT6: =Calculations!$X$129 -> 1 | CU6: =Calculations!CS5 -> ♂ | CW6: =Calculations!BT5 -> 4 | CX6: =Calculations!BY5 -> 3 | CY6: =Calculations!DD9 -> 1 | DA6: =Calculations!CX5 -> 5 | DB6: =Calculations!$X$138 -> 1 | DC6: =Calculations!CY5 -> IO | DD6: ='Awarness Alignments'!$IN$10 -> 0 | DE6: =Calculations!CZ5 -> 4 | DF6: =Calculations!DA5 -> 19:32:55.621 | DG6: =Calculations!DA10 -> 05:57:26.806 | DH6: =Calculations!DB5 -> IO | DK6: =Calculations!DF5 -> 7-5 | DL6: =Calculations!DG5 -> NW | DM6: =Calculations!DF11 -> 50.1 | DN6: =Calculations!DI5 -> O | DO6: ='Awarness Alignments'!$AF$11 -> 0 | DP6: =Calculations!DG9 -> 4 | DQ6: =Calculations!$X$130 -> 0 | DR6: =Calculations!EE5 -> ♂ | DT6: =Calculations!DM5 -> 7 | DU6: =Calculations!DO5 -> 4 | DV6: =Calculations!DX5 -> 0.1657132445 | DW6: =Calculations!DY5 -> 0.3389245216 | DX6: =Calculations!EB5 -> 8 | DY6: =Calculations!EC5 -> N | DZ6: =Calculations!ED5 -> LR | EA6: =Calculations!EF5 -> ↘ | EB6: =Calculations!EG5 -> ↶ | EC6: =Calculations!EH5 -> ⇆ | ED6: =Calculations!EI5 -> ++ | EE6: =Calculations!EJ5 -> 7 | EF6: =Calculations!$X$139 -> 0 | EG6: =Calculations!EK5 -> D | EH6: ='Awarness Alignments'!$IN$11 -> 0 | EI6: =Calculations!EL5 -> 2 | EJ6: =Calculations!EM5 -> 05:10:10.064 | EK6: =Calculations!EM10 -> 01:06:48.510 | EL6: =Calculations!EY5 -> 2-4 | EM6: =Calculations!EZ5 -> W | EN6: =Calculations!EY11 -> 114.89 | EO6: =Calculations!EN5 -> RL | EP6: =Calculations!EP5 -> ↖ | EQ6: =Calculations!EQ5 -> ↷ | ER6: =Calculations!ER5 -> ⇄ | ES6: =Calculations!ES5 -> -- | ET6: =Calculations!ET5 -> 4 | EU6: =Calculations!EX5 -> D | EV6: ='Awarness Alignments'!$AF$12 -> 0 | EW6: =Calculations!$X$131 -> 0 | EX6: =Calculations!EO5 -> ♀ | EZ6: =Calculations!DN5 -> 2 | FA6: =Calculations!DS5 -> 4 | FB6: =Calculations!EZ9 -> 4 | FC6: =Calculations!$X$140 -> 0 | FD6: =Calculations!EU5 -> C | FE6: ='Awarness Alignments'!$IN$12 -> 0 | FF6: =Calculations!EV5 -> 1 | FG6: =Calculations!EW5 -> 21:51:58.921 | FH6: =Calculations!EW10 -> 02:17:09.358 | FI6: =Calculations!EX5 -> D
A7: 1 | C7: Hoverson, Trey | F7: 2024-03-11 | G7: 09:07:51.460 | H7: 44 | J7: (GMT-04:00) Eastern Time (US and Canada) *DST* | K7: 8-4 | L7: S | M7: 68.43 | N7: ID | O7: 0 | P7: 3 | Q7: 0 | R7: ♀ | T7: 8 | U7: 4 | V7: 0 | W7: C | X7: 0 | Y7: 2 | Z7: 80.40337338 | AA7: 0.2258891861 | AB7: RL | AC7: ↙ | AD7: ↶ | AE7: ⇇ | AF7: -- | AG7: 2 | AH7: 03:53:13.399 | AI7: 02:42:18.287 | AJ7: 1-5 | AK7: NE | AL7: 44.94 | AM7: LR | AN7: ↗ | AO7: ↷ | AP7: ⇉ | AQ7: ++ | AR7: 1 | AS7: IO | AT7: 0 | AU7: 1 | AV7: 0.8426796172 | AW7: 0 | AX7: ♂ | AZ7: 1 | BA7: 5 | BB7: 0 | BC7: D | BD7: 0 | BE7: 3 | BF7: 11:25:16.826 | BG7: 00:59:55.898 | BH7: IO | BK7: 8-3 | BL7: SSE | BM7: 52.43 | BN7: C | BO7: 1 | BP7: 3 | BQ7: 0 | BR7: ♂ | BT7: 8 | BU7: 5 | BV7: 4.130159094 | BW7: 0.6497944212 | BX7: LR | BY7: ↘ | BZ7: ↷ | CA7: ⇉ | CB7: -+ | CC7: 1 | CD7: 1 | CE7: OC | CF7: 0 | CG7: 2 | CH7: 08:49:29.630 | CI7: 01:09:55.145 | CJ7: 5-2 | CK7: WNW | CL7: 2.91 | CM7: RL | CN7: ↖ | CO7: ↶ | CP7: ⇇ | CQ7: +- | CR7: IO | CS7: 0 | CT7: 0 | CU7: ♀ | CW7: 5 | CX7: 1 | CY7: 4 | DA7: 6 | DB7: 0 | DC7: O | DD7: 0 | DE7: 3 | DF7: 14:24:17.762 | DG7: 00:44:42.462 | DH7: IO | DK7: 1-3 | DL7: E | DM7: 38.28 | DN7: D | DO7: 0 | DP7: 2 | DQ7: 0 | DR7: ♂ | DT7: 1 | DU7: 3 | DV7: 0.2187122078 | DW7: 0.4473274759 | DX7: 8 | DY7: N | DZ7: LR | EA7: ↗ | EB7: ↷ | EC7: ⇉ | ED7: ++ | EE7: 1 | EF7: 0 | EG7: DC | EH7: 0 | EI7: 3 | EJ7: 10:13:25.189 | EK7: 00:51:03.121 | EL7: 3-4 | EM7: SSE | EN7: 37.87 | EO7: RL | EP7: ↙ | EQ7: ↷ | ER7: ⇄ | ES7: +- | ET7: 4 | EU7: C | EV7: 1 | EW7: 0 | EX7: ♀ | EZ7: 3 | FA7: 3 | FB7: 3 | FC7: 0 | FD7: IO | FE7: 0 | FF7: 4 | FG7: 19:15:52.906 | FH7: 07:09:30.194 | FI7: C
A8: 2 | C8: Selig, Madilyn | F8: 2024-02-22 | G8: 18:27:43.380 | H8: 44 | J8: (GMT-05:00) Eastern Time (US and Canada) | K8: 8-4 | L8: S | M8: 24.13 | N8: ID | O8: 0 | P8: 3 | Q8: 0 | R8: ♀ | T8: 8 | U8: 4 | V8: 0 | W8: C | X8: 0 | Y8: 2 | Z8: 62.83383542 | AA8: 0.1765284632 | AB8: RL | AC8: ↙ | AD8: ↶ | AE8: ⇇ | AF8: -- | AG8: 2 | AH8: 03:54:42.249 | AI8: 03:38:24.879 | AJ8: 1-3 | AK8: E | AL8: 78.37 | AM8: LR | AN8: ↗ | AO8: ↷ | AP8: ⇉ | AQ8: ++ | AR8: 1 | AS8: D | AT8: 1 | AU8: 2 | AV8: 0.4733654963 | AW8: 0 | AX8: ♂ | AZ8: 1 | BA8: 3 | BB8: 0 | BC8: DC | BD8: 0 | BE8: 3 | BF8: 10:14:12.059 | BG8: 06:43:54.203 | BH8: D | BK8: 8-6 | BL8: SW | BM8: 68.93 | BN8: IO | BO8: 0 | BP8: 3 | BQ8: 1 | BR8: ♀ | BT8: 8 | BU8: 3 | BV8: 5.628924703 | BW8: 0.885593941 | BX8: RL | BY8: ↙ | BZ8: ↶ | CA8: ⇇ | CB8: -- | CC8: 2 | CD8: 1 | CE8: DC | CF8: 0 | CG8: 2 | CH8: 04:33:25.931 | CI8: 01:31:55.046 | CJ8: 6-2 | CK8: NE | CL8: 69.02 | CM8: RL | CN8: ↙ | CO8: ↷ | CP8: ⇄ | CQ8: +- | CR8: O | CS8: 0 | CT8: 0 | CU8: ♀ | CW8: 7 | CX8: 1 | CY8: 1 | DA8: 8 | DB8: 0 | DC8: OC | DD8: 0 | DE8: 2 | DF8: 08:44:44.683 | DG8: 07:01:31.582 | DH8: O | DK8: 6-5 | DL8: ESE | DM8: 26.3 | DN8: I | DO8: 0 | DP8: 2 | DQ8: 0 | DR8: ♂ | DT8: 6 | DU8: 3 | DV8: 0.2506852338 | DW8: 0.512721233 | DX8: 8 | DY8: N | DZ8: LR | EA8: ↗ | EB8: ↶ | EC8: ⇆ | ED8: -+ | EE8: 7 | EF8: 0 | EG8: IO | EH8: 0 | EI8: 1 | EJ8: 01:45:22.898 | EK8: 08:05:50.196 | EL8: 3-7 | EM8: E | EN8: 177.35 | EO8: LR | EP8: ↘ | EQ8: ↶ | ER8: ⇉ | ES8: -+ | ET8: 5 | EU8: D | EV8: 1 | EW8: 0 | EX8: ♂ | EZ8: 4 | FA8: 1 | FB8: 2 | FC8: 0 | FD8: ID | FE8: 0 | FF8: 4 | FG8: 18:18:17.115 | FH8: 04:03:31.202 | FI8: D
A9: 3 | C9: Hoverson, Trey | F9: 2024-02-19 | G9: 12:11:31.300 | H9: a | J9: (GMT-05:00) Eastern Time (US and Canada) | K9: 8-4 | L9: S | M9: 67.11 | N9: ID | O9: 0 | P9: 3 | Q9: 0 | R9: ♀ | T9: 8 | U9: 4 | V9: 0 | W9: C | X9: 0 | Y9: 2 | Z9: 59.57258449 | AA9: 0.1673661447 | AB9: RL | AC9: ↙ | AD9: ↶ | AE9: ⇇ | AF9: -- | AG9: 2 | AH9: 03:54:58.741 | AI9: 02:40:32.945 | AJ9: 1-3 | AK9: E | AL9: 18.25 | AM9: LR | AN9: ↗ | AO9: ↷ | AP9: ⇉ | AQ9: ++ | AR9: 1 | AS9: ID | AT9: 0 | AU9: 2 | AV9: 0.03357489355 | AW9: 1 | AX9: ♂ | AZ9: 1 | BA9: 2 | BB9: 0 | BC9: C | BD9: 1 | BE9: 3 | BF9: 10:01:00.435 | BG9: 00:24:20.493 | BH9: ID | BK9: 8-6 | BL9: SW | BM9: 21.29 | BN9: O | BO9: 0 | BP9: 3 | BQ9: 0 | BR9: ♀ | BT9: 8 | BU9: 2 | BV9: 2.367673777 | BW9: 0.3725041037 | BX9: RL | BY9: ↙ | BZ9: ↶ | CA9: ⇇ | CB9: -- | CC9: 2 | CD9: 0 | CE9: DC | CF9: 0 | CG9: 2 | CH9: 04:48:49.493 | CI9: 02:50:44.993 | CJ9: 2-3 | CK9: WSW | CL9: 57.61 | CM9: LR | CN9: ↗ | CO9: ↶ | CP9: ⇆ | CQ9: -+ | CR9: OC | CS9: 0 | CT9: 1 | CU9: ♂ | CW9: 2 | CX9: 5 | CY9: 4 | DA9: 3 | DB9: 1 | DC9: OC | DD9: 0 | DE9: 3 | DF9: 14:56:24.355 | DG9: 01:16:49.055 | DH9: OC | DK9: 1-4 | DL9: ENE | DM9: 6.89 | DN9: OC | DO9: 0 | DP9: 2 | DQ9: 0 | DR9: ♀ | DT9: 1 | DU9: 4 | DV9: 0.4119503335 | DW9: 0.8425533476 | DX9: 8 | DY9: P | DZ9: RL | EA9: ↖ | EB9: ↶ | EC9: ⇇ | ED9: +- | EE9: 2 | EF9: 0 | EG9: I | EH9: 0 | EI9: 1 | EJ9: 01:04:43.404 | EK9: 09:59:44.906 | EL9: 6-4 | EM9: E | EN9: 28.97 | EO9: RL | EP9: ↖ | EQ9: ↷ | ER9: ⇄ | ES9: -- | ET9: 8 | EU9: D | EV9: 0 | EW9: 0 | EX9: ♀ | EZ9: 6 | FA9: 4 | FB9: 2 | FC9: 0 | FD9: C | FE9: 1 | FF9: 3 | FG9: 09:46:45.391 | FH9: 07:21:22.291 | FI9: D
A10: 4 | C10: Jackmack, Robin | F10: 2023-07-17 | G10: 01:17:47 | H10: a | I10: 4 | J10: (GMT-04:00) Eastern Time (US and Canada) *DST* | K10: 6-3 | L10: ENE | M10: 57.75 | N10: C | O10: 0 | P10: 2 | Q10: 0 | R10: ♂ | T10: 6 | U10: 5 | V10: 0 | W10: OC | X10: 0 | Y10: 1 | Z10: 207.3123495 | AA10: 0.568324986 | AB10: LR | AC10: ↗ | AD10: ↶ | AE10: ⇆ | AF10: -+ | AG10: 7 | AH10: 02:47:02.985 | AI10: 08:17:05.955 | AJ10: 4-5 | AK10: NNE | AL10: 107.99 | AM10: LR | AN10: ↘ | AO10: ↷ | AP10: ⇉ | AQ10: -+ | AR10: 5 | AS10: I | AT10: 0 | AU10: 1 | AV10: 0.2795989122 | AW10: 0 | AX10: ♂ | AZ10: 4 | BA10: 3 | BB10: 1 | BC10: IO | BD10: 0 | BE10: 4 | BF10: 19:38:23.279 | BG10: 10:19:14.161 | BH10: I | BK10: 3-4 | BL10: SSE | BM10: 95.99 | BN10: OC | BO10: 0 | BP10: 3 | BQ10: 0 | BR10: ♀ | BT10: 3 | BU10: 4 | BV10: 5.527379299 | BW10: 0.8261992146 | BX10: RL | BY10: ↙ | BZ10: ↷ | CA10: ⇄ | CB10: +- | CC10: 4 | CD10: 0 | CE10: I | CF10: 0 | CG10: 4 | CH10: 19:05:12.841 | CI10: 07:57:33.883 | CJ10: 6-5 | CK10: ESE | CL10: 72.26 | CM10: LR | CN10: ↗ | CO10: ↶ | CP10: ⇆ | CQ10: -+ | CR10: I | CS10: 0 | CT10: 0 | CU10: ♂ | CW10: 6 | CX10: 4 | CY10: 2 | DA10: 7 | DB10: 0 | DC10: IO | DD10: 0 | DE10: 1 | DF10: 01:49:43.612 | DG10: 01:56:53.604 | DH10: I | DK10: 7-6 | DL10: WNW | DM10: 10.42 | DN10: I | DO10: 0 | DP10: 4 | DQ10: 0 | DR10: ♀ | DT10: 7 | DU10: 5 | DV10: 0.3811262464 | DW10: 0.7405897893 | DX10: 3 | DY10: P | DZ10: RL | EA10: ↙ | EB10: ↷ | EC10: ⇄ | ED10: +- | EE10: 8 | EF10: 1 | EG10: ID | EH10: 0 | EI10: 2 | EJ10: 06:07:46.938 | EK10: 08:13:54.359 | EL10: 5-6 | EM10: SSW | EN10: 140.61 | EO10: RL | EP10: ↖ | EQ10: ↶ | ER10: ⇇ | ES10: +- | ET10: 6 | EU10: I | EV10: 0 | EW10: 0 | EX10: ♀ | EZ10: 5 | FA10: 5 | FB10: 3 | FC10: 0 | FD10: ID | FE10: 0 | FF10: 3 | FG10: 12:13:35.042 | FH10: 11:07:29.231 | FI10: I
A11: 5 | C11: Jackmack, Robin | F11: 2023-07-17 | G11: 01:17:47 | H11: a | I11: 4 | J11: (GMT-04:00) Eastern Time (US and Canada) *DST* | K11: 6-3 | L11: ENE | M11: 57.75 | N11: C | O11: 0 | P11: 2 | Q11: 0 | R11: ♂ | T11: 6 | U11: 5 | V11: 0 | W11: OC | X11: 0 | Y11: 1 | Z11: 207.3123495 | AA11: 0.568324986 | AB11: LR | AC11: ↗ | AD11: ↶ | AE11: ⇆ | AF11: -+ | AG11: 7 | AH11: 02:47:02.985 | AI11: 08:17:05.955 | AJ11: 4-5 | AK11: NNE | AL11: 107.99 | AM11: LR | AN11: ↘ | AO11: ↷ | AP11: ⇉ | AQ11: -+ | AR11: 5 | AS11: I | AT11: 0 | AU11: 1 | AV11: 0.2795989122 | AW11: 0 | AX11: ♂ | AZ11: 4 | BA11: 3 | BB11: 1 | BC11: IO | BD11: 0 | BE11: 4 | BF11: 19:38:23.279 | BG11: 10:19:14.161 | BH11: I | BK11: 3-4 | BL11: SSE | BM11: 95.99 | BN11: OC | BO11: 0 | BP11: 3 | BQ11: 0 | BR11: ♀ | BT11: 3 | BU11: 4 | BV11: 5.527379299 | BW11: 0.8261992146 | BX11: RL | BY11: ↙ | BZ11: ↷ | CA11: ⇄ | CB11: +- | CC11: 4 | CD11: 0 | CE11: I | CF11: 0 | CG11: 4 | CH11: 19:05:12.841 | CI11: 07:57:33.883 | CJ11: 6-5 | CK11: ESE | CL11: 72.26 | CM11: LR | CN11: ↗ | CO11: ↶ | CP11: ⇆ | CQ11: -+ | CR11: I | CS11: 0 | CT11: 0 | CU11: ♂ | CW11: 6 | CX11: 4 | CY11: 2 | DA11: 7 | DB11: 0 | DC11: IO | DD11: 0 | DE11: 1 | DF11: 01:49:43.612 | DG11: 01:56:53.604 | DH11: I | DK11: 7-6 | DL11: WNW | DM11: 10.42 | DN11: I | DO11: 0 | DP11: 4 | DQ11: 0 | DR11: ♀ | DT11: 7 | DU11: 5 | DV11: 0.3811262464 | DW11: 0.7405897893 | DX11: 3 | DY11: P | DZ11: RL | EA11: ↙ | EB11: ↷ | EC11: ⇄ | ED11: +- | EE11: 8 | EF11: 1 | EG11: ID | EH11: 0 | EI11: 2 | EJ11: 06:07:46.938 | EK11: 08:13:54.359 | EL11: 5-6 | EM11: SSW | EN11: 140.61 | EO11: RL | EP11: ↖ | EQ11: ↶ | ER11: ⇇ | ES11: +- | ET11: 6 | EU11: I | EV11: 0 | EW11: 0 | EX11: ♀ | EZ11: 5 | FA11: 5 | FB11: 3 | FC11: 0 | FD11: ID | FE11: 0 | FF11: 3 | FG11: 12:13:35.042 | FH11: 11:07:29.231 | FI11: I
A12: 6 | C12: Hoverson, Trey | F12: 2024-02-19 | G12: 12:11:31.300 | H12: a | J12: (GMT-05:00) Eastern Time (US and Canada) | K12: 8-4 | L12: S | M12: 67.11 | N12: ID | O12: 0 | P12: 3 | Q12: 0 | R12: ♀ | T12: 8 | U12: 4 | V12: 0 | W12: C | X12: 0 | Y12: 2 | Z12: 59.57258449 | AA12: 0.1673661447 | AB12: RL | AC12: ↙ | AD12: ↶ | AE12: ⇇ | AF12: -- | AG12: 2 | AH12: 03:54:58.741 | AI12: 02:40:32.945 | AJ12: 1-3 | AK12: E | AL12: 18.25 | AM12: LR | AN12: ↗ | AO12: ↷ | AP12: ⇉ | AQ12: ++ | AR12: 1 | AS12: ID | AT12: 0 | AU12: 2 | AV12: 0.03357489355 | AW12: 1 | AX12: ♂ | AZ12: 1 | BA12: 2 | BB12: 0 | BC12: C | BD12: 1 | BE12: 3 | BF12: 10:01:00.435 | BG12: 00:24:20.493 | BH12: ID | BK12: 8-6 | BL12: SW | BM12: 21.29 | BN12: O | BO12: 0 | BP12: 3 | BQ12: 0 | BR12: ♀ | BT12: 8 | BU12: 2 | BV12: 2.367673777 | BW12: 0.3725041037 | BX12: RL | BY12: ↙ | BZ12: ↶ | CA12: ⇇ | CB12: -- | CC12: 2 | CD12: 0 | CE12: DC | CF12: 0 | CG12: 2 | CH12: 04:48:49.493 | CI12: 02:50:44.993 | CJ12: 2-3 | CK12: WSW | CL12: 57.61 | CM12: LR | CN12: ↗ | CO12: ↶ | CP12: ⇆ | CQ12: -+ | CR12: OC | CS12: 0 | CT12: 1 | CU12: ♂ | CW12: 2 | CX12: 5 | CY12: 4 | DA12: 3 | DB12: 1 | DC12: OC | DD12: 0 | DE12: 3 | DF12: 14:56:24.355 | DG12: 01:16:49.055 | DH12: OC | DK12: 1-4 | DL12: ENE | DM12: 6.89 | DN12: OC | DO12: 0 | DP12: 2 | DQ12: 0 | DR12: ♀ | DT12: 1 | DU12: 4 | DV12: 0.4119503335 | DW12: 0.8425533476 | DX12: 8 | DY12: P | DZ12: RL | EA12: ↖ | EB12: ↶ | EC12: ⇇ | ED12: +- | EE12: 2 | EF12: 0 | EG12: I | EH12: 0 | EI12: 1 | EJ12: 01:04:43.404 | EK12: 09:59:44.906 | EL12: 6-4 | EM12: E | EN12: 28.97 | EO12: RL | EP12: ↖ | EQ12: ↷ | ER12: ⇄ | ES12: -- | ET12: 8 | EU12: D | EV12: 0 | EW12: 0 | EX12: ♀ | EZ12: 6 | FA12: 4 | FB12: 2 | FC12: 0 | FD12: C | FE12: 1 | FF12: 3 | FG12: 09:46:45.391 | FH12: 07:21:22.291 | FI12: D
A13: 7 | C13: Hoverson, Trey | F13: 2023-11-22 | G13: 00:08:00.810 | H13: i | J13: (GMT-04:00) Eastern Time (US and Canada) *DST* | K13: 6-3 | L13: ENE | M13: 163.52 | N13: OC | O13: 0 | P13: 2 | Q13: 1 | R13: ♂ | T13: 6 | U13: 5 | V13: 1 | W13: OC | X13: 0 | Y13: 1 | Z13: 335.2638983 | AA13: 0.9166151717 | AB13: LR | AC13: ↗ | AD13: ↶ | AE13: ⇆ | AF13: -+ | AG13: 7 | AH13: 02:57:29.907 | AI13: 03:38:01.779 | AJ13: 7-2 | AK13: NNE | AL13: 70.93 | AM13: RL | AN13: ↙ | AO13: ↷ | AP13: ⇄ | AQ13: +- | AR13: 8 | AS13: ID | AT13: 0 | AU13: 1 | AV13: -0.002471753638 | AW13: 1 | AX13: ♀ | AZ13: 7 | BA13: 2 | BB13: 0 | BC13: O | BD13: 0 | BE13: 2 | BF13: 08:00:04.449 | BG13: 02:25:16.479 | BH13: ID | BK13: 6-6 | BL13: SE | BM13: 67.75 | BN13: O | BO13: 0 | BP13: 2 | BQ13: 0 | BR13: ♀ | BT13: 6 | BU13: 2 | BV13: 2.120991518 | BW13: 0.3304496162 | BX13: RL | BY13: ↖ | BZ13: ↷ | CA13: ⇄ | CB13: -- | CC13: 8 | CD13: 0 | CE13: DC | CF13: 0 | CG13: 3 | CH13: 10:50:05.191 | CI13: 03:10:30.705 | CJ13: 2-5 | CK13: WNW | CL13: 12.19 | CM13: LR | CN13: ↗ | CO13: ↶ | CP13: ⇆ | CQ13: -+ | CR13: ID | CS13: 0 | CT13: 0 | CU13: ♂ | CW13: 2 | CX13: 4 | CY13: 4 | DA13: 3 | DB13: 0 | DC13: O | DD13: 0 | DE13: 3 | DF13: 13:55:50.847 | DG13: 00:16:15.547 | DH13: ID | DK13: 7-4 | DL13: NNW | DM13: 70.8 | DN13: C | DO13: 0 | DP13: 1 | DQ13: 0 | DR13: ♀ | DT13: 7 | DU13: 3 | DV13: 0.1460678301 | DW13: 0.2958450112 | DX13: 6 | DY13: P | DZ13: RL | EA13: ↙ | EB13: ↷ | EC13: ⇄ | ED13: +- | EE13: 8 | EF13: 1 | EG13: IO | EH13: 0 | EI13: 2 | EJ13: 07:21:07.479 | EK13: 03:43:20.831 | EL13: 2-6 | EM13: NW | EN13: 158.52 | EO13: RL | EP13: ↖ | EQ13: ↷ | ER13: ⇄ | ES13: -- | ET13: 4 | EU13: OC | EV13: 0 | EW13: 0 | EX13: ♀ | EZ13: 2 | FA13: 2 | FB13: 4 | FC13: 0 | FD13: D | FE13: 0 | FF13: 1 | FG13: 22:54:00.991 | FH13: 03:31:22.109 | FI13: OC
A14: 8 | C14: Hoverson, Trey | F14: 2039-08-27 | G14: 17:55:12.868 | H14: h | J14: (GMT-04:00) Eastern Time (US and Canada) *DST* | K14: 8-3 | L14: SSE | M14: 101.15 | N14: C | O14: 0 | P14: 3 | Q14: 0 | R14: ♂ | T14: 8 | U14: 5 | V14: 1 | W14: OC | X14: 0 | Y14: 2 | Z14: 249.1202878 | AA14: 0.6799450858 | AB14: LR | AC14: ↘ | AD14: ↷ | AE14: ⇉ | AF14: -+ | AG14: 1 | AH14: 08:50:23.901 | AI14: 02:14:52.215 | AJ14: 5-3 | AK14: W | AL14: 175.32 | AM14: LR | AN14: ↗ | AO14: ↷ | AP14: ⇉ | AQ14: ++ | AR14: 5 | AS14: D | AT14: 0 | AU14: 4 | AV14: 0.6373631751 | AW14: 0 | AX14: ♂ | AZ14: 5 | BA14: 3 | BB14: 1 | BC14: DC | BD14: 0 | BE14: 1 | BF14: 22:19:07.255 | BG14: 11:53:46.327 | BH14: D | BK14: 4-5 | BL14: NNE | BM14: 174.54 | BN14: IO | BO14: 0 | BP14: 1 | BQ14: 1 | BR14: ♂ | BT14: 4 | BU14: 3 | BV14: 0.5146330637 | BW14: 0.07692480696 | BX14: LR | BY14: ↘ | BZ14: ↷ | CA14: ⇉ | CB14: -+ | CC14: 5 | CD14: 1 | CE14: IO | CF14: 0 | CG14: 4 | CH14: 19:32:18.465 | CI14: 11:52:43.979 | CJ14: 8-5 | CK14: SSW | CL14: 98.38 | CM14: LR | CN14: ↘ | CO14: ↷ | CP14: ⇉ | CQ14: -+ | CR14: I | CS14: 0 | CT14: 0 | CU14: ♂ | CW14: 8 | CX14: 4 | CY14: 3 | DA14: 1 | DB14: 0 | DC14: IO | DD14: 0 | DE14: 2 | DF14: 07:50:46.303 | DG14: 05:48:48.997 | DH14: I | DK14: 8-8 | DL14: W | DM14: 131.64 | DN14: ID | DO14: 1 | DP14: 4 | DQ14: 1 | DR14: ♀ | DT14: 8 | DU14: 1 | DV14: 1.157407678e-05 | DW14: 2.249046535e-05 | DX14: 4 | DY14: P | DZ14: RL | EA14: ↙ | EB14: ↷ | EC14: ⇉ | ED14: -- | EE14: 2 | EF14: 1 | EG14: ID | EH14: 1 | EI14: 2 | EJ14: 05:59:59.960 | EK14: 05:04:28.351 | EL14: 8-8 | EM14: W | EN14: 160.96 | EO14: RL | EP14: ↙ | EQ14: ↷ | ER14: ⇉ | ES14: -- | ET14: 2 | EU14: ID | EV14: 1 | EW14: 1 | EX14: ♀ | EZ14: 8 | FA14: 1 | FB14: 4 | FC14: 1 | FD14: ID | FE14: 1 | FF14: 2 | FG14: 06:00:00.057 | FH14: 03:34:36.957 | FI14: ID
A15: 9 | C15: Hoverson, Trey | F15: 2039-08-23 | G15: 21:43:00 | H15: g | J15: (GMT-04:00) Eastern Time (US and Canada) *DST* | K15: 8-3 | L15: SSE | M15: 100.92 | N15: C | O15: 0 | P15: 3 | Q15: 0 | R15: ♂ | T15: 8 | U15: 5 | V15: 1 | W15: OC | X15: 0 | Y15: 2 | Z15: 245.2784722 | AA15: 0.6696905214 | AB15: LR | AC15: ↘ | AD15: ↷ | AE15: ⇉ | AF15: -+ | AG15: 1 | AH15: 08:50:05.443 | AI15: 02:14:33.757 | AJ15: 5-3 | AK15: W | AL15: 164.25 | AM15: LR | AN15: ↗ | AO15: ↷ | AP15: ⇉ | AQ15: ++ | AR15: 5 | AS15: ID | AT15: 0 | AU15: 4 | AV15: 0.1451448112 | AW15: 0 | AX15: ♂ | AZ15: 5 | BA15: 2 | BB15: 0 | BC15: C | BD15: 0 | BE15: 1 | BF15: 22:04:21.261 | BG15: 11:39:00.333 | BH15: ID | BK15: 4-6 | BL15: NE | BM15: 161.62 | BN15: O | BO15: 0 | BP15: 1 | BQ15: 0 | BR15: ♀ | BT15: 4 | BU15: 3 | BV15: 3.362896825 | BW15: 0.5026691974 | BX15: RL | BY15: ↙ | BZ15: ↶ | CA15: ⇇ | CB15: -- | CC15: 6 | CD15: 0 | CE15: DC | CF15: 0 | CG15: 4 | CH15: 16:44:55.195 | CI15: 09:05:20.710 | CJ15: 4-8 | CK15: E | CL15: 161.8 | CM15: RL | CN15: ↙ | CO15: ↷ | CP15: ⇇ | CQ15: -- | CR15: ID | CS15: 0 | CT15: 0 | CU15: ♀ | CW15: 4 | CX15: 1 | CY15: 2 | DA15: 6 | DB15: 1 | DC15: ID | DD15: 0 | DE15: 4 | DF15: 17:56:09.381 | DG15: 04:16:34.081 | DH15: ID | DK15: 1-2 | DL15: ESE | DM15: 58.82 | DN15: I | DO15: 0 | DP15: 2 | DQ15: 0 | DR15: ♀ | DT15: 1 | DU15: 2 | DV15: 0.2751678875 | DW15: 0.5346995666 | DX15: 4 | DY15: P | DZ15: RL | EA15: ↖ | EB15: ↶ | EC15: ⇇ | ED15: +- | EE15: 2 | EF15: 0 | EG15: O | EH15: 0 | EI15: 1 | EJ15: 02:13:57.541 | EK15: 08:50:30.770 | EL15: 4-7 | EM15: ENE | EN15: 56.48 | EO15: LR | EP15: ↘ | EQ15: ↷ | ER15: ⇉ | ES15: -+ | ET15: 5 | EU15: C | EV15: 0 | EW15: 0 | EX15: ♂ | EZ15: 4 | FA15: 2 | FB15: 2 | FC15: 0 | FD15: I | FE15: 0 | FF15: 4 | FG15: 18:49:56.043 | FH15: 07:35:27.057 | FI15: C
A16: 10 | C16: Hoverson, Trey | F16: 2023-10-31 | G16: 08:40:46 | H16: a | J16: (GMT-04:00) Eastern Time (US and Canada) *DST* | K16: 6-3 | L16: ENE | M16: 164.87 | N16: OC | O16: 0 | P16: 2 | Q16: 0 | R16: ♂ | T16: 6 | U16: 5 | V16: 1 | W16: OC | X16: 0 | Y16: 1 | Z16: 313.6199769 | AA16: 0.8563988475 | AB16: LR | AC16: ↗ | AD16: ↶ | AE16: ⇆ | AF16: -+ | AG16: 7 | AH16: 02:55:41.518 | AI16: 03:39:50.168 | AJ16: 6-3 | AK16: ENE | AL16: 5.89 | AM16: LR | AN16: ↗ | AO16: ↶ | AP16: ⇆ | AQ16: -+ | AR16: 7 | AS16: DC | AT16: 0 | AU16: 2 | AV16: 0.1071445132 | AW16: 1 | AX16: ♂ | AZ16: 6 | BA16: 5 | BB16: 0 | BC16: O | BD16: 0 | BE16: 1 | BF16: 02:33:12.860 | BG16: 07:52:08.068 | BH16: DC | BK16: 5-6 | BL16: SSW | BM16: 14.38 | BN16: ID | BO16: 0 | BP16: 3 | BQ16: 1 | BR16: ♀ | BT16: 5 | BU16: 5 | BV16: 6.151078042 | BW16: 0.9583354585 | BX16: RL | BY16: ↖ | BZ16: ↶ | CA16: ⇇ | CB16: +- | CC16: 6 | CD16: 1 | CE16: ID | CF16: 1 | CG16: 3 | CH16: 12:01:14.996 | CI16: 04:21:40.511 | CJ16: 7-5 | CK16: NW | CL16: 29.68 | CM16: LR | CN16: ↘ | CO16: ↶ | CP16: ⇆ | CQ16: ++ | CR16: OC | CS16: 0 | CT16: 1 | CU16: ♂ | CW16: 7 | CX16: 4 | CY16: 4 | DA16: 7 | DB16: 0 | DC16: D | DD16: 0 | DE16: 2 | DF16: 05:00:00.184 | DG16: 08:39:35.116 | DH16: OC | DK16: 5-6 | DL16: SSW | DM16: 150.54 | DN16: I | DO16: 0 | DP16: 3 | DQ16: 0 | DR16: ♀ | DT16: 5 | DU16: 5 | DV16: 0.2263069799 | DW16: 0.4583609611 | DX16: 5 | DY16: P | DZ16: RL | EA16: ↖ | EB16: ↶ | EC16: ⇇ | ED16: +- | EE16: 6 | EF16: 0 | EG16: ID | EH16: 1 | EI16: 3 | EJ16: 12:16:14.950 | EK16: 01:11:46.640 | EL16: 3-5 | EM16: SE | EN16: 25.95 | EO16: LR | EP16: ↘ | EQ16: ↶ | ER16: ⇆ | ES16: ++ | ET16: 3 | EU16: OC | EV16: 0 | EW16: 1 | EX16: ♂ | EZ16: 3 | FA16: 4 | FB16: 2 | FC16: 0 | FD16: D | FE16: 0 | FF16: 4 | FG16: 17:00:00.387 | FH16: 09:25:22.713 | FI16: OC
A17: 11 | C17: Hoverson, Trey | F17: 2023-11-07 | G17: 01:08:31 | H17: b | J17: (GMT-04:00) Eastern Time (US and Canada) *DST* | K17: 6-3 | L17: ENE | M17: 164.45 | N17: OC | O17: 1 | P17: 2 | Q17: 1 | R17: ♂ | T17: 6 | U17: 5 | V17: 1 | W17: OC | X17: 1 | Y17: 1 | Z17: 320.3059144 | AA17: 0.8750000322 | AB17: LR | AC17: ↗ | AD17: ↶ | AE17: ⇆ | AF17: -+ | AG17: 7 | AH17: 02:56:15 | AI17: 03:39:16.686 | AJ17: 7-1 | AK17: NE | AL17: 25.98 | AM17: LR | AN17: ↘ | AO17: ↶ | AP17: ⇆ | AQ17: ++ | AR17: 7 | AS17: OC | AT17: 1 | AU17: 1 | AV17: 1.545660925e-06 | AW17: 1 | AX17: ♂ | AZ17: 7 | BA17: 1 | BB17: 1 | BC17: OC | BD17: 1 | BE17: 2 | BF17: 03:00:00.003 | BG17: 07:25:20.925 | BH17: OC | BK17: 6-8 | BL17: S | BM17: 15.31 | BN17: ID | BO17: 0 | BP17: 3 | BQ17: 1 | BR17: ♀ | BT17: 6 | BU17: 1 | BV17: 1.157407435e-05 | BW17: 1.80323608e-06 | BX17: RL | BY17: ↖ | BZ17: ↶ | CA17: ⇄ | CB17: -- | CC17: 8 | CD17: 1 | CE17: ID | CF17: 0 | CG17: 3 | CH17: 11:59:59.997 | CI17: 04:20:25.511 | CJ17: 8-8 | CK17: W | CL17: 15.31 | CM17: RL | CN17: ↙ | CO17: ↷ | CP17: ⇉ | CQ17: -- | CR17: ID | CS17: 1 | CT17: 1 | CU17: ♀ | CW17: 8 | CX17: 1 | CY17: 4 | DA17: 2 | DB17: 1 | DC17: ID | DD17: 1 | DE17: 2 | DF17: 05:59:59.844 | DG17: 07:39:35.456 | DH17: ID | DK17: 7-6 | DL17: WNW | DM17: 109.14 | DN17: IO | DO17: 0 | DP17: 4 | DQ17: 1 | DR17: ♀ | DT17: 7 | DU17: 5 | DV17: 1.157407678e-05 | DW17: 2.344207395e-05 | DX17: 6 | DY17: P | DZ17: RL | EA17: ↙ | EB17: ↷ | EC17: ⇄ | ED17: +- | EE17: 8 | EF17: 0 | EG17: I | EH17: 0 | EI17: 2 | EJ17: 06:29:59.958 | EK17: 04:34:28.353 | EL17: 8-8 | EM17: W | EN17: 160.96 | EO17: RL | EP17: ↙ | EQ17: ↷ | ER17: ⇉ | ES17: -- | ET17: 2 | EU17: ID | EV17: 1 | EW17: 1 | EX17: ♀ | EZ17: 8 | FA17: 1 | FB17: 4 | FC17: 1 | FD17: ID | FE17: 1 | FF17: 2 | FG17: 05:59:59.975 | FH17: 03:34:36.875 | FI17: ID
A18: 12 | C18: Hoverson, Trey | F18: 2023-11-13 | G18: 11:11:09.571 | H18: c | J18: (GMT-04:00) Eastern Time (US and Canada) *DST* | K18: 6-3 | L18: ENE | M18: 164.05 | N18: OC | O18: 0 | P18: 2 | Q18: 1 | R18: ♂ | T18: 6 | U18: 5 | V18: 1 | W18: OC | X18: 0 | Y18: 1 | Z18: 326.7244163 | AA18: 0.8928571751 | AB18: LR | AC18: ↗ | AD18: ↶ | AE18: ⇆ | AF18: -+ | AG18: 7 | AH18: 02:56:47.143 | AI18: 03:38:44.543 | AJ18: 7-1 | AK18: NE | AL18: 45.27 | AM18: LR | AN18: ↘ | AO18: ↶ | AP18: ⇆ | AQ18: ++ | AR18: 7 | AS18: IO | AT18: 0 | AU18: 1 | AV18: 0.857143078 | AW18: 0 | AX18: ♂ | AZ18: 7 | BA18: 1 | BB18: 0 | BC18: C | BD18: 0 | BE18: 2 | BF18: 03:25:42.860 | BG18: 06:59:38.068 | BH18: IO | BK18: 6-7 | BL18: SSE | BM18: 37.81 | BN18: DC | BO18: 0 | BP18: 3 | BQ18: 1 | BR18: ♂ | BT18: 6 | BU18: 1 | BV18: 1.157407435e-05 | BW18: 1.80323608e-06 | BX18: LR | BY18: ↗ | BZ18: ↶ | CA18: ⇆ | CB18: -+ | CC18: 7 | CD18: 0 | CE18: I | CF18: 0 | CG18: 1 | CH18: 00:30:00.003 | CI18: 07:09:34.482 | CJ18: 7-7 | CK18: W | CL18: 15.31 | CM18: LR | CN18: ↘ | CO18: ↶ | CP18: ⇉ | CQ18: -+ | CR18: ID | CS18: 1 | CT18: 1 | CU18: ♂ | CW18: 8 | CX18: 1 | CY18: 4 | DA18: 1 | DB18: 1 | DC18: ID | DD18: 1 | DE18: 2 | DF18: 06:00:00.156 | DG18: 07:39:35.144 | DH18: ID | DK18: 7-7 | DL18: W | DM18: 131.64 | DN18: ID | DO18: 1 | DP18: 4 | DQ18: 1 | DR18: ♂ | DT18: 7 | DU18: 1 | DV18: 1.157407678e-05 | DW18: 2.344207395e-05 | DX18: 6 | DY18: N | DZ18: LR | EA18: ↘ | EB18: ↶ | EC18: ⇉ | ED18: -+ | EE18: 1 | EF18: 1 | EG18: ID | EH18: 1 | EI18: 2 | EJ18: 06:00:00.042 | EK18: 05:04:28.268 | EL18: 7-7 | EM18: W | EN18: 160.96 | EO18: LR | EP18: ↘ | EQ18: ↶ | ER18: ⇉ | ES18: -+ | ET18: 1 | EU18: ID | EV18: 1 | EW18: 1 | EX18: ♂ | EZ18: 8 | FA18: 1 | FB18: 4 | FC18: 1 | FD18: ID | FE18: 1 | FF18: 2 | FG18: 06:00:00.025 | FH18: 03:34:36.926 | FI18: ID
A19: 13 | C19: Hoverson, Trey | F19: 2000-12-21 | G19: 09:37:01 | H19: d | J19: (GMT-04:00) Eastern Time (US and Canada) *DST* | K19: 1-5 | L19: NE | M19: 161.64 | N19: OC | O19: 1 | P19: 1 | Q19: 1 | R19: ♂ | T19: 1 | U19: 4 | V19: 0 | W19: D | X19: 0 | Y19: 3 | Z19: 1.157407435e-05 | AA19: 3.251322748e-08 | AB19: LR | AC19: ↗ | AD19: ↷ | AE19: ⇉ | AF19: ++ | AG19: 1 | AH19: 11:00:00 | AI19: 04:24:28.314 | AJ19: 7-7 | AK19: W | AL19: 160.98 | AM19: LR | AN19: ↘ | AO19: ↶ | AP19: ⇉ | AQ19: -+ | AR19: 1 | AS19: ID | AT19: 1 | AU19: 4 | AV19: 1.560633464e-06 | AW19: 1 | AX19: ♂ | AZ19: 8 | BA19: 1 | BB19: 1 | BC19: ID | BD19: 1 | BE19: 2 | BF19: 06:00:00.003 | BG19: 04:25:20.925 | BH19: ID | BK19: 7-1 | BL19: NE | BM19: 150.31 | BN19: OC | BO19: 1 | BP19: 1 | BQ19: 1 | BR19: ♂ | BT19: 7 | BU19: 1 | BV19: 1.157407435e-05 | BW19: 1.820740357e-06 | BX19: LR | BY19: ↘ | BZ19: ↶ | CA19: ⇆ | CB19: ++ | CC19: 7 | CD19: 1 | CE19: OC | CF19: 0 | CG19: 2 | CH19: 03:00:00.003 | CI19: 04:39:34.482 | CJ19: 7-7 | CK19: W | CL19: 15.31 | CM19: LR | CN19: ↘ | CO19: ↶ | CP19: ⇉ | CQ19: -+ | CR19: ID | CS19: 1 | CT19: 1 | CU19: ♂ | CW19: 8 | CX19: 1 | CY19: 4 | DA19: 1 | DB19: 1 | DC19: ID | DD19: 1 | DE19: 2 | DF19: 06:00:00.157 | DG19: 07:39:35.143 | DH19: ID | DK19: 8-3 | DL19: SSE | DM19: 115.85 | DN19: DC | DO19: 0 | DP19: 3 | DQ19: 1 | DR19: ♂ | DT19: 8 | DU19: 5 | DV19: 1.157407678e-05 | DW19: 2.36696296e-05 | DX19: 7 | DY19: N | DZ19: LR | EA19: ↘ | EB19: ↷ | EC19: ⇉ | ED19: -+ | EE19: 1 | EF19: 0 | EG19: O | EH19: 0 | EI19: 2 | EJ19: 08:30:00.043 | EK19: 02:34:28.268 | EL19: 7-7 | EM19: W | EN19: 160.96 | EO19: LR | EP19: ↘ | EQ19: ↶ | ER19: ⇉ | ES19: -+ | ET19: 1 | EU19: ID | EV19: 1 | EW19: 1 | EX19: ♂ | EZ19: 8 | FA19: 1 | FB19: 4 | FC19: 1 | FD19: ID | FE19: 1 | FF19: 2 | FG19: 06:00:00.045 | FH19: 03:34:36.945 | FI19: ID
A20: 14 | C20: Selig, Jeff | F20: 2001-01-09 | G20: 08:07:40 | H20: e | J20: (GMT-04:00) Eastern Time (US and Canada) *DST* | K20: 1-5 | L20: NE | M20: 139.39 | N20: OC | P20: 1 | R20: ♂ | T20: 1 | U20: 4 | W20: D | Y20: 3 | Z20: 18.93796296 | AA20: 0.05319943089 | AB20: LR | AC20: ↗ | AD20: ↷ | AE20: ⇉ | AF20: ++ | AG20: 1 | AH20: 11:01:35.759 | AI20: 05:09:03.041 | AJ20: 8-6 | AK20: SW | AL20: 149.08 | AM20: RL | AN20: ↙ | AO20: ↶ | AP20: ⇇ | AQ20: -- | AR20: 2 | AS20: O | AU20: 3 | AV20: 0.5535718187 | AX20: ♀ | AZ20: 8 | BA20: 3 | BC20: DC | BE20: 2 | BF20: 04:43:23.569 | BG20: 04:41:13.105 | BH20: O | BK20: 7-3 | BL20: N | BM20: 136.43 | BN20: DC | BP20: 1 | BR20: ♂ | BT20: 7 | BU20: 3 | BV20: 6.224371693 | BW20: 0.9791681297 | BX20: LR | BY20: ↘ | BZ20: ↶ | CA20: ⇆ | CB20: ++ | CC20: 7 | CE20: DC | CG20: 2 | CH20: 04:29:22.503 | CI20: 01:56:50.506 | CJ20: 7-6 | CK20: WNW | CL20: 68.69 | CM20: RL | CN20: ↙ | CO20: ↷ | CP20: ⇄ | CQ20: +- | CR20: IO | CU20: ♀ | CW20: 7 | CX20: 5 | CY20: 4 | DA20: 8 | DC20: I | DE20: 2 | DF20: 06:29:59.874 | DG20: 01:31:35.971 | DH20: IO | DK20: 7-3 | DL20: N | DM20: 41.1 | DN20: D | DP20: 1 | DR20: ♂ | DT20: 7 | DU20: 3 | DV20: 0.3565603377 | DW20: 0.7291856867 | DX20: 7 | DY20: N | DZ20: LR | EA20: ↘ | EB20: ↶ | EC20: ⇆ | ED20: ++ | EE20: 7 | EG20: DC | EI20: 2 | EJ20: 04:21:52.534 | EK20: 00:54:48.492 | EL20: 5-6 | EM20: SSW | EN20: 173.09 | EO20: RL | EP20: ↖ | EQ20: ↶ | ER20: ⇇ | ES20: +- | ET20: 6 | EU20: IO | EX20: ♀ | EZ20: 5 | FA20: 5 | FB20: 3 | FD20: I | FF20: 3 | FG20: 12:30:00.357 | FH20: 04:09:12.382 | FI20: IO

Sheet Family
C13: First Name | D13: Last Name | E13: Birth Day | F13: Birth Time | I13: Email
B14: =D14&", "&C14 -> 0, 0 | C14: =G5 -> 0 | D14: =G6 -> 0 | E14: =G7 -> 00:00:00 | F14: =G8 -> 00:00:00 | G14: =E14+F14 -> 00:00:00 | H14: =G9 -> 00:00:00 | I14: =G10 -> 0
B15: Finucan, Marg | C15: Marg | D15: Finucan | E15: 1963-03-05 | F15: 10:00:00 | G15: 1963-03-05T10:00:00 | H15: (GMT-05:00) Eastern Time (US and Canada) | I15: 0
B16: Musk, Elon | C16: Elon | D16: Musk | E16: 1971-06-28 | F16: 07:30:00 | G16: 1971-06-28T07:30:00 | H16: (GMT+02:00) Harare, Pretoria | I16: 0
B17: Finucan, Margaret | C17: Margaret | D17: Finucan | E17: 1963-03-05 | F17: 12:00:00 | G17: 1963-03-05T12:00:00 | H17: (GMT-05:00) Eastern Time (US and Canada) | I17: 0
B18: Finu, Dr | C18: Dr | D18: Finu | E18: 1957-09-22 | F18: 13:10:00 | G18: 1957-09-22T13:10:00 | H18: (GMT-04:00) Eastern Time (US and Canada) *DST* | I18: 0
B19: Fin, Dr | C19: Dr | D19: Fin | E19: 1957-09-22 | F19: 12:48:00 | G19: 1957-09-22T12:48:00 | H19: (GMT-04:00) Eastern Time (US and Canada) *DST* | I19: 0
B20: Hoverson, Andy | C20: Andy | D20: Hoverson | E20: 1965-10-02 | F20: 12:34:00 | G20: 1965-10-02T12:34:00 | H20: (GMT+07:00) Bangkok, Hanoi, Jakarta | I20: 0
B21: Finucan, Dr | C21: Dr | D21: Finucan | E21: 1957-09-22 | F21: 13:00:00 | G21: 1957-09-22T13:00:00 | H21: (GMT-04:00) Eastern Time (US and Canada) *DST* | I21: 0
B22: Paul, Dr | C22: Dr | D22: Paul | E22: 1957-09-22 | F22: 15:30:00 | G22: 1957-09-22T15:30:00 | H22: (GMT-04:00) Eastern Time (US and Canada) *DST* | I22: 0
B23: Mccollaum, Monica | C23: Monica | D23: Mccollaum | E23: 1971-08-08 | F23: 03:00:00 | G23: 1971-08-08T03:00:00 | H23: (GMT-04:00) Eastern Time (US and Canada) *DST* | I23: 0
B24: Hoverson, Wendy | C24: Wendy | D24: Hoverson | E24: 1971-01-25 | F24: 17:27:00 | G24: 1971-01-25T17:27:00 | H24: (GMT-06:00) Central Time (US and Canada) | I24: 0
B25: Hoverson, Gwen | C25: Gwen | D25: Hoverson | E25: 1950-06-22 | F25: 12:00:00 | G25: 1950-06-22T12:00:00 | H25: (GMT-05:00) Central Time (US and Canada) *DST* | I25: 0
B26: Hoverson, Dean | C26: Dean | D26: Hoverson | E26: 1947-05-11 | F26: 17:20:00 | G26: 1947-05-11T17:20:00 | H26: (GMT-05:00) Central Time (US and Canada) *DST*
B27: Djokovic, Novak | C27: Novak | D27: Djokovic | E27: 1987-05-22 | F27: 11:25:00 | G27: 1987-05-22T11:25:00 | H27: (GMT+02:00) Harare, Pretoria
B28: Mccollaum, Marc | C28: Marc | D28: Mccollaum | E28: 1968-11-11 | F28: 02:01:00 | G28: 1968-11-11T02:01:00 | H28: (GMT-06:00) Central Time (US and Canada)
B29: Akins, Erik | C29: Erik | D29: Akins | E29: 1942-12-20 | F29: 16:58:00 | G29: 1942-12-20T16:58:00 | H29: (GMT-05:00) Eastern Time (US and Canada)
B30: Akins, Janet | C30: Janet | D30: Akins | E30: 1949-08-30 | F30: 11:38:00 | G30: 1949-08-30T11:38:00 | H30: (GMT-04:00) Eastern Time (US and Canada) *DST*
B31: Trump, Donald | C31: Donald | D31: Trump | E31: 1946-06-14 | F31: 10:54:00 | G31: 1946-06-14T10:54:00 | H31: (GMT-04:00) Eastern Time (US and Canada) *DST*
B32: Finucan, Paul | C32: Paul | D32: Finucan | E32: 1957-09-22 | F32: 10:15:00 | G32: 1957-09-22T10:15:00 | H32: (GMT-04:00) Eastern Time (US and Canada) *DST*
B33: Whitfield, Ann | C33: Ann | D33: Whitfield | E33: 1959-11-11 | F33: 03:30:00 | G33: 1959-11-11T03:30:00 | H33: (GMT-05:00) Eastern Time (US and Canada)
B34: SC, Andrea | C34: Andrea | D34: SC | E34: 1970-02-28 | F34: 09:20:00 | G34: 1970-02-28T09:20:00 | H34: (GMT+06:00) Almaty, Novosibirsk
B35: Semach, Marc (sister) | C35: Marc (sister) | D35: Semach | E35: 1966-03-11 | F35: 05:00:00 | G35: 1966-03-11T05:00:00 | H35: (GMT-05:00) Eastern Time (US and Canada)
B36: Semach, Marc | C36: Marc | D36: Semach | E36: 1969-07-12 | F36: 10:00:00 | G36: 1969-07-12T10:00:00 | H36: (GMT-04:00) Eastern Time (US and Canada) *DST*
B37: Semach, Dawn | C37: Dawn | D37: Semach | E37: 1972-04-20 | F37: 15:40:00 | G37: 1972-04-20T15:40:00 | H37: (GMT-04:00) Eastern Time (US and Canada) *DST*
B38: Saxberg, John | C38: John | D38: Saxberg | E38: 1940-05-15 | F38: 23:30:00 | G38: 1940-05-15T23:30:00 | H38: (GMT-05:00) Central Time (US and Canada) *DST*
B39: Saxberg, Karol | C39: Karol | D39: Saxberg | E39: 1944-08-07 | F39: 14:30:00 | G39: 1944-08-07T14:30:00 | H39: (GMT-05:00) Central Time (US and Canada) *DST*
B40: McFadden, Daniel | C40: Daniel | D40: McFadden | E40: 1975-04-12 | F40: 15:00:00 | G40: 1975-04-12T15:00:00 | H40: (UTC-07:00) Pacific Time (US and Canada); Tijuana *DST*
B41: Bryant, Kobe | C41: Kobe | D41: Bryant | E41: 1978-08-23 | F41: 17:00:00 | G41: 1978-08-23T17:00:00 | H41: (GMT-04:00) Eastern Time (US and Canada) *DST*
B42: Network, Murphy | C42: Murphy | D42: Network | E42: 1974-06-24 | F42: 07:03:00 | G42: 1974-06-24T07:03:00 | H42: (UTC-07:00) Pacific Time (US and Canada); Tijuana *DST*
B43: McFadden, Kevin | C43: Kevin | D43: McFadden | E43: 1979-06-24 | F43: 19:07:00 | G43: 1979-06-24T19:07:00 | H43: (UTC-07:00) Pacific Time (US and Canada); Tijuana *DST*
B44: Evans, Justin | C44: Justin | D44: Evans | E44: 2000-01-13 | F44: 07:00:00 | G44: 2000-01-13T07:00:00 | H44: (GMT-05:00) Eastern Time (US and Canada)
B45: Naul, Bryan | C45: Bryan | D45: Naul | E45: 1995-11-28 | F45: 07:57:00 | G45: 1995-11-28T07:57:00 | H45: (GMT-06:00) Central Time (US and Canada)
B46: Clayton, Stephanie | C46: Stephanie | D46: Clayton | E46: 1973-11-15 | F46: 05:55:00 | G46: 1973-11-15T05:55:00 | H46: (GMT-06:00) Central Time (US and Canada)
B47: Williams, Kurt | C47: Kurt | D47: Williams | E47: 1953-01-31 | F47: 19:47:00 | G47: 1953-01-31T19:47:00 | H47: (GMT-05:00) Central Time (US and Canada) *DST*
B48: Williams, Jeannie | C48: Jeannie | D48: Williams | E48: 1960-12-20 | F48: 07:18:00 | G48: 1960-12-20T07:18:00 | H48: (GMT-06:00) Central Time (US and Canada)
B49: Schultz, Caleb | C49: Caleb | D49: Schultz | E49: 1999-10-28 | F49: 16:00:00 | G49: 1999-10-28T16:00:00 | H49: (GMT-05:00) Central Time (US and Canada) *DST*
B50: Schultz, Isaac | C50: Isaac | D50: Schultz | E50: 2003-01-02 | F50: 06:52:00 | G50: 2003-01-02T06:52:00 | H50: (GMT-06:00) Central Time (US and Canada)
B51: Hoverson, Charlie | C51: Charlie | D51: Hoverson | E51: 1981-04-10 | F51: 01:04:00 | G51: 1981-04-10T01:04:00 | H51: (GMT-05:00) Central Time (US and Canada) *DST*
B52: Schultz, Scott | C52: Scott | D52: Schultz | E52: 1971-09-24 | F52: 10:42:00 | G52: 1971-09-24T10:42:00 | H52: (GMT-05:00) Central Time (US and Canada) *DST*
B53: Hoverson, Ryan | C53: Ryan | D53: Hoverson | E53: 1987-09-09 | F53: 07:26:00 | G53: 1987-09-09T07:26:00 | H53: (GMT-05:00) Central Time (US and Canada) *DST*
B54: Hoverson, Randy | C54: Randy | D54: Hoverson | E54: 1957-10-31 | F54: 10:52:00 | G54: 1957-10-31T10:52:00 | H54: (GMT-05:00) Central Time (US and Canada) *DST*
B55: Hoverson, Loree | C55: Loree | D55: Hoverson | E55: 1963-01-07 | F55: 01:07:00 | G55: 1963-01-07T01:07:00 | H55: (GMT-06:00) Central Time (US and Canada)
B56: Hoverson, Kyle | C56: Kyle | D56: Hoverson | E56: 1990-10-15 | F56: 17:25:00 | G56: 1990-10-15T17:25:00 | H56: (GMT-05:00) Central Time (US and Canada) *DST*
B57: Geldhof, Cynthia | C57: Cynthia | D57: Geldhof | E57: 1947-07-17 | F57: 02:30:00 | G57: 1947-07-17T02:30:00 | H57: (GMT-04:00) Eastern Time (US and Canada) *DST*
B58: Guy, Chris | C58: Chris | D58: Guy | E58: 1990-04-07 | F58: 11:15:00 | G58: 1990-04-07T11:15:00 | H58: (GMT-04:00) Eastern Time (US and Canada) *DST*
B59: Hoverson, Curtis | C59: Curtis | D59: Hoverson | E59: 1985-10-01 | F59: 21:25:00 | G59: 1985-10-01T21:25:00 | H59: (GMT-05:00) Central Time (US and Canada) *DST*
B60: Schultz, Amy | C60: Amy | D60: Schultz | E60: 1970-10-17 | F60: 12:12:00 | G60: 1970-10-17T12:12:00 | H60: (GMT-05:00) Central Time (US and Canada) *DST*
B61: Ivy, C.J. | C61: C.J. | D61: Ivy | E61: 2019-12-12 | F61: 12:14:00 | G61: 2019-12-12T12:14:00 | H61: (GMT-05:00) Eastern Time (US and Canada)
B62: Ivy, Marc | C62: Marc | D62: Ivy | E62: 1980-01-17 | F62: 22:49:00 | G62: 1980-01-17T22:49:00 | H62: (GMT-05:00) Eastern Time (US and Canada)
B63: Lee, Jac | C63: Jac | D63: Lee | E63: 1991-01-31 | F63: 09:31:00 | G63: 1991-01-31T09:31:00 | H63: (GMT-05:00) Eastern Time (US and Canada)
B64: Baier, Beth | C64: Beth | D64: Baier | E64: 1982-02-18 | F64: 02:16:00 | G64: 1982-02-18T02:16:00 | H64: (GMT-05:00) Eastern Time (US and Canada)
B65: Baier, Barb | C65: Barb | D65: Baier | E65: 1951-12-27 | F65: 18:00:00 | G65: 1951-12-27T18:00:00 | H65: (GMT-05:00) Eastern Time (US and Canada)
B66: Selig, Linda | C66: Linda | D66: Selig | E66: 1943-04-04 | F66: 12:00:00 | G66: =E66+F66 -> 1943-04-04T12:00:00 | H66: (GMT-06:00) Central Time (US and Canada)
B67: Hoverson, Kara | C67: Kara | D67: Hoverson | E67: 1982-09-16 | F67: 16:12:00 | G67: 1982-09-16T16:12:00 | H67: (GMT-05:00) Central Time (US and Canada) *DST*
B68: Hoverson, Anne | C68: Anne | D68: Hoverson | E68: 1976-02-12 | F68: 15:35:00 | G68: 1976-02-12T15:35:00 | H68: (GMT-06:00) Central Time (US and Canada)
B69: Hoverson, Julie | C69: Julie | D69: Hoverson | E69: 1951-08-17 | F69: 16:54:00 | G69: 1951-08-17T16:54:00 | H69: (GMT-05:00) Central Time (US and Canada) *DST*
B70: Hoverson, Kathy | C70: Kathy | D70: Hoverson | E70: 1951-07-24 | F70: 04:55:00 | G70: 1951-07-24T04:55:00 | H70: (GMT-05:00) Central Time (US and Canada) *DST*
B71: Hoverson, Allen | C71: Allen | D71: Hoverson | E71: 1951-07-24 | F71: 08:21:00 | G71: 1951-07-24T08:21:00 | H71: (GMT-05:00) Central Time (US and Canada) *DST*
B72: Hoverson, Holten | C72: Holten | D72: Hoverson | E72: 2007-09-05 | F72: 22:11:00 | G72: 2007-09-05T22:11:00 | H72: (GMT-04:00) Eastern Time (US and Canada) *DST*
B73: Hoverson, Hayden | C73: Hayden | D73: Hoverson | E73: 2004-12-28 | F73: 07:41:00 | G73: 2004-12-28T07:41:00 | H73: (GMT-06:00) Central Time (US and Canada)
B74: Hoverson, Tara | C74: Tara | D74: Hoverson | E74: 1978-06-18 | F74: 06:15:00 | G74: 1978-06-18T06:15:00 | H74: (GMT-05:00) Central Time (US and Canada) *DST*
B75: Hoverson, Trey | C75: Trey | D75: Hoverson | E75: 1979-02-25 | F75: 14:46:00 | G75: 1979-02-25T14:46:00 | H75: (GMT-05:00) Eastern Time (US and Canada)
B76: =D76&", "&C76 -> Selig, Max | C76: Max | D76: Selig | E76: 1943-04-14 | F76: 04:43:00 | G76: 1943-04-14T04:43:00 | H76: (GMT-06:00) Central Time (US and Canada)
B77: Selig, Jeff | C77: Jeff | D77: Selig | E77: 1972-03-19 | F77: 16:28:00 | G77: 1972-03-19T16:28:00 | H77: (GMT-07:00) Mountain Time (US and Canada)
B78: Selig, Jeremy | C78: Jeremy | D78: Selig | E78: 1974-12-24 | F78: 19:15:00 | G78: 1974-12-24T19:15:00 | H78: (GMT-06:00) Central Time (US and Canada)
B79: Selig, Madilyn | C79: Madilyn | D79: Selig | E79: 2009-01-27 | F79: 07:08:00 | G79: 2009-01-27T07:08:00 | H79: (GMT-05:00) Eastern Time (US and Canada)
B80: Uribe, Andrea | C80: Andrea | D80: Uribe | E80: 1983-12-03 | F80: 09:10:00 | G80: 1983-12-03T09:10:00 | H80: (GMT-05:00) Eastern Time (US and Canada)
B81: Jackmack, Robin | C81: Robin | D81: Jackmack | E81: 1969-12-22 | F81: 06:51:00 | G81: 1969-12-22T06:51:00 | H81: (UTC-08:00) Pacific Time (US and Canada); Tijuana
B82: St, Tatiana | C82: Tatiana | D82: St | E82: 1977-07-29 | F82: 18:50:00 | G82: 1977-07-29T18:50:00 | H82: (GMT+12:00) Fiji Islands, Kamchatka, Marshall Islands

Sheet Feel-o-Meter (hidden)
B4: =Calculations!ED4 -> LR | CO4: Now | CP4: =Calculations!D5+Calculations!E5 -> 2025-03-17T10:35:11.910
A5: Now | B5: =Calculations!D5+Calculations!E5 -> 2025-03-17T10:35:11.910 | D5: Time Indicator | CU5: =VLOOKUP(B17,$CP$7:$CQ$8,1) -> 45729.85282 | CV5: =MROUND(VLOOKUP(CP6,'Emotional Data Set'!A:B,2,FALSE),"0:00:01") -> 45729.85282 | GA5: Now | GB5: =Calculations!D5+Calculations!E5 -> 2025-03-17T10:35:11.910 | GC5: Length | GD5: Awarness
A6: Physical Data Set Line | B6: =VLOOKUP(B5,'Physical Data Set'!B:H,7) -> 8465 | D6: =((((Calculations!D5+Calculations!E5)-B17)/(B401-B17))*384)+1 -> 66.07351067 | E6: 0 | CO6: Start of Current Awareness | CP6: =VLOOKUP(CP4,'Emotional Data Set'!B4:D2691,3,TRUE)-VLOOKUP(CP4,'Emotional Data Set'!B4:E2691,4,TRUE) -> 625 | CQ6: Length of Current Awareness (hrs) | CU6: =B17-VLOOKUP(B17,$CP$7:$CQ$8,1,TRUE) -> 3.422572744 | GA6: Start of Current Awareness | GB6: ='Mind Data Set'!AY4 -> 2024-12-21T05:20:00 | GC6: ='Mind Data Set'!BA4 -> 365.2381944 | GD6: =VLOOKUP(YEAR(GB6)+1,Years.Mind!A:B,2,0) -> 2-5
A7: Start of Current Awareness | B7: =VLOOKUP(B5,'Physical Data Set'!B:H,7)-VLOOKUP(B6,'Physical Data Set'!A:I,9,FALSE) -> 8449 | D7: =((((Calculations!D5+Calculations!E5)-B17)/(B401-B17))*384)+1 -> 66.07351067 | E7: 100 | CO7: Start of Current Awarness | CP7: =MROUND(VLOOKUP(CP6,'Emotional Data Set'!A:B,2,FALSE),"0:00:01") -> 2025-03-13T20:28:04 | CQ7: =(CP8-CP7) -> 6.356203704 | CU7: =VLOOKUP(B17,$CP$7:$CQ$8,1,TRUE) -> 45729.85282 | GA7: End of Current Awareness | GB7: ='Mind Data Set'!AZ4 -> 2025-12-21T11:03:00 | GC7: ='Phy Predictor'!CO38 -> 365.2409722 | GD7: =VLOOKUP(YEAR(GB7)+1,Years.Mind!A:B,2,0) -> 4-6
A8: Start of Current Awarness | B8: =VLOOKUP(B7,'Physical Data Set'!$A:$B,2,FALSE) -> 2025-03-17T06:36:34.285 | BB8: =IF(VLOOKUP(AY17,Calculations!$F$17:$G$32,2,0)-((BA17-FLOOR(BA17,100/48/100))/(100/48/100))*22.5<0,360-VLOOKUP(AY17,Calculations!$F$17:$G$32,2,0)-((BA17-FLOOR(BA17,100/48/100))/(100/48/100))*22.5,VLOOKUP(AY17,Calculations!$F$17:$G$32,2,0)-((BA17-FLOOR(BA17,100/48/100))/(100/48/100))*22.5) -> 270 | CO8: End of Current Awareness | CP8: =VLOOKUP(CP6+48,'Emotional Data Set'!A:B,2,FALSE) -> 2025-03-20T05:01:00 | CQ8: =CP9-CP8 -> 6.62405754 | CS8: =IF(CP7=B17,"T","F") -> F | GA8: End of Next Awarness | GB8: ='Mind Data Set'!BE4 -> 2026-12-21T16:50:00 | GD8: =VLOOKUP(YEAR(CK105)+1,Years.Mind!A:B,2,0) -> 5-1
A9: End of Current Awareness | B9: =VLOOKUP(B7+48,'Physical Data Set'!$A:$B,2,FALSE) -> 2025-03-17T18:20:38.571 | BB9: =IF(VLOOKUP(AY19,Calculations!$F$17:$G$32,2,0)-((BA19-FLOOR(BA19,100/48/100))/(100/48/100))*22.5<0,360-VLOOKUP(AY19,Calculations!$F$17:$G$32,2,0)-((BA19-FLOOR(BA19,100/48/100))/(100/48/100))*22.5,VLOOKUP(AY19,Calculations!$F$17:$G$32,2,0)-((BA19-FLOOR(BA19,100/48/100))/(100/48/100))*22.5) -> 258.75 | CO9: End of Next Awarness | CP9: =VLOOKUP(CP6+96,'Emotional Data Set'!A:B,2,FALSE) -> 2025-03-26T19:59:38.571 | CS9: =CP7-B17 -> -3.422572744 | GL9: IF(GC17="LR",VLOOKUP(GA17,'Macro Phase'!$B$3:$N$58,12,FALSE)+((30*GH17)/24/60),IF(VLOOKUP(GA17,'Macro Phase'!$B$3:$N$58,13,FALSE)-((30*GH17)/24/60)<0,VLOOKUP(GA17,'Macro Phase'!$B$3:$N$58,13,FALSE)-((30*GH17)/24/60)+1,VLOOKUP(GA17,'Macro Phase'!$B$3:$N$58,13,FALSE)-((30*GH17)/24/60)))
A10: Length of Current Awareness (hrs) | B10: =(B9-B8)*24 -> 11.73452381 | BB10: =IF(VLOOKUP(AY21,Calculations!$F$17:$G$32,2,0)-((BA21-FLOOR(BA21,100/48/100))/(100/48/100))*22.5<0,360-VLOOKUP(AY21,Calculations!$F$17:$G$32,2,0)-((BA21-FLOOR(BA21,100/48/100))/(100/48/100))*22.5,VLOOKUP(AY21,Calculations!$F$17:$G$32,2,0)-((BA21-FLOOR(BA21,100/48/100))/(100/48/100))*22.5) -> 247.5 | CO10: Length into(hrs) | CP10: =(CP4-CP7) -> 3.588285995 | CS10: =IF(ABS(B17-$CP$7)<1/86400,0,(ROUNDUP((B17-VLOOKUP(B17,$CP$7:$CQ$8,1,TRUE))/VLOOKUP(B17,$CP$7:$CQ$8,2,TRUE),8))+0.000001) -> 0.53846278
A11: Length into(hrs) | B11: =(B5-B8)*24 -> 3.977118022 | N11: Does this need to be <= for the transition points. Which side would each fallon? Where is 45 degrees or .125 for time? Quad 1 or 2? | BB11: =IF(VLOOKUP(AY23,Calculations!$F$17:$G$32,2,0)-((BA23-FLOOR(BA23,100/48/100))/(100/48/100))*22.5<0,360-VLOOKUP(AY23,Calculations!$F$17:$G$32,2,0)-((BA23-FLOOR(BA23,100/48/100))/(100/48/100))*22.5,VLOOKUP(AY23,Calculations!$F$17:$G$32,2,0)-((BA23-FLOOR(BA23,100/48/100))/(100/48/100))*22.5) -> 236.25 | CO11: % thru | CP11: =CP10/CQ7 -> 0.564532882 | CS11: =IF(ABS(B18-$CP$7)<1/86400,0,(ROUNDUP((B18-VLOOKUP(B18,$CP$7:$CQ$8,1,TRUE))/VLOOKUP(B18,$CP$7:$CQ$8,2,TRUE),8))+0.000001) -> 0.53886342
A12: % thru | B12: =B11/B10 -> 0.3389245348 | BB12: *Middle of Awarness | BE12: * | BR12: * | BT12: * | CS12: =IF(ABS(B19-$CP$7)<1/86400,0,(ROUNDUP((B19-VLOOKUP(B19,$CP$7:$CQ$8,1,TRUE))/VLOOKUP(B19,$CP$7:$CQ$8,2,TRUE),8))+0.000001) -> 0.53926406
A13: End of Next Awarness | B13: =VLOOKUP(B7+96,'Physical Data Set'!$A:$B,2,FALSE) -> 2025-03-18T06:04:42.857 | H13: Physical MACRO | BB13: Physical Micro | CO13: Length of 2nd awarness | CP13: =(CP9-CP8) -> 6.62405754 | CS13: Emotional MACRO | EN13: Emotional Micro | GI13: Mental MACRO | IC13: Mental Micro
A14: Length of 2nd awarness | B14: =(B13-B9)*24 -> 11.73452381 | H14: User Degree: | J14: =Calculations!DF8 -> 257.2678222 | K14: User Time: | M14: =Calculations!EM4 -> 0.2617890535 | N14: User: | O14: =Calculations!DG8 -> 4 | P14: User: | Q14: =Calculations!EL4 -> 2 | R14: User: | S14: =Calculations!DI4 -> D | T14: =Calculations!DI8 -> 3 | U14: User: | V14: =Calculations!EK4 -> ID | W14: =Calculations!EK8 -> 2 | X14: User: | Y14: =Calculations!DM4 -> 8 | AB14: User: | AC14: =Calculations!DO4 -> 1 | AE14: User: | AF14: =Calculations!EF4 -> ↘ | AG14: =IF(OR(AF14="↖",AF14="↘"),1,2) -> 1 | AH14: User: | AI14: =Calculations!EH4 -> ⇉ | AJ14: =IF(OR(AI14="⇄",AI14="⇆"),1,2) -> 2 | AK14: User: | AL14: =Calculations!EG4 -> ↶ | AM14: User: | AN14: =Calculations!EI4 -> -+ | AO14: =IF(OR(AN14="-+",AN14="+-"),1,2) -> 1 | AP14: User: | AQ14: =Calculations!EJ4 -> 1 | AS14: Feel-o-meter | BB14: User Degree: | BD14: =Calculations!EY8 -> 18.85546455 | BE14: User Time: | BG14: =Calculations!EW4 -> 0.8158514217 | BH14: User: | BI14: =Calculations!EZ8 -> 1 | BJ14: User: | BK14: =Calculations!EV4 -> 4 | BL14: User: | BM14: =Calculations!EX4 -> IO | BN14: =Calculations!EX8 -> 8 | BO14: User: | BP14: =Calculations!EU4 -> IO | BQ14: =Calculations!EU8 -> 8 | BR14: User: | BS14: =Calculations!DN4 -> 4 | BT14: User: | BU14: =Calculations!DS4 -> 3 | BV14: User: | BW14: =Calculations!EP4 -> ↘ | BX14: =Calculations!EP8 -> 1 | BY14: User: | BZ14: =Calculations!ER4 -> ⇉ | CA14: =Calculations!ER8 -> 2 | CB14: User: | CC14: =Calculations!EQ4 -> ↷ | CD14: User: | CE14: =Calculations!ES4 -> -+ | CF14: =Calculations!ES8 -> 1 | CG14: User: | CH14: =Calculations!ET4 -> 5 | CJ14: Feel-o-meter | CS14: User Degree: | CU14: =Calculations!BL8 -> 116.7129094 | CV14: User Time: | CX14: =Calculations!CQ4 -> 0.7252658246 | CY14: User: | CZ14: =Calculations!BM8 -> 2 | DA14: User: | DB14: =Calculations!CP4 -> 4 | DC14: User: | DD14: =Calculations!BO4 -> IO | DE14: =Calculations!BO8 -> 8 | DF14: User: | DG14: =Calculations!CO4 -> D | DH14: =Calculations!CO8 -> 3 | DI14: User: | DJ14: =Calculations!BS4 -> 3 | DK14: User: | DL14: =Calculations!BU4 -> 5 | DP14: User: | DQ14: =Calculations!CJ4 -> ↘ | DR14: =Calculations!CJ8 -> 1 | DS14: User: | DT14: =Calculations!CL4 -> ⇆ | DU14: =Calculations!CL8 -> 1 | DV14: User: | DW14: =Calculations!CK4 -> ↶ | DX14: User: | DY14: =Calculations!CM4 -> ++ | DZ14: =Calculations!CM8 -> 2 | EA14: User: | EB14: =Calculations!CN4 -> 3 | ED14: Feel-o-meter | EN14: User Degree: | EP14: =Calculations!DC8 -> 112.2196511 | EQ14: User Time: | ES14: =Calculations!DA4 -> 01:30:22.428 | ET14: User: | EU14: =Calculations!DD8 -> 2 | EV14: User: | EW14: =Calculations!CZ4 -> 1 | EX14: User: | EY14: =Calculations!DB4 -> IO | EZ14: =Calculations!DB8 -> 8 | FA14: User: | FB14: =Calculations!CY4 -> IO | FC14: =Calculations!CY8 -> 8 | FD14: User: | FE14: =Calculations!BT4 -> 6 | FF14: User: | FG14: =Calculations!BY4 -> 3 | FH14: User: | FI14: =Calculations!CT4 -> ↗ | FJ14: =Calculations!CT8 -> 2 | FK14: User: | FL14: =Calculations!CV4 -> ⇆ | FM14: =Calculations!CV8 -> 1 | FN14: User: | FO14: =Calculations!CU4 -> ↶ | FP14: User: | FQ14: =Calculations!CW4 -> -+ | FR14: =Calculations!CW8 -> 1 | FS14: User: | FT14: =Calculations!CX4 -> 7 | FV14: Feel-o-meter | GI14: User Degree: | GK14: =Calculations!N8 -> 346.81635 | GL14: User Time: | GN14: =Calculations!AS4 -> 0.17887375 | GO14: User: | GP14: =Calculations!O8 -> 1 | GQ14: User: | GR14: =Calculations!AR4 -> 2 | GS14: User: | GT14: =Calculations!Q4 -> D | GU14: =Calculations!Q8 -> 3 | GV14: User: | GW14: =Calculations!AQ4 -> DC | GX14: =Calculations!AQ8 -> 4 | GY14: User: | GZ14: =Calculations!S4 -> 7 | HA14: User: | HB14: =Calculations!U4 -> 3 | HF14: User: | HG14: =Calculations!AL4 -> ↘ | HH14: =Calculations!AL8 -> 1 | HI14: User: | HJ14: =Calculations!AN4 -> ⇆ | HK14: =Calculations!AN8 -> 1 | HL14: User: | HM14: =Calculations!AM4 -> ↶ | HN14: User: | HO14: =Calculations!AO4 -> ++ | HP14: =Calculations!AO8 -> 2 | HQ14: User: | HR14: =Calculations!AP4 -> 7 | HT14: Feel-o-meter | IC14: User Degree: | IE14: =Calculations!BE8 -> 357.1848 | IF14: User Time: | IH14: =Calculations!BC4 -> 15:56:14.784 | II14: User: | IJ14: =Calculations!BF8 -> 1 | IK14: User: | IL14: =Calculations!BB4 -> 4 | IM14: User: | IN14: =Calculations!BD4 -> ID | IO14: =Calculations!BD8 -> 2 | IP14: User: | IQ14: =Calculations!BA4 -> C | IR14: =Calculations!BA8 -> 5 | IS14: User: | IT14: =Calculations!T4 -> 4 | IU14: User: | IV14: =Calculations!Y4 -> 4 | IW14: User: | IX14: =Calculations!AV4 -> ↙ | IY14: =Calculations!AV8 -> 2 | IZ14: User: | JA14: =Calculations!AX4 -> ⇇ | JB14: =Calculations!AX8 -> 2 | JC14: User: | JD14: =Calculations!AW4 -> ↶ | JE14: User: | JF14: =Calculations!AY4 -> -- | JG14: =Calculations!AY8 -> 2 | JH14: User: | JI14: =Calculations!AZ4 -> 6 | JK14: Feel-o-meter
D15: =VLOOKUP(B17,'Physical Data Set'!B:Q,9,FALSE) -> 7-5 | H15: Degree Offset | K15: Time Offset | N15: Space Quad | P15: Time Quad | R15: Space Shape | U15: Time Shape | X15: Wave | Z15: Phase | AE15: Direction | AH15: Orbit | AK15: Rotation | AM15: Polarity | AP15: Zone | BB15: Degree Offset | BE15: Time Offset | BH15: Space Quad | BJ15: Time Quad | BL15: Space Shape | BO15: Time Shape | BR15: Wave | BT15: Phase | BV15: Direction | BY15: Orbit | CB15: Rotation | CD15: Polarity | CG15: Zone | CS15: Degree Offset | CV15: Time Offset | CY15: Space Quad | DA15: Time Quad | DC15: Space Shape | DF15: Time Shape | DI15: Wave | DK15: Phase | DP15: Direction | DS15: Orbit | DV15: Rotation | DX15: Polarity | EA15: Zone | EN15: Degree Offset | EQ15: Time Offset | ET15: Space Quad | EV15: Time Quad | EX15: Space Shape | FA15: Time Shape | FD15: Wave | FF15: Phase | FH15: Direction | FK15: Orbit | FN15: Rotation | FP15: Polarity | FS15: Zone | GI15: Degree Offset | GL15: Time Offset | GO15: Space Quad | GQ15: Time Quad | GS15: Space Shape | GV15: Time Shape | GY15: Wave | HA15: Phase | HF15: Direction | HI15: Orbit | HL15: Rotation | HN15: Polarity | HQ15: Zone | IC15: Degree Offset | IF15: Time Offset | II15: Space Quad | IK15: Time Quad | IM15: Space Shape | IP15: Time Shape | IS15: Wave | IU15: Phase | IW15: Direction | IZ15: Orbit | JC15: Rotation | JE15: Polarity | JH15: Zone
B16: Date and Time | C16: UTC Time | D16: Awarness | E16: Direction | F16: Wave Direction | G16: % thru | H16: Degree | I16: Offset | J16: Color | K16: Time | L16: Offset | M16: Color | N16: Current | O16: Color | P16: Current | R16: Shape | S16: ID | T16: Color | U16: Shape | V16: ID | W16: Color | X16: Current | Y16: Color | Z16: Start | AA16: End | AB16: % @Switch | AC16: Current | AD16: Color | AE16: Current | AF16: ID | AG16: Color | AH16: Current | AI16: ID | AJ16: Color | AK16: Current | AL16: Color | AM16: Current | AN16: ID | AO16: Color | AP16: Current | AQ16: Color | AS16: Red | AT16: Yellow | AU16: Green | AV16: Score | AX16: Awarness | AY16: Direction | AZ16: LR/RL | BB16: Degree* | BC16: Offset | BD16: Color | BE16: Time* | BF16: Offset | BG16: Color | BH16: Current | BI16: Color | BJ16: Current | BK16: Color | BL16: Shape | BM16: ID | BN16: Color | BO16: Shape | BP16: ID | BQ16: Color | BR16: Current* | BS16: Color | BT16: Current* | BU16: Color | BV16: Current | BW16: ID | BX16: Color | BY16: Current | BZ16: ID | CA16: Color | CB16: Current | CC16: Color | CD16: Current | CE16: ID | CF16: Color | CG16: Current | CH16: Color | CJ16: Red | CK16: Yellow | CL16: Green | CM16: Score | CO16: Awarness | CP16: Direction | CQ16: Wave Direction | CR16: % thru (*rounded) | CS16: Degree* | CT16: Offset | CU16: Color | CV16: Time* | CW16: Offset | CX16: Color | CY16: Current | CZ16: Color | DA16: Current | DB16: Color | DC16: Shape | DD16: ID | DE16: Color | DF16: Shape | DG16: ID | DH16: Color | DI16: Current* | DJ16: Color | DK16: Start | DL16: End | DM16: % @Switch | DN16: Current | DO16: Color | DP16: Current | DQ16: ID | DR16: Color | DS16: Current | DT16: ID | DU16: Color | DV16: Current | DW16: Color | DX16: Current | DY16: ID | DZ16: Color | EA16: Current | EB16: Color | ED16: Red | EE16: Yellow | EF16: Green | EG16: Score | EJ16: Awarness | EK16: Direction | EL16: LR/RL | EM16: %thru | EN16: Degree* | EO16: Offset | EP16: Color | EQ16: Time* | ER16: Offset | ES16: Color | ET16: Current | EU16: Color | EV16: Current | EW16: Color | EX16: Shape | EY16: ID | EZ16: Color | FA16: Shape | FB16: ID | FC16: Color | FD16: Current* | FE16: Color | FF16: Current* | FG16: Color | FH16: Current | FI16: ID | FJ16: Color | FK16: Current | FL16: ID | FM16: Color | FN16: Current | FO16: Color | FP16: Current | FQ16: ID | FR16: Color | FS16: Current | FT16: Color | FV16: Red | FW16: Yellow | FX16: Green | FY16: Score | GA16: Awarness | GB16: Direction | GC16: Wave Direction | GD16: Winter | GE16: Spring | GF16: Summer | GG16: Fall | GH16: Total% | GI16: Degree | GJ16: Offset | GK16: Color | GL16: Time | GM16: Offset | GN16: Color | GO16: Current | GP16: Color | GQ16: Current | GR16: Color | GS16: Shape | GT16: ID | GU16: Color | GV16: Shape | GW16: ID | GX16: Color | GY16: Current | GZ16: Color | HA16: Start | HB16: End | HC16: % @Switch | HD16: Current | HE16: Color | HF16: Current | HG16: ID | HH16: Color | HI16: Current | HJ16: ID | HK16: Color | HL16: Current | HM16: Color | HN16: Current | HO16: ID | HP16: Color | HQ16: Current | HR16: Color | HT16: Red | HU16: Yellow | HV16: Green | HW16: Score | HY16: Awarness | HZ16: Direction | IA16: LR/RL | IB16: %thru | IC16: Degree* | ID16: Offset | IE16: Color | IF16: Time* | IG16: Offset | IH16: Color | II16: Current | IJ16: Color | IK16: Current | IL16: Color | IM16: Shape | IN16: ID | IO16: Color | IP16: Shape | IQ16: ID | IR16: Color | IS16: Current* | IT16: Color | IU16: Current* | IV16: Color | IW16: Current | IX16: ID | IY16: Color | IZ16: Current | JA16: ID | JB16: Color | JC16: Current | JD16: Color | JE16: Current | JF16: ID | JG16: Color | JH16: Current | JI16: Color | JK16: Red | JL16: Yellow | JM16: Green | JN16: Score | JQ16: Middle
A17: 1 | B17: =VLOOKUP($B$7+(A17-1),'Physical Data Set'!$A:$B,2,FALSE) -> 2025-03-17T06:36:34.285 | C17: =B17-VLOOKUP(Calculations!$F$5,'Time Zones'!$C:$D,2,0)/24 -> 2025-03-17T10:36:34.285 | D17: =VLOOKUP(B17,'Physical Data Set'!B:Q,9,FALSE) -> 7-5 | E17: =VLOOKUP(D17,'EMO and PHY YR'!$D$2:$E$57,2,FALSE) -> NW | F17: =VLOOKUP(D17,'EMO and PHY YR'!$D$2:$K$57,8,FALSE) -> LR | G17: =(A17-1)/48 -> 0 | H17: =IF((VLOOKUP(E17,Calculations!$F$17:$G$32,2,0)=0),360+(VLOOKUP(E17,Calculations!$F$17:$G$32,2,0)-22.5*G17),VLOOKUP(E17,Calculations!$F$17:$G$32,2,0)-22.5*G17) -> 315 | I17: =IF(ABS($J$14-H17)>180,180-(ABS($J$14-H17)-180),ABS($J$14-H17)) -> 57.73217782 | J17: =IF(I17<45,"G",IF(I17>135,"R","Y")) -> Y | K17: =IF(F17="LR",VLOOKUP(D17,'Macro Phase'!$B$3:$N$58,12,FALSE)+((30*G17)/24/60),IF(VLOOKUP(D17,'Macro Phase'!$B$3:$N$58,13,FALSE)-((30*G17)/24/60)<0,VLOOKUP(D17,'Macro Phase'!$B$3:$N$58,13,FALSE)-((30*G17)/24/60)+1,VLOOKUP(D17,'Macro Phase'!$B$3:$N$58,13,FALSE)-((30*G17)/24/60))) -> 05:00:00 | L17: =IF(ABS($M$14-K17)>1,ABS($M$14-K17)-1,IF(ABS($M$14-K17)>0.5,0.5-(ABS($M$14-K17)-0.5),ABS($M$14-K17))) -> 0.05345572021 | M17: =IF(L17<0.125,"G",IF(L17>0.375,"R","Y")) -> G | N17: =IF(AND(H17<=135,H17>45),2,IF(AND(H17<=315,H17>225),4,IF(AND(H17<=225,H17>135),3,1))) -> 4 | O17: =IF($O$14=N17,"G",IF(ISODD($O$14+N17),"Y","R")) -> G | P17: =IF(AND(K17>0.125,K17<0.375),2,IF(AND(K17>0.375,K17<0.625),3,IF(AND(K17>0.625,K17<0.875),4,1))) -> 2 | Q17: =IF(P17=$Q$14,"G",IF(ISODD(P17+$Q$14),"Y","R")) -> G | R17: =IF(G17<0.25,VLOOKUP(E17,Calculations!$A$38:$D$54,2,0),IF(G17>=0.75,VLOOKUP(E17,Calculations!$A$38:$D$54,4,0),VLOOKUP(E17,Calculations!$A$38:$D$54,3,0))) -> OC | S17: =VLOOKUP(R17,Calculations!$B$56:$F$63,5,FALSE) -> 6 | T17: =VLOOKUP($T$14,Calculations!$V$40:$AD$47,S17+1,FALSE) -> Y | U17: =VLOOKUP(K17*360,Calculations!$M$108:$N$171,2,TRUE) -> D | V17: =VLOOKUP(U17,Calculations!$B$56:$F$63,5,FALSE) -> 3 | W17: =VLOOKUP($W$14,Calculations!$V$40:$AD$47,V17+1,FALSE) -> Y | X17: =VLOOKUP(D17,'EMO and PHY YR'!$D$2:$L$57,9,FALSE) -> 7 | Y17: =VLOOKUP($Y$14,Calculations!$Q$18:$Y$25,X17+1) -> G | Z17: =VLOOKUP(D17,'Macro Phase'!$B$3:$L$65,10,FALSE) -> 4 | AA17: =VLOOKUP(D17,'Macro Phase'!$B$3:$L$65,11,FALSE) -> 5 | AB17: =VLOOKUP(D17,'Macro Phase'!$B$3:$L$65,8,FALSE) -> 0.8 | AC17: =IF(AB17>G17,Z17,AA17) -> 4 | AD17: =IF(ISEVEN($Y$14+X17),VLOOKUP(AC17,Calculations!$P$39:$U$43,$AC$14+1),VLOOKUP(AC17,Calculations!$P$45:$U$49,$AC$14+1)) -> Y | AE17: =VLOOKUP(D17,'EMO and PHY YR'!$D$2:$Q$57,10,FALSE) -> ↘ | AF17: =IF(OR(AE17="↖",AE17="↘"),1,2) -> 1 | AG17: =IF($AF$14=AE17,"G",IF($AG$14*AF17=2,"Y","R")) -> G | AH17: =VLOOKUP(D17,'EMO and PHY YR'!$D$2:$Q$57,14,FALSE) -> ⇆ | AI17: =IF(OR(AH17="⇄",AH17="⇆"),1,2) -> 1 | AJ17: =IF($AI$14=AH17,"G",IF($AJ$14*AI17=2,"Y","R")) -> Y | AK17: =VLOOKUP(D17,'EMO and PHY YR'!$D$2:$Q$57,13,FALSE) -> ↶ | AL17: =IF($AL$14=AK17,"G","R") -> G | AM17: =VLOOKUP(D17,'EMO and PHY YR'!$D$2:$K$57,7,FALSE) -> ++ | AN17: =IF(OR(AM17="-+",AM17="+-"),1,2) -> 2 | AO17: =IF($AN$14=AM17,"G",IF($AO$14*AN17=2,"Y","R")) -> Y | AP17: =VLOOKUP(D17,'EMO and PHY YR'!$D$2:$Q$57,11,FALSE) -> 7 | AQ17: =VLOOKUP(AP17,Calculations!$Q$28:$Y$36,$AQ$14+1) -> Y | AS17: =COUNTIF(J17:AQ17,"R") -> 0 | AT17: =COUNTIF(J17:AQ17,"Y") -> 7 | AU17: =0-COUNTIF(J17:AQ17,"G") -> -6 | AV17: =50+(AS17+AU17)*(50/13) -> 26.92307692 | AX17: =IF(F17="LR",(VLOOKUP(G17,Calculations!$N$51:$P$98,3,TRUE)),(VLOOKUP(G17,Calculations!$N$51:$S$98,6,TRUE))) -> 7-7 | AY17: =VLOOKUP(AX17,'EMO and PHY YR'!$D$2:$E$57,2,FALSE) -> W | AZ17: =VLOOKUP(AX17,'EMO and PHY YR'!$D$2:$K$57,8,FALSE) -> LR | BA17: =G17 -> 0 | BB17: =IF(VLOOKUP(AY17,Calculations!$F$17:$G$32,2,0)-((BA17-FLOOR(BA17,100/48/100))/(100/48/100))*22.5<0,360-VLOOKUP(AY17,Calculations!$F$17:$G$32,2,0)-((BA17-FLOOR(BA17,100/48/100))/(100/48/100))*22.5,VLOOKUP(AY17,Calculations!$F$17:$G$32,2,0)-((BA17-FLOOR(BA17,100/48/100))/(100/48/100))*22.5) -> 270 | BC17: =IF(ABS($BD$14-BB17)>180,180-(ABS($BD$14-BB17)-180),ABS($BD$14-BB17)) -> 108.8554646 | BD17: =IF(BC17<45,"G",IF(BC17>135,"R","Y")) -> Y | BE17: =IF(AZ17="LR",VLOOKUP(BA17,'Macro Phase'!$C$3:$M$58,11,TRUE)+(30*(((BA17-VLOOKUP(BA17,'Macro Phase'!$C$3:$M$58,1,TRUE))/(100/48))*100)/1440),IF(VLOOKUP(BA17,'Macro Phase'!$C$3:$N$58,12,TRUE)-(30*(((BA17-VLOOKUP(BA17,'Macro Phase'!$C$3:$N$58,1,TRUE))/(100/48))*100)/1440)<0,VLOOKUP(BA17,'Macro Phase'!$C$3:$N$58,12,TRUE)-(30*(((BA17-VLOOKUP(BA17,'Macro Phase'!$C$3:$N$58,1,TRUE))/(100/48))*100)/1440)+1,VLOOKUP(BA17,'Macro Phase'!$C$3:$N$58,12,TRUE)-(30*(((BA17-VLOOKUP(BA17,'Macro Phase'!$C$3:$N$58,1,TRUE))/(100/48))*100)/1440))) -> 06:00:00 | BF17: =IF(ABS($BG$14-BE17)>1,ABS($BG$14-BE17)-1,IF(ABS($BG$14-BE17)>0.5,0.5-(ABS($BG$14-BE17)-0.5),ABS($BG$14-BE17))) -> 0.4341485783 | BG17: =IF(BF17<0.125,"G",IF(BF17>0.375,"R","Y")) -> R | BH17: =IF(AND(BB17<=135,BB17>45),2,IF(AND(BB17<=315,BB17>225),4,IF(AND(BB17<=225,BB17>135),3,1))) -> 4 | BI17: =IF($BI$14=BH17,"G",IF(ISODD($BI$14+BH17),"Y","R")) -> Y | BJ17: =IF(AND(BE17>0.125,BE17<0.375),2,IF(AND(BE17>0.375,BE17<0.625),3,IF(AND(BE17>0.625,BE17<0.875),4,1))) -> 2 | BK17: =IF(BJ17=$BK$14,"G",IF(ISODD(BJ17+$BK$14),"Y","R")) -> R | BL17: =VLOOKUP(BB17,Calculations!$M$108:$N$171,2,TRUE) -> ID | BM17: =VLOOKUP(BL17,Calculations!$B$56:$F$63,5,FALSE) -> 2 | BN17: =VLOOKUP($BN$14,Calculations!$V$40:$AD$47,BM17+1,FALSE) -> Y | BO17: =VLOOKUP(BE17*360,Calculations!$M$108:$N$171,2,TRUE) -> ID | BP17: =VLOOKUP(BO17,Calculations!$B$56:$F$63,5,FALSE) -> 2 | BQ17: =VLOOKUP($BQ$14,Calculations!$V$40:$AD$47,BP17+1,FALSE) -> Y | BR17: =IF(BA17<12.5%,8,IF(AND(BA17>=12.5%,BA17<25%),1,IF(AND(BA17>=25%,BA17<37.5%),2,IF(AND(BA17>=37.5%,BA17<50%),3,IF(AND(BA17>=50%,BA17<62.5%),4,IF(AND(BA17>=62.5%,BA17<75%),5,IF(AND(BA17>=75%,BA17<87.5%),6,IF(BA17>=87.5%,7,"uffda")))))))) -> 8 | BS17: =VLOOKUP($BS$14,Calculations!$Q$18:$Y$25,BR17+1) -> R | BT17: =VLOOKUP(BA17,Calculations!$A$66:$C$105,3,TRUE) -> 1 | BU17: =IF(ISEVEN($BS$14+BR17),VLOOKUP(BT17,Calculations!$P$39:$U$43,$BU$14+1),VLOOKUP(BT17,Calculations!$P$45:$U$49,$BU$14+1)) -> Y | BV17: =VLOOKUP(AX17,'EMO and PHY YR'!$D$2:$Q$57,10,FALSE) -> ↘ | BW17: =IF(OR(BV17="↖",BV17="↘"),1,2) -> 1 | BX17: =IF($BW$14=BV17,"G",IF($BX$14*BW17=2,"Y","R")) -> G | BY17: =VLOOKUP(AX17,'EMO and PHY YR'!$D$2:$Q$57,14,FALSE) -> ⇉ | BZ17: =IF(OR(BY17="⇄",BY17="⇆"),1,2) -> 2 | CA17: =IF($BZ$14=BY17,"G",IF($CA$14*BZ17=2,"Y","R")) -> G | CB17: =VLOOKUP(AX17,'EMO and PHY YR'!$D$2:$Q$57,13,FALSE) -> ↶ | CC17: =IF($CC$14=CB17,"G","R") -> R | CD17: =VLOOKUP(AX17,'EMO and PHY YR'!$D$2:$Q$57,7,FALSE) -> -+ | CE17: =IF(OR(CD17="-+",CD17="+-"),1,2) -> 1 | CF17: =IF($CE$14=CD17,"G",IF($CF$14*CE17=2,"Y","R")) -> G | CG17: =VLOOKUP(AX17,'EMO and PHY YR'!$D$2:$Q$57,11,FALSE) -> 1 | CH17: =VLOOKUP(CG17,Calculations!$Q$28:$Y$36,$CH$14+1) -> R | CJ17: =COUNTIF(BD17:CH17,"=R") -> 5 | CK17: =COUNTIF(BD17:CH17,"=Y") -> 5 | CL17: =0-COUNTIF(BD17:CH17,"=G") -> -3 | CM17: =50+(CJ17+CL17)*(50/13) -> 57.69230769 | CO17: =VLOOKUP(B17,'Emotional Data Set'!$B$4:$G$2691,5,TRUE) -> 8-2 | CP17: =VLOOKUP(B17,'Emotional Data Set'!$B$4:$G$2691,6,TRUE) -> SE | CQ17: =VLOOKUP(CO17,'EMO and PHY YR'!$D$2:$K$57,8,FALSE) -> RL | CR17: =IF(ABS(B17-$CP$7)<1/86400,0,(ROUNDUP((B17-VLOOKUP(B17,$CP$7:$CQ$8,1,TRUE))/VLOOKUP(B17,$CP$7:$CQ$8,2,TRUE),8))+0.000001) -> 0.53846278 | CS17: =IF((VLOOKUP(CP17,Calculations!$F$17:$G$32,2,0)=0),360+(VLOOKUP(CP17,Calculations!$F$17:$G$32,2,0)-22.5*CR17),VLOOKUP(CP17,Calculations!$F$17:$G$32,2,0)-22.5*CR17) -> 122.8845874 | CT17: =IF(ABS($CU$14-CS17)>180,180-(ABS($CU$14-CS17)-180),ABS($CU$14-CS17)) -> 6.171678052 | CU17: =IF(CT17<45,"G",IF(CT17>135,"R","Y")) -> G | CV17: =IF(CQ17="LR",VLOOKUP(CO17,'Macro Phase'!$B$3:$N$58,12,FALSE)+((30*CR17)/24/60),IF(VLOOKUP(CO17,'Macro Phase'!$B$3:$N$58,13,FALSE)-((30*CR17)/24/60)<0,VLOOKUP(CO17,'Macro Phase'!$B$3:$N$58,13,FALSE)-((30*CR17)/24/60)+1,VLOOKUP(CO17,'Macro Phase'!$B$3:$N$58,13,FALSE)-((30*CR17)/24/60))) -> 02:43:50.767 | CW17: =IF(ABS($CX$14-CV17)>1,ABS($CX$14-CV17)-1,IF(ABS($CX$14-CV17)>0.5,0.5-(ABS($CX$14-CV17)-0.5),ABS($CX$14-CV17))) -> 0.3885162008 | CX17: =IF(CW17<0.125,"G",IF(CW17>0.375,"R","Y")) -> R | CY17: =IF(AND(CS17<=135,CS17>45),2,IF(AND(CS17<=315,CS17>225),4,IF(AND(CS17<=225,CS17>135),3,1))) -> 2 | CZ17: =IF($CZ$14=CY17,"G",IF(ISODD($CZ$14+CY17),"Y","R")) -> G | DA17: =IF(AND(CV17>0.125,CV17<0.375),2,IF(AND(CV17>0.375,CV17<0.625),3,IF(AND(CV17>0.625,CV17<0.875),4,1))) -> 1 | DB17: =IF(DA17=$DB$14,"G",IF(ISODD(DA17+$DB$14),"Y","R")) -> Y | DC17: =IF(CR17<0.25,VLOOKUP(CP17,Calculations!$A$38:$D$54,2,0),IF(CR17>=0.75,VLOOKUP(CP17,Calculations!$A$38:$D$54,4,0),VLOOKUP(CP17,Calculations!$A$38:$D$54,3,0))) -> O | DD17: =VLOOKUP(DC17,Calculations!$B$56:$F$63,5,FALSE) -> 7 | DE17: =VLOOKUP($DE$14,Calculations!$V$40:$AD$47,DD17+1,FALSE) -> Y | DF17: =VLOOKUP(CV17*360,Calculations!$M$108:$N$171,2,TRUE) -> OC | DG17: =VLOOKUP(DF17,Calculations!$B$56:$F$63,5,FALSE) -> 6 | DH17: =VLOOKUP($DH$14,Calculations!$V$40:$AD$47,DG17+1,FALSE) -> Y | DI17: =VLOOKUP(CO17,'EMO and PHY YR'!$D$2:$L$57,9,FALSE) -> 1 | DJ17: =VLOOKUP($DJ$14,Calculations!$Q$18:$Y$25,DI17+1) -> Y | DK17: =VLOOKUP(CO17,'Macro Phase'!$B$3:$L$65,10,FALSE) -> 1 | DL17: =VLOOKUP(CO17,'Macro Phase'!$B$3:$L$65,11,FALSE) -> 1 | DM17: =VLOOKUP(CO17,'Macro Phase'!$B$3:$L$65,8,FALSE) -> 1 | DN17: =IF(CR17>DM17,DL17,DK17) -> 1 | DO17: =IF(ISEVEN($DJ$14+DI17),VLOOKUP(DN17,Calculations!$P$39:$U$43,$DL$14+1),VLOOKUP(DN17,Calculations!$P$45:$U$49,$DL$14+1)) -> R | DP17: =VLOOKUP(CO17,'EMO and PHY YR'!$D$2:$Q$57,10,FALSE) -> ↖ | DQ17: =IF(OR(DP17="↖",DP17="↘"),1,2) -> 1 | DR17: =IF($DQ$14=DP17,"G",IF($DR$14*DQ17=2,"Y","R")) -> R | DS17: =VLOOKUP(CO17,'EMO and PHY YR'!$D$2:$Q$57,14,FALSE) -> ⇇ | DT17: =IF(OR(DS17="⇄",DS17="⇆"),1,2) -> 2 | DU17: =IF($DT$14=DS17,"G",IF($DU$14*DT17=2,"Y","R")) -> Y | DV17: =VLOOKUP(CO17,'EMO and PHY YR'!$D$2:$Q$57,13,FALSE) -> ↶ | DW17: =IF($DW$14=DV17,"G","R") -> G | DX17: =VLOOKUP(CO17,'EMO and PHY YR'!$D$2:$K$57,7,FALSE) -> +- | DY17: =IF(OR(DX17="-+",DX17="+-"),1,2) -> 1 | DZ17: =IF($DY$14=DX17,"G",IF($DZ$14*DY17=2,"Y","R")) -> Y | EA17: =VLOOKUP(CO17,'EMO and PHY YR'!$D$2:$Q$57,11,FALSE) -> 2 | EB17: =VLOOKUP(EA17,Calculations!$Q$28:$Y$36,$EB$14+1) -> Y | ED17: =COUNTIF(CU17:EB17,"=R") -> 3 | EE17: =COUNTIF(CU17:EB17,"=Y") -> 7 | EF17: =0-COUNTIF(CU17:EB17,"=G") -> -3 | EG17: =50+(ED17+EF17)*(50/13) -> 50 | EJ17: =IF(CQ17="LR",(VLOOKUP(EM17,Calculations!$N$51:$P$98,3,TRUE)),(VLOOKUP(EM17,Calculations!$N$51:$S$98,6,TRUE))) -> 4-7 | EK17: =VLOOKUP(EJ17,'EMO and PHY YR'!$D$2:$E$57,2,FALSE) -> ENE | EL17: =VLOOKUP(EJ17,'EMO and PHY YR'!$D$2:$K$57,8,FALSE) -> LR | EM17: =CR17 -> 0.53846278 | EN17: =VLOOKUP(EK17,Calculations!$F$17:$G$32,2,0)-((EM17-FLOOR(EM17,100/48/100))/(100/48/100))*22.5 -> 48.4601976 | EO17: =IF(ABS($EP$14-EN17)>180,180-(ABS($EP$14-EN17)-180),ABS($EP$14-EN17)) -> 63.75945352 | EP17: =IF(EO17<45,"G",IF(EO17>135,"R","Y")) -> Y | EQ17: =IF(EL17="LR",VLOOKUP(EM17,'Macro Phase'!$C$3:$M$58,11,TRUE)+(30*(((EM17-VLOOKUP(EM17,'Macro Phase'!$C$3:$M$58,1,TRUE))/(100/48))*100)/1440),IF(VLOOKUP(EM17,'Macro Phase'!$C$3:$N$58,12,TRUE)-(30*(((EM17-VLOOKUP(EM17,'Macro Phase'!$C$3:$N$58,1,TRUE))/(100/48))*100)/1440)<0,VLOOKUP(EM17,'Macro Phase'!$C$3:$N$58,12,TRUE)-(30*(((EM17-VLOOKUP(EM17,'Macro Phase'!$C$3:$N$58,1,TRUE))/(100/48))*100)/1440)+1,VLOOKUP(EM17,'Macro Phase'!$C$3:$N$58,12,TRUE)-(30*(((EM17-VLOOKUP(EM17,'Macro Phase'!$C$3:$N$58,1,TRUE))/(100/48))*100)/1440))) -> 18:55:23.184 | ER17: =IF(ABS($ES$14-EQ17)>1,ABS($ES$14-EQ17)-1,IF(ABS($ES$14-EQ17)>0.5,0.5-(ABS($ES$14-EQ17)-0.5),ABS($ES$14-EQ17))) -> 0.2742968023 | ES17: =IF(ER17<0.125,"G",IF(ER17>0.375,"R","Y")) -> Y | ET17: =IF(AND(EN17<=135,EN17>45),2,IF(AND(EN17<=315,EN17>225),4,IF(AND(EN17<=225,EN17>135),3,1))) -> 2 | EU17: =IF($EU$14=ET17,"G",IF(ISODD($EU$14+ET17),"Y","R")) -> G | EV17: =IF(AND(EQ17>0.125,EQ17<0.375),2,IF(AND(EQ17>0.375,EQ17<0.625),3,IF(AND(EQ17>0.625,EQ17<0.875),4,1))) -> 4 | EW17: =IF(EV17=$EW$14,"G",IF(ISODD(EV17+$EW$14),"Y","R")) -> Y | EX17: =IF(EN17<0,VLOOKUP((360+EN17),Calculations!$M$108:$N$171,2,TRUE),VLOOKUP(EN17,Calculations!$M$108:$N$171,2,TRUE)) -> OC | EY17: =VLOOKUP(EX17,Calculations!$B$56:$F$63,5,FALSE) -> 6 | EZ17: =VLOOKUP($EZ$14,Calculations!$V$40:$AD$47,EY17+1,FALSE) -> Y | FA17: =VLOOKUP(EQ17*360,Calculations!$M$108:$N$171,2,TRUE) -> I | FB17: =VLOOKUP(FA17,Calculations!$B$56:$F$63,5,FALSE) -> 1 | FC17: =VLOOKUP($FC$14,Calculations!$V$40:$AD$47,FB17+1,FALSE) -> Y | FD17: =IF(EM17<12.5%,8,IF(AND(EM17>=12.5%,EM17<25%),1,IF(AND(EM17>=25%,EM17<37.5%),2,IF(AND(EM17>=37.5%,EM17<50%),3,IF(AND(EM17>=50%,EM17<62.5%),4,IF(AND(EM17>=62.5%,EM17<75%),5,IF(AND(EM17>=75%,EM17<87.5%),6,IF(EM17>=87.5%,7,"uffda")))))))) -> 4 | FE17: =VLOOKUP($FE$14,Calculations!$Q$18:$Y$25,FD17+1) -> Y | FF17: =VLOOKUP(EM17,Calculations!$A$66:$C$105,3,TRUE) -> 2 | FG17: =IF(ISEVEN($FE$14+FD17),VLOOKUP(FF17,Calculations!$P$39:$U$43,$FG$14+1),VLOOKUP(FF17,Calculations!$P$45:$U$49,$FG$14+1)) -> Y | FH17: =VLOOKUP(EJ17,'EMO and PHY YR'!$D$2:$Q$57,10,FALSE) -> ↘ | FI17: =IF(OR(FH17="↖",FH17="↘"),1,2) -> 1 | FJ17: =IF($FI$14=FH17,"G",IF($FJ$14*FI17=2,"Y","R")) -> Y | FK17: =VLOOKUP(EJ17,'EMO and PHY YR'!$D$2:$Q$57,14,FALSE) -> ⇉ | FL17: =IF(OR(FK17="⇄",FK17="⇆"),1,2) -> 2 | FM17: =IF($FL$14=FK17,"G",IF($FM$14*FL17=2,"Y","R")) -> Y | FN17: =VLOOKUP(EJ17,'EMO and PHY YR'!$D$2:$Q$57,13,FALSE) -> ↷ | FO17: =IF($FO$14=FN17,"G","R") -> R | FP17: =VLOOKUP(EJ17,'EMO and PHY YR'!$D$2:$Q$57,7,FALSE) -> -+ | FQ17: =IF(OR(FP17="-+",FP17="+-"),1,2) -> 1 | FR17: =IF($FQ$14=FP17,"G",IF($FR$14*FQ17=2,"Y","R")) -> G | FS17: =VLOOKUP(EJ17,'EMO and PHY YR'!$D$2:$Q$57,11,FALSE) -> 5 | FT17: =VLOOKUP(FS17,Calculations!$Q$28:$Y$36,$FT$14+1) -> Y | FV17: =COUNTIF(EP17:FT17,"=R") -> 1 | FW17: =COUNTIF(EP17:FT17,"=Y") -> 10 | FX17: =0-COUNTIF(EP17:FT17,"=G") -> -2 | FY17: =50+(FV17+FX17)*(50/13) -> 46.15384615 | GA17: =VLOOKUP(B17,$GB$6:$GD$8,3,TRUE) -> 2-5 | GB17: =VLOOKUP(GA17,'EMO and PHY YR'!$D$2:$E$57,2,FALSE) -> WNW | GC17: =VLOOKUP(GA17,'EMO and PHY YR'!$D$2:$K$57,8,FALSE) -> LR | GD17: =IF(B17>'Mind Data Set'!$BC$11,1,IF(B17<='Mind Data Set'!$BC$10,0,(B17-'Mind Data Set'!$BC$10)/'Mind Data Set'!$BD$10)) -> 0.967032967 | GE17: =IF(B17>'Mind Data Set'!$BC$12,1,IF(B17<='Mind Data Set'!$BC$11,0,(B17-'Mind Data Set'!$BC$11)/'Mind Data Set'!$BD$11)) -> 0 | GF17: =IF(B17>'Mind Data Set'!$BC$13,1,IF(B17<='Mind Data Set'!$BC$12,0,(B17-'Mind Data Set'!$BC$12)/'Mind Data Set'!$BD$12)) -> 0 | GG17: =IF(B17>'Mind Data Set'!$BC$14,1,IF(B17<='Mind Data Set'!$BC$13,0,(B17-'Mind Data Set'!$BC$13)/'Mind Data Set'!$BD$13)) -> 0 | GH17: =SUM(GD17:GG17)/4 -> 0.2417582417 | GI17: =VLOOKUP(GB17,Calculations!$F$17:$G$32,2,0)-22.5*GH17 -> 287.0604396 | GJ17: =IF(ABS($GK$14-GI17)>180,180-(ABS($GK$14-GI17)-180),ABS($GK$14-GI17)) -> 59.75591044 | GK17: =IF(GJ17<45,"G",IF(GJ17>135,"R","Y")) -> Y | GL17: =IF(GC17="LR",VLOOKUP(GA17,'Macro Phase'!$B$3:$N$58,12,FALSE)+((30*GH17)/24/60),VLOOKUP(GA17,'Macro Phase'!$B$3:$N$58,13,FALSE)-((30*GH17)/24/60)) -> 0.56753663 | GM17: =IF(ABS($GN$14-GL17)>1,ABS($GN$14-GL17)-1,IF(ABS($GN$14-GL17)>0.5,0.5-(ABS($GN$14-GL17)-0.5),ABS($GN$14-GL17))) -> 0.38866288 | GN17: =IF(GM17<0.125,"G",IF(GM17>0.375,"R","Y")) -> R | GO17: =IF(AND(GI17<=135,GI17>45),2,IF(AND(GI17<=315,GI17>225),4,IF(AND(GI17<=225,GI17>135),3,1))) -> 4 | GP17: =IF($GP$14=GO17,"G",IF(ISODD($GP$14+GO17),"Y","R")) -> Y | GQ17: =IF(AND(GL17>0.125,GL17<0.375),2,IF(AND(GL17>0.375,GL17<0.625),3,IF(AND(GL17>0.625,GL17<0.875),4,1))) -> 3 | GR17: =IF(GQ17=$GR$14,"G",IF(ISODD(GQ17+$GR$14),"Y","R")) -> Y | GS17: =IF(GH17<0.25,VLOOKUP(GB17,Calculations!$A$38:$D$54,2,0),IF(GH17>=0.75,VLOOKUP(GB17,Calculations!$A$38:$D$54,4,0),VLOOKUP(GB17,Calculations!$A$38:$D$54,3,0))) -> IO | GT17: =VLOOKUP(GS17,Calculations!$B$56:$F$63,5,FALSE) -> 8 | GU17: =VLOOKUP($GU$14,Calculations!$V$40:$AD$47,GT17+1,FALSE) -> Y | GV17: =VLOOKUP(GL17*360,Calculations!$M$108:$N$171,2,TRUE) -> IO | GW17: =VLOOKUP(GV17,Calculations!$B$56:$F$63,5,FALSE) -> 8 | GX17: =VLOOKUP($GX$14,Calculations!$V$40:$AD$47,GW17+1,FALSE) -> R | GY17: =VLOOKUP(GA17,'EMO and PHY YR'!$D$2:$L$57,9,FALSE) -> 2 | GZ17: =VLOOKUP($GZ$14,Calculations!$Q$18:$Y$25,GY17+1) -> Y | HA17: =VLOOKUP(GA17,'Macro Phase'!$B$3:$L$65,10,FALSE) -> 3 | HB17: =VLOOKUP(GA17,'Macro Phase'!$B$3:$L$65,11,FALSE) -> 4 | HC17: =VLOOKUP(GA17,'Macro Phase'!$B$3:$L$65,8,FALSE) -> 0.6 | HD17: =IF(GH17>HC17,HB17,HA17) -> 3 | HE17: =IF(ISEVEN($GZ$14+GY17),VLOOKUP(HD17,Calculations!$P$39:$U$43,$HB$14+1),VLOOKUP(HD17,Calculations!$P$45:$U$49,$HB$14+1)) -> G | HF17: =VLOOKUP(GA17,'EMO and PHY YR'!$D$2:$Q$57,10,FALSE) -> ↗ | HG17: =IF(OR(HF17="↖",HF17="↘"),1,2) -> 2 | HH17: =IF($HG$14=HF17,"G",IF($HH$14*HG17=2,"Y","R")) -> Y | HI17: =VLOOKUP(GA17,'EMO and PHY YR'!$D$2:$Q$57,14,FALSE) -> ⇆ | HJ17: =IF(OR(HI17="⇄",HI17="⇆"),1,2) -> 1 | HK17: =IF($HJ$14=HI17,"G",IF($HK$14*HJ17=2,"Y","R")) -> G | HL17: =VLOOKUP(GA17,'EMO and PHY YR'!$D$2:$Q$57,13,FALSE) -> ↶ | HM17: =IF($HM$14=HL17,"G","R") -> G | HN17: =VLOOKUP(GA17,'EMO and PHY YR'!$D$2:$K$57,7,FALSE) -> -+ | HO17: =IF(OR(HN17="-+",HN17="+-"),1,2) -> 1 | HP17: =IF($HO$14=HN17,"G",IF($HP$14*HO17=2,"Y","R")) -> Y | HQ17: =VLOOKUP(GA17,'EMO and PHY YR'!$D$2:$Q$57,11,FALSE) -> 3 | HR17: =VLOOKUP(HQ17,Calculations!$Q$28:$Y$36,$HR$14+1) -> R | HT17: =COUNTIF(GK17:HR17,"=R") -> 3 | HU17: =COUNTIF(GK17:HR17,"=Y") -> 7 | HV17: =0-COUNTIF(GK17:HR17,"=G") -> -3 | HW17: =50+(HT17+HV17)*(50/13) -> 50 | HY17: =IF(GC17="LR",(VLOOKUP(IB17,Calculations!$N$51:$P$98,3,TRUE)),(VLOOKUP(IB17,Calculations!$N$51:$S$98,6,TRUE))) -> 1-6 | HZ17: =VLOOKUP(HY17,'EMO and PHY YR'!$D$2:$E$57,2,FALSE) -> NNE | IA17: =VLOOKUP(HY17,'EMO and PHY YR'!$D$2:$K$57,8,FALSE) -> RL | IB17: =GH17 -> 0.2417582417 | IC17: =VLOOKUP(HZ17,Calculations!$F$17:$G$32,2,0)-((IB17-FLOOR(IB17,100/48/100))/(100/48/100))*22.5 -> 8.901098922 | ID17: =IF(ABS($IE$14-IC17)>180,180-(ABS($IE$14-IC17)-180),ABS($IE$14-IC17)) -> 11.71629892 | IE17: =IF(ID17<45,"G",IF(ID17>135,"R","Y")) -> G | IF17: =IF(IA17="LR",VLOOKUP(IB17,'Macro Phase'!$C$3:$M$58,11,TRUE)+(30*(((IB17-VLOOKUP(IB17,'Macro Phase'!$C$3:$M$58,1,TRUE))/(100/48))*100)/1440),IF(VLOOKUP(IB17,'Macro Phase'!$C$3:$N$58,12,TRUE)-(30*(((IB17-VLOOKUP(IB17,'Macro Phase'!$C$3:$N$58,1,TRUE))/(100/48))*100)/1440)<0,VLOOKUP(IB17,'Macro Phase'!$C$3:$N$58,12,TRUE)-(30*(((IB17-VLOOKUP(IB17,'Macro Phase'!$C$3:$N$58,1,TRUE))/(100/48))*100)/1440)+1,VLOOKUP(IB17,'Macro Phase'!$C$3:$N$58,12,TRUE)-(30*(((IB17-VLOOKUP(IB17,'Macro Phase'!$C$3:$N$58,1,TRUE))/(100/48))*100)/1440))) -> 0.008241758261 | IG17: =IF(ABS($IH$14-IF17)>1,ABS($IH$14-IF17)-1,IF(ABS($IH$14-IF17)>0.5,0.5-(ABS($IH$14-IF17)-0.5),ABS($IH$14-IF17))) -> 0.3441817583 | IH17: =IF(IG17<0.125,"G",IF(IG17>0.375,"R","Y")) -> Y | II17: =IF(AND(IC17<=135,IC17>45),2,IF(AND(IC17<=315,IC17>225),4,IF(AND(IC17<=225,IC17>135),3,1))) -> 1 | IJ17: =IF($IJ$14=II17,"G",IF(ISODD($IJ$14+II17),"Y","R")) -> G | IK17: =IF(AND(IF17>0.125,IF17<0.375),2,IF(AND(IF17>0.375,IF17<0.625),3,IF(AND(IF17>0.625,IF17<0.875),4,1))) -> 1 | IL17: =IF(IK17=$IL$14,"G",IF(ISODD(IK17+$IL$14),"Y","R")) -> Y | IM17: =IF(IC17<0,VLOOKUP((360+IC17),Calculations!$M$108:$N$171,2,TRUE),VLOOKUP(IC17,Calculations!$M$108:$N$171,2,TRUE)) -> I | IN17: =VLOOKUP(IM17,Calculations!$B$56:$F$63,5,FALSE) -> 1 | IO17: =VLOOKUP($IO$14,Calculations!$V$40:$AD$47,IN17+1,FALSE) -> Y | IP17: =VLOOKUP(IF17*360,Calculations!$M$108:$N$171,2,TRUE) -> ID | IQ17: =VLOOKUP(IP17,Calculations!$B$56:$F$63,5,FALSE) -> 2 | IR17: =VLOOKUP($IR$14,Calculations!$V$40:$AD$47,IQ17+1,FALSE) -> Y | IS17: =IF(IB17<12.5%,8,IF(AND(IB17>=12.5%,IB17<25%),1,IF(AND(IB17>=25%,IB17<37.5%),2,IF(AND(IB17>=37.5%,IB17<50%),3,IF(AND(IB17>=50%,IB17<62.5%),4,IF(AND(IB17>=62.5%,IB17<75%),5,IF(AND(IB17>=75%,IB17<87.5%),6,IF(IB17>=87.5%,7,"uffda")))))))) -> 1 | IT17: =VLOOKUP($IT$14,Calculations!$Q$18:$Y$25,IS17+1) -> Y | IU17: =VLOOKUP(IB17,Calculations!$A$66:$C$105,3,TRUE) -> 5 | IV17: =IF(ISEVEN($IT$14+IS17),VLOOKUP(IU17,Calculations!$P$39:$U$43,$IV$14+1),VLOOKUP(IU17,Calculations!$P$45:$U$49,$IV$14+1)) -> Y | IW17: =VLOOKUP(HY17,'EMO and PHY YR'!$D$2:$Q$57,10,FALSE) -> ↖ | IX17: =IF(OR(IW17="↖",IW17="↘"),1,2) -> 1 | IY17: =IF($IX$14=IW17,"G",IF($IY$14*IX17=2,"Y","R")) -> Y | IZ17: =VLOOKUP(HY17,'EMO and PHY YR'!$D$2:$Q$57,14,FALSE) -> ⇇ | JA17: =IF(OR(IZ17="⇄",IZ17="⇆"),1,2) -> 2 | JB17: =IF($JA$14=IZ17,"G",IF($JB$14*JA17=2,"Y","R")) -> G | JC17: =VLOOKUP(HY17,'EMO and PHY YR'!$D$2:$Q$57,13,FALSE) -> ↶ | JD17: =IF($JD$14=JC17,"G","R") -> G | JE17: =VLOOKUP(HY17,'EMO and PHY YR'!$D$2:$Q$57,7,FALSE) -> +- | JF17: =IF(OR(JE17="-+",JE17="+-"),1,2) -> 1 | JG17: =IF($JF$14=JE17,"G",IF($JG$14*JF17=2,"Y","R")) -> Y | JH17: =VLOOKUP(HY17,'EMO and PHY YR'!$D$2:$Q$57,11,FALSE) -> 2 | JI17: =VLOOKUP(JH17,Calculations!$Q$28:$Y$36,$JI$14+1) -> R | JK17: =COUNTIF(IE17:JI17,"=R") -> 1 | JL17: =COUNTIF(IE17:JI17,"=Y") -> 8 | JM17: =0-COUNTIF(IE17:JI17,"=G") -> -4 | JN17: =50+(JK17+JM17)*(50/13) -> 38.46153846 | JQ17: 50
B18: =(B17+B19)/2 -> 2025-03-17T06:40:14.307 | D18: =VLOOKUP(B18,'Physical Data Set'!B:Q,9,TRUE) -> 7-5 | E18: =VLOOKUP(D18,'EMO and PHY YR'!$D$2:$E$57,2,FALSE) -> NW | F18: =VLOOKUP(D18,'EMO and PHY YR'!$D$2:$K$57,8,FALSE) -> LR | G18: =G17+1/192 -> 0.005208333333 | H18: =IF((VLOOKUP(E18,Calculations!$F$17:$G$32,2,0)=0),360+(VLOOKUP(E18,Calculations!$F$17:$G$32,2,0)-22.5*G18),VLOOKUP(E18,Calculations!$F$17:$G$32,2,0)-22.5*G18) -> 314.8828125 | I18: 57.61499032 | J18: Y | K18: =IF(F18="LR",VLOOKUP(D18,'Macro Phase'!$B$3:$N$58,12,FALSE)+((30*G18)/24/60),IF(VLOOKUP(D18,'Macro Phase'!$B$3:$N$58,13,FALSE)-((30*G18)/24/60)<0,VLOOKUP(D18,'Macro Phase'!$B$3:$N$58,13,FALSE)-((30*G18)/24/60)+1,VLOOKUP(D18,'Macro Phase'!$B$3:$N$58,13,FALSE)-((30*G18)/24/60))) -> 05:00:09.375 | L18: =IF(ABS($M$14-K18)>1,ABS($M$14-K18)-1,IF(ABS($M$14-K18)>0.5,0.5-(ABS($M$14-K18)-0.5),ABS($M$14-K18))) -> 0.05334721326 | M18: =IF(L18<0.125,"G",IF(L18>0.375,"R","Y")) -> G | N18: =IF(AND(H18<=135,H18>45),2,IF(AND(H18<=315,H18>225),4,IF(AND(H18<=225,H18>135),3,1))) -> 4 | O18: =IF($O$14=N18,"G",IF(ISODD($O$14+N18),"Y","R")) -> G | P18: =IF(AND(K18>0.125,K18<0.375),2,IF(AND(K18>0.375,K18<0.625),3,IF(AND(K18>0.625,K18<0.875),4,1))) -> 2 | Q18: =IF(P18=$Q$14,"G",IF(ISODD(P18+$Q$14),"Y","R")) -> G | R18: =IF(G18<0.25,VLOOKUP(E18,Calculations!$A$38:$D$54,2,0),IF(G18>=0.75,VLOOKUP(E18,Calculations!$A$38:$D$54,4,0),VLOOKUP(E18,Calculations!$A$38:$D$54,3,0))) -> OC | S18: =VLOOKUP(R18,Calculations!$B$56:$F$63,5,FALSE) -> 6 | T18: =VLOOKUP($T$14,Calculations!$V$40:$AD$47,S18+1,FALSE) -> Y | U18: =VLOOKUP(K18*360,Calculations!$M$108:$N$171,2,TRUE) -> D | V18: =VLOOKUP(U18,Calculations!$B$56:$F$63,5,FALSE) -> 3 | W18: =VLOOKUP($W$14,Calculations!$V$40:$AD$47,V18+1,FALSE) -> Y | X18: =VLOOKUP(D18,'EMO and PHY YR'!$D$2:$L$57,9,FALSE) -> 7 | Y18: =VLOOKUP($Y$14,Calculations!$Q$18:$Y$25,X18+1) -> G | Z18: =VLOOKUP(D18,'Macro Phase'!$B$3:$L$65,10,FALSE) -> 4 | AA18: =VLOOKUP(D18,'Macro Phase'!$B$3:$L$65,11,FALSE) -> 5 | AB18: =VLOOKUP(D18,'Macro Phase'!$B$3:$L$65,8,FALSE) -> 0.8 | AC18: =IF(AB18>G18,Z18,AA18) -> 4 | AD18: =IF(ISEVEN($Y$14+X18),VLOOKUP(AC18,Calculations!$P$39:$U$43,$AC$14+1),VLOOKUP(AC18,Calculations!$P$45:$U$49,$AC$14+1)) -> Y | AE18: =VLOOKUP(D18,'EMO and PHY YR'!$D$2:$Q$57,10,FALSE) -> ↘ | AF18: =IF(OR(AE18="↖",AE18="↘"),1,2) -> 1 | AG18: =IF($AF$14=AE18,"G",IF($AG$14*AF18=2,"Y","R")) -> G | AH18: =VLOOKUP(D18,'EMO and PHY YR'!$D$2:$Q$57,14,FALSE) -> ⇆ | AI18: =IF(OR(AH18="⇄",AH18="⇆"),1,2) -> 1 | AJ18: =IF($AI$14=AH18,"G",IF($AJ$14*AI18=2,"Y","R")) -> Y | AK18: =VLOOKUP(D18,'EMO and PHY YR'!$D$2:$Q$57,13,FALSE) -> ↶ | AL18: =IF($AL$14=AK18,"G","R") -> G | AM18: =VLOOKUP(D18,'EMO and PHY YR'!$D$2:$K$57,7,FALSE) -> ++ | AN18: =IF(OR(AM18="-+",AM18="+-"),1,2) -> 2 | AO18: =IF($AN$14=AM18,"G",IF($AO$14*AN18=2,"Y","R")) -> Y | AP18: =VLOOKUP(D18,'EMO and PHY YR'!$D$2:$Q$57,11,FALSE) -> 7 | AQ18: =VLOOKUP(AP18,Calculations!$Q$28:$Y$36,$AQ$14+1) -> Y | AS18: =COUNTIF(J18:AQ18,"R") -> 0 | AT18: =COUNTIF(J18:AQ18,"Y") -> 7 | AU18: =0-COUNTIF(J18:AQ18,"G") -> -6 | AV18: =50+(AS18+AU18)*(50/13) -> 26.92307692 | AX18: =IF(F18="LR",(VLOOKUP(G18,Calculations!$N$51:$P$98,3,TRUE)),(VLOOKUP(G18,Calculations!$N$51:$S$98,6,TRUE))) -> 7-7 | AY18: =VLOOKUP(AX18,'EMO and PHY YR'!$D$2:$E$57,2,FALSE) -> W | AZ18: =VLOOKUP(AX18,'EMO and PHY YR'!$D$2:$K$57,8,FALSE) -> LR | BA18: =G18 -> 0.005208333333 | BB18: =IF(VLOOKUP(AY18,Calculations!$F$17:$G$32,2,0)-((BA18-FLOOR(BA18,100/48/100))/(100/48/100))*22.5<0,360-VLOOKUP(AY18,Calculations!$F$17:$G$32,2,0)-((BA18-FLOOR(BA18,100/48/100))/(100/48/100))*22.5,VLOOKUP(AY18,Calculations!$F$17:$G$32,2,0)-((BA18-FLOOR(BA18,100/48/100))/(100/48/100))*22.5) -> 264.375 | BC18: 114.4804646 | BD18: Y | BE18: =IF(AZ18="LR",VLOOKUP(BA18,'Macro Phase'!$C$3:$M$58,11,TRUE)+(30*(((BA18-VLOOKUP(BA18,'Macro Phase'!$C$3:$M$58,1,TRUE))/(100/48))*100)/1440),IF(VLOOKUP(BA18,'Macro Phase'!$C$3:$N$58,12,TRUE)-(30*(((BA18-VLOOKUP(BA18,'Macro Phase'!$C$3:$N$58,1,TRUE))/(100/48))*100)/1440)<0,VLOOKUP(BA18,'Macro Phase'!$C$3:$N$58,12,TRUE)-(30*(((BA18-VLOOKUP(BA18,'Macro Phase'!$C$3:$N$58,1,TRUE))/(100/48))*100)/1440)+1,VLOOKUP(BA18,'Macro Phase'!$C$3:$N$58,12,TRUE)-(30*(((BA18-VLOOKUP(BA18,'Macro Phase'!$C$3:$N$58,1,TRUE))/(100/48))*100)/1440))) -> 06:07:30 | BF18: 0.4393569116 | BG18: R | BH18: 4 | BI18: Y | BJ18: 2 | BK18: R | BL18: =VLOOKUP(BB18,Calculations!$M$108:$N$171,2,TRUE) -> ID | BM18: =VLOOKUP(BL18,Calculations!$B$56:$F$63,5,FALSE) -> 2 | BN18: =VLOOKUP($BN$14,Calculations!$V$40:$AD$47,BM18+1,FALSE) -> Y | BO18: =VLOOKUP(BE18*360,Calculations!$M$108:$N$171,2,TRUE) -> ID | BP18: =VLOOKUP(BO18,Calculations!$B$56:$F$63,5,FALSE) -> 2 | BQ18: =VLOOKUP($BQ$14,Calculations!$V$40:$AD$47,BP18+1,FALSE) -> Y | BR18: 8 | BS18: =VLOOKUP($BS$14,Calculations!$Q$18:$Y$25,BR18+1) -> R | BT18: =VLOOKUP(BA18,Calculations!$A$66:$C$105,3,TRUE) -> 1 | BU18: =IF(ISEVEN($BS$14+BR18),VLOOKUP(BT18,Calculations!$P$39:$U$43,$BU$14+1),VLOOKUP(BT18,Calculations!$P$45:$U$49,$BU$14+1)) -> Y | BV18: =VLOOKUP(AX18,'EMO and PHY YR'!$D$2:$Q$57,10,FALSE) -> ↘ | BW18: 1 | BX18: G | BY18: =VLOOKUP(AX18,'EMO and PHY YR'!$D$2:$Q$57,14,FALSE) -> ⇉ | BZ18: 2 | CA18: G | CB18: =VLOOKUP(AX18,'EMO and PHY YR'!$D$2:$Q$57,13,FALSE) -> ↶ | CC18: R | CD18: =VLOOKUP(AX18,'EMO and PHY YR'!$D$2:$Q$57,7,FALSE) -> -+ | CE18: 1 | CF18: G | CG18: =VLOOKUP(AX18,'EMO and PHY YR'!$D$2:$Q$57,11,FALSE) -> 1 | CH18: =VLOOKUP(CG18,Calculations!$Q$28:$Y$36,$CH$14+1) -> R | CJ18: =COUNTIF(BD18:CH18,"=R") -> 5 | CK18: =COUNTIF(BD18:CH18,"=Y") -> 5 | CL18: =0-COUNTIF(BD18:CH18,"=G") -> -3 | CM18: =50+(CJ18+CL18)*(50/13) -> 57.69230769 | CO18: =VLOOKUP(B18,'Emotional Data Set'!$B$4:$G$2691,5,TRUE) -> 8-2 | CP18: =VLOOKUP(B18,'Emotional Data Set'!$B$4:$G$2691,6,TRUE) -> SE | CQ18: =VLOOKUP(CO18,'EMO and PHY YR'!$D$2:$K$57,8,FALSE) -> RL | CR18: =IF(ABS(B18-$CP$7)<1/86400,0,(ROUNDUP((B18-VLOOKUP(B18,$CP$7:$CQ$8,1,TRUE))/VLOOKUP(B18,$CP$7:$CQ$8,2,TRUE),8))+0.000001) -> 0.53886342 | CS18: =IF((VLOOKUP(CP18,Calculations!$F$17:$G$32,2,0)=0),360+(VLOOKUP(CP18,Calculations!$F$17:$G$32,2,0)-22.5*CR18),VLOOKUP(CP18,Calculations!$F$17:$G$32,2,0)-22.5*CR18) -> 122.875573 | CT18: =IF(ABS($CU$14-CS18)>180,180-(ABS($CU$14-CS18)-180),ABS($CU$14-CS18)) -> 6.162663652 | CU18: =IF(CT18<45,"G",IF(CT18>135,"R","Y")) -> G | CV18: =IF(CQ18="LR",VLOOKUP(CO18,'Macro Phase'!$B$3:$N$58,12,FALSE)+((30*CR18)/24/60),IF(VLOOKUP(CO18,'Macro Phase'!$B$3:$N$58,13,FALSE)-((30*CR18)/24/60)<0,VLOOKUP(CO18,'Macro Phase'!$B$3:$N$58,13,FALSE)-((30*CR18)/24/60)+1,VLOOKUP(CO18,'Macro Phase'!$B$3:$N$58,13,FALSE)-((30*CR18)/24/60))) -> 02:43:50.046 | CW18: =IF(ABS($CX$14-CV18)>1,ABS($CX$14-CV18)-1,IF(ABS($CX$14-CV18)>0.5,0.5-(ABS($CX$14-CV18)-0.5),ABS($CX$14-CV18))) -> 0.3885078541 | CX18: =IF(CW18<0.125,"G",IF(CW18>0.375,"R","Y")) -> R | CY18: =IF(AND(CS18<=135,CS18>45),2,IF(AND(CS18<=315,CS18>225),4,IF(AND(CS18<=225,CS18>135),3,1))) -> 2 | CZ18: =IF($CZ$14=CY18,"G",IF(ISODD($CZ$14+CY18),"Y","R")) -> G | DA18: =IF(AND(CV18>0.125,CV18<0.375),2,IF(AND(CV18>0.375,CV18<0.625),3,IF(AND(CV18>0.625,CV18<0.875),4,1))) -> 1 | DB18: =IF(DA18=$DB$14,"G",IF(ISODD(DA18+$DB$14),"Y","R")) -> Y | DC18: =IF(CR18<0.25,VLOOKUP(CP18,Calculations!$A$38:$D$54,2,0),IF(CR18>=0.75,VLOOKUP(CP18,Calculations!$A$38:$D$54,4,0),VLOOKUP(CP18,Calculations!$A$38:$D$54,3,0))) -> O | DD18: =VLOOKUP(DC18,Calculations!$B$56:$F$63,5,FALSE) -> 7 | DE18: =VLOOKUP($DE$14,Calculations!$V$40:$AD$47,DD18+1,FALSE) -> Y | DF18: =VLOOKUP(CV18*360,Calculations!$M$108:$N$171,2,TRUE) -> OC | DG18: =VLOOKUP(DF18,Calculations!$B$56:$F$63,5,FALSE) -> 6 | DH18: =VLOOKUP($DH$14,Calculations!$V$40:$AD$47,DG18+1,FALSE) -> Y | DI18: =VLOOKUP(CO18,'EMO and PHY YR'!$D$2:$L$57,9,FALSE) -> 1 | DJ18: =VLOOKUP($DJ$14,Calculations!$Q$18:$Y$25,DI18+1) -> Y | DK18: =VLOOKUP(CO18,'Macro Phase'!$B$3:$L$65,10,FALSE) -> 1 | DL18: =VLOOKUP(CO18,'Macro Phase'!$B$3:$L$65,11,FALSE) -> 1 | DM18: =VLOOKUP(CO18,'Macro Phase'!$B$3:$L$65,8,FALSE) -> 1 | DN18: =IF(CR18>DM18,DL18,DK18) -> 1 | DO18: =IF(ISEVEN($DJ$14+DI18),VLOOKUP(DN18,Calculations!$P$39:$U$43,$DL$14+1),VLOOKUP(DN18,Calculations!$P$45:$U$49,$DL$14+1)) -> R | DP18: =VLOOKUP(CO18,'EMO and PHY YR'!$D$2:$Q$57,10,FALSE) -> ↖ | DQ18: =IF(OR(DP18="↖",DP18="↘"),1,2) -> 1 | DR18: =IF($DQ$14=DP18,"G",IF($DR$14*DQ18=2,"Y","R")) -> R | DS18: =VLOOKUP(CO18,'EMO and PHY YR'!$D$2:$Q$57,14,FALSE) -> ⇇ | DT18: =IF(OR(DS18="⇄",DS18="⇆"),1,2) -> 2 | DU18: =IF($DT$14=DS18,"G",IF($DU$14*DT18=2,"Y","R")) -> Y | DV18: =VLOOKUP(CO18,'EMO and PHY YR'!$D$2:$Q$57,13,FALSE) -> ↶ | DW18: =IF($DW$14=DV18,"G","R") -> G | DX18: =VLOOKUP(CO18,'EMO and PHY YR'!$D$2:$K$57,7,FALSE) -> +- | DY18: =IF(OR(DX18="-+",DX18="+-"),1,2) -> 1 | DZ18: =IF($DY$14=DX18,"G",IF($DZ$14*DY18=2,"Y","R")) -> Y | EA18: =VLOOKUP(CO18,'EMO and PHY YR'!$D$2:$Q$57,11,FALSE) -> 2 | EB18: =VLOOKUP(EA18,Calculations!$Q$28:$Y$36,$EB$14+1) -> Y | ED18: =COUNTIF(CU18:EB18,"=R") -> 3 | EE18: =COUNTIF(CU18:EB18,"=Y") -> 7 | EF18: =0-COUNTIF(CU18:EB18,"=G") -> -3 | EG18: =50+(ED18+EF18)*(50/13) -> 50 | EJ18: =IF(CQ18="LR",(VLOOKUP(EM18,Calculations!$N$51:$P$98,3,TRUE)),(VLOOKUP(EM18,Calculations!$N$51:$S$98,6,TRUE))) -> 4-7 | EK18: =VLOOKUP(EJ18,'EMO and PHY YR'!$D$2:$E$57,2,FALSE) -> ENE | EL18: =VLOOKUP(EJ18,'EMO and PHY YR'!$D$2:$K$57,8,FALSE) -> LR | EM18: =CR18 -> 0.53886342 | EN18: =VLOOKUP(EK18,Calculations!$F$17:$G$32,2,0)-((EM18-FLOOR(EM18,100/48/100))/(100/48/100))*22.5 -> 48.0275064 | EO18: =IF(ABS($EP$14-EN18)>180,180-(ABS($EP$14-EN18)-180),ABS($EP$14-EN18)) -> 64.19214472 | EP18: =IF(EO18<45,"G",IF(EO18>135,"R","Y")) -> Y | EQ18: =IF(EL18="LR",VLOOKUP(EM18,'Macro Phase'!$C$3:$M$58,11,TRUE)+(30*(((EM18-VLOOKUP(EM18,'Macro Phase'!$C$3:$M$58,1,TRUE))/(100/48))*100)/1440),IF(VLOOKUP(EM18,'Macro Phase'!$C$3:$N$58,12,TRUE)-(30*(((EM18-VLOOKUP(EM18,'Macro Phase'!$C$3:$N$58,1,TRUE))/(100/48))*100)/1440)<0,VLOOKUP(EM18,'Macro Phase'!$C$3:$N$58,12,TRUE)-(30*(((EM18-VLOOKUP(EM18,'Macro Phase'!$C$3:$N$58,1,TRUE))/(100/48))*100)/1440)+1,VLOOKUP(EM18,'Macro Phase'!$C$3:$N$58,12,TRUE)-(30*(((EM18-VLOOKUP(EM18,'Macro Phase'!$C$3:$N$58,1,TRUE))/(100/48))*100)/1440))) -> 18:55:57.799 | ER18: =IF(ABS($ES$14-EQ18)>1,ABS($ES$14-EQ18)-1,IF(ABS($ES$14-EQ18)>0.5,0.5-(ABS($ES$14-EQ18)-0.5),ABS($ES$14-EQ18))) -> 0.2738961623 | ES18: =IF(ER18<0.125,"G",IF(ER18>0.375,"R","Y")) -> Y | ET18: =IF(AND(EN18<=135,EN18>45),2,IF(AND(EN18<=315,EN18>225),4,IF(AND(EN18<=225,EN18>135),3,1))) -> 2 | EU18: =IF($EU$14=ET18,"G",IF(ISODD($EU$14+ET18),"Y","R")) -> G | EV18: =IF(AND(EQ18>0.125,EQ18<0.375),2,IF(AND(EQ18>0.375,EQ18<0.625),3,IF(AND(EQ18>0.625,EQ18<0.875),4,1))) -> 4 | EW18: =IF(EV18=$EW$14,"G",IF(ISODD(EV18+$EW$14),"Y","R")) -> Y | EX18: =IF(EN18<0,VLOOKUP((360+EN18),Calculations!$M$108:$N$171,2,TRUE),VLOOKUP(EN18,Calculations!$M$108:$N$171,2,TRUE)) -> OC | EY18: =VLOOKUP(EX18,Calculations!$B$56:$F$63,5,FALSE) -> 6 | EZ18: =VLOOKUP($EZ$14,Calculations!$V$40:$AD$47,EY18+1,FALSE) -> Y | FA18: =VLOOKUP(EQ18*360,Calculations!$M$108:$N$171,2,TRUE) -> I | FB18: =VLOOKUP(FA18,Calculations!$B$56:$F$63,5,FALSE) -> 1 | FC18: =VLOOKUP($FC$14,Calculations!$V$40:$AD$47,FB18+1,FALSE) -> Y | FD18: =IF(EM18<12.5%,8,IF(AND(EM18>=12.5%,EM18<25%),1,IF(AND(EM18>=25%,EM18<37.5%),2,IF(AND(EM18>=37.5%,EM18<50%),3,IF(AND(EM18>=50%,EM18<62.5%),4,IF(AND(EM18>=62.5%,EM18<75%),5,IF(AND(EM18>=75%,EM18<87.5%),6,IF(EM18>=87.5%,7,"uffda")))))))) -> 4 | FE18: =VLOOKUP($FE$14,Calculations!$Q$18:$Y$25,FD18+1) -> Y | FF18: =VLOOKUP(EM18,Calculations!$A$66:$C$105,3,TRUE) -> 2 | FG18: =IF(ISEVEN($FE$14+FD18),VLOOKUP(FF18,Calculations!$P$39:$U$43,$FG$14+1),VLOOKUP(FF18,Calculations!$P$45:$U$49,$FG$14+1)) -> Y | FH18: =VLOOKUP(EJ18,'EMO and PHY YR'!$D$2:$Q$57,10,FALSE) -> ↘ | FI18: =IF(OR(FH18="↖",FH18="↘"),1,2) -> 1 | FJ18: =IF($FI$14=FH18,"G",IF($FJ$14*FI18=2,"Y","R")) -> Y | FK18: =VLOOKUP(EJ18,'EMO and PHY YR'!$D$2:$Q$57,14,FALSE) -> ⇉ | FL18: =IF(OR(FK18="⇄",FK18="⇆"),1,2) -> 2 | FM18: =IF($FL$14=FK18,"G",IF($FM$14*FL18=2,"Y","R")) -> Y | FN18: =VLOOKUP(EJ18,'EMO and PHY YR'!$D$2:$Q$57,13,FALSE) -> ↷ | FO18: =IF($FO$14=FN18,"G","R") -> R | FP18: =VLOOKUP(EJ18,'EMO and PHY YR'!$D$2:$Q$57,7,FALSE) -> -+ | FQ18: =IF(OR(FP18="-+",FP18="+-"),1,2) -> 1 | FR18: =IF($FQ$14=FP18,"G",IF($FR$14*FQ18=2,"Y","R")) -> G | FS18: =VLOOKUP(EJ18,'EMO and PHY YR'!$D$2:$Q$57,11,FALSE) -> 5 | FT18: =VLOOKUP(FS18,Calculations!$Q$28:$Y$36,$FT$14+1) -> Y | FV18: =COUNTIF(EP18:FT18,"=R") -> 1 | FW18: =COUNTIF(EP18:FT18,"=Y") -> 10 | FX18: =0-COUNTIF(EP18:FT18,"=G") -> -2 | FY18: =50+(FV18+FX18)*(50/13) -> 46.15384615 | GA18: =VLOOKUP(B18,$GB$6:$GD$8,3,TRUE) -> 2-5 | GB18: =VLOOKUP(GA18,'EMO and PHY YR'!$D$2:$E$57,2,FALSE) -> WNW | GC18: =VLOOKUP(GA18,'EMO and PHY YR'!$D$2:$K$57,8,FALSE) -> LR | GD18: =IF(B18>'Mind Data Set'!$BC$11,1,IF(B18<='Mind Data Set'!$BC$10,0,(B18-'Mind Data Set'!$BC$10)/'Mind Data Set'!$BD$10)) -> 0.9670615842 | GE18: =IF(B18>'Mind Data Set'!$BC$12,1,IF(B18<='Mind Data Set'!$BC$11,0,(B18-'Mind Data Set'!$BC$11)/'Mind Data Set'!$BD$11)) -> 0 | GF18: =IF(B18>'Mind Data Set'!$BC$13,1,IF(B18<='Mind Data Set'!$BC$12,0,(B18-'Mind Data Set'!$BC$12)/'Mind Data Set'!$BD$12)) -> 0 | GG18: =IF(B18>'Mind Data Set'!$BC$14,1,IF(B18<='Mind Data Set'!$BC$13,0,(B18-'Mind Data Set'!$BC$13)/'Mind Data Set'!$BD$13)) -> 0 | GH18: =SUM(GD18:GG18)/4 -> 0.241765396 | GI18: =VLOOKUP(GB18,Calculations!$F$17:$G$32,2,0)-22.5*GH18 -> 287.0602786 | GJ18: =IF(ABS($GK$14-GI18)>180,180-(ABS($GK$14-GI18)-180),ABS($GK$14-GI18)) -> 59.75607141 | GK18: =IF(GJ18<45,"G",IF(GJ18>135,"R","Y")) -> Y | GL18: =IF(GC18="LR",VLOOKUP(GA18,'Macro Phase'!$B$3:$N$58,12,FALSE)+((30*GH18)/24/60),VLOOKUP(GA18,'Macro Phase'!$B$3:$N$58,13,FALSE)-((30*GH18)/24/60)) -> 0.5675367791 | GM18: =IF(ABS($GN$14-GL18)>1,ABS($GN$14-GL18)-1,IF(ABS($GN$14-GL18)>0.5,0.5-(ABS($GN$14-GL18)-0.5),ABS($GN$14-GL18))) -> 0.3886630291 | GN18: =IF(GM18<0.125,"G",IF(GM18>0.375,"R","Y")) -> R | GO18: =IF(AND(GI18<=135,GI18>45),2,IF(AND(GI18<=315,GI18>225),4,IF(AND(GI18<=225,GI18>135),3,1))) -> 4 | GP18: =IF($GP$14=GO18,"G",IF(ISODD($GP$14+GO18),"Y","R")) -> Y | GQ18: =IF(AND(GL18>0.125,GL18<0.375),2,IF(AND(GL18>0.375,GL18<0.625),3,IF(AND(GL18>0.625,GL18<0.875),4,1))) -> 3 | GR18: =IF(GQ18=$GR$14,"G",IF(ISODD(GQ18+$GR$14),"Y","R")) -> Y | GS18: =IF(GH18<0.25,VLOOKUP(GB18,Calculations!$A$38:$D$54,2,0),IF(GH18>=0.75,VLOOKUP(GB18,Calculations!$A$38:$D$54,4,0),VLOOKUP(GB18,Calculations!$A$38:$D$54,3,0))) -> IO | GT18: =VLOOKUP(GS18,Calculations!$B$56:$F$63,5,FALSE) -> 8 | GU18: =VLOOKUP($GU$14,Calculations!$V$40:$AD$47,GT18+1,FALSE) -> Y | GV18: =VLOOKUP(GL18*360,Calculations!$M$108:$N$171,2,TRUE) -> IO | GW18: =VLOOKUP(GV18,Calculations!$B$56:$F$63,5,FALSE) -> 8 | GX18: =VLOOKUP($GX$14,Calculations!$V$40:$AD$47,GW18+1,FALSE) -> R | GY18: =VLOOKUP(GA18,'EMO and PHY YR'!$D$2:$L$57,9,FALSE) -> 2 | GZ18: =VLOOKUP($GZ$14,Calculations!$Q$18:$Y$25,GY18+1) -> Y | HA18: =VLOOKUP(GA18,'Macro Phase'!$B$3:$L$65,10,FALSE) -> 3 | HB18: =VLOOKUP(GA18,'Macro Phase'!$B$3:$L$65,11,FALSE) -> 4 | HC18: =VLOOKUP(GA18,'Macro Phase'!$B$3:$L$65,8,FALSE) -> 0.6 | HD18: =IF(GH18>HC18,HB18,HA18) -> 3 | HE18: =IF(ISEVEN($GZ$14+GY18),VLOOKUP(HD18,Calculations!$P$39:$U$43,$HB$14+1),VLOOKUP(HD18,Calculations!$P$45:$U$49,$HB$14+1)) -> G | HF18: =VLOOKUP(GA18,'EMO and PHY YR'!$D$2:$Q$57,10,FALSE) -> ↗ | HG18: =IF(OR(HF18="↖",HF18="↘"),1,2) -> 2 | HH18: =IF($HG$14=HF18,"G",IF($HH$14*HG18=2,"Y","R")) -> Y | HI18: =VLOOKUP(GA18,'EMO and PHY YR'!$D$2:$Q$57,14,FALSE) -> ⇆ | HJ18: =IF(OR(HI18="⇄",HI18="⇆"),1,2) -> 1 | HK18: =IF($HJ$14=HI18,"G",IF($HK$14*HJ18=2,"Y","R")) -> G | HL18: =VLOOKUP(GA18,'EMO and PHY YR'!$D$2:$Q$57,13,FALSE) -> ↶ | HM18: =IF($HM$14=HL18,"G","R") -> G | HN18: =VLOOKUP(GA18,'EMO and PHY YR'!$D$2:$K$57,7,FALSE) -> -+ | HO18: =IF(OR(HN18="-+",HN18="+-"),1,2) -> 1 | HP18: =IF($HO$14=HN18,"G",IF($HP$14*HO18=2,"Y","R")) -> Y | HQ18: =VLOOKUP(GA18,'EMO and PHY YR'!$D$2:$Q$57,11,FALSE) -> 3 | HR18: =VLOOKUP(HQ18,Calculations!$Q$28:$Y$36,$HR$14+1) -> R | HT18: =COUNTIF(GK18:HR18,"=R") -> 3 | HU18: =COUNTIF(GK18:HR18,"=Y") -> 7 | HV18: =0-COUNTIF(GK18:HR18,"=G") -> -3 | HW18: =50+(HT18+HV18)*(50/13) -> 50 | HY18: =IF(GC18="LR",(VLOOKUP(IB18,Calculations!$N$51:$P$98,3,TRUE)),(VLOOKUP(IB18,Calculations!$N$51:$S$98,6,TRUE))) -> 1-6 | HZ18: =VLOOKUP(HY18,'EMO and PHY YR'!$D$2:$E$57,2,FALSE) -> NNE | IA18: =VLOOKUP(HY18,'EMO and PHY YR'!$D$2:$K$57,8,FALSE) -> RL | IB18: =GH18 -> 0.241765396 | IC18: =VLOOKUP(HZ18,Calculations!$F$17:$G$32,2,0)-((IB18-FLOOR(IB18,100/48/100))/(100/48/100))*22.5 -> 8.893372274 | ID18: =IF(ABS($IE$14-IC18)>180,180-(ABS($IE$14-IC18)-180),ABS($IE$14-IC18)) -> 11.70857227 | IE18: =IF(ID18<45,"G",IF(ID18>135,"R","Y")) -> G | IF18: =IF(IA18="LR",VLOOKUP(IB18,'Macro Phase'!$C$3:$M$58,11,TRUE)+(30*(((IB18-VLOOKUP(IB18,'Macro Phase'!$C$3:$M$58,1,TRUE))/(100/48))*100)/1440),IF(VLOOKUP(IB18,'Macro Phase'!$C$3:$N$58,12,TRUE)-(30*(((IB18-VLOOKUP(IB18,'Macro Phase'!$C$3:$N$58,1,TRUE))/(100/48))*100)/1440)<0,VLOOKUP(IB18,'Macro Phase'!$C$3:$N$58,12,TRUE)-(30*(((IB18-VLOOKUP(IB18,'Macro Phase'!$C$3:$N$58,1,TRUE))/(100/48))*100)/1440)+1,VLOOKUP(IB18,'Macro Phase'!$C$3:$N$58,12,TRUE)-(30*(((IB18-VLOOKUP(IB18,'Macro Phase'!$C$3:$N$58,1,TRUE))/(100/48))*100)/1440))) -> 0.008234603957 | IG18: =IF(ABS($IH$14-IF18)>1,ABS($IH$14-IF18)-1,IF(ABS($IH$14-IF18)>0.5,0.5-(ABS($IH$14-IF18)-0.5),ABS($IH$14-IF18))) -> 0.344174604 | IH18: =IF(IG18<0.125,"G",IF(IG18>0.375,"R","Y")) -> Y | II18: =IF(AND(IC18<=135,IC18>45),2,IF(AND(IC18<=315,IC18>225),4,IF(AND(IC18<=225,IC18>135),3,1))) -> 1 | IJ18: =IF($IJ$14=II18,"G",IF(ISODD($IJ$14+II18),"Y","R")) -> G | IK18: =IF(AND(IF18>0.125,IF18<0.375),2,IF(AND(IF18>0.375,IF18<0.625),3,IF(AND(IF18>0.625,IF18<0.875),4,1))) -> 1 | IL18: =IF(IK18=$IL$14,"G",IF(ISODD(IK18+$IL$14),"Y","R")) -> Y | IM18: =IF(IC18<0,VLOOKUP((360+IC18),Calculations!$M$108:$N$171,2,TRUE),VLOOKUP(IC18,Calculations!$M$108:$N$171,2,TRUE)) -> I | IN18: =VLOOKUP(IM18,Calculations!$B$56:$F$63,5,FALSE) -> 1 | IO18: =VLOOKUP($IO$14,Calculations!$V$40:$AD$47,IN18+1,FALSE) -> Y | IP18: =VLOOKUP(IF18*360,Calculations!$M$108:$N$171,2,TRUE) -> ID | IQ18: =VLOOKUP(IP18,Calculations!$B$56:$F$63,5,FALSE) -> 2 | IR18: =VLOOKUP($IR$14,Calculations!$V$40:$AD$47,IQ18+1,FALSE) -> Y | IS18: =IF(IB18<12.5%,8,IF(AND(IB18>=12.5%,IB18<25%),1,IF(AND(IB18>=25%,IB18<37.5%),2,IF(AND(IB18>=37.5%,IB18<50%),3,IF(AND(IB18>=50%,IB18<62.5%),4,IF(AND(IB18>=62.5%,IB18<75%),5,IF(AND(IB18>=75%,IB18<87.5%),6,IF(IB18>=87.5%,7,"uffda")))))))) -> 1 | IT18: =VLOOKUP($IT$14,Calculations!$Q$18:$Y$25,IS18+1) -> Y | IU18: =VLOOKUP(IB18,Calculations!$A$66:$C$105,3,TRUE) -> 5 | IV18: =IF(ISEVEN($IT$14+IS18),VLOOKUP(IU18,Calculations!$P$39:$U$43,$IV$14+1),VLOOKUP(IU18,Calculations!$P$45:$U$49,$IV$14+1)) -> Y | IW18: =VLOOKUP(HY18,'EMO and PHY YR'!$D$2:$Q$57,10,FALSE) -> ↖ | IX18: =IF(OR(IW18="↖",IW18="↘"),1,2) -> 1 | IY18: =IF($IX$14=IW18,"G",IF($IY$14*IX18=2,"Y","R")) -> Y | IZ18: =VLOOKUP(HY18,'EMO and PHY YR'!$D$2:$Q$57,14,FALSE) -> ⇇ | JA18: =IF(OR(IZ18="⇄",IZ18="⇆"),1,2) -> 2 | JB18: =IF($JA$14=IZ18,"G",IF($JB$14*JA18=2,"Y","R")) -> G | JC18: =VLOOKUP(HY18,'EMO and PHY YR'!$D$2:$Q$57,13,FALSE) -> ↶ | JD18: =IF($JD$14=JC18,"G","R") -> G | JE18: =VLOOKUP(HY18,'EMO and PHY YR'!$D$2:$Q$57,7,FALSE) -> +- | JF18: =IF(OR(JE18="-+",JE18="+-"),1,2) -> 1 | JG18: =IF($JF$14=JE18,"G",IF($JG$14*JF18=2,"Y","R")) -> Y | JH18: =VLOOKUP(HY18,'EMO and PHY YR'!$D$2:$Q$57,11,FALSE) -> 2 | JI18: =VLOOKUP(JH18,Calculations!$Q$28:$Y$36,$JI$14+1) -> R | JK18: =COUNTIF(IE18:JI18,"=R") -> 1 | JL18: =COUNTIF(IE18:JI18,"=Y") -> 8 | JM18: =0-COUNTIF(IE18:JI18,"=G") -> -4 | JN18: =50+(JK18+JM18)*(50/13) -> 38.46153846 | JQ18: 50
B19: =(B17+B21)/2 -> 2025-03-17T06:43:54.330 | C19: =B19-VLOOKUP(Calculations!$F$5,'Time Zones'!$C:$D,2,0)/24 -> 2025-03-17T10:43:54.330 | D19: =VLOOKUP(B19,'Physical Data Set'!B:Q,9,TRUE) -> 7-5 | E19: =VLOOKUP(D19,'EMO and PHY YR'!$D$2:$E$57,2,FALSE) -> NW | F19: =VLOOKUP(D19,'EMO and PHY YR'!$D$2:$K$57,8,FALSE) -> LR | G19: =G18+1/192 -> 0.01041666667 | H19: =IF((VLOOKUP(E19,Calculations!$F$17:$G$32,2,0)=0),360+(VLOOKUP(E19,Calculations!$F$17:$G$32,2,0)-22.5*G19),VLOOKUP(E19,Calculations!$F$17:$G$32,2,0)-22.5*G19) -> 314.765625 | I19: 57.49780282 | J19: Y | K19: =IF(F19="LR",VLOOKUP(D19,'Macro Phase'!$B$3:$N$58,12,FALSE)+((30*G19)/24/60),IF(VLOOKUP(D19,'Macro Phase'!$B$3:$N$58,13,FALSE)-((30*G19)/24/60)<0,VLOOKUP(D19,'Macro Phase'!$B$3:$N$58,13,FALSE)-((30*G19)/24/60)+1,VLOOKUP(D19,'Macro Phase'!$B$3:$N$58,13,FALSE)-((30*G19)/24/60))) -> 05:00:18.750 | L19: 0.05323870632 | M19: G | N19: 4 | O19: G | P19: 2 | Q19: G | R19: =IF(G19<0.25,VLOOKUP(E19,Calculations!$A$38:$D$54,2,0),IF(G19>=0.75,VLOOKUP(E19,Calculations!$A$38:$D$54,4,0),VLOOKUP(E19,Calculations!$A$38:$D$54,3,0))) -> OC | S19: =VLOOKUP(R19,Calculations!$B$56:$F$63,5,FALSE) -> 6 | T19: =VLOOKUP($T$14,Calculations!$V$40:$AD$47,S19+1,FALSE) -> Y | U19: =VLOOKUP(K19*360,Calculations!$M$108:$N$171,2,TRUE) -> D | V19: =VLOOKUP(U19,Calculations!$B$56:$F$63,5,FALSE) -> 3 | W19: =VLOOKUP($W$14,Calculations!$V$40:$AD$47,V19+1,FALSE) -> Y | X19: =VLOOKUP(D19,'EMO and PHY YR'!$D$2:$L$57,9,FALSE) -> 7 | Y19: =VLOOKUP($Y$14,Calculations!$Q$18:$Y$25,X19+1) -> G | Z19: =VLOOKUP(D19,'Macro Phase'!$B$3:$L$65,10,FALSE) -> 4 | AA19: =VLOOKUP(D19,'Macro Phase'!$B$3:$L$65,11,FALSE) -> 5 | AB19: =VLOOKUP(D19,'Macro Phase'!$B$3:$L$65,8,FALSE) -> 0.8 | AC19: 4 | AD19: =IF(ISEVEN($Y$14+X19),VLOOKUP(AC19,Calculations!$P$39:$U$43,$AC$14+1),VLOOKUP(AC19,Calculations!$P$45:$U$49,$AC$14+1)) -> Y | AE19: =VLOOKUP(D19,'EMO and PHY YR'!$D$2:$Q$57,10,FALSE) -> ↘ | AF19: 1 | AG19: G | AH19: =VLOOKUP(D19,'EMO and PHY YR'!$D$2:$Q$57,14,FALSE) -> ⇆ | AI19: 1 | AJ19: Y | AK19: =VLOOKUP(D19,'EMO and PHY YR'!$D$2:$Q$57,13,FALSE) -> ↶ | AL19: G | AM19: =VLOOKUP(D19,'EMO and PHY YR'!$D$2:$K$57,7,FALSE) -> ++ | AN19: 2 | AO19: Y | AP19: =VLOOKUP(D19,'EMO and PHY YR'!$D$2:$Q$57,11,FALSE) -> 7 | AQ19: =VLOOKUP(AP19,Calculations!$Q$28:$Y$36,$AQ$14+1) -> Y | AS19: 0 | AT19: 7 | AU19: -6 | AV19: 26.92307692 | AX19: =IF(F19="LR",(VLOOKUP(G19,Calculations!$N$51:$P$98,3,TRUE)),(VLOOKUP(G19,Calculations!$N$51:$S$98,6,TRUE))) -> 7-7 | AY19: =VLOOKUP(AX19,'EMO and PHY YR'!$D$2:$E$57,2,FALSE) -> W | AZ19: =VLOOKUP(AX19,'EMO and PHY YR'!$D$2:$K$57,8,FALSE) -> LR | BA19: 0.01041666667 | BB19: =IF(VLOOKUP(AY19,Calculations!$F$17:$G$32,2,0)-((BA19-FLOOR(BA19,100/48/100))/(100/48/100))*22.5<0,360-VLOOKUP(AY19,Calculations!$F$17:$G$32,2,0)-((BA19-FLOOR(BA19,100/48/100))/(100/48/100))*22.5,VLOOKUP(AY19,Calculations!$F$17:$G$32,2,0)-((BA19-FLOOR(BA19,100/48/100))/(100/48/100))*22.5) -> 258.75 | BC19: 120.1054646 | BD19: Y | BE19: =IF(AZ19="LR",VLOOKUP(BA19,'Macro Phase'!$C$3:$M$58,11,TRUE)+(30*(((BA19-VLOOKUP(BA19,'Macro Phase'!$C$3:$M$58,1,TRUE))/(100/48))*100)/1440),IF(VLOOKUP(BA19,'Macro Phase'!$C$3:$N$58,12,TRUE)-(30*(((BA19-VLOOKUP(BA19,'Macro Phase'!$C$3:$N$58,1,TRUE))/(100/48))*100)/1440)<0,VLOOKUP(BA19,'Macro Phase'!$C$3:$N$58,12,TRUE)-(30*(((BA19-VLOOKUP(BA19,'Macro Phase'!$C$3:$N$58,1,TRUE))/(100/48))*100)/1440)+1,VLOOKUP(BA19,'Macro Phase'!$C$3:$N$58,12,TRUE)-(30*(((BA19-VLOOKUP(BA19,'Macro Phase'!$C$3:$N$58,1,TRUE))/(100/48))*100)/1440))) -> 06:15:00 | BF19: 0.444565245 | BG19: R | BH19: 4 | BI19: Y | BJ19: 2 | BK19: R | BL19: =VLOOKUP(BB19,Calculations!$M$108:$N$171,2,TRUE) -> D | BM19: =VLOOKUP(BL19,Calculations!$B$56:$F$63,5,FALSE) -> 3 | BN19: =VLOOKUP($BN$14,Calculations!$V$40:$AD$47,BM19+1,FALSE) -> Y | BO19: =VLOOKUP(BE19*360,Calculations!$M$108:$N$171,2,TRUE) -> ID | BP19: =VLOOKUP(BO19,Calculations!$B$56:$F$63,5,FALSE) -> 2 | BQ19: =VLOOKUP($BQ$14,Calculations!$V$40:$AD$47,BP19+1,FALSE) -> Y | BR19: 8 | BS19: =VLOOKUP($BS$14,Calculations!$Q$18:$Y$25,BR19+1) -> R | BT19: =VLOOKUP(BA19,Calculations!$A$66:$C$105,3,TRUE) -> 1 | BU19: =IF(ISEVEN($BS$14+BR19),VLOOKUP(BT19,Calculations!$P$39:$U$43,$BU$14+1),VLOOKUP(BT19,Calculations!$P$45:$U$49,$BU$14+1)) -> Y | BV19: =VLOOKUP(AX19,'EMO and PHY YR'!$D$2:$Q$57,10,FALSE) -> ↘ | BW19: 1 | BX19: G | BY19: =VLOOKUP(AX19,'EMO and PHY YR'!$D$2:$Q$57,14,FALSE) -> ⇉ | BZ19: 2 | CA19: G | CB19: =VLOOKUP(AX19,'EMO and PHY YR'!$D$2:$Q$57,13,FALSE) -> ↶ | CC19: R | CD19: =VLOOKUP(AX19,'EMO and PHY YR'!$D$2:$Q$57,7,FALSE) -> -+ | CE19: 1 | CF19: G | CG19: =VLOOKUP(AX19,'EMO and PHY YR'!$D$2:$Q$57,11,FALSE) -> 1 | CH19: =VLOOKUP(CG19,Calculations!$Q$28:$Y$36,$CH$14+1) -> R | CJ19: 5 | CK19: 5 | CL19: -3 | CM19: 57.69230769 | CO19: =VLOOKUP(B19,'Emotional Data Set'!$B$4:$G$2691,5,TRUE) -> 8-2 | CP19: =VLOOKUP(B19,'Emotional Data Set'!$B$4:$G$2691,6,TRUE) -> SE | CQ19: =VLOOKUP(CO19,'EMO and PHY YR'!$D$2:$K$57,8,FALSE) -> RL | CR19: 0.53926406 | CS19: =IF((VLOOKUP(CP19,Calculations!$F$17:$G$32,2,0)=0),360+(VLOOKUP(CP19,Calculations!$F$17:$G$32,2,0)-22.5*CR19),VLOOKUP(CP19,Calculations!$F$17:$G$32,2,0)-22.5*CR19) -> 122.8665587 | CT19: 6.153649252 | CU19: G | CV19: =IF(CQ19="LR",VLOOKUP(CO19,'Macro Phase'!$B$3:$N$58,12,FALSE)+((30*CR19)/24/60),IF(VLOOKUP(CO19,'Macro Phase'!$B$3:$N$58,13,FALSE)-((30*CR19)/24/60)<0,VLOOKUP(CO19,'Macro Phase'!$B$3:$N$58,13,FALSE)-((30*CR19)/24/60)+1,VLOOKUP(CO19,'Macro Phase'!$B$3:$N$58,13,FALSE)-((30*CR19)/24/60))) -> 02:43:49.325 | CW19: 0.3884995075 | CX19: R | CY19: 2 | CZ19: G | DA19: 1 | DB19: Y | DC19: =IF(CR19<0.25,VLOOKUP(CP19,Calculations!$A$38:$D$54,2,0),IF(CR19>=0.75,VLOOKUP(CP19,Calculations!$A$38:$D$54,4,0),VLOOKUP(CP19,Calculations!$A$38:$D$54,3,0))) -> O | DD19: =VLOOKUP(DC19,Calculations!$B$56:$F$63,5,FALSE) -> 7 | DE19: =VLOOKUP($DE$14,Calculations!$V$40:$AD$47,DD19+1,FALSE) -> Y | DF19: =VLOOKUP(CV19*360,Calculations!$M$108:$N$171,2,TRUE) -> OC | DG19: =VLOOKUP(DF19,Calculations!$B$56:$F$63,5,FALSE) -> 6 | DH19: =VLOOKUP($DH$14,Calculations!$V$40:$AD$47,DG19+1,FALSE) -> Y | DI19: =VLOOKUP(CO19,'EMO and PHY YR'!$D$2:$L$57,9,FALSE) -> 1 | DJ19: =VLOOKUP($DJ$14,Calculations!$Q$18:$Y$25,DI19+1) -> Y | DK19: =VLOOKUP(CO19,'Macro Phase'!$B$3:$L$65,10,FALSE) -> 1 | DL19: =VLOOKUP(CO19,'Macro Phase'!$B$3:$L$65,11,FALSE) -> 1 | DM19: =VLOOKUP(CO19,'Macro Phase'!$B$3:$L$65,8,FALSE) -> 1 | DN19: 1 | DO19: =IF(ISEVEN($DJ$14+DI19),VLOOKUP(DN19,Calculations!$P$39:$U$43,$DL$14+1),VLOOKUP(DN19,Calculations!$P$45:$U$49,$DL$14+1)) -> R | DP19: =VLOOKUP(CO19,'EMO and PHY YR'!$D$2:$Q$57,10,FALSE) -> ↖ | DQ19: 1 | DR19: R | DS19: =VLOOKUP(CO19,'EMO and PHY YR'!$D$2:$Q$57,14,FALSE) -> ⇇ | DT19: 2 | DU19: Y | DV19: =VLOOKUP(CO19,'EMO and PHY YR'!$D$2:$Q$57,13,FALSE) -> ↶ | DW19: G | DX19: =VLOOKUP(CO19,'EMO and PHY YR'!$D$2:$K$57,7,FALSE) -> +- | DY19: 1 | DZ19: Y | EA19: =VLOOKUP(CO19,'EMO and PHY YR'!$D$2:$Q$57,11,FALSE) -> 2 | EB19: =VLOOKUP(EA19,Calculations!$Q$28:$Y$36,$EB$14+1) -> Y | ED19: 3 | EE19: 7 | EF19: -3 | EG19: 50 | EJ19: =IF(CQ19="LR",(VLOOKUP(EM19,Calculations!$N$51:$P$98,3,TRUE)),(VLOOKUP(EM19,Calculations!$N$51:$S$98,6,TRUE))) -> 4-7 | EK19: =VLOOKUP(EJ19,'EMO and PHY YR'!$D$2:$E$57,2,FALSE) -> ENE | EL19: =VLOOKUP(EJ19,'EMO and PHY YR'!$D$2:$K$57,8,FALSE) -> LR | EM19: 0.53926406 | EN19: =VLOOKUP(EK19,Calculations!$F$17:$G$32,2,0)-((EM19-FLOOR(EM19,100/48/100))/(100/48/100))*22.5 -> 47.5948152 | EO19: 64.62483592 | EP19: Y | EQ19: =IF(EL19="LR",VLOOKUP(EM19,'Macro Phase'!$C$3:$M$58,11,TRUE)+(30*(((EM19-VLOOKUP(EM19,'Macro Phase'!$C$3:$M$58,1,TRUE))/(100/48))*100)/1440),IF(VLOOKUP(EM19,'Macro Phase'!$C$3:$N$58,12,TRUE)-(30*(((EM19-VLOOKUP(EM19,'Macro Phase'!$C$3:$N$58,1,TRUE))/(100/48))*100)/1440)<0,VLOOKUP(EM19,'Macro Phase'!$C$3:$N$58,12,TRUE)-(30*(((EM19-VLOOKUP(EM19,'Macro Phase'!$C$3:$N$58,1,TRUE))/(100/48))*100)/1440)+1,VLOOKUP(EM19,'Macro Phase'!$C$3:$N$58,12,TRUE)-(30*(((EM19-VLOOKUP(EM19,'Macro Phase'!$C$3:$N$58,1,TRUE))/(100/48))*100)/1440))) -> 18:56:32.415 | ER19: 0.2734955223 | ES19: Y | ET19: 2 | EU19: G | EV19: 4 | EW19: Y | EX19: =IF(EN19<0,VLOOKUP((360+EN19),Calculations!$M$108:$N$171,2,TRUE),VLOOKUP(EN19,Calculations!$M$108:$N$171,2,TRUE)) -> OC | EY19: =VLOOKUP(EX19,Calculations!$B$56:$F$63,5,FALSE) -> 6 | EZ19: =VLOOKUP($EZ$14,Calculations!$V$40:$AD$47,EY19+1,FALSE) -> Y | FA19: =VLOOKUP(EQ19*360,Calculations!$M$108:$N$171,2,TRUE) -> I | FB19: =VLOOKUP(FA19,Calculations!$B$56:$F$63,5,FALSE) -> 1 | FC19: =VLOOKUP($FC$14,Calculations!$V$40:$AD$47,FB19+1,FALSE) -> Y | FD19: 4 | FE19: =VLOOKUP($FE$14,Calculations!$Q$18:$Y$25,FD19+1) -> Y | FF19: =VLOOKUP(EM19,Calculations!$A$66:$C$105,3,TRUE) -> 2 | FG19: =IF(ISEVEN($FE$14+FD19),VLOOKUP(FF19,Calculations!$P$39:$U$43,$FG$14+1),VLOOKUP(FF19,Calculations!$P$45:$U$49,$FG$14+1)) -> Y | FH19: =VLOOKUP(EJ19,'EMO and PHY YR'!$D$2:$Q$57,10,FALSE) -> ↘ | FI19: 1 | FJ19: Y | FK19: =VLOOKUP(EJ19,'EMO and PHY YR'!$D$2:$Q$57,14,FALSE) -> ⇉ | FL19: 2 | FM19: Y | FN19: =VLOOKUP(EJ19,'EMO and PHY YR'!$D$2:$Q$57,13,FALSE) -> ↷ | FO19: R | FP19: =VLOOKUP(EJ19,'EMO and PHY YR'!$D$2:$Q$57,7,FALSE) -> -+ | FQ19: 1 | FR19: G | FS19: =VLOOKUP(EJ19,'EMO and PHY YR'!$D$2:$Q$57,11,FALSE) -> 5 | FT19: =VLOOKUP(FS19,Calculations!$Q$28:$Y$36,$FT$14+1) -> Y | FV19: 1 | FW19: 10 | FX19: -2 | FY19: 46.15384615 | GA19: 2-5 | GB19: =VLOOKUP(GA19,'EMO and PHY YR'!$D$2:$E$57,2,FALSE) -> WNW | GC19: =VLOOKUP(GA19,'EMO and PHY YR'!$D$2:$K$57,8,FALSE) -> LR | GD19: =IF(B19>'Mind Data Set'!$BC$11,1,IF(B19<='Mind Data Set'!$BC$10,0,(B19-'Mind Data Set'!$BC$10)/'Mind Data Set'!$BD$10)) -> 0.9670902014 | GE19: =IF(B19>'Mind Data Set'!$BC$12,1,IF(B19<='Mind Data Set'!$BC$11,0,(B19-'Mind Data Set'!$BC$11)/'Mind Data Set'!$BD$11)) -> 0 | GF19: =IF(B19>'Mind Data Set'!$BC$13,1,IF(B19<='Mind Data Set'!$BC$12,0,(B19-'Mind Data Set'!$BC$12)/'Mind Data Set'!$BD$12)) -> 0 | GG19: =IF(B19>'Mind Data Set'!$BC$14,1,IF(B19<='Mind Data Set'!$BC$13,0,(B19-'Mind Data Set'!$BC$13)/'Mind Data Set'!$BD$13)) -> 0 | GH19: =SUM(GD19:GG19)/4 -> 0.2417725503 | GI19: =VLOOKUP(GB19,Calculations!$F$17:$G$32,2,0)-22.5*GH19 -> 287.0601176 | GJ19: =IF(ABS($GK$14-GI19)>180,180-(ABS($GK$14-GI19)-180),ABS($GK$14-GI19)) -> 59.75623238 | GK19: =IF(GJ19<45,"G",IF(GJ19>135,"R","Y")) -> Y | GL19: =IF(GC19="LR",VLOOKUP(GA19,'Macro Phase'!$B$3:$N$58,12,FALSE)+((30*GH19)/24/60),VLOOKUP(GA19,'Macro Phase'!$B$3:$N$58,13,FALSE)-((30*GH19)/24/60)) -> 0.5675369281 | GM19: =IF(ABS($GN$14-GL19)>1,ABS($GN$14-GL19)-1,IF(ABS($GN$14-GL19)>0.5,0.5-(ABS($GN$14-GL19)-0.5),ABS($GN$14-GL19))) -> 0.3886631781 | GN19: =IF(GM19<0.125,"G",IF(GM19>0.375,"R","Y")) -> R | GO19: =IF(AND(GI19<=135,GI19>45),2,IF(AND(GI19<=315,GI19>225),4,IF(AND(GI19<=225,GI19>135),3,1))) -> 4 | GP19: =IF($GP$14=GO19,"G",IF(ISODD($GP$14+GO19),"Y","R")) -> Y | GQ19: =IF(AND(GL19>0.125,GL19<0.375),2,IF(AND(GL19>0.375,GL19<0.625),3,IF(AND(GL19>0.625,GL19<0.875),4,1))) -> 3 | GR19: =IF(GQ19=$GR$14,"G",IF(ISODD(GQ19+$GR$14),"Y","R")) -> Y | GS19: =IF(GH19<0.25,VLOOKUP(GB19,Calculations!$A$38:$D$54,2,0),IF(GH19>=0.75,VLOOKUP(GB19,Calculations!$A$38:$D$54,4,0),VLOOKUP(GB19,Calculations!$A$38:$D$54,3,0))) -> IO | GT19: =VLOOKUP(GS19,Calculations!$B$56:$F$63,5,FALSE) -> 8 | GU19: =VLOOKUP($GU$14,Calculations!$V$40:$AD$47,GT19+1,FALSE) -> Y | GV19: =VLOOKUP(GL19*360,Calculations!$M$108:$N$171,2,TRUE) -> IO | GW19: =VLOOKUP(GV19,Calculations!$B$56:$F$63,5,FALSE) -> 8 | GX19: =VLOOKUP($GX$14,Calculations!$V$40:$AD$47,GW19+1,FALSE) -> R | GY19: =VLOOKUP(GA19,'EMO and PHY YR'!$D$2:$L$57,9,FALSE) -> 2 | GZ19: =VLOOKUP($GZ$14,Calculations!$Q$18:$Y$25,GY19+1) -> Y | HA19: =VLOOKUP(GA19,'Macro Phase'!$B$3:$L$65,10,FALSE) -> 3 | HB19: =VLOOKUP(GA19,'Macro Phase'!$B$3:$L$65,11,FALSE) -> 4 | HC19: =VLOOKUP(GA19,'Macro Phase'!$B$3:$L$65,8,FALSE) -> 0.6 | HD19: =IF(GH19>HC19,HB19,HA19) -> 3 | HE19: =IF(ISEVEN($GZ$14+GY19),VLOOKUP(HD19,Calculations!$P$39:$U$43,$HB$14+1),VLOOKUP(HD19,Calculations!$P$45:$U$49,$HB$14+1)) -> G | HF19: =VLOOKUP(GA19,'EMO and PHY YR'!$D$2:$Q$57,10,FALSE) -> ↗ | HG19: =IF(OR(HF19="↖",HF19="↘"),1,2) -> 2 | HH19: =IF($HG$14=HF19,"G",IF($HH$14*HG19=2,"Y","R")) -> Y | HI19: =VLOOKUP(GA19,'EMO and PHY YR'!$D$2:$Q$57,14,FALSE) -> ⇆ | HJ19: =IF(OR(HI19="⇄",HI19="⇆"),1,2) -> 1 | HK19: =IF($HJ$14=HI19,"G",IF($HK$14*HJ19=2,"Y","R")) -> G | HL19: =VLOOKUP(GA19,'EMO and PHY YR'!$D$2:$Q$57,13,FALSE) -> ↶ | HM19: =IF($HM$14=HL19,"G","R") -> G | HN19: =VLOOKUP(GA19,'EMO and PHY YR'!$D$2:$K$57,7,FALSE) -> -+ | HO19: =IF(OR(HN19="-+",HN19="+-"),1,2) -> 1 | HP19: =IF($HO$14=HN19,"G",IF($HP$14*HO19=2,"Y","R")) -> Y | HQ19: =VLOOKUP(GA19,'EMO and PHY YR'!$D$2:$Q$57,11,FALSE) -> 3 | HR19: =VLOOKUP(HQ19,Calculations!$Q$28:$Y$36,$HR$14+1) -> R | HT19: =COUNTIF(GK19:HR19,"=R") -> 3 | HU19: =COUNTIF(GK19:HR19,"=Y") -> 7 | HV19: =0-COUNTIF(GK19:HR19,"=G") -> -3 | HW19: =50+(HT19+HV19)*(50/13) -> 50 | HY19: =IF(GC19="LR",(VLOOKUP(IB19,Calculations!$N$51:$P$98,3,TRUE)),(VLOOKUP(IB19,Calculations!$N$51:$S$98,6,TRUE))) -> 1-6 | HZ19: =VLOOKUP(HY19,'EMO and PHY YR'!$D$2:$E$57,2,FALSE) -> NNE | IA19: =VLOOKUP(HY19,'EMO and PHY YR'!$D$2:$K$57,8,FALSE) -> RL | IB19: 0.2417725503 | IC19: =VLOOKUP(HZ19,Calculations!$F$17:$G$32,2,0)-((IB19-FLOOR(IB19,100/48/100))/(100/48/100))*22.5 -> 8.885645625 | ID19: =IF(ABS($IE$14-IC19)>180,180-(ABS($IE$14-IC19)-180),ABS($IE$14-IC19)) -> 11.70084563 | IE19: =IF(ID19<45,"G",IF(ID19>135,"R","Y")) -> G | IF19: =IF(IA19="LR",VLOOKUP(IB19,'Macro Phase'!$C$3:$M$58,11,TRUE)+(30*(((IB19-VLOOKUP(IB19,'Macro Phase'!$C$3:$M$58,1,TRUE))/(100/48))*100)/1440),IF(VLOOKUP(IB19,'Macro Phase'!$C$3:$N$58,12,TRUE)-(30*(((IB19-VLOOKUP(IB19,'Macro Phase'!$C$3:$N$58,1,TRUE))/(100/48))*100)/1440)<0,VLOOKUP(IB19,'Macro Phase'!$C$3:$N$58,12,TRUE)-(30*(((IB19-VLOOKUP(IB19,'Macro Phase'!$C$3:$N$58,1,TRUE))/(100/48))*100)/1440)+1,VLOOKUP(IB19,'Macro Phase'!$C$3:$N$58,12,TRUE)-(30*(((IB19-VLOOKUP(IB19,'Macro Phase'!$C$3:$N$58,1,TRUE))/(100/48))*100)/1440))) -> 0.008227449653 | IG19: =IF(ABS($IH$14-IF19)>1,ABS($IH$14-IF19)-1,IF(ABS($IH$14-IF19)>0.5,0.5-(ABS($IH$14-IF19)-0.5),ABS($IH$14-IF19))) -> 0.3441674497 | IH19: =IF(IG19<0.125,"G",IF(IG19>0.375,"R","Y")) -> Y | II19: =IF(AND(IC19<=135,IC19>45),2,IF(AND(IC19<=315,IC19>225),4,IF(AND(IC19<=225,IC19>135),3,1))) -> 1 | IJ19: =IF($IJ$14=II19,"G",IF(ISODD($IJ$14+II19),"Y","R")) -> G | IK19: =IF(AND(IF19>0.125,IF19<0.375),2,IF(AND(IF19>0.375,IF19<0.625),3,IF(AND(IF19>0.625,IF19<0.875),4,1))) -> 1 | IL19: =IF(IK19=$IL$14,"G",IF(ISODD(IK19+$IL$14),"Y","R")) -> Y | IM19: =IF(IC19<0,VLOOKUP((360+IC19),Calculations!$M$108:$N$171,2,TRUE),VLOOKUP(IC19,Calculations!$M$108:$N$171,2,TRUE)) -> I | IN19: =VLOOKUP(IM19,Calculations!$B$56:$F$63,5,FALSE) -> 1 | IO19: =VLOOKUP($IO$14,Calculations!$V$40:$AD$47,IN19+1,FALSE) -> Y | IP19: =VLOOKUP(IF19*360,Calculations!$M$108:$N$171,2,TRUE) -> ID | IQ19: =VLOOKUP(IP19,Calculations!$B$56:$F$63,5,FALSE) -> 2 | IR19: =VLOOKUP($IR$14,Calculations!$V$40:$AD$47,IQ19+1,FALSE) -> Y | IS19: =IF(IB19<12.5%,8,IF(AND(IB19>=12.5%,IB19<25%),1,IF(AND(IB19>=25%,IB19<37.5%),2,IF(AND(IB19>=37.5%,IB19<50%),3,IF(AND(IB19>=50%,IB19<62.5%),4,IF(AND(IB19>=62.5%,IB19<75%),5,IF(AND(IB19>=75%,IB19<87.5%),6,IF(IB19>=87.5%,7,"uffda")))))))) -> 1 | IT19: =VLOOKUP($IT$14,Calculations!$Q$18:$Y$25,IS19+1) -> Y | IU19: =VLOOKUP(IB19,Calculations!$A$66:$C$105,3,TRUE) -> 5 | IV19: =IF(ISEVEN($IT$14+IS19),VLOOKUP(IU19,Calculations!$P$39:$U$43,$IV$14+1),VLOOKUP(IU19,Calculations!$P$45:$U$49,$IV$14+1)) -> Y | IW19: =VLOOKUP(HY19,'EMO and PHY YR'!$D$2:$Q$57,10,FALSE) -> ↖ | IX19: =IF(OR(IW19="↖",IW19="↘"),1,2) -> 1 | IY19: =IF($IX$14=IW19,"G",IF($IY$14*IX19=2,"Y","R")) -> Y | IZ19: =VLOOKUP(HY19,'EMO and PHY YR'!$D$2:$Q$57,14,FALSE) -> ⇇ | JA19: =IF(OR(IZ19="⇄",IZ19="⇆"),1,2) -> 2 | JB19: =IF($JA$14=IZ19,"G",IF($JB$14*JA19=2,"Y","R")) -> G | JC19: =VLOOKUP(HY19,'EMO and PHY YR'!$D$2:$Q$57,13,FALSE) -> ↶ | JD19: =IF($JD$14=JC19,"G","R") -> G | JE19: =VLOOKUP(HY19,'EMO and PHY YR'!$D$2:$Q$57,7,FALSE) -> +- | JF19: =IF(OR(JE19="-+",JE19="+-"),1,2) -> 1 | JG19: =IF($JF$14=JE19,"G",IF($JG$14*JF19=2,"Y","R")) -> Y | JH19: =VLOOKUP(HY19,'EMO and PHY YR'!$D$2:$Q$57,11,FALSE) -> 2 | JI19: =VLOOKUP(JH19,Calculations!$Q$28:$Y$36,$JI$14+1) -> R | JK19: =COUNTIF(IE19:JI19,"=R") -> 1 | JL19: =COUNTIF(IE19:JI19,"=Y") -> 8 | JM19: =0-COUNTIF(IE19:JI19,"=G") -> -4 | JN19: =50+(JK19+JM19)*(50/13) -> 38.46153846 | JQ19: 50
B20: =(B19+B21)/2 -> 2025-03-17T06:47:34.352 | D20: =VLOOKUP(B20,'Physical Data Set'!B:Q,9,TRUE) -> 7-5 | E20: =VLOOKUP(D20,'EMO and PHY YR'!$D$2:$E$57,2,FALSE) -> NW | F20: =VLOOKUP(D20,'EMO and PHY YR'!$D$2:$K$57,8,FALSE) -> LR | G20: 0.015625 | H20: =IF((VLOOKUP(E20,Calculations!$F$17:$G$32,2,0)=0),360+(VLOOKUP(E20,Calculations!$F$17:$G$32,2,0)-22.5*G20),VLOOKUP(E20,Calculations!$F$17:$G$32,2,0)-22.5*G20) -> 314.6484375 | I20: =IF(ABS($J$14-H20)>180,180-(ABS($J$14-H20)-180),ABS($J$14-H20)) -> 57.38061532 | J20: =IF(I20<45,"G",IF(I20>135,"R","Y")) -> Y | K20: =IF(F20="LR",VLOOKUP(D20,'Macro Phase'!$B$3:$N$58,12,FALSE)+((30*G20)/24/60),IF(VLOOKUP(D20,'Macro Phase'!$B$3:$N$58,13,FALSE)-((30*G20)/24/60)<0,VLOOKUP(D20,'Macro Phase'!$B$3:$N$58,13,FALSE)-((30*G20)/24/60)+1,VLOOKUP(D20,'Macro Phase'!$B$3:$N$58,13,FALSE)-((30*G20)/24/60))) -> 05:00:28.125 | L20: 0.05313019937 | M20: G | N20: 4 | O20: G | P20: 2 | Q20: G | R20: =IF(G20<0.25,VLOOKUP(E20,Calculations!$A$38:$D$54,2,0),IF(G20>=0.75,VLOOKUP(E20,Calculations!$A$38:$D$54,4,0),VLOOKUP(E20,Calculations!$A$38:$D$54,3,0))) -> OC | S20: =VLOOKUP(R20,Calculations!$B$56:$F$63,5,FALSE) -> 6 | T20: =VLOOKUP($T$14,Calculations!$V$40:$AD$47,S20+1,FALSE) -> Y | U20: =VLOOKUP(K20*360,Calculations!$M$108:$N$171,2,TRUE) -> D | V20: =VLOOKUP(U20,Calculations!$B$56:$F$63,5,FALSE) -> 3 | W20: =VLOOKUP($W$14,Calculations!$V$40:$AD$47,V20+1,FALSE) -> Y | X20: =VLOOKUP(D20,'EMO and PHY YR'!$D$2:$L$57,9,FALSE) -> 7 | Y20: =VLOOKUP($Y$14,Calculations!$Q$18:$Y$25,X20+1) -> G | Z20: =VLOOKUP(D20,'Macro Phase'!$B$3:$L$65,10,FALSE) -> 4 | AA20: =VLOOKUP(D20,'Macro Phase'!$B$3:$L$65,11,FALSE) -> 5 | AB20: =VLOOKUP(D20,'Macro Phase'!$B$3:$L$65,8,FALSE) -> 0.8 | AC20: 4 | AD20: =IF(ISEVEN($Y$14+X20),VLOOKUP(AC20,Calculations!$P$39:$U$43,$AC$14+1),VLOOKUP(AC20,Calculations!$P$45:$U$49,$AC$14+1)) -> Y | AE20: =VLOOKUP(D20,'EMO and PHY YR'!$D$2:$Q$57,10,FALSE) -> ↘ | AF20: 1 | AG20: G | AH20: =VLOOKUP(D20,'EMO and PHY YR'!$D$2:$Q$57,14,FALSE) -> ⇆ | AI20: 1 | AJ20: Y | AK20: =VLOOKUP(D20,'EMO and PHY YR'!$D$2:$Q$57,13,FALSE) -> ↶ | AL20: G | AM20: =VLOOKUP(D20,'EMO and PHY YR'!$D$2:$K$57,7,FALSE) -> ++ | AN20: 2 | AO20: Y | AP20: =VLOOKUP(D20,'EMO and PHY YR'!$D$2:$Q$57,11,FALSE) -> 7 | AQ20: =VLOOKUP(AP20,Calculations!$Q$28:$Y$36,$AQ$14+1) -> Y | AS20: 0 | AT20: 7 | AU20: -6 | AV20: 26.92307692 | AX20: =IF(F20="LR",(VLOOKUP(G20,Calculations!$N$51:$P$98,3,TRUE)),(VLOOKUP(G20,Calculations!$N$51:$S$98,6,TRUE))) -> 7-7 | AY20: =VLOOKUP(AX20,'EMO and PHY YR'!$D$2:$E$57,2,FALSE) -> W | AZ20: =VLOOKUP(AX20,'EMO and PHY YR'!$D$2:$K$57,8,FALSE) -> LR | BA20: 0.015625 | BB20: =IF(VLOOKUP(AY20,Calculations!$F$17:$G$32,2,0)-((BA20-FLOOR(BA20,100/48/100))/(100/48/100))*22.5<0,360-VLOOKUP(AY20,Calculations!$F$17:$G$32,2,0)-((BA20-FLOOR(BA20,100/48/100))/(100/48/100))*22.5,VLOOKUP(AY20,Calculations!$F$17:$G$32,2,0)-((BA20-FLOOR(BA20,100/48/100))/(100/48/100))*22.5) -> 253.125 | BC20: 125.7304646 | BD20: Y | BE20: =IF(AZ20="LR",VLOOKUP(BA20,'Macro Phase'!$C$3:$M$58,11,TRUE)+(30*(((BA20-VLOOKUP(BA20,'Macro Phase'!$C$3:$M$58,1,TRUE))/(100/48))*100)/1440),IF(VLOOKUP(BA20,'Macro Phase'!$C$3:$N$58,12,TRUE)-(30*(((BA20-VLOOKUP(BA20,'Macro Phase'!$C$3:$N$58,1,TRUE))/(100/48))*100)/1440)<0,VLOOKUP(BA20,'Macro Phase'!$C$3:$N$58,12,TRUE)-(30*(((BA20-VLOOKUP(BA20,'Macro Phase'!$C$3:$N$58,1,TRUE))/(100/48))*100)/1440)+1,VLOOKUP(BA20,'Macro Phase'!$C$3:$N$58,12,TRUE)-(30*(((BA20-VLOOKUP(BA20,'Macro Phase'!$C$3:$N$58,1,TRUE))/(100/48))*100)/1440))) -> 06:22:30 | BF20: 0.4497735783 | BG20: R | BH20: 4 | BI20: Y | BJ20: 2 | BK20: R | BL20: =VLOOKUP(BB20,Calculations!$M$108:$N$171,2,TRUE) -> D | BM20: =VLOOKUP(BL20,Calculations!$B$56:$F$63,5,FALSE) -> 3 | BN20: =VLOOKUP($BN$14,Calculations!$V$40:$AD$47,BM20+1,FALSE) -> Y | BO20: =VLOOKUP(BE20*360,Calculations!$M$108:$N$171,2,TRUE) -> I | BP20: =VLOOKUP(BO20,Calculations!$B$56:$F$63,5,FALSE) -> 1 | BQ20: =VLOOKUP($BQ$14,Calculations!$V$40:$AD$47,BP20+1,FALSE) -> Y | BR20: 8 | BS20: =VLOOKUP($BS$14,Calculations!$Q$18:$Y$25,BR20+1) -> R | BT20: =VLOOKUP(BA20,Calculations!$A$66:$C$105,3,TRUE) -> 1 | BU20: =IF(ISEVEN($BS$14+BR20),VLOOKUP(BT20,Calculations!$P$39:$U$43,$BU$14+1),VLOOKUP(BT20,Calculations!$P$45:$U$49,$BU$14+1)) -> Y | BV20: =VLOOKUP(AX20,'EMO and PHY YR'!$D$2:$Q$57,10,FALSE) -> ↘ | BW20: 1 | BX20: G | BY20: =VLOOKUP(AX20,'EMO and PHY YR'!$D$2:$Q$57,14,FALSE) -> ⇉ | BZ20: 2 | CA20: G | CB20: =VLOOKUP(AX20,'EMO and PHY YR'!$D$2:$Q$57,13,FALSE) -> ↶ | CC20: R | CD20: =VLOOKUP(AX20,'EMO and PHY YR'!$D$2:$Q$57,7,FALSE) -> -+ | CE20: 1 | CF20: G | CG20: =VLOOKUP(AX20,'EMO and PHY YR'!$D$2:$Q$57,11,FALSE) -> 1 | CH20: =VLOOKUP(CG20,Calculations!$Q$28:$Y$36,$CH$14+1) -> R | CJ20: 5 | CK20: 5 | CL20: -3 | CM20: 57.69230769 | CO20: =VLOOKUP(B20,'Emotional Data Set'!$B$4:$G$2691,5,TRUE) -> 8-2 | CP20: =VLOOKUP(B20,'Emotional Data Set'!$B$4:$G$2691,6,TRUE) -> SE | CQ20: =VLOOKUP(CO20,'EMO and PHY YR'!$D$2:$K$57,8,FALSE) -> RL | CR20: 0.5396647 | CS20: =IF((VLOOKUP(CP20,Calculations!$F$17:$G$32,2,0)=0),360+(VLOOKUP(CP20,Calculations!$F$17:$G$32,2,0)-22.5*CR20),VLOOKUP(CP20,Calculations!$F$17:$G$32,2,0)-22.5*CR20) -> 122.8575443 | CT20: 6.144634852 | CU20: G | CV20: =IF(CQ20="LR",VLOOKUP(CO20,'Macro Phase'!$B$3:$N$58,12,FALSE)+((30*CR20)/24/60),IF(VLOOKUP(CO20,'Macro Phase'!$B$3:$N$58,13,FALSE)-((30*CR20)/24/60)<0,VLOOKUP(CO20,'Macro Phase'!$B$3:$N$58,13,FALSE)-((30*CR20)/24/60)+1,VLOOKUP(CO20,'Macro Phase'!$B$3:$N$58,13,FALSE)-((30*CR20)/24/60))) -> 02:43:48.604 | CW20: 0.3884911608 | CX20: R | CY20: 2 | CZ20: G | DA20: 1 | DB20: Y | DC20: =IF(CR20<0.25,VLOOKUP(CP20,Calculations!$A$38:$D$54,2,0),IF(CR20>=0.75,VLOOKUP(CP20,Calculations!$A$38:$D$54,4,0),VLOOKUP(CP20,Calculations!$A$38:$D$54,3,0))) -> O | DD20: =VLOOKUP(DC20,Calculations!$B$56:$F$63,5,FALSE) -> 7 | DE20: =VLOOKUP($DE$14,Calculations!$V$40:$AD$47,DD20+1,FALSE) -> Y | DF20: =VLOOKUP(CV20*360,Calculations!$M$108:$N$171,2,TRUE) -> OC | DG20: =VLOOKUP(DF20,Calculations!$B$56:$F$63,5,FALSE) -> 6 | DH20: =VLOOKUP($DH$14,Calculations!$V$40:$AD$47,DG20+1,FALSE) -> Y | DI20: =VLOOKUP(CO20,'EMO and PHY YR'!$D$2:$L$57,9,FALSE) -> 1 | DJ20: =VLOOKUP($DJ$14,Calculations!$Q$18:$Y$25,DI20+1) -> Y | DK20: =VLOOKUP(CO20,'Macro Phase'!$B$3:$L$65,10,FALSE) -> 1 | DL20: =VLOOKUP(CO20,'Macro Phase'!$B$3:$L$65,11,FALSE) -> 1 | DM20: =VLOOKUP(CO20,'Macro Phase'!$B$3:$L$65,8,FALSE) -> 1 | DN20: 1 | DO20: =IF(ISEVEN($DJ$14+DI20),VLOOKUP(DN20,Calculations!$P$39:$U$43,$DL$14+1),VLOOKUP(DN20,Calculations!$P$45:$U$49,$DL$14+1)) -> R | DP20: =VLOOKUP(CO20,'EMO and PHY YR'!$D$2:$Q$57,10,FALSE) -> ↖ | DQ20: 1 | DR20: R | DS20: =VLOOKUP(CO20,'EMO and PHY YR'!$D$2:$Q$57,14,FALSE) -> ⇇ | DT20: 2 | DU20: Y | DV20: =VLOOKUP(CO20,'EMO and PHY YR'!$D$2:$Q$57,13,FALSE) -> ↶ | DW20: G | DX20: =VLOOKUP(CO20,'EMO and PHY YR'!$D$2:$K$57,7,FALSE) -> +- | DY20: 1 | DZ20: Y | EA20: =VLOOKUP(CO20,'EMO and PHY YR'!$D$2:$Q$57,11,FALSE) -> 2 | EB20: =VLOOKUP(EA20,Calculations!$Q$28:$Y$36,$EB$14+1) -> Y | ED20: 3 | EE20: 7 | EF20: -3 | EG20: 50 | EJ20: =IF(CQ20="LR",(VLOOKUP(EM20,Calculations!$N$51:$P$98,3,TRUE)),(VLOOKUP(EM20,Calculations!$N$51:$S$98,6,TRUE))) -> 4-7 | EK20: =VLOOKUP(EJ20,'EMO and PHY YR'!$D$2:$E$57,2,FALSE) -> ENE | EL20: =VLOOKUP(EJ20,'EMO and PHY YR'!$D$2:$K$57,8,FALSE) -> LR | EM20: 0.5396647 | EN20: =VLOOKUP(EK20,Calculations!$F$17:$G$32,2,0)-((EM20-FLOOR(EM20,100/48/100))/(100/48/100))*22.5 -> 47.162124 | EO20: 65.05752712 | EP20: Y | EQ20: =IF(EL20="LR",VLOOKUP(EM20,'Macro Phase'!$C$3:$M$58,11,TRUE)+(30*(((EM20-VLOOKUP(EM20,'Macro Phase'!$C$3:$M$58,1,TRUE))/(100/48))*100)/1440),IF(VLOOKUP(EM20,'Macro Phase'!$C$3:$N$58,12,TRUE)-(30*(((EM20-VLOOKUP(EM20,'Macro Phase'!$C$3:$N$58,1,TRUE))/(100/48))*100)/1440)<0,VLOOKUP(EM20,'Macro Phase'!$C$3:$N$58,12,TRUE)-(30*(((EM20-VLOOKUP(EM20,'Macro Phase'!$C$3:$N$58,1,TRUE))/(100/48))*100)/1440)+1,VLOOKUP(EM20,'Macro Phase'!$C$3:$N$58,12,TRUE)-(30*(((EM20-VLOOKUP(EM20,'Macro Phase'!$C$3:$N$58,1,TRUE))/(100/48))*100)/1440))) -> 18:57:07.030 | ER20: 0.2730948823 | ES20: Y | ET20: 2 | EU20: G | EV20: 4 | EW20: Y | EX20: =IF(EN20<0,VLOOKUP((360+EN20),Calculations!$M$108:$N$171,2,TRUE),VLOOKUP(EN20,Calculations!$M$108:$N$171,2,TRUE)) -> OC | EY20: =VLOOKUP(EX20,Calculations!$B$56:$F$63,5,FALSE) -> 6 | EZ20: =VLOOKUP($EZ$14,Calculations!$V$40:$AD$47,EY20+1,FALSE) -> Y | FA20: =VLOOKUP(EQ20*360,Calculations!$M$108:$N$171,2,TRUE) -> I | FB20: =VLOOKUP(FA20,Calculations!$B$56:$F$63,5,FALSE) -> 1 | FC20: =VLOOKUP($FC$14,Calculations!$V$40:$AD$47,FB20+1,FALSE) -> Y | FD20: 4 | FE20: =VLOOKUP($FE$14,Calculations!$Q$18:$Y$25,FD20+1) -> Y | FF20: =VLOOKUP(EM20,Calculations!$A$66:$C$105,3,TRUE) -> 2 | FG20: =IF(ISEVEN($FE$14+FD20),VLOOKUP(FF20,Calculations!$P$39:$U$43,$FG$14+1),VLOOKUP(FF20,Calculations!$P$45:$U$49,$FG$14+1)) -> Y | FH20: =VLOOKUP(EJ20,'EMO and PHY YR'!$D$2:$Q$57,10,FALSE) -> ↘ | FI20: 1 | FJ20: Y | FK20: =VLOOKUP(EJ20,'EMO and PHY YR'!$D$2:$Q$57,14,FALSE) -> ⇉ | FL20: 2 | FM20: Y | FN20: =VLOOKUP(EJ20,'EMO and PHY YR'!$D$2:$Q$57,13,FALSE) -> ↷ | FO20: R | FP20: =VLOOKUP(EJ20,'EMO and PHY YR'!$D$2:$Q$57,7,FALSE) -> -+ | FQ20: 1 | FR20: G | FS20: =VLOOKUP(EJ20,'EMO and PHY YR'!$D$2:$Q$57,11,FALSE) -> 5 | FT20: =VLOOKUP(FS20,Calculations!$Q$28:$Y$36,$FT$14+1) -> Y | FV20: 1 | FW20: 10 | FX20: -2 | FY20: 46.15384615 | GA20: =VLOOKUP(B20,$GB$6:$GD$8,3,TRUE) -> 2-5 | GB20: =VLOOKUP(GA20,'EMO and PHY YR'!$D$2:$E$57,2,FALSE) -> WNW | GC20: =VLOOKUP(GA20,'EMO and PHY YR'!$D$2:$K$57,8,FALSE) -> LR | GD20: =IF(B20>'Mind Data Set'!$BC$11,1,IF(B20<='Mind Data Set'!$BC$10,0,(B20-'Mind Data Set'!$BC$10)/'Mind Data Set'!$BD$10)) -> 0.9671188186 | GE20: =IF(B20>'Mind Data Set'!$BC$12,1,IF(B20<='Mind Data Set'!$BC$11,0,(B20-'Mind Data Set'!$BC$11)/'Mind Data Set'!$BD$11)) -> 0 | GF20: =IF(B20>'Mind Data Set'!$BC$13,1,IF(B20<='Mind Data Set'!$BC$12,0,(B20-'Mind Data Set'!$BC$12)/'Mind Data Set'!$BD$12)) -> 0 | GG20: =IF(B20>'Mind Data Set'!$BC$14,1,IF(B20<='Mind Data Set'!$BC$13,0,(B20-'Mind Data Set'!$BC$13)/'Mind Data Set'!$BD$13)) -> 0 | GH20: =SUM(GD20:GG20)/4 -> 0.2417797047 | GI20: =VLOOKUP(GB20,Calculations!$F$17:$G$32,2,0)-22.5*GH20 -> 287.0599566 | GJ20: =IF(ABS($GK$14-GI20)>180,180-(ABS($GK$14-GI20)-180),ABS($GK$14-GI20)) -> 59.75639335 | GK20: =IF(GJ20<45,"G",IF(GJ20>135,"R","Y")) -> Y | GL20: =IF(GC20="LR",VLOOKUP(GA20,'Macro Phase'!$B$3:$N$58,12,FALSE)+((30*GH20)/24/60),VLOOKUP(GA20,'Macro Phase'!$B$3:$N$58,13,FALSE)-((30*GH20)/24/60)) -> 0.5675370772 | GM20: =IF(ABS($GN$14-GL20)>1,ABS($GN$14-GL20)-1,IF(ABS($GN$14-GL20)>0.5,0.5-(ABS($GN$14-GL20)-0.5),ABS($GN$14-GL20))) -> 0.3886633272 | GN20: =IF(GM20<0.125,"G",IF(GM20>0.375,"R","Y")) -> R | GO20: =IF(AND(GI20<=135,GI20>45),2,IF(AND(GI20<=315,GI20>225),4,IF(AND(GI20<=225,GI20>135),3,1))) -> 4 | GP20: =IF($GP$14=GO20,"G",IF(ISODD($GP$14+GO20),"Y","R")) -> Y | GQ20: =IF(AND(GL20>0.125,GL20<0.375),2,IF(AND(GL20>0.375,GL20<0.625),3,IF(AND(GL20>0.625,GL20<0.875),4,1))) -> 3 | GR20: =IF(GQ20=$GR$14,"G",IF(ISODD(GQ20+$GR$14),"Y","R")) -> Y | GS20: =IF(GH20<0.25,VLOOKUP(GB20,Calculations!$A$38:$D$54,2,0),IF(GH20>=0.75,VLOOKUP(GB20,Calculations!$A$38:$D$54,4,0),VLOOKUP(GB20,Calculations!$A$38:$D$54,3,0))) -> IO | GT20: =VLOOKUP(GS20,Calculations!$B$56:$F$63,5,FALSE) -> 8 | GU20: =VLOOKUP($GU$14,Calculations!$V$40:$AD$47,GT20+1,FALSE) -> Y | GV20: =VLOOKUP(GL20*360,Calculations!$M$108:$N$171,2,TRUE) -> IO | GW20: =VLOOKUP(GV20,Calculations!$B$56:$F$63,5,FALSE) -> 8 | GX20: =VLOOKUP($GX$14,Calculations!$V$40:$AD$47,GW20+1,FALSE) -> R | GY20: =VLOOKUP(GA20,'EMO and PHY YR'!$D$2:$L$57,9,FALSE) -> 2 | GZ20: =VLOOKUP($GZ$14,Calculations!$Q$18:$Y$25,GY20+1) -> Y | HA20: =VLOOKUP(GA20,'Macro Phase'!$B$3:$L$65,10,FALSE) -> 3 | HB20: =VLOOKUP(GA20,'Macro Phase'!$B$3:$L$65,11,FALSE) -> 4 | HC20: =VLOOKUP(GA20,'Macro Phase'!$B$3:$L$65,8,FALSE) -> 0.6 | HD20: =IF(GH20>HC20,HB20,HA20) -> 3 | HE20: =IF(ISEVEN($GZ$14+GY20),VLOOKUP(HD20,Calculations!$P$39:$U$43,$HB$14+1),VLOOKUP(HD20,Calculations!$P$45:$U$49,$HB$14+1)) -> G | HF20: =VLOOKUP(GA20,'EMO and PHY YR'!$D$2:$Q$57,10,FALSE) -> ↗ | HG20: =IF(OR(HF20="↖",HF20="↘"),1,2) -> 2 | HH20: =IF($HG$14=HF20,"G",IF($HH$14*HG20=2,"Y","R")) -> Y | HI20: =VLOOKUP(GA20,'EMO and PHY YR'!$D$2:$Q$57,14,FALSE) -> ⇆ | HJ20: =IF(OR(HI20="⇄",HI20="⇆"),1,2) -> 1 | HK20: =IF($HJ$14=HI20,"G",IF($HK$14*HJ20=2,"Y","R")) -> G | HL20: =VLOOKUP(GA20,'EMO and PHY YR'!$D$2:$Q$57,13,FALSE) -> ↶ | HM20: =IF($HM$14=HL20,"G","R") -> G | HN20: =VLOOKUP(GA20,'EMO and PHY YR'!$D$2:$K$57,7,FALSE) -> -+ | HO20: =IF(OR(HN20="-+",HN20="+-"),1,2) -> 1 | HP20: =IF($HO$14=HN20,"G",IF($HP$14*HO20=2,"Y","R")) -> Y | HQ20: =VLOOKUP(GA20,'EMO and PHY YR'!$D$2:$Q$57,11,FALSE) -> 3 | HR20: =VLOOKUP(HQ20,Calculations!$Q$28:$Y$36,$HR$14+1) -> R | HT20: =COUNTIF(GK20:HR20,"=R") -> 3 | HU20: =COUNTIF(GK20:HR20,"=Y") -> 7 | HV20: =0-COUNTIF(GK20:HR20,"=G") -> -3 | HW20: =50+(HT20+HV20)*(50/13) -> 50 | HY20: =IF(GC20="LR",(VLOOKUP(IB20,Calculations!$N$51:$P$98,3,TRUE)),(VLOOKUP(IB20,Calculations!$N$51:$S$98,6,TRUE))) -> 1-6 | HZ20: =VLOOKUP(HY20,'EMO and PHY YR'!$D$2:$E$57,2,FALSE) -> NNE | IA20: =VLOOKUP(HY20,'EMO and PHY YR'!$D$2:$K$57,8,FALSE) -> RL | IB20: =GH20 -> 0.2417797047 | IC20: =VLOOKUP(HZ20,Calculations!$F$17:$G$32,2,0)-((IB20-FLOOR(IB20,100/48/100))/(100/48/100))*22.5 -> 8.877918977 | ID20: 11.69311898 | IE20: G | IF20: =IF(IA20="LR",VLOOKUP(IB20,'Macro Phase'!$C$3:$M$58,11,TRUE)+(30*(((IB20-VLOOKUP(IB20,'Macro Phase'!$C$3:$M$58,1,TRUE))/(100/48))*100)/1440),IF(VLOOKUP(IB20,'Macro Phase'!$C$3:$N$58,12,TRUE)-(30*(((IB20-VLOOKUP(IB20,'Macro Phase'!$C$3:$N$58,1,TRUE))/(100/48))*100)/1440)<0,VLOOKUP(IB20,'Macro Phase'!$C$3:$N$58,12,TRUE)-(30*(((IB20-VLOOKUP(IB20,'Macro Phase'!$C$3:$N$58,1,TRUE))/(100/48))*100)/1440)+1,VLOOKUP(IB20,'Macro Phase'!$C$3:$N$58,12,TRUE)-(30*(((IB20-VLOOKUP(IB20,'Macro Phase'!$C$3:$N$58,1,TRUE))/(100/48))*100)/1440))) -> 0.008220295349 | IG20: 0.3441602953 | IH20: Y | II20: 1 | IJ20: G | IK20: 1 | IL20: Y | IM20: =IF(IC20<0,VLOOKUP((360+IC20),Calculations!$M$108:$N$171,2,TRUE),VLOOKUP(IC20,Calculations!$M$108:$N$171,2,TRUE)) -> I | IN20: =VLOOKUP(IM20,Calculations!$B$56:$F$63,5,FALSE) -> 1 | IO20: =VLOOKUP($IO$14,Calculations!$V$40:$AD$47,IN20+1,FALSE) -> Y | IP20: =VLOOKUP(IF20*360,Calculations!$M$108:$N$171,2,TRUE) -> ID | IQ20: =VLOOKUP(IP20,Calculations!$B$56:$F$63,5,FALSE) -> 2 | IR20: =VLOOKUP($IR$14,Calculations!$V$40:$AD$47,IQ20+1,FALSE) -> Y | IS20: 1 | IT20: =VLOOKUP($IT$14,Calculations!$Q$18:$Y$25,IS20+1) -> Y | IU20: =VLOOKUP(IB20,Calculations!$A$66:$C$105,3,TRUE) -> 5 | IV20: =IF(ISEVEN($IT$14+IS20),VLOOKUP(IU20,Calculations!$P$39:$U$43,$IV$14+1),VLOOKUP(IU20,Calculations!$P$45:$U$49,$IV$14+1)) -> Y | IW20: =VLOOKUP(HY20,'EMO and PHY YR'!$D$2:$Q$57,10,FALSE) -> ↖ | IX20: 1 | IY20: Y | IZ20: =VLOOKUP(HY20,'EMO and PHY YR'!$D$2:$Q$57,14,FALSE) -> ⇇ | JA20: 2 | JB20: G | JC20: =VLOOKUP(HY20,'EMO and PHY YR'!$D$2:$Q$57,13,FALSE) -> ↶ | JD20: G | JE20: =VLOOKUP(HY20,'EMO and PHY YR'!$D$2:$Q$57,7,FALSE) -> +- | JF20: 1 | JG20: Y | JH20: =VLOOKUP(HY20,'EMO and PHY YR'!$D$2:$Q$57,11,FALSE) -> 2 | JI20: =VLOOKUP(JH20,Calculations!$Q$28:$Y$36,$JI$14+1) -> R | JK20: 1 | JL20: 8 | JM20: -4 | JN20: 38.46153846 | JQ20: 50
A21: 2 | B21: =VLOOKUP($B$7+(A21-1),'Physical Data Set'!$A:$B,2,FALSE) -> 2025-03-17T06:51:14.374 | C21: =B21-VLOOKUP(Calculations!$F$5,'Time Zones'!$C:$D,2,0)/24 -> 2025-03-17T10:51:14.374 | D21: =VLOOKUP(B21,'Physical Data Set'!B:Q,9,TRUE) -> 7-5 | E21: =VLOOKUP(D21,'EMO and PHY YR'!$D$2:$E$57,2,FALSE) -> NW | F21: =VLOOKUP(D21,'EMO and PHY YR'!$D$2:$K$57,8,FALSE) -> LR | G21: 0.02083333333 | H21: =IF((VLOOKUP(E21,Calculations!$F$17:$G$32,2,0)=0),360+(VLOOKUP(E21,Calculations!$F$17:$G$32,2,0)-22.5*G21),VLOOKUP(E21,Calculations!$F$17:$G$32,2,0)-22.5*G21) -> 314.53125 | I21: 57.26342782 | J21: Y | K21: =IF(F21="LR",VLOOKUP(D21,'Macro Phase'!$B$3:$N$58,12,FALSE)+((30*G21)/24/60),IF(VLOOKUP(D21,'Macro Phase'!$B$3:$N$58,13,FALSE)-((30*G21)/24/60)<0,VLOOKUP(D21,'Macro Phase'!$B$3:$N$58,13,FALSE)-((30*G21)/24/60)+1,VLOOKUP(D21,'Macro Phase'!$B$3:$N$58,13,FALSE)-((30*G21)/24/60))) -> 05:00:37.500 | L21: 0.05302169243 | M21: G | N21: 4 | O21: G | P21: 2 | Q21: G | R21: =IF(G21<0.25,VLOOKUP(E21,Calculations!$A$38:$D$54,2,0),IF(G21>=0.75,VLOOKUP(E21,Calculations!$A$38:$D$54,4,0),VLOOKUP(E21,Calculations!$A$38:$D$54,3,0))) -> OC | S21: =VLOOKUP(R21,Calculations!$B$56:$F$63,5,FALSE) -> 6 | T21: =VLOOKUP($T$14,Calculations!$V$40:$AD$47,S21+1,FALSE) -> Y | U21: =VLOOKUP(K21*360,Calculations!$M$108:$N$171,2,TRUE) -> D | V21: =VLOOKUP(U21,Calculations!$B$56:$F$63,5,FALSE) -> 3 | W21: =VLOOKUP($W$14,Calculations!$V$40:$AD$47,V21+1,FALSE) -> Y | X21: =VLOOKUP(D21,'EMO and PHY YR'!$D$2:$L$57,9,FALSE) -> 7 | Y21: =VLOOKUP($Y$14,Calculations!$Q$18:$Y$25,X21+1) -> G | Z21: =VLOOKUP(D21,'Macro Phase'!$B$3:$L$65,10,FALSE) -> 4 | AA21: =VLOOKUP(D21,'Macro Phase'!$B$3:$L$65,11,FALSE) -> 5 | AB21: =VLOOKUP(D21,'Macro Phase'!$B$3:$L$65,8,FALSE) -> 0.8 | AC21: 4 | AD21: =IF(ISEVEN($Y$14+X21),VLOOKUP(AC21,Calculations!$P$39:$U$43,$AC$14+1),VLOOKUP(AC21,Calculations!$P$45:$U$49,$AC$14+1)) -> Y | AE21: =VLOOKUP(D21,'EMO and PHY YR'!$D$2:$Q$57,10,FALSE) -> ↘ | AF21: 1 | AG21: G | AH21: =VLOOKUP(D21,'EMO and PHY YR'!$D$2:$Q$57,14,FALSE) -> ⇆ | AI21: 1 | AJ21: Y | AK21: =VLOOKUP(D21,'EMO and PHY YR'!$D$2:$Q$57,13,FALSE) -> ↶ | AL21: G | AM21: =VLOOKUP(D21,'EMO and PHY YR'!$D$2:$K$57,7,FALSE) -> ++ | AN21: 2 | AO21: Y | AP21: =VLOOKUP(D21,'EMO and PHY YR'!$D$2:$Q$57,11,FALSE) -> 7 | AQ21: =VLOOKUP(AP21,Calculations!$Q$28:$Y$36,$AQ$14+1) -> Y | AS21: 0 | AT21: 7 | AU21: -6 | AV21: 26.92307692 | AX21: =IF(F21="LR",(VLOOKUP(G21,Calculations!$N$51:$P$98,3,TRUE)),(VLOOKUP(G21,Calculations!$N$51:$S$98,6,TRUE))) -> 8-7 | AY21: =VLOOKUP(AX21,'EMO and PHY YR'!$D$2:$E$57,2,FALSE) -> WSW | AZ21: =VLOOKUP(AX21,'EMO and PHY YR'!$D$2:$K$57,8,FALSE) -> LR | BA21: 0.02083333333 | BB21: =IF(VLOOKUP(AY21,Calculations!$F$17:$G$32,2,0)-((BA21-FLOOR(BA21,100/48/100))/(100/48/100))*22.5<0,360-VLOOKUP(AY21,Calculations!$F$17:$G$32,2,0)-((BA21-FLOOR(BA21,100/48/100))/(100/48/100))*22.5,VLOOKUP(AY21,Calculations!$F$17:$G$32,2,0)-((BA21-FLOOR(BA21,100/48/100))/(100/48/100))*22.5) -> 247.5 | BC21: 131.3554646 | BD21: Y | BE21: =IF(AZ21="LR",VLOOKUP(BA21,'Macro Phase'!$C$3:$M$58,11,TRUE)+(30*(((BA21-VLOOKUP(BA21,'Macro Phase'!$C$3:$M$58,1,TRUE))/(100/48))*100)/1440),IF(VLOOKUP(BA21,'Macro Phase'!$C$3:$N$58,12,TRUE)-(30*(((BA21-VLOOKUP(BA21,'Macro Phase'!$C$3:$N$58,1,TRUE))/(100/48))*100)/1440)<0,VLOOKUP(BA21,'Macro Phase'!$C$3:$N$58,12,TRUE)-(30*(((BA21-VLOOKUP(BA21,'Macro Phase'!$C$3:$N$58,1,TRUE))/(100/48))*100)/1440)+1,VLOOKUP(BA21,'Macro Phase'!$C$3:$N$58,12,TRUE)-(30*(((BA21-VLOOKUP(BA21,'Macro Phase'!$C$3:$N$58,1,TRUE))/(100/48))*100)/1440))) -> 06:30:00 | BF21: 0.4549819116 | BG21: R | BH21: 4 | BI21: Y | BJ21: 2 | BK21: R | BL21: =VLOOKUP(BB21,Calculations!$M$108:$N$171,2,TRUE) -> DC | BM21: =VLOOKUP(BL21,Calculations!$B$56:$F$63,5,FALSE) -> 4 | BN21: =VLOOKUP($BN$14,Calculations!$V$40:$AD$47,BM21+1,FALSE) -> R | BO21: =VLOOKUP(BE21*360,Calculations!$M$108:$N$171,2,TRUE) -> I | BP21: =VLOOKUP(BO21,Calculations!$B$56:$F$63,5,FALSE) -> 1 | BQ21: =VLOOKUP($BQ$14,Calculations!$V$40:$AD$47,BP21+1,FALSE) -> Y | BR21: 8 | BS21: =VLOOKUP($BS$14,Calculations!$Q$18:$Y$25,BR21+1) -> R | BT21: =VLOOKUP(BA21,Calculations!$A$66:$C$105,3,TRUE) -> 1 | BU21: =IF(ISEVEN($BS$14+BR21),VLOOKUP(BT21,Calculations!$P$39:$U$43,$BU$14+1),VLOOKUP(BT21,Calculations!$P$45:$U$49,$BU$14+1)) -> Y | BV21: =VLOOKUP(AX21,'EMO and PHY YR'!$D$2:$Q$57,10,FALSE) -> ↘ | BW21: 1 | BX21: G | BY21: =VLOOKUP(AX21,'EMO and PHY YR'!$D$2:$Q$57,14,FALSE) -> ⇉ | BZ21: 2 | CA21: G | CB21: =VLOOKUP(AX21,'EMO and PHY YR'!$D$2:$Q$57,13,FALSE) -> ↷ | CC21: G | CD21: =VLOOKUP(AX21,'EMO and PHY YR'!$D$2:$Q$57,7,FALSE) -> -+ | CE21: 1 | CF21: G | CG21: =VLOOKUP(AX21,'EMO and PHY YR'!$D$2:$Q$57,11,FALSE) -> 1 | CH21: =VLOOKUP(CG21,Calculations!$Q$28:$Y$36,$CH$14+1) -> R | CJ21: 5 | CK21: 4 | CL21: -4 | CM21: 53.84615385 | CO21: =VLOOKUP(B21,'Emotional Data Set'!$B$4:$G$2691,5,TRUE) -> 8-2 | CP21: =VLOOKUP(B21,'Emotional Data Set'!$B$4:$G$2691,6,TRUE) -> SE | CQ21: =VLOOKUP(CO21,'EMO and PHY YR'!$D$2:$K$57,8,FALSE) -> RL | CR21: 0.54006535 | CS21: =IF((VLOOKUP(CP21,Calculations!$F$17:$G$32,2,0)=0),360+(VLOOKUP(CP21,Calculations!$F$17:$G$32,2,0)-22.5*CR21),VLOOKUP(CP21,Calculations!$F$17:$G$32,2,0)-22.5*CR21) -> 122.8485296 | CT21: 6.135620227 | CU21: G | CV21: =IF(CQ21="LR",VLOOKUP(CO21,'Macro Phase'!$B$3:$N$58,12,FALSE)+((30*CR21)/24/60),IF(VLOOKUP(CO21,'Macro Phase'!$B$3:$N$58,13,FALSE)-((30*CR21)/24/60)<0,VLOOKUP(CO21,'Macro Phase'!$B$3:$N$58,13,FALSE)-((30*CR21)/24/60)+1,VLOOKUP(CO21,'Macro Phase'!$B$3:$N$58,13,FALSE)-((30*CR21)/24/60))) -> 02:43:47.882 | CW21: 0.3884828139 | CX21: R | CY21: =IF(AND(CS21<=135,CS21>45),2,IF(AND(CS21<=315,CS21>225),4,IF(AND(CS21<=225,CS21>135),3,1))) -> 2 | CZ21: G | DA21: =IF(AND(CV21>0.125,CV21<0.375),2,IF(AND(CV21>0.375,CV21<0.625),3,IF(AND(CV21>0.625,CV21<0.875),4,1))) -> 1 | DB21: Y | DC21: =IF(CR21<0.25,VLOOKUP(CP21,Calculations!$A$38:$D$54,2,0),IF(CR21>=0.75,VLOOKUP(CP21,Calculations!$A$38:$D$54,4,0),VLOOKUP(CP21,Calculations!$A$38:$D$54,3,0))) -> O | DD21: =VLOOKUP(DC21,Calculations!$B$56:$F$63,5,FALSE) -> 7 | DE21: =VLOOKUP($DE$14,Calculations!$V$40:$AD$47,DD21+1,FALSE) -> Y | DF21: =VLOOKUP(CV21*360,Calculations!$M$108:$N$171,2,TRUE) -> OC | DG21: =VLOOKUP(DF21,Calculations!$B$56:$F$63,5,FALSE) -> 6 | DH21: =VLOOKUP($DH$14,Calculations!$V$40:$AD$47,DG21+1,FALSE) -> Y | DI21: =VLOOKUP(CO21,'EMO and PHY YR'!$D$2:$L$57,9,FALSE) -> 1 | DJ21: =VLOOKUP($DJ$14,Calculations!$Q$18:$Y$25,DI21+1) -> Y | DK21: =VLOOKUP(CO21,'Macro Phase'!$B$3:$L$65,10,FALSE) -> 1 | DL21: =VLOOKUP(CO21,'Macro Phase'!$B$3:$L$65,11,FALSE) -> 1 | DM21: =VLOOKUP(CO21,'Macro Phase'!$B$3:$L$65,8,FALSE) -> 1 | DN21: =IF(CR21>DM21,DL21,DK21) -> 1 | DO21: =IF(ISEVEN($DJ$14+DI21),VLOOKUP(DN21,Calculations!$P$39:$U$43,$DL$14+1),VLOOKUP(DN21,Calculations!$P$45:$U$49,$DL$14+1)) -> R | DP21: =VLOOKUP(CO21,'EMO and PHY YR'!$D$2:$Q$57,10,FALSE) -> ↖ | DQ21: 1 | DR21: =IF($DQ$14=DP21,"G",IF($DR$14*DQ21=2,"Y","R")) -> R | DS21: =VLOOKUP(CO21,'EMO and PHY YR'!$D$2:$Q$57,14,FALSE) -> ⇇ | DT21: 2 | DU21: =IF($DT$14=DS21,"G",IF($DU$14*DT21=2,"Y","R")) -> Y | DV21: =VLOOKUP(CO21,'EMO and PHY YR'!$D$2:$Q$57,13,FALSE) -> ↶ | DW21: =IF($DW$14=DV21,"G","R") -> G | DX21: =VLOOKUP(CO21,'EMO and PHY YR'!$D$2:$K$57,7,FALSE) -> +- | DY21: 1 | DZ21: =IF($DY$14=DX21,"G",IF($DZ$14*DY21=2,"Y","R")) -> Y | EA21: =VLOOKUP(CO21,'EMO and PHY YR'!$D$2:$Q$57,11,FALSE) -> 2 | EB21: =VLOOKUP(EA21,Calculations!$Q$28:$Y$36,$EB$14+1) -> Y | ED21: =COUNTIF(CU21:EB21,"=R") -> 3 | EE21: =COUNTIF(CU21:EB21,"=Y") -> 7 | EF21: =0-COUNTIF(CU21:EB21,"=G") -> -3 | EG21: =50+(ED21+EF21)*(50/13) -> 50 | EJ21: =IF(CQ21="LR",(VLOOKUP(EM21,Calculations!$N$51:$P$98,3,TRUE)),(VLOOKUP(EM21,Calculations!$N$51:$S$98,6,TRUE))) -> 4-7 | EK21: =VLOOKUP(EJ21,'EMO and PHY YR'!$D$2:$E$57,2,FALSE) -> ENE | EL21: =VLOOKUP(EJ21,'EMO and PHY YR'!$D$2:$K$57,8,FALSE) -> LR | EM21: 0.54006535 | EN21: =VLOOKUP(EK21,Calculations!$F$17:$G$32,2,0)-((EM21-FLOOR(EM21,100/48/100))/(100/48/100))*22.5 -> 46.729422 | EO21: 65.49022912 | EP21: Y | EQ21: =IF(EL21="LR",VLOOKUP(EM21,'Macro Phase'!$C$3:$M$58,11,TRUE)+(30*(((EM21-VLOOKUP(EM21,'Macro Phase'!$C$3:$M$58,1,TRUE))/(100/48))*100)/1440),IF(VLOOKUP(EM21,'Macro Phase'!$C$3:$N$58,12,TRUE)-(30*(((EM21-VLOOKUP(EM21,'Macro Phase'!$C$3:$N$58,1,TRUE))/(100/48))*100)/1440)<0,VLOOKUP(EM21,'Macro Phase'!$C$3:$N$58,12,TRUE)-(30*(((EM21-VLOOKUP(EM21,'Macro Phase'!$C$3:$N$58,1,TRUE))/(100/48))*100)/1440)+1,VLOOKUP(EM21,'Macro Phase'!$C$3:$N$58,12,TRUE)-(30*(((EM21-VLOOKUP(EM21,'Macro Phase'!$C$3:$N$58,1,TRUE))/(100/48))*100)/1440))) -> 18:57:41.646 | ER21: 0.2726942323 | ES21: Y | ET21: 2 | EU21: G | EV21: 4 | EW21: Y | EX21: =IF(EN21<0,VLOOKUP((360+EN21),Calculations!$M$108:$N$171,2,TRUE),VLOOKUP(EN21,Calculations!$M$108:$N$171,2,TRUE)) -> OC | EY21: =VLOOKUP(EX21,Calculations!$B$56:$F$63,5,FALSE) -> 6 | EZ21: =VLOOKUP($EZ$14,Calculations!$V$40:$AD$47,EY21+1,FALSE) -> Y | FA21: =VLOOKUP(EQ21*360,Calculations!$M$108:$N$171,2,TRUE) -> I | FB21: =VLOOKUP(FA21,Calculations!$B$56:$F$63,5,FALSE) -> 1 | FC21: =VLOOKUP($FC$14,Calculations!$V$40:$AD$47,FB21+1,FALSE) -> Y | FD21: 4 | FE21: =VLOOKUP($FE$14,Calculations!$Q$18:$Y$25,FD21+1) -> Y | FF21: =VLOOKUP(EM21,Calculations!$A$66:$C$105,3,TRUE) -> 2 | FG21: =IF(ISEVEN($FE$14+FD21),VLOOKUP(FF21,Calculations!$P$39:$U$43,$FG$14+1),VLOOKUP(FF21,Calculations!$P$45:$U$49,$FG$14+1)) -> Y | FH21: =VLOOKUP(EJ21,'EMO and PHY YR'!$D$2:$Q$57,10,FALSE) -> ↘ | FI21: 1 | FJ21: Y | FK21: =VLOOKUP(EJ21,'EMO and PHY YR'!$D$2:$Q$57,14,FALSE) -> ⇉ | FL21: 2 | FM21: Y | FN21: =VLOOKUP(EJ21,'EMO and PHY YR'!$D$2:$Q$57,13,FALSE) -> ↷ | FO21: R | FP21: =VLOOKUP(EJ21,'EMO and PHY YR'!$D$2:$Q$57,7,FALSE) -> -+ | FQ21: 1 | FR21: G | FS21: =VLOOKUP(EJ21,'EMO and PHY YR'!$D$2:$Q$57,11,FALSE) -> 5 | FT21: =VLOOKUP(FS21,Calculations!$Q$28:$Y$36,$FT$14+1) -> Y | FV21: 1 | FW21: 10 | FX21: -2 | FY21: 46.15384615 | GA21: 2-5 | GB21: =VLOOKUP(GA21,'EMO and PHY YR'!$D$2:$E$57,2,FALSE) -> WNW | GC21: =VLOOKUP(GA21,'EMO and PHY YR'!$D$2:$K$57,8,FALSE) -> LR | GD21: =IF(B21>'Mind Data Set'!$BC$11,1,IF(B21<='Mind Data Set'!$BC$10,0,(B21-'Mind Data Set'!$BC$10)/'Mind Data Set'!$BD$10)) -> 0.9671474358 | GE21: =IF(B21>'Mind Data Set'!$BC$12,1,IF(B21<='Mind Data Set'!$BC$11,0,(B21-'Mind Data Set'!$BC$11)/'Mind Data Set'!$BD$11)) -> 0 | GF21: =IF(B21>'Mind Data Set'!$BC$13,1,IF(B21<='Mind Data Set'!$BC$12,0,(B21-'Mind Data Set'!$BC$12)/'Mind Data Set'!$BD$12)) -> 0 | GG21: =IF(B21>'Mind Data Set'!$BC$14,1,IF(B21<='Mind Data Set'!$BC$13,0,(B21-'Mind Data Set'!$BC$13)/'Mind Data Set'!$BD$13)) -> 0 | GH21: =SUM(GD21:GG21)/4 -> 0.241786859 | GI21: =VLOOKUP(GB21,Calculations!$F$17:$G$32,2,0)-22.5*GH21 -> 287.0597957 | GJ21: =IF(ABS($GK$14-GI21)>180,180-(ABS($GK$14-GI21)-180),ABS($GK$14-GI21)) -> 59.75655433 | GK21: =IF(GJ21<45,"G",IF(GJ21>135,"R","Y")) -> Y | GL21: =IF(GC21="LR",VLOOKUP(GA21,'Macro Phase'!$B$3:$N$58,12,FALSE)+((30*GH21)/24/60),VLOOKUP(GA21,'Macro Phase'!$B$3:$N$58,13,FALSE)-((30*GH21)/24/60)) -> 0.5675372262 | GM21: =IF(ABS($GN$14-GL21)>1,ABS($GN$14-GL21)-1,IF(ABS($GN$14-GL21)>0.5,0.5-(ABS($GN$14-GL21)-0.5),ABS($GN$14-GL21))) -> 0.3886634762 | GN21: =IF(GM21<0.125,"G",IF(GM21>0.375,"R","Y")) -> R | GO21: =IF(AND(GI21<=135,GI21>45),2,IF(AND(GI21<=315,GI21>225),4,IF(AND(GI21<=225,GI21>135),3,1))) -> 4 | GP21: =IF($GP$14=GO21,"G",IF(ISODD($GP$14+GO21),"Y","R")) -> Y | GQ21: =IF(AND(GL21>0.125,GL21<0.375),2,IF(AND(GL21>0.375,GL21<0.625),3,IF(AND(GL21>0.625,GL21<0.875),4,1))) -> 3 | GR21: =IF(GQ21=$GR$14,"G",IF(ISODD(GQ21+$GR$14),"Y","R")) -> Y | GS21: =IF(GH21<0.25,VLOOKUP(GB21,Calculations!$A$38:$D$54,2,0),IF(GH21>=0.75,VLOOKUP(GB21,Calculations!$A$38:$D$54,4,0),VLOOKUP(GB21,Calculations!$A$38:$D$54,3,0))) -> IO | GT21: =VLOOKUP(GS21,Calculations!$B$56:$F$63,5,FALSE) -> 8 | GU21: =VLOOKUP($GU$14,Calculations!$V$40:$AD$47,GT21+1,FALSE) -> Y | GV21: =VLOOKUP(GL21*360,Calculations!$M$108:$N$171,2,TRUE) -> IO | GW21: =VLOOKUP(GV21,Calculations!$B$56:$F$63,5,FALSE) -> 8 | GX21: =VLOOKUP($GX$14,Calculations!$V$40:$AD$47,GW21+1,FALSE) -> R | GY21: =VLOOKUP(GA21,'EMO and PHY YR'!$D$2:$L$57,9,FALSE) -> 2 | GZ21: =VLOOKUP($GZ$14,Calculations!$Q$18:$Y$25,GY21+1) -> Y | HA21: =VLOOKUP(GA21,'Macro Phase'!$B$3:$L$65,10,FALSE) -> 3 | HB21: =VLOOKUP(GA21,'Macro Phase'!$B$3:$L$65,11,FALSE) -> 4 | HC21: =VLOOKUP(GA21,'Macro Phase'!$B$3:$L$65,8,FALSE) -> 0.6 | HD21: =IF(GH21>HC21,HB21,HA21) -> 3 | HE21: =IF(ISEVEN($GZ$14+GY21),VLOOKUP(HD21,Calculations!$P$39:$U$43,$HB$14+1),VLOOKUP(HD21,Calculations!$P$45:$U$49,$HB$14+1)) -> G | HF21: =VLOOKUP(GA21,'EMO and PHY YR'!$D$2:$Q$57,10,FALSE) -> ↗ | HG21: =IF(OR(HF21="↖",HF21="↘"),1,2) -> 2 | HH21: =IF($HG$14=HF21,"G",IF($HH$14*HG21=2,"Y","R")) -> Y | HI21: =VLOOKUP(GA21,'EMO and PHY YR'!$D$2:$Q$57,14,FALSE) -> ⇆ | HJ21: =IF(OR(HI21="⇄",HI21="⇆"),1,2) -> 1 | HK21: =IF($HJ$14=HI21,"G",IF($HK$14*HJ21=2,"Y","R")) -> G | HL21: =VLOOKUP(GA21,'EMO and PHY YR'!$D$2:$Q$57,13,FALSE) -> ↶ | HM21: =IF($HM$14=HL21,"G","R") -> G | HN21: =VLOOKUP(GA21,'EMO and PHY YR'!$D$2:$K$57,7,FALSE) -> -+ | HO21: =IF(OR(HN21="-+",HN21="+-"),1,2) -> 1 | HP21: =IF($HO$14=HN21,"G",IF($HP$14*HO21=2,"Y","R")) -> Y | HQ21: =VLOOKUP(GA21,'EMO and PHY YR'!$D$2:$Q$57,11,FALSE) -> 3 | HR21: =VLOOKUP(HQ21,Calculations!$Q$28:$Y$36,$HR$14+1) -> R | HT21: =COUNTIF(GK21:HR21,"=R") -> 3 | HU21: =COUNTIF(GK21:HR21,"=Y") -> 7 | HV21: =0-COUNTIF(GK21:HR21,"=G") -> -3 | HW21: =50+(HT21+HV21)*(50/13) -> 50 | HY21: =IF(GC21="LR",(VLOOKUP(IB21,Calculations!$N$51:$P$98,3,TRUE)),(VLOOKUP(IB21,Calculations!$N$51:$S$98,6,TRUE))) -> 1-6 | HZ21: =VLOOKUP(HY21,'EMO and PHY YR'!$D$2:$E$57,2,FALSE) -> NNE | IA21: =VLOOKUP(HY21,'EMO and PHY YR'!$D$2:$K$57,8,FALSE) -> RL | IB21: 0.241786859 | IC21: =VLOOKUP(HZ21,Calculations!$F$17:$G$32,2,0)-((IB21-FLOOR(IB21,100/48/100))/(100/48/100))*22.5 -> 8.870192329 | ID21: 11.68539233 | IE21: G | IF21: =IF(IA21="LR",VLOOKUP(IB21,'Macro Phase'!$C$3:$M$58,11,TRUE)+(30*(((IB21-VLOOKUP(IB21,'Macro Phase'!$C$3:$M$58,1,TRUE))/(100/48))*100)/1440),IF(VLOOKUP(IB21,'Macro Phase'!$C$3:$N$58,12,TRUE)-(30*(((IB21-VLOOKUP(IB21,'Macro Phase'!$C$3:$N$58,1,TRUE))/(100/48))*100)/1440)<0,VLOOKUP(IB21,'Macro Phase'!$C$3:$N$58,12,TRUE)-(30*(((IB21-VLOOKUP(IB21,'Macro Phase'!$C$3:$N$58,1,TRUE))/(100/48))*100)/1440)+1,VLOOKUP(IB21,'Macro Phase'!$C$3:$N$58,12,TRUE)-(30*(((IB21-VLOOKUP(IB21,'Macro Phase'!$C$3:$N$58,1,TRUE))/(100/48))*100)/1440))) -> 0.008213141045 | IG21: 0.344153141 | IH21: Y | II21: 1 | IJ21: G | IK21: 1 | IL21: Y | IM21: =IF(IC21<0,VLOOKUP((360+IC21),Calculations!$M$108:$N$171,2,TRUE),VLOOKUP(IC21,Calculations!$M$108:$N$171,2,TRUE)) -> I | IN21: =VLOOKUP(IM21,Calculations!$B$56:$F$63,5,FALSE) -> 1 | IO21: =VLOOKUP($IO$14,Calculations!$V$40:$AD$47,IN21+1,FALSE) -> Y | IP21: =VLOOKUP(IF21*360,Calculations!$M$108:$N$171,2,TRUE) -> ID | IQ21: =VLOOKUP(IP21,Calculations!$B$56:$F$63,5,FALSE) -> 2 | IR21: =VLOOKUP($IR$14,Calculations!$V$40:$AD$47,IQ21+1,FALSE) -> Y | IS21: 1 | IT21: =VLOOKUP($IT$14,Calculations!$Q$18:$Y$25,IS21+1) -> Y | IU21: =VLOOKUP(IB21,Calculations!$A$66:$C$105,3,TRUE) -> 5 | IV21: =IF(ISEVEN($IT$14+IS21),VLOOKUP(IU21,Calculations!$P$39:$U$43,$IV$14+1),VLOOKUP(IU21,Calculations!$P$45:$U$49,$IV$14+1)) -> Y | IW21: =VLOOKUP(HY21,'EMO and PHY YR'!$D$2:$Q$57,10,FALSE) -> ↖ | IX21: 1 | IY21: Y | IZ21: =VLOOKUP(HY21,'EMO and PHY YR'!$D$2:$Q$57,14,FALSE) -> ⇇ | JA21: 2 | JB21: G | JC21: =VLOOKUP(HY21,'EMO and PHY YR'!$D$2:$Q$57,13,FALSE) -> ↶ | JD21: G | JE21: =VLOOKUP(HY21,'EMO and PHY YR'!$D$2:$Q$57,7,FALSE) -> +- | JF21: 1 | JG21: Y | JH21: =VLOOKUP(HY21,'EMO and PHY YR'!$D$2:$Q$57,11,FALSE) -> 2 | JI21: =VLOOKUP(JH21,Calculations!$Q$28:$Y$36,$JI$14+1) -> R | JK21: 1 | JL21: 8 | JM21: -4 | JN21: 38.46153846 | JQ21: 50
